Workbook

Sheet Results
B1: Soil Lab, Geological Survey of Israel
B2: Particle Size Analysis by laser diffraction, Instrument: Mastersizer 2000
B3: project name: samples from Mojave desert
B4: Sample description: sand
B5: Samples ID's: [3768-3793]
A8: Particle | C8: ='raw files'!C1 -> [3768] Pisga T1-5 bulk - c - Average | J8: Particle | L8: ='raw files'!I1 -> [3769] Pisga T1-10 bulk - b - Average | S8: Particle | U8: ='raw files'!O1 -> [3770] Pisga T1-20 bulk - a - Average | AB8: Particle | AD8: ='raw files'!V1 -> [3771] Pisga T1-35 bulk - b - Average | AK8: Particle | AM8: ='raw files'!AB1 -> [3772] Pisga T1-50 bulk - a - Average | AT8: Particle | AV8: ='raw files'!AH1 -> [3773] Pisga T1-60 bulk - b - Average | BC8: Particle | BE8: ='raw files'!AN1 -> [3774] Pisga T1-70 bulk - a - Average | BL8: Particle | BN8: ='raw files'!AT1 -> [3775] Pisga T2-1 bulk - b - Average | BU8: Particle | BW8: ='raw files'!AZ1 -> [3776] Pisga T2-18 bulk - a - Average | CC8: Particle | CE8: ='raw files'!BF1 -> [3777] Pisga T2-58 bulk - a - Average
A9: Diameter | C9: Differential Volume (%) | J9: Diameter | L9: Differential Volume (%) | S9: Diameter | U9: Differential Volume (%) | AB9: Diameter | AD9: Differential Volume (%) | AK9: Diameter | AM9: Differential Volume (%) | AT9: Diameter | AV9: Differential Volume (%) | BC9: Diameter | BE9: Differential Volume (%) | BL9: Diameter | BN9: Differential Volume (%) | BU9: Diameter | BW9: Differential Volume (%) | CC9: Diameter | CE9: Differential Volume (%)
A10: Range (mm) | B10: Size Class | C10: Rep. 1 | D10: Rep. 2 | E10: Rep. 3 | F10: Average | G10: SE | J10: Range (mm) | K10: Size Class | L10: Rep. 1 | M10: Rep. 2 | N10: Rep. 3 | O10: Average | P10: SE | S10: Range (mm) | T10: Size Class | U10: Rep. 1 | V10: Rep. 2 | W10: Rep. 3 | X10: Average | Y10: SE | AB10: Range (mm) | AC10: Size Class | AD10: Rep. 1 | AE10: Rep. 2 | AF10: Rep. 3 | AG10: Average | AH10: SE | AK10: Range (mm) | AL10: Size Class | AM10: Rep. 1 | AN10: Rep. 2 | AO10: Rep. 3 | AP10: Average | AQ10: SE | AT10: Range (mm) | AU10: Size Class | AV10: Rep. 1 | AW10: Rep. 2 | AX10: Rep. 3 | AY10: Average | AZ10: SE | BC10: Range (mm) | BD10: Size Class | BE10: Rep. 1 | BF10: Rep. 2 | BG10: Rep. 3 | BH10: Average | BI10: SE | BL10: Range (mm) | BM10: Size Class | BN10: Rep. 1 | BO10: Rep. 2 | BP10: Rep. 3 | BQ10: Average | BR10: SE | BT10: Range (mm) | BU10: Size Class | BV10: Rep. 1 | BW10: Rep. 2 | BX10: Rep. 3 | BY10: Average | BZ10: SE | CC10: Range (mm) | CD10: Size Class | CE10: Rep. 1 | CF10: Rep. 2 | CG10: Rep. 3 | CH10: Average | CI10: SE
A11: < 5 | B11: Clay | C11: ='raw files'!C13 -> 4.826 | D11: ='raw files'!D13 -> 4.358 | E11: ='raw files'!E13 -> 3.607 | F11: =AVERAGE(C11:D11) -> 4.592 | G11: =(STDEV(C11:D11))/SQRT(2) -> 0.234 | J11: < 5 | K11: Clay | L11: ='raw files'!I13 -> 12.366 | M11: ='raw files'!J13 -> 14.141 | N11: ='raw files'!K13 -> 13.142 | O11: =AVERAGE(L11,N11) -> 12.754 | P11: =(STDEV(L11:N11))/SQRT(3) -> 0.5137445323 | S11: < 5 | T11: Clay | U11: ='raw files'!O13 -> 11.942 | V11: ='raw files'!P13 -> 11.867 | W11: ='raw files'!Q13 -> 12.185 | X11: =AVERAGE(U11:W11) -> 11.998 | Y11: =(STDEV(U11:W11))/SQRT(3) -> 0.0959739548 | AB11: < 5 | AC11: Clay | AD11: ='raw files'!V13 -> 8.318 | AE11: ='raw files'!W13 -> 8.799 | AF11: ='raw files'!X13 -> 8.815 | AG11: =AVERAGE(AD11:AF11) -> 8.644 | AH11: =(STDEV(AD11:AF11))/SQRT(3) -> 0.1630654265 | AK11: < 5 | AL11: Clay | AM11: ='raw files'!AB13 -> 7.695 | AN11: ='raw files'!AC13 -> 7.629 | AO11: ='raw files'!AD13 -> 7.584 | AP11: =AVERAGE(AM11:AO11) -> 7.636 | AQ11: =(STDEV(AM11:AO11))/SQRT(3) -> 0.03223352292 | AT11: < 5 | AU11: Clay | AV11: ='raw files'!AH13 -> 7.436 | AW11: ='raw files'!AI13 -> 6.976 | AX11: ='raw files'!AJ13 -> 7.184 | AY11: =AVERAGE(AV11:AX11) -> 7.198666667 | AZ11: =(STDEV(AV11:AX11))/SQRT(3) -> 0.1329928987 | BC11: < 5 | BD11: Clay | BE11: ='raw files'!AN13 -> 5.202 | BF11: ='raw files'!AO13 -> 5.802 | BG11: ='raw files'!AP13 -> 6.232 | BH11: =AVERAGE(BE11:BG11) -> 5.745333333 | BI11: =(STDEV(BE11:BG11))/SQRT(3) -> 0.2986822913 | BL11: < 5 | BM11: Clay | BN11: ='raw files'!AT13 -> 6.332 | BO11: ='raw files'!AU13 -> 7.888 | BP11: ='raw files'!AV13 -> 7.246 | BQ11: =AVERAGE(BO11:BP11) -> 7.567 | BR11: =(STDEV(BO11:BP11))/SQRT(2) -> 0.321 | BT11: < 5 | BU11: Clay | BV11: ='raw files'!AZ13 -> 6.333 | BW11: ='raw files'!BA13 -> 5.916 | BX11: ='raw files'!BB13 -> 6.21 | BY11: =AVERAGE(BV11:BX11) -> 6.153 | BZ11: =(STDEV(BV11:BX11))/SQRT(3) -> 0.123705295 | CC11: < 5 | CD11: Clay | CE11: ='raw files'!BF13 -> 10.831 | CF11: ='raw files'!BG13 -> 10.765 | CG11: ='raw files'!BH13 -> 10.637 | CH11: =AVERAGE(CE11:CG11) -> 10.74433333 | CI11: =(STDEV(CE11:CG11))/SQRT(3) -> 0.05694831965
A12: 5 - 63 | B12: Silt | C12: ='raw files'!C14 -> 17.577 | D12: ='raw files'!D14 -> 16.186 | E12: ='raw files'!E14 -> 13.162 | F12: =AVERAGE(C12:D12) -> 16.8815 | G12: =(STDEV(C12:D12))/SQRT(2) -> 0.6955 | J12: 5 - 63 | K12: Silt | L12: ='raw files'!I14 -> 21.808 | M12: ='raw files'!J14 -> 24.237 | N12: ='raw files'!K14 -> 22.867 | O12: =AVERAGE(L12,N12) -> 22.3375 | P12: =(STDEV(L12:N12))/SQRT(3) -> 0.7031050972 | S12: 5 - 63 | T12: Silt | U12: ='raw files'!O14 -> 44.199 | V12: ='raw files'!P14 -> 44.01 | W12: ='raw files'!Q14 -> 43.561 | X12: =AVERAGE(U12:W12) -> 43.92333333 | Y12: =(STDEV(U12:W12))/SQRT(3) -> 0.1892038877 | AB12: 5 - 63 | AC12: Silt | AD12: ='raw files'!V14 -> 17.254 | AE12: ='raw files'!W14 -> 18.589 | AF12: ='raw files'!X14 -> 18.516 | AG12: =AVERAGE(AD12:AF12) -> 18.11966667 | AH12: =(STDEV(AD12:AF12))/SQRT(3) -> 0.4333460255 | AK12: 5 - 63 | AL12: Silt | AM12: ='raw files'!AB14 -> 55.12 | AN12: ='raw files'!AC14 -> 54.853 | AO12: ='raw files'!AD14 -> 55.638 | AP12: =AVERAGE(AM12:AO12) -> 55.20366667 | AQ12: =(STDEV(AM12:AO12))/SQRT(3) -> 0.2304389531 | AT12: 5 - 63 | AU12: Silt | AV12: ='raw files'!AH14 -> 16.152 | AW12: ='raw files'!AI14 -> 15.836 | AX12: ='raw files'!AJ14 -> 16.278 | AY12: =AVERAGE(AV12:AX12) -> 16.08866667 | AZ12: =(STDEV(AV12:AX12))/SQRT(3) -> 0.1314652468 | BC12: 5 - 63 | BD12: Silt | BE12: ='raw files'!AN14 -> 21.626 | BF12: ='raw files'!AO14 -> 22.551 | BG12: ='raw files'!AP14 -> 24.779 | BH12: =AVERAGE(BE12:BG12) -> 22.98533333 | BI12: =(STDEV(BE12:BG12))/SQRT(3) -> 0.9357414766 | BL12: 5 - 63 | BM12: Silt | BN12: ='raw files'!AT14 -> 23.087 | BO12: ='raw files'!AU14 -> 27.008 | BP12: ='raw files'!AV14 -> 25.259 | BQ12: =AVERAGE(BO12:BP12) -> 26.1335 | BR12: 0.8745 | BT12: 5 - 63 | BU12: Silt | BV12: ='raw files'!AZ14 -> 16.939 | BW12: ='raw files'!BA14 -> 15.819 | BX12: ='raw files'!BB14 -> 17.016 | BY12: =AVERAGE(BV12:BX12) -> 16.59133333 | BZ12: =(STDEV(BV12:BX12))/SQRT(3) -> 0.3868058657 | CC12: 5 - 63 | CD12: Silt | CE12: ='raw files'!BF14 -> 58.909 | CF12: ='raw files'!BG14 -> 58.655 | CG12: ='raw files'!BH14 -> 58.369 | CH12: =AVERAGE(CE12:CG12) -> 58.64433333 | CI12: =(STDEV(CE12:CG12))/SQRT(3) -> 0.1559757816
A13: 63 - 2000 | B13: Sand | C13: ='raw files'!C15 -> 77.596 | D13: ='raw files'!D15 -> 79.456 | E13: ='raw files'!E15 -> 83.231 | F13: 78.526 | G13: =(STDEV(C13:D13))/SQRT(2) -> 0.93 | J13: 63 - 2000 | K13: Sand | L13: ='raw files'!I15 -> 65.826 | M13: ='raw files'!J15 -> 61.622 | N13: ='raw files'!K15 -> 63.991 | O13: 64.9085 | P13: =(STDEV(L13:N13))/SQRT(3) -> 1.216849347 | S13: 63 - 2000 | T13: Sand | U13: ='raw files'!O15 -> 43.859 | V13: ='raw files'!P15 -> 44.122 | W13: ='raw files'!Q15 -> 44.253 | X13: 44.078 | Y13: =(STDEV(U13:W13))/SQRT(3) -> 0.1158461624 | AB13: 63 - 2000 | AC13: Sand | AD13: ='raw files'!V15 -> 74.427 | AE13: ='raw files'!W15 -> 72.612 | AF13: ='raw files'!X15 -> 72.669 | AG13: 73.236 | AH13: =(STDEV(AD13:AF13))/SQRT(3) -> 0.5957272866 | AK13: 63 - 2000 | AL13: Sand | AM13: ='raw files'!AB15 -> 37.185 | AN13: ='raw files'!AC15 -> 37.518 | AO13: ='raw files'!AD15 -> 36.778 | AP13: 37.16033333 | AQ13: =(STDEV(AM13:AO13))/SQRT(3) -> 0.2139753361 | AT13: 63 - 2000 | AU13: Sand | AV13: ='raw files'!AH15 -> 76.412 | AW13: ='raw files'!AI15 -> 77.189 | AX13: ='raw files'!AJ15 -> 76.539 | AY13: 76.71333333 | AZ13: 0.2406424272 | BC13: 63 - 2000 | BD13: Sand | BE13: ='raw files'!AN15 -> 73.172 | BF13: ='raw files'!AO15 -> 71.647 | BG13: ='raw files'!AP15 -> 68.989 | BH13: 71.26933333 | BI13: =(STDEV(BE13:BG13))/SQRT(3) -> 1.222203793 | BL13: 63 - 2000 | BM13: Sand | BN13: ='raw files'!AT15 -> 70.581 | BO13: ='raw files'!AU15 -> 65.105 | BP13: ='raw files'!AV15 -> 67.495 | BQ13: 66.3 | BR13: =(STDEV(BO13:BP13))/SQRT(2) -> 1.195 | BT13: 63 - 2000 | BU13: Sand | BV13: ='raw files'!AZ15 -> 76.728 | BW13: ='raw files'!BA15 -> 78.266 | BX13: ='raw files'!BB15 -> 76.775 | BY13: 77.25633333 | BZ13: 0.5050156213 | CC13: 63 - 2000 | CD13: Sand | CE13: ='raw files'!BF15 -> 30.259 | CF13: ='raw files'!BG15 -> 30.58 | CG13: ='raw files'!BH15 -> 30.993 | CH13: 30.61066667 | CI13: 0.212441626
A14: 63 - 125 | B14: VF Sand | C14: ='raw files'!C16 -> 18.366 | D14: ='raw files'!D16 -> 17.417 | E14: ='raw files'!E16 -> 15.138 | F14: 17.8915 | G14: 0.4745 | J14: 63 - 125 | K14: VF Sand | L14: ='raw files'!I16 -> 22.163 | M14: ='raw files'!J16 -> 24.397 | N14: ='raw files'!K16 -> 23.122 | O14: 22.6425 | P14: =(STDEV(L14:N14))/SQRT(3) -> 0.6470472248 | S14: 63 - 125 | T14: VF Sand | U14: ='raw files'!O16 -> 25.039 | V14: ='raw files'!P16 -> 25.167 | W14: ='raw files'!Q16 -> 25.425 | X14: 25.21033333 | Y14: 0.1135155398 | AB14: 63 - 125 | AC14: VF Sand | AD14: ='raw files'!V16 -> 15.526 | AE14: ='raw files'!W16 -> 17.713 | AF14: ='raw files'!X16 -> 17.326 | AG14: 16.855 | AH14: 0.6738256451 | AK14: 63 - 125 | AL14: VF Sand | AM14: ='raw files'!AB16 -> 25.5 | AN14: ='raw files'!AC16 -> 25.351 | AO14: ='raw files'!AD16 -> 25.421 | AP14: 25.424 | AQ14: 0.04303874224 | AT14: 63 - 125 | AU14: VF Sand | AV14: ='raw files'!AH16 -> 28.345 | AW14: ='raw files'!AI16 -> 27.864 | AX14: ='raw files'!AJ16 -> 28.602 | AY14: 28.27033333 | AZ14: 0.2162886446 | BC14: 63 - 125 | BD14: VF Sand | BE14: ='raw files'!AN16 -> 27.329 | BF14: ='raw files'!AO16 -> 26.886 | BG14: ='raw files'!AP16 -> 27.67 | BH14: =AVERAGE(BE14:BG14) -> 27.295 | BI14: =(STDEV(BE14:BG14))/SQRT(3) -> 0.2269588803 | BL14: 63 - 125 | BM14: VF Sand | BN14: ='raw files'!AT16 -> 19.719 | BO14: ='raw files'!AU16 -> 21.618 | BP14: ='raw files'!AV16 -> 20.374 | BQ14: 20.996 | BR14: =(STDEV(BO14:BP14))/SQRT(2) -> 0.622 | BT14: 63 - 125 | BU14: VF Sand | BV14: ='raw files'!AZ16 -> 17.007 | BW14: ='raw files'!BA16 -> 15.888 | BX14: ='raw files'!BB16 -> 15.763 | BY14: 16.21933333 | BZ14: 0.3954829677 | CC14: 63 - 125 | CD14: VF Sand | CE14: ='raw files'!BF16 -> 20.583 | CF14: ='raw files'!BG16 -> 20.785 | CG14: ='raw files'!BH16 -> 20.43 | CH14: 20.59933333 | CI14: 0.1028045611
A15: 125 - 250 | B15: F Sand | C15: ='raw files'!C17 -> 21.328 | D15: ='raw files'!D17 -> 21.144 | E15: ='raw files'!E17 -> 21.051 | F15: 21.236 | G15: 0.092 | J15: 125 - 250 | K15: F Sand | L15: ='raw files'!I17 -> 27.961 | M15: ='raw files'!J17 -> 26.575 | N15: ='raw files'!K17 -> 26.509 | O15: 27.235 | P15: 0.4733835654 | S15: 125 - 250 | T15: F Sand | U15: ='raw files'!O17 -> 14.76 | V15: ='raw files'!P17 -> 14.634 | W15: ='raw files'!Q17 -> 15.556 | X15: 14.98333333 | Y15: 0.2886343323 | AB15: 125 - 250 | AC15: F Sand | AD15: ='raw files'!V17 -> 31.171 | AE15: ='raw files'!W17 -> 30.552 | AF15: ='raw files'!X17 -> 31.001 | AG15: 30.908 | AH15: 0.1846410933 | AK15: 125 - 250 | AL15: F Sand | AM15: ='raw files'!AB17 -> 9.106 | AN15: ='raw files'!AC17 -> 9.068 | AO15: ='raw files'!AD17 -> 8.648 | AP15: 8.940666667 | AQ15: 0.146743919 | AT15: 125 - 250 | AU15: F Sand | AV15: ='raw files'!AH17 -> 28.725 | AW15: ='raw files'!AI17 -> 28.859 | AX15: ='raw files'!AJ17 -> 29.579 | AY15: 29.05433333 | AZ15: 0.2651699665 | BC15: 125 - 250 | BD15: F Sand | BE15: ='raw files'!AN17 -> 28.917 | BF15: ='raw files'!AO17 -> 27.151 | BG15: ='raw files'!AP17 -> 26.088 | BH15: =AVERAGE(BE15:BG15) -> 27.38533333 | BI15: =(STDEV(BE15:BG15))/SQRT(3) -> 0.8250241074 | BL15: 125 - 250 | BM15: F Sand | BN15: ='raw files'!AT17 -> 23.97 | BO15: ='raw files'!AU17 -> 24.791 | BP15: ='raw files'!AV17 -> 23.417 | BQ15: 24.104 | BR15: 0.687 | BT15: 125 - 250 | BU15: F Sand | BV15: ='raw files'!AZ17 -> 26.745 | BW15: ='raw files'!BA17 -> 26.262 | BX15: ='raw files'!BB17 -> 26.605 | BY15: 26.53733333 | BZ15: 0.1434762853 | CC15: 125 - 250 | CD15: F Sand | CE15: ='raw files'!BF17 -> 7.724 | CF15: ='raw files'!BG17 -> 8.079 | CG15: ='raw files'!BH17 -> 7.941 | CH15: 7.914666667 | CI15: 0.1033220424
A16: 250 - 500 | B16: M Sand | C16: ='raw files'!C18 -> 15.826 | D16: ='raw files'!D18 -> 18.03 | E16: ='raw files'!E18 -> 19.264 | F16: 16.928 | G16: 1.102 | J16: 250 - 500 | K16: M Sand | L16: ='raw files'!I18 -> 13.952 | M16: ='raw files'!J18 -> 10.127 | N16: ='raw files'!K18 -> 12.217 | O16: 13.0845 | P16: 1.105766451 | S16: 250 - 500 | T16: M Sand | U16: ='raw files'!O18 -> 3.424 | V16: ='raw files'!P18 -> 3.563 | W16: ='raw files'!Q18 -> 3.273 | X16: 3.42 | Y16: 0.08373967598 | AB16: 250 - 500 | AC16: M Sand | AD16: ='raw files'!V18 -> 25.414 | AE16: ='raw files'!W18 -> 21.895 | AF16: ='raw files'!X18 -> 22.649 | AG16: 23.31933333 | AH16: 1.069711851 | AK16: 250 - 500 | AL16: M Sand | AM16: ='raw files'!AB18 -> 1.792 | AN16: ='raw files'!AC18 -> 1.736 | AO16: ='raw files'!AD18 -> 1.496 | AP16: 1.674666667 | AQ16: 0.0907842375 | AT16: 250 - 500 | AU16: M Sand | AV16: ='raw files'!AH18 -> 13.644 | AW16: ='raw files'!AI18 -> 13.469 | AX16: ='raw files'!AJ18 -> 12.653 | AY16: 13.25533333 | AZ16: 0.3053742695 | BC16: 250 - 500 | BD16: M Sand | BE16: ='raw files'!AN18 -> 12.914 | BF16: ='raw files'!AO18 -> 12.73 | BG16: ='raw files'!AP18 -> 9.838 | BH16: 11.82733333 | BI16: 0.9960838876 | BL16: 250 - 500 | BM16: M Sand | BN16: ='raw files'!AT18 -> 20.088 | BO16: ='raw files'!AU18 -> 16.443 | BP16: ='raw files'!AV18 -> 18.197 | BQ16: 17.32 | BR16: 0.877 | BT16: 250 - 500 | BU16: M Sand | BV16: ='raw files'!AZ18 -> 25.584 | BW16: ='raw files'!BA18 -> 27.665 | BX16: ='raw files'!BB18 -> 28.749 | BY16: 27.33266667 | BZ16: 0.9286442328 | CC16: 250 - 500 | CD16: M Sand | CE16: ='raw files'!BF18 -> 1.78 | CF16: ='raw files'!BG18 -> 1.624 | CG16: ='raw files'!BH18 -> 2.111 | CH16: 1.838333333 | CI16: 0.1435784725
A17: 500 - 1000 | B17: C Sand | C17: ='raw files'!C19 -> 14.632 | D17: ='raw files'!D19 -> 16.06 | E17: ='raw files'!E19 -> 19.05 | F17: 15.346 | G17: 0.714 | J17: 500 - 1000 | K17: C Sand | L17: ='raw files'!I19 -> 1.246 | M17: ='raw files'!J19 -> 0.523 | N17: ='raw files'!K19 -> 2.114 | O17: 1.68 | P17: 0.4599175047 | S17: 500 - 1000 | T17: C Sand | U17: ='raw files'!O19 -> 0.637 | V17: ='raw files'!P19 -> 0.715 | W17: ='raw files'!Q19 -> 0 | X17: 0.4506666667 | Y17: 0.2264555389 | AB17: 500 - 1000 | AC17: C Sand | AD17: ='raw files'!V19 -> 2.317 | AE17: ='raw files'!W19 -> 2.452 | AF17: ='raw files'!X19 -> 1.694 | AG17: 2.154333333 | AH17: 0.2334425935 | AK17: 500 - 1000 | AL17: C Sand | AM17: ='raw files'!AB19 -> 0.786 | AN17: ='raw files'!AC19 -> 0.982 | AO17: ='raw files'!AD19 -> 0.72 | AP17: 0.8293333333 | AQ17: 0.07867514079 | AT17: 500 - 1000 | AU17: C Sand | AV17: ='raw files'!AH19 -> 5.384 | AW17: ='raw files'!AI19 -> 5.91 | AX17: ='raw files'!AJ19 -> 4.359 | AY17: 5.217666667 | AZ17: 0.4553937246 | BC17: 500 - 1000 | BD17: C Sand | BE17: ='raw files'!AN19 -> 3.475 | BF17: ='raw files'!AO19 -> 4.444 | BG17: ='raw files'!AP19 -> 3.566 | BH17: 3.828333333 | BI17: 0.3089521718 | BL17: 500 - 1000 | BM17: C Sand | BN17: ='raw files'!AT19 -> 6.665 | BO17: ='raw files'!AU19 -> 2.252 | BP17: ='raw files'!AV19 -> 5.402 | BQ17: 3.827 | BR17: 1.575 | BT17: 500 - 1000 | BU17: C Sand | BV17: ='raw files'!AZ19 -> 7.392 | BW17: ='raw files'!BA19 -> 8.45 | BX17: ='raw files'!BB19 -> 5.658 | BY17: 7.166666667 | BZ17: 0.8138176154 | CC17: 500 - 1000 | CD17: C Sand | CE17: ='raw files'!BF19 -> 0.172 | CF17: ='raw files'!BG19 -> 0.092 | CG17: ='raw files'!BH19 -> 0.511 | CH17: 0.2583333333 | CI17: 0.1284268058
A18: 1000 - 2000 | B18: VC Sand | C18: ='raw files'!C20 -> 7.444 | D18: ='raw files'!D20 -> 6.805 | E18: ='raw files'!E20 -> 8.728 | F18: 7.1245 | G18: 0.3195 | J18: 1000 - 2000 | K18: VC Sand | L18: ='raw files'!I20 -> 0.504 | M18: ='raw files'!J20 -> 0 | N18: ='raw files'!K20 -> 0.03 | O18: 0.267 | P18: 0.1632298992 | S18: 1000 - 2000 | T18: VC Sand | U18: ='raw files'!O20 -> 0 | V18: ='raw files'!P20 -> 0.043 | W18: ='raw files'!Q20 -> 0 | X18: 0.01433333333 | Y18: 0.01433333333 | AB18: 1000 - 2000 | AC18: VC Sand | AD18: ='raw files'!V20 -> 0 | AE18: ='raw files'!W20 -> 0 | AF18: ='raw files'!X20 -> 0 | AG18: 0 | AH18: 0 | AK18: 1000 - 2000 | AL18: VC Sand | AM18: ='raw files'!AB20 -> 0 | AN18: ='raw files'!AC20 -> 0.38 | AO18: ='raw files'!AD20 -> 0.493 | AP18: 0.291 | AQ18: 0.1491118149 | AT18: 1000 - 2000 | AU18: VC Sand | AV18: ='raw files'!AH20 -> 0.314 | AW18: ='raw files'!AI20 -> 1.087 | AX18: ='raw files'!AJ20 -> 1.346 | AY18: 0.9156666667 | AZ18: 0.3099851251 | BC18: 1000 - 2000 | BD18: VC Sand | BE18: ='raw files'!AN20 -> 0.536 | BF18: ='raw files'!AO20 -> 0.436 | BG18: ='raw files'!AP20 -> 1.827 | BH18: 0.933 | BI18: 0.4479311703 | BL18: 1000 - 2000 | BM18: VC Sand | BN18: ='raw files'!AT20 -> 0.139 | BO18: ='raw files'!AU20 -> 0 | BP18: ='raw files'!AV20 -> 0.104 | BQ18: =AVERAGE(BO18:BP18) -> 0.052 | BR18: 0.052 | BT18: 1000 - 2000 | BU18: VC Sand | BV18: ='raw files'!AZ20 -> 0 | BW18: ='raw files'!BA20 -> 0 | BX18: ='raw files'!BB20 -> 0 | BY18: 0 | BZ18: 0 | CC18: 1000 - 2000 | CD18: VC Sand | CE18: ='raw files'!BF20 -> 0 | CF18: ='raw files'!BG20 -> 0 | CG18: ='raw files'!BH20 -> 0 | CH18: 0 | CI18: 0
D19: Textural Class: | F19: ='Texture Calculator'!N4 -> LOAMY SAND | M19: Textural Class: | O19: ='Texture Calculator'!N5 -> SANDY LOAM | V19: Textural Class: | W19: ='Texture Calculator'!N6 -> LOAM | AE19: Textural Class: | AF19: ='Texture Calculator'!N7 -> SANDY LOAM | AM19: Textural Class: | AO19: ='Texture Calculator'!N8 -> SILT LOAM | AV19: Textural Class: | AX19: ='Texture Calculator'!N9 -> SANDY LOAM | BE19: Textural Class: | BG19: ='Texture Calculator'!N10 -> SANDY LOAM | BM19: Textural Class: | BO19: ='Texture Calculator'!N11 -> SANDY LOAM | BV19: Textural Class: | BX19: ='Texture Calculator'!N12 -> LOAMY SAND | CD19: Textural Class: | CF19: ='Texture Calculator'!N13 -> SILT LOAM
D20: avg mode: | F20: =AVERAGE('raw files'!C6:E6) -> 157.8546667 | M20: avg mode: | O20: =AVERAGE('raw files'!I6:K6) -> 140.7973333 | V20: avg mode: | X20: =AVERAGE('raw files'!O6:Q6) -> 82.912 | AE20: avg mode: | AG20: =AVERAGE('raw files'!V6:W6) -> 219.5295 | AM20: avg mode: | AO20: =AVERAGE('raw files'!AF6:AH6) -> 122.81 | AV20: avg mode: | AX20: =AVERAGE('raw files'!AH6:AJ6) -> 124.1583333 | BE20: avg mode: | BG20: =AVERAGE('raw files'!AN6:AP6) -> 124.6026667 | BM20: avg mode: | BO20: =AVERAGE('raw files'!AT6:AV6) -> 170.0736667 | BV20: avg mode: | BX20: =AVERAGE('raw files'!AZ6:BB6) -> 271.6643333 | CE20: avg mode: | CF20: =AVERAGE('raw files'!BF6:BH6) -> 50.88366667
A24: Particle | C24: ='raw files'!BL1 -> [3778] Pisga T2-80 bulk - b - Average | J24: Particle | L24: ='raw files'!BR1 -> [3779] USA5 T1-83 bulk - a - Average | S24: Particle | U24: ='raw files'!BX1 -> [3780] USA5 T1-79 bulk - a - Average | AB24: Particle | AD24: ='raw files'!CD1 -> [3781] USA5 T1-72 bulk - b - Average | AK24: Particle | AM24: ='raw files'!CJ1 -> [3782] USA5 T2-89 bulk - a - Average | AT24: Particle | AV24: ='raw files'!CP1 -> [3783] USA5 T2-83 bulk - a - Average | BC24: Particle | BE24: ='raw files'!CV1 -> [3784] USA5 T2-79 bulk - b - Average | BL24: Particle | BN24: ='raw files'!DB1 -> [3785] USA6 T1-1 bulk - a - Average | BU24: Particle | BW24: ='raw files'!DH1 -> [3786] USA6 T1-7 bulk - b - Average | CD24: Particle | CF24: ='raw files'!DN1 -> [3787] USA6 T1-13 bulk - c - Average
A25: Diameter | C25: Differential Volume (%) | J25: Diameter | L25: Differential Volume (%) | S25: Diameter | U25: Differential Volume (%) | AB25: Diameter | AD25: Differential Volume (%) | AK25: Diameter | AM25: Differential Volume (%) | AT25: Diameter | AV25: Differential Volume (%) | BC25: Diameter | BE25: Differential Volume (%) | BL25: Diameter | BN25: Differential Volume (%) | BU25: Diameter | BW25: Differential Volume (%) | CD25: Diameter | CF25: Differential Volume (%)
A26: Range (mm) | B26: Size Class | C26: Rep. 1 | D26: Rep. 2 | E26: Rep. 3 | F26: Average | G26: SE | J26: Range (mm) | K26: Size Class | L26: Rep. 1 | M26: Rep. 2 | N26: Rep. 3 | O26: Average | P26: SE | S26: Range (mm) | T26: Size Class | U26: Rep. 1 | V26: Rep. 2 | W26: Rep. 3 | X26: Average | Y26: SE | AB26: Range (mm) | AC26: Size Class | AD26: Rep. 1 | AE26: Rep. 2 | AF26: Rep. 3 | AG26: Average | AH26: SE | AK26: Range (mm) | AL26: Size Class | AM26: Rep. 1 | AN26: Rep. 2 | AO26: Rep. 3 | AP26: Average | AQ26: SE | AT26: Range (mm) | AU26: Size Class | AV26: Rep. 1 | AW26: Rep. 2 | AX26: Rep. 3 | AY26: Average | AZ26: SE | BC26: Range (mm) | BD26: Size Class | BE26: Rep. 1 | BF26: Rep. 2 | BG26: Rep. 3 | BH26: Average | BI26: SE | BL26: Range (mm) | BM26: Size Class | BN26: Rep. 1 | BO26: Rep. 2 | BP26: Rep. 3 | BQ26: Average | BR26: SE | BU26: Range (mm) | BV26: Size Class | BW26: Rep. 1 | BX26: Rep. 2 | BY26: Rep. 3 | BZ26: Average | CA26: SE | CD26: Range (mm) | CE26: Size Class | CF26: Rep. 1 | CG26: Rep. 2 | CH26: Rep. 3 | CI26: Average | CJ26: SE
A27: < 5 | B27: Clay | C27: ='raw files'!BL13 -> 6.022 | D27: ='raw files'!BM13 -> 5.646 | E27: ='raw files'!BN13 -> 5.471 | F27: =AVERAGE(C27,E27) -> 5.7465 | G27: =(STDEV(C27:E27))/SQRT(3) -> 0.1625494796 | J27: < 5 | K27: Clay | L27: ='raw files'!BR13 -> 0.487 | M27: ='raw files'!BS13 -> 1.269 | N27: ='raw files'!BT13 -> 0 | O27: =AVERAGE(L27:N27) -> 0.5853333333 | P27: =(STDEV(L27:N27))/SQRT(3) -> 0.3696134618 | S27: < 5 | T27: Clay | U27: ='raw files'!BX13 -> 3.702 | V27: ='raw files'!BY13 -> 3.607 | W27: ='raw files'!BZ13 -> 4.033 | X27: =AVERAGE(U27:W27) -> 3.780666667 | Y27: =(STDEV(U27:W27))/SQRT(3) -> 0.1291127845 | AB27: < 5 | AC27: Clay | AD27: ='raw files'!CD13 -> 0.08 | AE27: ='raw files'!CE13 -> 0.468 | AF27: ='raw files'!CF13 -> 0.497 | AG27: =AVERAGE(AD27:AF27) -> 0.3483333333 | AH27: =(STDEV(AD27:AF27))/SQRT(3) -> 0.1344275931 | AK27: < 5 | AL27: Clay | AM27: ='raw files'!CJ13 -> 1.931 | AN27: ='raw files'!CK13 -> 1.995 | AO27: ='raw files'!CL13 -> 1.651 | AP27: =AVERAGE(AM27:AO27) -> 1.859 | AQ27: =(STDEV(AM27:AO27))/SQRT(3) -> 0.105628279 | AT27: < 5 | AU27: Clay | AV27: ='raw files'!CP13 -> 0.461 | AW27: ='raw files'!CQ13 -> 0.525 | AX27: ='raw files'!CR13 -> 0.639 | AY27: =AVERAGE(AV27:AX27) -> 0.5416666667 | AZ27: =(STDEV(AV27:AX27))/SQRT(3) -> 0.05205552591 | BC27: < 5 | BD27: Clay | BE27: ='raw files'!CV13 -> 2.074 | BF27: ='raw files'!CW13 -> 1.729 | BG27: ='raw files'!CX13 -> 1.936 | BH27: =AVERAGE(BE27:BF27) -> 1.9015 | BI27: =(STDEV(BE27:BF27))/SQRT(2) -> 0.1725 | BL27: < 5 | BM27: Clay | BN27: ='raw files'!DB13 -> 2.685 | BO27: ='raw files'!DC13 -> 2.606 | BP27: ='raw files'!DD13 -> 3.467 | BQ27: =AVERAGE(BN27:BO27) -> 2.6455 | BR27: =(STDEV(BN27:BO27))/SQRT(2) -> 0.0395 | BU27: < 5 | BV27: Clay | BW27: ='raw files'!DH13 -> 2.208 | BX27: ='raw files'!DI13 -> 3.324 | BY27: ='raw files'!DJ13 -> 3.198 | BZ27: =AVERAGE(BW27:BY27) -> 2.91 | CA27: =(STDEV(BW27:BY27))/SQRT(3) -> 0.3528795829 | CD27: < 5 | CE27: Clay | CF27: ='raw files'!DN13 -> 2.887 | CG27: ='raw files'!DO13 -> 2.961 | CH27: ='raw files'!DP13 -> 2.526 | CI27: =AVERAGE(CF27:CH27) -> 2.791333333 | CJ27: =(STDEV(CF27:CH27))/SQRT(3) -> 0.1343755103
A28: 5 - 63 | B28: Silt | C28: ='raw files'!BL14 -> 13.593 | D28: ='raw files'!BM14 -> 12.572 | E28: ='raw files'!BN14 -> 12.122 | F28: =AVERAGE(C28,E28) -> 12.8575 | G28: =(STDEV(C28:E28))/SQRT(3) -> 0.4351744222 | J28: 5 - 63 | K28: Silt | L28: ='raw files'!BR14 -> 0.788 | M28: ='raw files'!BS14 -> 2.214 | N28: ='raw files'!BT14 -> 0 | O28: =AVERAGE(L28:N28) -> 1.000666667 | P28: =(STDEV(L28:N28))/SQRT(3) -> 0.6479118596 | S28: 5 - 63 | T28: Silt | U28: ='raw files'!BX14 -> 12.602 | V28: ='raw files'!BY14 -> 12.226 | W28: ='raw files'!BZ14 -> 13.67 | X28: =AVERAGE(U28:W28) -> 12.83266667 | Y28: =(STDEV(U28:W28))/SQRT(3) -> 0.4325079318 | AB28: 5 - 63 | AC28: Silt | AD28: ='raw files'!CD14 -> 0.484 | AE28: ='raw files'!CE14 -> 1.011 | AF28: ='raw files'!CF14 -> 1.084 | AG28: =AVERAGE(AD28:AF28) -> 0.8596666667 | AH28: =(STDEV(AD28:AF28))/SQRT(3) -> 0.1890117574 | AK28: 5 - 63 | AL28: Silt | AM28: ='raw files'!CJ14 -> 9.63 | AN28: ='raw files'!CK14 -> 9.402 | AO28: ='raw files'!CL14 -> 8.717 | AP28: =AVERAGE(AM28:AO28) -> 9.249666667 | AQ28: =(STDEV(AM28:AO28))/SQRT(3) -> 0.2743454837 | AT28: 5 - 63 | AU28: Silt | AV28: ='raw files'!CP14 -> 1.932 | AW28: ='raw files'!CQ14 -> 2.065 | AX28: ='raw files'!CR14 -> 1.949 | AY28: =AVERAGE(AV28:AX28) -> 1.982 | AZ28: =(STDEV(AV28:AX28))/SQRT(3) -> 0.0417891533 | BC28: 5 - 63 | BD28: Silt | BE28: ='raw files'!CV14 -> 8.051 | BF28: ='raw files'!CW14 -> 7.916 | BG28: ='raw files'!CX14 -> 8.479 | BH28: =AVERAGE(BE28:BF28) -> 7.9835 | BI28: =(STDEV(BE28:BF28))/SQRT(2) -> 0.0675 | BL28: 5 - 63 | BM28: Silt | BN28: ='raw files'!DB14 -> 11.677 | BO28: ='raw files'!DC14 -> 11.41 | BP28: ='raw files'!DD14 -> 13.455 | BQ28: =AVERAGE(BN28:BO28) -> 11.5435 | BR28: =(STDEV(BN28:BO28))/SQRT(2) -> 0.1335 | BU28: 5 - 63 | BV28: Silt | BW28: ='raw files'!DH14 -> 7.612 | BX28: ='raw files'!DI14 -> 10.922 | BY28: ='raw files'!DJ14 -> 10.578 | BZ28: =AVERAGE(BW28:BY28) -> 9.704 | CA28: =(STDEV(BW28:BY28))/SQRT(3) -> 1.050703257 | CD28: 5 - 63 | CE28: Silt | CF28: ='raw files'!DN14 -> 9.883 | CG28: ='raw files'!DO14 -> 10.047 | CH28: ='raw files'!DP14 -> 10.716 | CI28: =AVERAGE(CF28:CH28) -> 10.21533333 | CJ28: =(STDEV(CF28:CH28))/SQRT(3) -> 0.254770703
A29: 63 - 2000 | B29: Sand | C29: ='raw files'!BL15 -> 80.385 | D29: ='raw files'!BM15 -> 81.782 | E29: ='raw files'!BN15 -> 82.407 | F29: 81.396 | G29: 0.5977140714 | J29: 63 - 2000 | K29: Sand | L29: ='raw files'!BR15 -> 98.725 | M29: ='raw files'!BS15 -> 96.517 | N29: ='raw files'!BT15 -> 100 | O29: 98.414 | P29: =(STDEV(L29:N29))/SQRT(3) -> 1.017408964 | S29: 63 - 2000 | T29: Sand | U29: ='raw files'!BX15 -> 83.696 | V29: ='raw files'!BY15 -> 84.166 | W29: ='raw files'!BZ15 -> 82.298 | X29: 83.38666667 | Y29: 0.5609876212 | AB29: 63 - 2000 | AC29: Sand | AD29: ='raw files'!CD15 -> 99.436 | AE29: ='raw files'!CE15 -> 98.521 | AF29: ='raw files'!CF15 -> 98.419 | AG29: 98.792 | AH29: 0.3233434706 | AK29: 63 - 2000 | AL29: Sand | AM29: ='raw files'!CJ15 -> 88.439 | AN29: ='raw files'!CK15 -> 88.603 | AO29: ='raw files'!CL15 -> 89.632 | AP29: 88.89133333 | AQ29: 0.3733471724 | AT29: 63 - 2000 | AU29: Sand | AV29: ='raw files'!CP15 -> 97.607 | AW29: ='raw files'!CQ15 -> 97.41 | AX29: ='raw files'!CR15 -> 97.412 | AY29: 97.47633333 | AZ29: 0.0653358843 | BC29: 63 - 2000 | BD29: Sand | BE29: ='raw files'!CV15 -> 89.874 | BF29: ='raw files'!CW15 -> 90.355 | BG29: ='raw files'!CX15 -> 89.585 | BH29: 90.1145 | BI29: =(STDEV(BE29:BF29))/SQRT(2) -> 0.2405 | BL29: 63 - 2000 | BM29: Sand | BN29: ='raw files'!DB15 -> 85.638 | BO29: ='raw files'!DC15 -> 85.984 | BP29: ='raw files'!DD15 -> 83.079 | BQ29: 85.811 | BR29: 0.173 | BU29: 63 - 2000 | BV29: Sand | BW29: ='raw files'!DH15 -> 90.181 | BX29: ='raw files'!DI15 -> 85.755 | BY29: ='raw files'!DJ15 -> 86.224 | BZ29: 87.38666667 | CA29: =(STDEV(BW29:BY29))/SQRT(3) -> 1.403711073 | CD29: 63 - 2000 | CE29: Sand | CF29: ='raw files'!DN15 -> 87.23 | CG29: ='raw files'!DO15 -> 86.992 | CH29: ='raw files'!DP15 -> 86.758 | CI29: 86.99333333 | CJ29: 0.1362562945
A30: 63 - 125 | B30: VF Sand | C30: ='raw files'!BL16 -> 16.13 | D30: ='raw files'!BM16 -> 16.83 | E30: ='raw files'!BN16 -> 16.655 | F30: 16.3925 | G30: 0.2103238244 | J30: 63 - 125 | K30: VF Sand | L30: ='raw files'!BR16 -> 3.425 | M30: ='raw files'!BS16 -> 3.36 | N30: ='raw files'!BT16 -> 2.003 | O30: =AVERAGE(L30:N30) -> 2.929333333 | P30: =(STDEV(L30:N30))/SQRT(3) -> 0.4635465936 | S30: 63 - 125 | T30: VF Sand | U30: ='raw files'!BX16 -> 38.146 | V30: ='raw files'!BY16 -> 37.907 | W30: ='raw files'!BZ16 -> 38.64 | X30: 38.231 | Y30: 0.2158247746 | AB30: 63 - 125 | AC30: VF Sand | AD30: ='raw files'!CD16 -> 3.991 | AE30: ='raw files'!CE16 -> 4.989 | AF30: ='raw files'!CF16 -> 5.016 | AG30: 4.665333333 | AH30: 0.3372567436 | AK30: 63 - 125 | AL30: VF Sand | AM30: ='raw files'!CJ16 -> 25.683 | AN30: ='raw files'!CK16 -> 25.817 | AO30: ='raw files'!CL16 -> 24.927 | AP30: =AVERAGE(AM30:AO30) -> 25.47566667 | AQ30: 0.277047128 | AT30: 63 - 125 | AU30: VF Sand | AV30: ='raw files'!CP16 -> 12.665 | AW30: ='raw files'!CQ16 -> 14.098 | AX30: ='raw files'!CR16 -> 13.297 | AY30: =AVERAGE(AV30:AX30) -> 13.35333333 | AZ30: =(STDEV(AV30:AX30))/SQRT(3) -> 0.4146292856 | BC30: 63 - 125 | BD30: VF Sand | BE30: ='raw files'!CV16 -> 26.228 | BF30: ='raw files'!CW16 -> 23.702 | BG30: ='raw files'!CX16 -> 25.592 | BH30: 24.965 | BI30: 1.263 | BL30: 63 - 125 | BM30: VF Sand | BN30: ='raw files'!DB16 -> 23.305 | BO30: ='raw files'!DC16 -> 22.93 | BP30: ='raw files'!DD16 -> 24.304 | BQ30: 23.1175 | BR30: 0.1875 | BU30: 63 - 125 | BV30: VF Sand | BW30: ='raw files'!DH16 -> 21.316 | BX30: ='raw files'!DI16 -> 23.208 | BY30: ='raw files'!DJ16 -> 22.687 | BZ30: =AVERAGE(BW30:BY30) -> 22.40366667 | CA30: 0.5642470893 | CD30: 63 - 125 | CE30: VF Sand | CF30: ='raw files'!DN16 -> 19.482 | CG30: ='raw files'!DO16 -> 19.257 | CH30: ='raw files'!DP16 -> 20.688 | CI30: 19.809 | CJ30: 0.4442735644
A31: 125 - 250 | B31: F Sand | C31: ='raw files'!BL17 -> 32.082 | D31: ='raw files'!BM17 -> 36.588 | E31: ='raw files'!BN17 -> 35.616 | F31: 33.849 | G31: 1.369062453 | J31: 125 - 250 | K31: F Sand | L31: ='raw files'!BR17 -> 45.541 | M31: ='raw files'!BS17 -> 43.072 | N31: ='raw files'!BT17 -> 42.887 | O31: =AVERAGE(L31:N31) -> 43.83333333 | P31: 0.855501867 | S31: 125 - 250 | T31: F Sand | U31: ='raw files'!BX17 -> 40.542 | V31: ='raw files'!BY17 -> 40.989 | W31: ='raw files'!BZ17 -> 39.188 | X31: 40.23966667 | Y31: 0.541434617 | AB31: 125 - 250 | AC31: F Sand | AD31: ='raw files'!CD17 -> 23.306 | AE31: ='raw files'!CE17 -> 25.331 | AF31: ='raw files'!CF17 -> 24.029 | AG31: 24.222 | AH31: 0.5924786916 | AK31: 125 - 250 | AL31: F Sand | AM31: ='raw files'!CJ17 -> 42.063 | AN31: ='raw files'!CK17 -> 41.505 | AO31: ='raw files'!CL17 -> 41.323 | AP31: =AVERAGE(AM31:AO31) -> 41.63033333 | AQ31: 0.222621752 | AT31: 125 - 250 | AU31: F Sand | AV31: ='raw files'!CP17 -> 31.931 | AW31: ='raw files'!CQ17 -> 35.823 | AX31: ='raw files'!CR17 -> 34.393 | AY31: =AVERAGE(AV31:AX31) -> 34.049 | AZ31: =(STDEV(AV31:AX31))/SQRT(3) -> 1.136613097 | BC31: 125 - 250 | BD31: F Sand | BE31: ='raw files'!CV17 -> 28.954 | BF31: ='raw files'!CW17 -> 25.689 | BG31: ='raw files'!CX17 -> 28.008 | BH31: 27.3215 | BI31: 1.6325 | BL31: 125 - 250 | BM31: F Sand | BN31: ='raw files'!DB17 -> 29.517 | BO31: ='raw files'!DC17 -> 28.247 | BP31: ='raw files'!DD17 -> 27.911 | BQ31: 28.882 | BR31: 0.635 | BU31: 125 - 250 | BV31: F Sand | BW31: ='raw files'!DH17 -> 28.33 | BX31: ='raw files'!DI17 -> 29.121 | BY31: ='raw files'!DJ17 -> 27.273 | BZ31: =AVERAGE(BW31:BY31) -> 28.24133333 | CA31: 0.5353106056 | CD31: 125 - 250 | CE31: F Sand | CF31: ='raw files'!DN17 -> 35.93 | CG31: ='raw files'!DO17 -> 33.791 | CH31: ='raw files'!DP17 -> 31.697 | CI31: 33.806 | CJ31: 1.221984861
A32: 250 - 500 | B32: M Sand | C32: ='raw files'!BL18 -> 24.148 | D32: ='raw files'!BM18 -> 26.515 | E32: ='raw files'!BN18 -> 26.682 | F32: 25.415 | G32: 0.8182547145 | J32: 250 - 500 | K32: M Sand | L32: ='raw files'!BR18 -> 47.281 | M32: ='raw files'!BS18 -> 47.483 | N32: ='raw files'!BT18 -> 51.741 | O32: 48.835 | P32: 1.454169637 | S32: 250 - 500 | T32: M Sand | U32: ='raw files'!BX18 -> 5.008 | V32: ='raw files'!BY18 -> 5.271 | W32: ='raw files'!BZ18 -> 4.469 | X32: 4.916 | Y32: 0.2360430752 | AB32: 250 - 500 | AC32: M Sand | AD32: ='raw files'!CD18 -> 52.017 | AE32: ='raw files'!CE18 -> 48.615 | AF32: ='raw files'!CF18 -> 49.002 | AG32: 49.878 | AH32: 1.075319022 | AK32: 250 - 500 | AL32: M Sand | AM32: ='raw files'!CJ18 -> 19.952 | AN32: ='raw files'!CK18 -> 19.1 | AO32: ='raw files'!CL18 -> 20.34 | AP32: 19.79733333 | AQ32: 0.36621548 | AT32: 250 - 500 | AU32: M Sand | AV32: ='raw files'!CP18 -> 27.483 | AW32: ='raw files'!CQ18 -> 29.809 | AX32: ='raw files'!CR18 -> 28.481 | AY32: 28.591 | AZ32: 0.673707157 | BC32: 250 - 500 | BD32: M Sand | BE32: ='raw files'!CV18 -> 9.285 | BF32: ='raw files'!CW18 -> 8.358 | BG32: ='raw files'!CX18 -> 10.698 | BH32: 8.8215 | BI32: 0.4635 | BL32: 250 - 500 | BM32: M Sand | BN32: ='raw files'!DB18 -> 15.742 | BO32: ='raw files'!DC18 -> 16.989 | BP32: ='raw files'!DD18 -> 14.377 | BQ32: 16.3655 | BR32: 0.6235 | BU32: 250 - 500 | BV32: M Sand | BW32: ='raw files'!DH18 -> 15.471 | BX32: ='raw files'!DI18 -> 15.817 | BY32: ='raw files'!DJ18 -> 15.099 | BZ32: 15.46233333 | CA32: 0.2073140398 | CD32: 250 - 500 | CE32: M Sand | CF32: ='raw files'!DN18 -> 26.441 | CG32: ='raw files'!DO18 -> 24.754 | CH32: ='raw files'!DP18 -> 24.327 | CI32: 25.174 | CJ32: 0.6453807662
A33: 500 - 1000 | B33: C Sand | C33: ='raw files'!BL19 -> 5.969 | D33: ='raw files'!BM19 -> 1.849 | E33: ='raw files'!BN19 -> 3.436 | F33: 4.7025 | G33: 1.199746686 | J33: 500 - 1000 | K33: C Sand | L33: ='raw files'!BR19 -> 2.478 | M33: ='raw files'!BS19 -> 2.602 | N33: ='raw files'!BT19 -> 3.369 | O33: 2.816333333 | P33: 0.2786421441 | S33: 500 - 1000 | T33: C Sand | U33: ='raw files'!BX19 -> 0 | V33: ='raw files'!BY19 -> 0 | W33: ='raw files'!BZ19 -> 0 | X33: 0 | Y33: 0 | AB33: 500 - 1000 | AC33: C Sand | AD33: ='raw files'!CD19 -> 20.123 | AE33: ='raw files'!CE19 -> 19.546 | AF33: ='raw files'!CF19 -> 20.373 | AG33: 20.014 | AH33: 0.2448761592 | AK33: 500 - 1000 | AL33: C Sand | AM33: ='raw files'!CJ19 -> 0.741 | AN33: ='raw files'!CK19 -> 1.671 | AO33: ='raw files'!CL19 -> 2.544 | AP33: 1.652 | AQ33: 0.5205679591 | AT33: 500 - 1000 | AU33: C Sand | AV33: ='raw files'!CP19 -> 18.985 | AW33: ='raw files'!CQ19 -> 15.169 | AX33: ='raw files'!CR19 -> 16.933 | AY33: 17.029 | AZ33: 1.102629584 | BC33: 500 - 1000 | BD33: C Sand | BE33: ='raw files'!CV19 -> 15.507 | BF33: ='raw files'!CW19 -> 18.54 | BG33: ='raw files'!CX19 -> 16.324 | BH33: 17.0235 | BI33: 1.5165 | BL33: 500 - 1000 | BM33: C Sand | BN33: ='raw files'!DB19 -> 10.403 | BO33: ='raw files'!DC19 -> 12.825 | BP33: ='raw files'!DD19 -> 11.338 | BQ33: 11.614 | BR33: 1.211 | BU33: 500 - 1000 | BV33: C Sand | BW33: ='raw files'!DH19 -> 14.735 | BX33: ='raw files'!DI19 -> 10.861 | BY33: ='raw files'!DJ19 -> 13.225 | BZ33: 12.94033333 | CA33: 1.127348709 | CD33: 500 - 1000 | CE33: C Sand | CF33: ='raw files'!DN19 -> 5.216 | CG33: ='raw files'!DO19 -> 7.416 | CH33: ='raw files'!DP19 -> 7.891 | CI33: 6.841 | CJ33: 0.8239892799
A34: 1000 - 2000 | B34: VC Sand | C34: ='raw files'!BL20 -> 2.056 | D34: ='raw files'!BM20 -> 0 | E34: ='raw files'!BN20 -> 0.019 | F34: 1.0375 | G34: 0.6821887162 | J34: 1000 - 2000 | K34: VC Sand | L34: ='raw files'!BR20 -> 0 | M34: ='raw files'!BS20 -> 0 | N34: ='raw files'!BT20 -> 0 | O34: 0 | P34: 0 | S34: 1000 - 2000 | T34: VC Sand | U34: ='raw files'!BX20 -> 0 | V34: ='raw files'!BY20 -> 0 | W34: ='raw files'!BZ20 -> 0 | X34: 0 | Y34: 0 | AB34: 1000 - 2000 | AC34: VC Sand | AD34: ='raw files'!CD20 -> 0 | AE34: ='raw files'!CE20 -> 0.04 | AF34: ='raw files'!CF20 -> 0 | AG34: 0.01333333333 | AH34: 0.01333333333 | AK34: 1000 - 2000 | AL34: VC Sand | AM34: ='raw files'!CJ20 -> 0 | AN34: ='raw files'!CK20 -> 0.51 | AO34: ='raw files'!CL20 -> 0.498 | AP34: 0.336 | AQ34: 0.1680357105 | AT34: 1000 - 2000 | AU34: VC Sand | AV34: ='raw files'!CP20 -> 6.544 | AW34: ='raw files'!CQ20 -> 2.511 | AX34: ='raw files'!CR20 -> 4.307 | AY34: 4.454 | AZ34: =(STDEV(AV34:AX34))/SQRT(3) -> 1.166544613 | BC34: 1000 - 2000 | BD34: VC Sand | BE34: ='raw files'!CV20 -> 9.901 | BF34: ='raw files'!CW20 -> 14.066 | BG34: ='raw files'!CX20 -> 8.964 | BH34: 11.9835 | BI34: 2.0825 | BL34: 1000 - 2000 | BM34: VC Sand | BN34: ='raw files'!DB20 -> 6.671 | BO34: ='raw files'!DC20 -> 4.993 | BP34: ='raw files'!DD20 -> 5.148 | BQ34: 5.832 | BR34: 0.839 | BU34: 1000 - 2000 | BV34: VC Sand | BW34: ='raw files'!DH20 -> 10.329 | BX34: ='raw files'!DI20 -> 6.747 | BY34: ='raw files'!DJ20 -> 7.94 | BZ34: 8.338666667 | CA34: 1.053072067 | CD34: 1000 - 2000 | CE34: VC Sand | CF34: ='raw files'!DN20 -> 0.162 | CG34: ='raw files'!DO20 -> 1.774 | CH34: ='raw files'!DP20 -> 2.154 | CI34: 1.363333333 | CJ34: 0.610601161
D35: Textural Class: | F35: ='Texture Calculator'!N14 -> LOAMY SAND | N35: Textural Class: | O35: ='Texture Calculator'!N15 -> SAND | W35: Textural Class: | X35: ='Texture Calculator'!N16 -> LOAMY SAND | AF35: Textural Class: | AG35: ='Texture Calculator'!N17 -> SAND | AO35: Textural Class: | AP35: ='Texture Calculator'!N18 -> SAND | AX35: Textural Class: | AY35: ='Texture Calculator'!N19 -> SAND | BG35: Textural Class: | BH35: ='Texture Calculator'!N20 -> SAND | BP35: Textural Class: | BQ35: ='Texture Calculator'!N21 -> LOAMY SAND | BY35: Textural Class: | BZ35: ='Texture Calculator'!N22 -> SAND | CH35: Textural Class: | CI35: ='Texture Calculator'!$N$23 -> SAND
D36: avg mode: | F36: =AVERAGE('raw files'!BL6:BN6) -> 213.5733333 | N36: avg mode: | O36: =AVERAGE('raw files'!BR6:BT6) -> 260.7056667 | W36: avg mode: | X36: =AVERAGE('raw files'!BX6:BY6) -> 128.7605 | AF36: avg mode: | AG36: =AVERAGE('raw files'!CE6:CF6) -> 364.459 | AO36: avg mode: | AP36: =AVERAGE('raw files'!CJ6:CL6) -> 165.4573333 | AX36: avg mode: | AY36: =AVERAGE('raw files'!CP6:CR6) -> 204.828 | BG36: avg mode: | BH36: =AVERAGE('raw files'!CV6:CW6) -> 129.79 | BP36: avg mode: | BQ36: =AVERAGE('raw files'!DB6:DC6) -> 142.21 | BY36: avg mode: | BZ36: =AVERAGE('raw files'!DH6:DJ6) -> 141.9503333 | CH36: avg mode: | CI36: =AVERAGE('raw files'!DO6:DP6) -> 198.232
A40: Particle | C40: ='raw files'!DT1 -> [3788] USA6 T2-2 bulk - c - Average | J40: Particle | L40: ='raw files'!DZ1 -> [3789] USA6 T2-7 bulk - a - Average | S40: Particle | U40: ='raw files'!EF1 -> [3790 USA6 T2-13 bulk - a - Average | AB40: Particle | AD40: ='raw files'!EL1 -> [3791] USA6 T3-2 bulk - c - Average | AK40: Particle | AM40: ='raw files'!ER1 -> [3792] USA6 T3-7 bulk - a - Average | AT40: Particle | AV40: ='raw files'!EX1 -> [3793] USA6 T3-12 bulk - a - Average
A41: Diameter | C41: Differential Volume (%) | J41: Diameter | L41: Differential Volume (%) | S41: Diameter | U41: Differential Volume (%) | AB41: Diameter | AD41: Differential Volume (%) | AK41: Diameter | AM41: Differential Volume (%) | AT41: Diameter | AV41: Differential Volume (%)
A42: Range (mm) | B42: Size Class | C42: Rep. 1 | D42: Rep. 2 | E42: Rep. 3 | F42: Average | G42: SE | J42: Range (mm) | K42: Size Class | L42: Rep. 1 | M42: Rep. 2 | N42: Rep. 3 | O42: Average | P42: SE | S42: Range (mm) | T42: Size Class | U42: Rep. 1 | V42: Rep. 2 | W42: Rep. 3 | X42: Average | Y42: SE | AB42: Range (mm) | AC42: Size Class | AD42: Rep. 1 | AE42: Rep. 2 | AF42: Rep. 3 | AG42: Average | AH42: SE | AK42: Range (mm) | AL42: Size Class | AM42: Rep. 1 | AN42: Rep. 2 | AO42: Rep. 3 | AP42: Average | AQ42: SE | AT42: Range (mm) | AU42: Size Class | AV42: Rep. 1 | AW42: Rep. 2 | AX42: Rep. 3 | AY42: Average | AZ42: SE
A43: < 5 | B43: Clay | C43: ='raw files'!DT13 -> 2.896 | D43: ='raw files'!DU13 -> 2.687 | E43: ='raw files'!DV13 -> 3.139 | F43: =AVERAGE(C43:E43) -> 2.907333333 | G43: =(STDEV(C43:E43))/SQRT(3) -> 0.1306041517 | J43: < 5 | K43: Clay | L43: ='raw files'!DZ13 -> 3.652 | M43: ='raw files'!EA13 -> 3.973 | N43: ='raw files'!EB13 -> 3.46 | O43: =AVERAGE(L43:N43) -> 3.695 | P43: =(STDEV(L43:N43))/SQRT(3) -> 0.1496429083 | S43: < 5 | T43: Clay | U43: ='raw files'!EF13 -> 9.7 | V43: ='raw files'!EG13 -> 9.194 | W43: ='raw files'!EH13 -> 10.066 | X43: =AVERAGE(U43:W43) -> 9.653333333 | Y43: =(STDEV(U43:W43))/SQRT(3) -> 0.2528038326 | AB43: < 5 | AC43: Clay | AD43: ='raw files'!EL13 -> 5.298 | AE43: ='raw files'!EM13 -> 5.113 | AF43: ='raw files'!EN13 -> 4.227 | AG43: =AVERAGE(AD43:AF43) -> 4.879333333 | AH43: =(STDEV(AD43:AF43))/SQRT(3) -> 0.3305098755 | AK43: < 5 | AL43: Clay | AM43: ='raw files'!ER13 -> 3.462 | AN43: ='raw files'!ES13 -> 4.257 | AO43: ='raw files'!ET13 -> 4.344 | AP43: =AVERAGE(AM43:AO43) -> 4.021 | AQ43: =(STDEV(AM43:AO43))/SQRT(3) -> 0.2806260857 | AT43: < 5 | AU43: Clay | AV43: ='raw files'!EX13 -> 5.387 | AW43: ='raw files'!EY13 -> 5.86 | AX43: ='raw files'!EZ13 -> 5.322 | AY43: =AVERAGE(AV43:AX43) -> 5.523 | AZ43: =(STDEV(AV43:AX43))/SQRT(3) -> 0.1695415387
A44: 5 - 63 | B44: Silt | C44: ='raw files'!DT14 -> 6.082 | D44: ='raw files'!DU14 -> 5.857 | E44: ='raw files'!DV14 -> 6.808 | F44: =AVERAGE(C44:E44) -> 6.249 | G44: =(STDEV(C44:E44))/SQRT(3) -> 0.2869477304 | J44: 5 - 63 | K44: Silt | L44: ='raw files'!DZ14 -> 10.909 | M44: ='raw files'!EA14 -> 11.764 | N44: ='raw files'!EB14 -> 10.537 | O44: =AVERAGE(L44:N44) -> 11.07 | P44: =(STDEV(L44:N44))/SQRT(3) -> 0.3632368373 | S44: 5 - 63 | T44: Silt | U44: ='raw files'!EF14 -> 32.626 | V44: ='raw files'!EG14 -> 31.495 | W44: ='raw files'!EH14 -> 33.828 | X44: =AVERAGE(U44:W44) -> 32.64966667 | Y44: =(STDEV(U44:W44))/SQRT(3) -> 0.6735830395 | AB44: 5 - 63 | AC44: Silt | AD44: ='raw files'!EL14 -> 16.609 | AE44: ='raw files'!EM14 -> 16.219 | AF44: ='raw files'!EN14 -> 13.578 | AG44: =AVERAGE(AD44:AF44) -> 15.46866667 | AH44: =(STDEV(AD44:AF44))/SQRT(3) -> 0.9520137137 | AK44: 5 - 63 | AL44: Silt | AM44: ='raw files'!ER14 -> 8.496 | AN44: ='raw files'!ES14 -> 9.178 | AO44: ='raw files'!ET14 -> 8.742 | AP44: =AVERAGE(AM44:AO44) -> 8.805333333 | AQ44: =(STDEV(AM44:AO44))/SQRT(3) -> 0.1994068984 | AT44: 5 - 63 | AU44: Silt | AV44: ='raw files'!EX14 -> 25.083 | AW44: ='raw files'!EY14 -> 27.373 | AX44: ='raw files'!EZ14 -> 24.926 | AY44: =AVERAGE(AV44:AX44) -> 25.794 | AZ44: =(STDEV(AV44:AX44))/SQRT(3) -> 0.7907998061
A45: 63 - 2000 | B45: Sand | C45: ='raw files'!DT15 -> 91.022 | D45: ='raw files'!DU15 -> 91.456 | E45: ='raw files'!DV15 -> 90.053 | F45: 90.84366667 | G45: 0.4147104746 | J45: 63 - 2000 | K45: Sand | L45: ='raw files'!DZ15 -> 85.439 | M45: ='raw files'!EA15 -> 84.263 | N45: ='raw files'!EB15 -> 86.003 | O45: 85.235 | P45: =(STDEV(L45:N45))/SQRT(3) -> 0.5125465832 | S45: 63 - 2000 | T45: Sand | U45: ='raw files'!EF15 -> 57.674 | V45: ='raw files'!EG15 -> 59.311 | W45: ='raw files'!EH15 -> 56.106 | X45: 57.697 | Y45: 0.9252752744 | AB45: 63 - 2000 | AC45: Sand | AD45: ='raw files'!EL15 -> 78.093 | AE45: ='raw files'!EM15 -> 78.668 | AF45: ='raw files'!EN15 -> 82.195 | AG45: 79.652 | AH45: 1.282288709 | AK45: 63 - 2000 | AL45: Sand | AM45: ='raw files'!ER15 -> 88.043 | AN45: ='raw files'!ES15 -> 86.565 | AO45: ='raw files'!ET15 -> 86.914 | AP45: 87.174 | AQ45: 0.4460272787 | AT45: 63 - 2000 | AU45: Sand | AV45: ='raw files'!EX15 -> 69.531 | AW45: ='raw files'!EY15 -> 66.767 | AX45: ='raw files'!EZ15 -> 69.752 | AY45: 68.68333333 | AZ45: 0.9602882091
A46: 63 - 125 | B46: VF Sand | C46: ='raw files'!DT16 -> 19.893 | D46: ='raw files'!DU16 -> 17.308 | E46: ='raw files'!DV16 -> 19.794 | F46: 18.99833333 | G46: 0.8456497173 | J46: 63 - 125 | K46: VF Sand | L46: ='raw files'!DZ16 -> 24.809 | M46: ='raw files'!EA16 -> 27.24 | N46: ='raw files'!EB16 -> 24.917 | O46: 25.65533333 | P46: 0.7929464743 | S46: 63 - 125 | T46: VF Sand | U46: ='raw files'!EF16 -> 28.841 | V46: ='raw files'!EG16 -> 28.61 | W46: ='raw files'!EH16 -> 30.644 | X46: 29.365 | Y46: 0.6429673398 | AB46: 63 - 125 | AC46: VF Sand | AD46: ='raw files'!EL16 -> 28.621 | AE46: ='raw files'!EM16 -> 28.052 | AF46: ='raw files'!EN16 -> 26.278 | AG46: 27.65033333 | AH46: 0.7055528171 | AK46: 63 - 125 | AL46: VF Sand | AM46: ='raw files'!ER16 -> 20.049 | AN46: ='raw files'!ES16 -> 19.643 | AO46: ='raw files'!ET16 -> 19.912 | AP46: 19.868 | AQ46: 0.1192490391 | AT46: 63 - 125 | AU46: VF Sand | AV46: ='raw files'!EX16 -> 30.279 | AW46: ='raw files'!EY16 -> 32.96 | AX46: ='raw files'!EZ16 -> 30.69 | AY46: 31.30966667 | AZ46: 0.8336526721
A47: 125 - 250 | B47: F Sand | C47: ='raw files'!DT17 -> 34.668 | D47: ='raw files'!DU17 -> 30.055 | E47: ='raw files'!DV17 -> 34.571 | F47: 33.098 | G47: 1.521757646 | J47: 125 - 250 | K47: F Sand | L47: ='raw files'!DZ17 -> 30.527 | M47: ='raw files'!EA17 -> 34.455 | N47: ='raw files'!EB17 -> 32.548 | O47: 32.51 | P47: 1.1340751 | S47: 125 - 250 | T47: F Sand | U47: ='raw files'!EF17 -> 21.061 | V47: ='raw files'!EG17 -> 19.716 | W47: ='raw files'!EH17 -> 20.934 | X47: 20.57033333 | Y47: 0.4287370341 | AB47: 125 - 250 | AC47: F Sand | AD47: ='raw files'!EL17 -> 32.708 | AE47: ='raw files'!EM17 -> 32.523 | AF47: ='raw files'!EN17 -> 33.381 | AG47: 32.87066667 | AH47: 0.2606954375 | AK47: 125 - 250 | AL47: F Sand | AM47: ='raw files'!ER17 -> 30.156 | AN47: ='raw files'!ES17 -> 29.281 | AO47: ='raw files'!ET17 -> 30.79 | AP47: 30.07566667 | AQ47: 0.4374586965 | AT47: 125 - 250 | AU47: F Sand | AV47: ='raw files'!EX17 -> 21.99 | AW47: ='raw files'!EY17 -> 23.673 | AX47: ='raw files'!EZ17 -> 22.168 | AY47: 22.61033333 | AZ47: 0.5338121809
A48: 250 - 500 | B48: M Sand | C48: ='raw files'!DT18 -> 26.434 | D48: ='raw files'!DU18 -> 26.13 | E48: ='raw files'!DV18 -> 26.766 | F48: 26.44333333 | G48: 0.1836566845 | J48: 250 - 500 | K48: M Sand | L48: ='raw files'!DZ18 -> 13.777 | M48: ='raw files'!EA18 -> 16.804 | N48: ='raw files'!EB18 -> 15.866 | O48: 15.48233333 | P48: 0.8946288492 | S48: 250 - 500 | T48: M Sand | U48: ='raw files'!EF18 -> 6.339 | V48: ='raw files'!EG18 -> 5.126 | W48: ='raw files'!EH18 -> 3.768 | X48: 5.077666667 | Y48: 0.7425771191 | AB48: 250 - 500 | AC48: M Sand | AD48: ='raw files'!EL18 -> 14.492 | AE48: ='raw files'!EM18 -> 16.005 | AF48: ='raw files'!EN18 -> 18.819 | AG48: 16.43866667 | AH48: 1.26777789 | AK48: 250 - 500 | AL48: M Sand | AM48: ='raw files'!ER18 -> 21.222 | AN48: ='raw files'!ES18 -> 21.877 | AO48: ='raw files'!ET18 -> 19.362 | AP48: 20.82033333 | AQ48: 0.7532835529 | AT48: 250 - 500 | AU48: M Sand | AV48: ='raw files'!EX18 -> 7.9 | AW48: ='raw files'!EY18 -> 6.755 | AX48: ='raw files'!EZ18 -> 8.816 | AY48: 7.823666667 | AZ48: 0.5961823919
A49: 500 - 1000 | B49: C Sand | C49: ='raw files'!DT19 -> 9.915 | D49: ='raw files'!DU19 -> 15.705 | E49: ='raw files'!DV19 -> 8.597 | F49: 11.40566667 | G49: 2.18307744 | J49: 500 - 1000 | K49: C Sand | L49: ='raw files'!DZ19 -> 9.748 | M49: ='raw files'!EA19 -> 5.272 | N49: ='raw files'!EB19 -> 8.496 | O49: 7.838666667 | P49: 1.333255331 | S49: 500 - 1000 | T49: C Sand | U49: ='raw files'!EF19 -> 1.424 | V49: ='raw files'!EG19 -> 3.974 | W49: ='raw files'!EH19 -> 0.639 | X49: 2.012333333 | Y49: 1.006670806 | AB49: 500 - 1000 | AC49: C Sand | AD49: ='raw files'!EL19 -> 2.248 | AE49: ='raw files'!EM19 -> 2.088 | AF49: ='raw files'!EN19 -> 3.664 | AG49: 2.666666667 | AH49: 0.500801136 | AK49: 500 - 1000 | AL49: C Sand | AM49: ='raw files'!ER19 -> 11.475 | AN49: ='raw files'!ES19 -> 12.909 | AO49: ='raw files'!ET19 -> 11.695 | AP49: 12.02633333 | AQ49: 0.4458794057 | AT49: 500 - 1000 | AU49: C Sand | AV49: ='raw files'!EX19 -> 5.736 | AW49: ='raw files'!EY19 -> 2.736 | AX49: ='raw files'!EZ19 -> 6.843 | AY49: 5.105 | AZ49: 1.226850032
A50: 1000 - 2000 | B50: VC Sand | C50: ='raw files'!DT20 -> 0.113 | D50: ='raw files'!DU20 -> 2.257 | E50: ='raw files'!DV20 -> 0.325 | F50: 0.8983333333 | G50: 0.6820843871 | J50: 1000 - 2000 | K50: VC Sand | L50: ='raw files'!DZ20 -> 6.578 | M50: ='raw files'!EA20 -> 0.493 | N50: ='raw files'!EB20 -> 4.175 | O50: 3.748666667 | P50: 1.769475095 | S50: 1000 - 2000 | T50: VC Sand | U50: ='raw files'!EF20 -> 0.009 | V50: ='raw files'!EG20 -> 1.887 | W50: ='raw files'!EH20 -> 0.12 | X50: 0.672 | Y50: 0.6083444748 | AB50: 1000 - 2000 | AC50: VC Sand | AD50: ='raw files'!EL20 -> 0.024 | AE50: ='raw files'!EM20 -> 0 | AF50: ='raw files'!EN20 -> 0.053 | AG50: 0.02566666667 | AH50: 0.01532245991 | AK50: 1000 - 2000 | AL50: VC Sand | AM50: ='raw files'!ER20 -> 5.14 | AN50: ='raw files'!ES20 -> 2.854 | AO50: ='raw files'!ET20 -> 5.155 | AP50: 4.383 | AQ50: 0.7645122628 | AT50: 1000 - 2000 | AU50: VC Sand | AV50: ='raw files'!EX20 -> 3.626 | AW50: ='raw files'!EY20 -> 0.642 | AX50: ='raw files'!EZ20 -> 1.235 | AY50: 1.834333333 | AZ50: 0.9120424576
D51: Textural Class: | F51: ='Texture Calculator'!$N$24 -> SAND | M51: Textural Class: | O51: ='Texture Calculator'!$N$25 -> LOAMY SAND | V51: Textural Class: | X51: ='Texture Calculator'!$N$26 -> LOAMY SAND | AE51: Textural Class: | AG51: ='Texture Calculator'!$N$27 -> SANDY LOAM | AN51: Textural Class: | AP51: ='Texture Calculator'!$N$25 -> LOAMY SAND | AW51: Textural Class: | AY51: ='Texture Calculator'!$N$25 -> LOAMY SAND
D52: avg mode: | F52: =AVERAGE('raw files'!DT6:DV6) -> 183.0873333 | M52: avg mode: | O52: =AVERAGE('raw files'!DZ6:EB6) -> 142.4203333 | V52: avg mode: | X52: =AVERAGE('raw files'!EF6:EH6) -> 100.9873333 | AE52: avg mode: | AG52: =AVERAGE('raw files'!EL6:EN6) -> 138.7463333 | AN52: avg mode: | AP52: =AVERAGE('raw files'!ER6:ET6) -> 161.9636667 | AW52: avg mode: | AY52: =AVERAGE('raw files'!EX6:EZ6) -> 101.464
R59: Clay | S59: Silt
Q60: 0 | R60: 5 | S60: 63
Q61: 18 | R61: 5 | S61: 63 | T61: Clay | U61: Silt
S62: 0 | T62: 5 | U62: 63
S63: 125 | T63: 5 | U63: 63
A101: LAB # | B101: total w (gr) | C101: >2mm (gr)
A102: 3773 | B102: 64.164 | C102: 19.669
A103: 3774 | B103: 97.683 | C103: 18.401
A104: 3780 | B104: 63.415 | C104: 12.529
A105: 3785 | B105: 83.15 | C105: 22.454
A106: 3786 | B106: 95.148 | C106: 20.63
A107: 3787 | B107: 95.721 | C107: 16.703
A108: 3789 | B108: 111.124 | C108: 26.3
A109: 3790 | B109: =58.842+C109 -> 122.844 | C109: 64.002
A110: 3791 | B110: 112.59 | C110: 49.56
A111: 3792 | B111: 104.308 | C111: 58.791

Sheet Texture Calculator
B1: Enter your data into the yellow highlighted cells | I1: Password = Texture
B3: Sand | D3: Clay | F3: Silt | H3: USDA Texture
A4: 3768 | B4: % Sand 1 | C4: =Results!$F$13/100 -> 0.78526 | D4: %Clay 1 | E4: =Results!$F$11/100 -> 0.04592 | F4: % Silt 1 | G4: =1-C4-E4 -> 0.16882 | H4: =GRAIN(C4,E4,G4) -> LOAMY SAND | N4: =H4 -> LOAMY SAND
A5: 3769 | B5: % Sand 2 | C5: =Results!$O$13/100 -> 0.649085 | D5: %Clay 2 | E5: =Results!$O$11/100 -> 0.12754 | F5: % Silt 2 | G5: =1-C5-E5 -> 0.223375 | H5: =GRAIN(C5,E5,G5) -> SANDY LOAM | N5: =H5 -> SANDY LOAM
A6: 3770 | B6: % Sand 3 | C6: =Results!$X$13/100 -> 0.44078 | D6: %Clay 3 | E6: =Results!X11/100 -> 0.11998 | F6: % Silt 3 | G6: =1-C6-E6 -> 0.43924 | H6: LOAM | N6: =H6 -> LOAM
A7: 3771 | B7: % Sand 4 | C7: =Results!$AG$13/100 -> 0.73236 | D7: %Clay 4 | E7: =Results!$AG$11/100 -> 0.08644 | F7: % Silt 4 | G7: =1-C7-E7 -> 0.1812 | H7: =GRAIN(C7,E7,G7) -> SANDY LOAM | N7: =H7 -> SANDY LOAM
A8: 3772 | B8: % Sand 5 | C8: =Results!$AP$13/100 -> 0.3716033333 | D8: %Clay 5 | E8: =Results!$AP$11/100 -> 0.07636 | F8: % Silt 5 | G8: =1-C8-E8 -> 0.5520366667 | H8: =GRAIN(C8,E8,G8) -> SILT LOAM | N8: =H8 -> SILT LOAM
A9: 3773 | B9: % Sand 6 | C9: =Results!$AY$13/100 -> 0.7671333333 | D9: %Clay 6 | E9: =Results!$AY$11/100 -> 0.07198666667 | F9: % Silt 6 | G9: =1-C9-E9 -> 0.16088 | H9: =GRAIN(C9,E9,G9) -> SANDY LOAM | N9: SANDY LOAM
A10: 3774 | B10: % Sand 7 | C10: =Results!$BH$13/100 -> 0.7126933333 | D10: %Clay 7 | E10: =Results!$BH$11/100 -> 0.05745333333 | F10: % Silt 7 | G10: 0.2298533333 | H10: SANDY LOAM | N10: SANDY LOAM
A11: 3775 | B11: % Sand 8 | C11: =Results!$BQ$13/100 -> 0.663 | D11: %Clay 8 | E11: =Results!$BQ$11/100 -> 0.07567 | F11: % Silt 8 | G11: =1-C11-E11 -> 0.26133 | H11: =GRAIN(C11,E11,G11) -> SANDY LOAM | N11: SANDY LOAM
A12: 3776 | B12: % Sand 9 | C12: =Results!$BY$13/100 -> 0.7725633333 | D12: %Clay 9 | E12: =Results!$BY$11/100 -> 0.06153 | F12: % Silt 9 | G12: 0.1659066667 | H12: LOAMY SAND | N12: LOAMY SAND
A13: 3777 | B13: % Sand 11 | C13: =Results!$CH$13/100 -> 0.3061066667 | D13: %Clay 11 | E13: =Results!$CH$11/100 -> 0.1074433333 | F13: % Silt 11 | G13: =1-C13-E13 -> 0.58645 | H13: =GRAIN(C13,E13,G13) -> SILT LOAM | N13: SILT LOAM
A14: 3778 | B14: % Sand 12 | C14: =Results!$F$29/100 -> 0.81396 | D14: %Clay 12 | E14: =Results!$F$27/100 -> 0.057465 | F14: % Silt 12 | G14: 0.128575 | H14: LOAMY SAND | N14: LOAMY SAND
A15: 3779 | B15: % Sand 13 | C15: =Results!$O$29/100 -> 0.98414 | D15: %Clay 13 | E15: =Results!$O$27/100 -> 0.005853333333 | F15: % Silt 13 | G15: 0.01000666667 | H15: SAND | N15: SAND
A16: 3780 | B16: % Sand 14 | C16: =Results!$X$29/100 -> 0.8338666667 | D16: %Clay 14 | E16: =Results!$X$27/100 -> 0.03780666667 | F16: % Silt 14 | G16: 0.1283266667 | H16: LOAMY SAND | N16: LOAMY SAND
A17: 3781 | B17: % Sand 15 | C17: =Results!$AG$29/100 -> 0.98792 | D17: %Clay 15 | E17: =Results!$AG$27/100 -> 0.003483333333 | F17: % Silt 15 | G17: 0.008596666667 | H17: SAND | N17: =H17 -> SAND
A18: 3782 | B18: % Sand 16 | C18: =Results!$AP$29/100 -> 0.8889133333 | D18: %Clay 16 | E18: =Results!$AP$27/100 -> 0.01859 | F18: % Silt 16 | G18: =1-C18-E18 -> 0.09249666667 | H18: =GRAIN(C18,E18,G18) -> SAND | N18: =H18 -> SAND
A19: 3783 | B19: % Sand 17 | C19: =Results!$AY$29/100 -> 0.9747633333 | D19: %Clay 17 | E19: =Results!$AY$27/100 -> 0.005416666667 | F19: % Silt 17 | G19: =1-C19-E19 -> 0.01982 | H19: =GRAIN(C19,E19,G19) -> SAND | N19: SAND
A20: 3784 | B20: % Sand 18 | C20: =Results!$BH$29/100 -> 0.901145 | D20: %Clay 18 | E20: =Results!$BH$27/100 -> 0.019015 | F20: % Silt 18 | G20: =1-C20-E20 -> 0.07984 | H20: =GRAIN(C20,E20,G20) -> SAND | N20: SAND
A21: 3785 | B21: % Sand 19 | C21: =Results!$BQ$29/100 -> 0.85811 | D21: %Clay 19 | E21: =Results!$BQ$27/100 -> 0.026455 | F21: % Silt 19 | G21: 0.115435 | H21: LOAMY SAND | N21: LOAMY SAND
A22: 3786 | B22: % Sand 20 | C22: =Results!$BZ$29/100 -> 0.8738666667 | D22: %Clay 20 | E22: =Results!$BZ$27/100 -> 0.0291 | F22: % Silt 20 | G22: 0.09703333333 | H22: =GRAIN(C22,E22,G22) -> SAND | N22: SAND
A23: 3787 | B23: % Sand 21 | C23: =Results!$CI$29/100 -> 0.8699333333 | D23: %Clay 21 | E23: =Results!$CI$27/100 -> 0.02791333333 | F23: % Silt 21 | G23: =1-C23-E23 -> 0.1021533333 | H23: =GRAIN(C23,E23,G23) -> SAND | N23: SAND
A24: 3788 | B24: % Sand 22 | C24: =Results!F45/100 -> 0.9084366667 | D24: %Clay 22 | E24: =Results!F43/100 -> 0.02907333333 | F24: % Silt 22 | G24: 0.06249 | H24: SAND | N24: SAND
A25: 3789 | B25: % Sand 23 | C25: =Results!$O$45/100 -> 0.85235 | D25: %Clay 23 | E25: =Results!$O$43/100 -> 0.03695 | F25: % Silt 23 | G25: 0.1107 | H25: LOAMY SAND | N25: LOAMY SAND
A26: 3790 | B26: % Sand 24 | C26: =Results!$AG$45/100 -> 0.79652 | D26: %Clay 24 | E26: =Results!$AG$43/100 -> 0.04879333333 | F26: % Silt 24 | G26: =1-C26-E26 -> 0.1546866667 | H26: =GRAIN(C26,E26,G26) -> LOAMY SAND | N26: LOAMY SAND
A27: 3791 | B27: % Sand 25 | C27: =Results!$X$45/100 -> 0.57697 | D27: %Clay 25 | E27: =Results!$X$43/100 -> 0.09653333333 | F27: % Silt 25 | G27: =1-C27-E27 -> 0.3264966667 | H27: =GRAIN(C27,E27,G27) -> SANDY LOAM | N27: =H27 -> SANDY LOAM
A28: 3792 | B28: % Sand 26 | C28: =Results!$AP$45/100 -> 0.87174 | D28: %Clay 26 | E28: =Results!$AP$43/100 -> 0.04021 | F28: % Silt 26 | G28: 0.08805 | H28: =GRAIN(C28,E28,G28) -> SAND | N28: SAND
A29: 3793 | B29: % Sand 27 | C29: =Results!$AY$45/100 -> 0.6868333333 | D29: %Clay 27 | E29: =Results!$AY$43/100 -> 0.05523 | F29: % Silt 27 | G29: 0.2579366667 | H29: SANDY LOAM | N29: SANDY LOAM
D31: =A4 -> 3768 | E31: =(1.095-(C4*0.0104*100))-((0.52)*(0.0099*E4*100)) -> 0.254689984 | F31: =0.145+(0.0099*E4*100) -> 0.1904608
D32: 3769 | E32: 0.354294008 | F32: 0.2712646
D33: 3770 | E33: 0.574823096 | F33: 0.2637802
D34: 3771 | E34: 0.288846288 | F34: 0.2305756
D35: 3772 | E35: 0.6692224053 | F35: 0.2205964
D36: 3773 | E36: 0.2601225973 | F36: 0.2162668
D37: 3774 | E37: 0.3242219573 | F37: 0.2018788
D38: 3775 | E38: 0.366525084 | F38: 0.2199133
D39: =A12 -> 3776 | E39: 0.2598584893 | F39: 0.2059147
D40: 3777 | E40: =(1.095-(C13*0.0104*100))-((0.52)*(0.0099*E13*100)) -> 0.7213372387 | F40: =0.145+(0.0099*E13*100) -> 0.2513689
D41: 3778 | E41: 0.218898618 | F41: 0.20189035
D42: 3779 | E42: 0.068481104 | F42: 0.1507948
D43: 3780 | E43: 0.2083157947 | F43: 0.1824286
D44: 3781 | E44: 0.06576998 | F44: 0.1484485
D45: 3782 | E45: 0.1609600013 | F45: 0.1634041
D46: 3783 | E46: 0.07845763333 | F46: 0.1503625
D47: 3784 | E47: 0.148020278 | F47: 0.16382485
D48: 3785 | E48: 0.188946566 | F48: 0.17119045
D49: 3786 | E49: 0.1711979867 | F49: 0.173809
D50: 3787 | E50: 0.1758995493 | F50: 0.1726342
D51: 3788 | E51: 0.1352589147 | F51: 0.1737826
D52: 3789 | E52: 0.18953414 | F52: 0.1815805
D53: 3790 | E53: 0.241500392 | F53: 0.1933054
D54: 3791 | E54: 0.44525584 | F54: 0.240568
D55: 3792 | E55: 0.167690292 | F55: 0.1848079
D56: 3793 | E56: 0.3522609293 | F56: 0.1996777
E59: 0.525
E60: 1.04

Sheet raw files
A1: Sample Name | C1: [3768] Pisga T1-5 bulk - c - Average | D1: [3768] Pisga T1-5 bulk - d - Average | E1: [3768] Pisga T1-5 bulk - e - Average | G1: Sample Name | I1: [3769] Pisga T1-10 bulk - b - Average | J1: [3769] Pisga T1-10 bulk - d - Average | K1: [3769] Pisga T1-10 bulk - f - Average | M1: Sample Name | O1: [3770] Pisga T1-20 bulk - a - Average | P1: [3770] Pisga T1-20 bulk - b - Average | Q1: [3770] Pisga T1-20 bulk - c - Average | T1: Sample Name | V1: [3771] Pisga T1-35 bulk - b - Average | W1: [3771] Pisga T1-35 bulk - c - Average | X1: [3771] Pisga T1-35 bulk - d - Average | Z1: Sample Name | AB1: [3772] Pisga T1-50 bulk - a - Average | AC1: [3772] Pisga T1-50 bulk - b - Average | AD1: [3772] Pisga T1-50 bulk - c - Average | AF1: Sample Name | AH1: [3773] Pisga T1-60 bulk - b - Average | AI1: [3773] Pisga T1-60 bulk - c - Average | AJ1: [3773] Pisga T1-60 bulk - d - Average | AL1: Sample Name | AN1: [3774] Pisga T1-70 bulk - a - Average | AO1: [3774] Pisga T1-70 bulk - b - Average | AP1: [3774] Pisga T1-70 bulk - d - Average | AR1: Sample Name | AT1: [3775] Pisga T2-1 bulk - b - Average | AU1: [3775] Pisga T2-1 bulk - c - Average | AV1: [3775] Pisga T2-1 bulk - e - Average | AX1: Sample Name | AZ1: [3776] Pisga T2-18 bulk - a - Average | BA1: [3776] Pisga T2-18 bulk - b - Average | BB1: [3776] Pisga T2-18 bulk - c - Average | BD1: Sample Name | BF1: [3777] Pisga T2-58 bulk - a - Average | BG1: [3777] Pisga T2-58 bulk - b - Average | BH1: [3777] Pisga T2-58 bulk - c - Average | BJ1: Sample Name | BL1: [3778] Pisga T2-80 bulk - b - Average | BM1: [3778] Pisga T2-80 bulk - c - Average | BN1: [3778] Pisga T2-80 bulk - d - Average | BP1: Sample Name | BR1: [3779] USA5 T1-83 bulk - a - Average | BS1: [3779] USA5 T1-83 bulk - b - Average | BT1: [3779] USA5 T1-83 bulk - c - Average | BV1: Sample Name | BX1: [3780] USA5 T1-79 bulk - a - Average | BY1: [3780] USA5 T1-79 bulk - b - Average | BZ1: [3780] USA5 T1-79 bulk - c - Average | CB1: Sample Name | CD1: [3781] USA5 T1-72 bulk - b - Average | CE1: [3781] USA5 T1-72 bulk - c - Average | CF1: [3781] USA5 T1-72 bulk - d - Average | CH1: Sample Name | CJ1: [3782] USA5 T2-89 bulk - a - Average | CK1: [3782] USA5 T2-89 bulk - c - Average | CL1: [3782] USA5 T2-89 bulk - d - Average | CN1: Sample Name | CP1: [3783] USA5 T2-83 bulk - a - Average | CQ1: [3783] USA5 T2-83 bulk - b - Average | CR1: [3783] USA5 T2-83 bulk - c - Average | CT1: Sample Name | CV1: [3784] USA5 T2-79 bulk - b - Average | CW1: [3784] USA5 T2-79 bulk - d - Average | CX1: [3784] USA5 T2-79 bulk - e - Average | CZ1: Sample Name | DB1: [3785] USA6 T1-1 bulk - a - Average | DC1: [3785] USA6 T1-1 bulk - b - Average | DD1: [3785] USA6 T1-1 bulk - c - Average | DF1: Sample Name | DH1: [3786] USA6 T1-7 bulk - b - Average | DI1: [3786] USA6 T1-7 bulk - d - Average | DJ1: [3786] USA6 T1-7 bulk - e - Average | DL1: Sample Name | DN1: [3787] USA6 T1-13 bulk - c - Average | DO1: [3787] USA6 T1-13 bulk - d - Average | DP1: [3787] USA6 T1-13 bulk - e - Average | DR1: Sample Name | DT1: [3788] USA6 T2-2 bulk - c - Average | DU1: [3788] USA6 T2-2 bulk - g - Average | DV1: [3788] USA6 T2-2 bulk - h - Average | DX1: Sample Name | DZ1: [3789] USA6 T2-7 bulk - a - Average | EA1: [3789] USA6 T2-7 bulk - b - Average | EB1: [3789] USA6 T2-7 bulk - c - Average | ED1: Sample Name | EF1: [3790 USA6 T2-13 bulk - a - Average | EG1: [3790 USA6 T2-13 bulk - c - Average | EH1: [3790 USA6 T2-13 bulk - d - Average | EJ1: Sample Name | EL1: [3791] USA6 T3-2 bulk - c - Average | EM1: [3791] USA6 T3-2 bulk - d - Average | EN1: [3791] USA6 T3-2 bulk - a new Averaged Result | EP1: Sample Name | ER1: [3792] USA6 T3-7 bulk - a - Average | ES1: [3792] USA6 T3-7 bulk - b - Average | ET1: [3792] USA6 T3-7 bulk - c - Average | EV1: Sample Name | EX1: [3793] USA6 T3-12 bulk - a - Average | EY1: [3793] USA6 T3-12 bulk - b - Average | EZ1: [3793] USA6 T3-12 bulk - d - Average
A2: Analysis date and time | C2: éåí ùðé 11 ôáøåàø 2019 14:51:24 | D2: éåí ùðé 11 ôáøåàø 2019 14:54:14 | E2: éåí ùðé 11 ôáøåàø 2019 15:01:20 | G2: Analysis date and time | I2: éåí ùìéùé 12 ôáøåàø 2019 12:51:12 | J2: éåí ùìéùé 12 ôáøåàø 2019 13:03:56 | K2: éåí ùìéùé 12 ôáøåàø 2019 13:13:20 | M2: Analysis date and time | O2: éåí ùìéùé 12 ôáøåàø 2019 14:11:20 | P2: éåí ùìéùé 12 ôáøåàø 2019 14:14:09 | Q2: éåí ùìéùé 12 ôáøåàø 2019 14:22:19 | T2: Analysis date and time | V2: éåí ùìéùé 12 ôáøåàø 2019 14:34:37 | W2: éåí ùìéùé 12 ôáøåàø 2019 14:41:51 | X2: éåí ùìéùé 12 ôáøåàø 2019 14:44:02 | Z2: Analysis date and time | AB2: éåí ùìéùé 12 ôáøåàø 2019 14:52:30 | AC2: éåí ùìéùé 12 ôáøåàø 2019 14:55:23 | AD2: éåí ùìéùé 12 ôáøåàø 2019 15:00:51 | AF2: Analysis date and time | AH2: éåí øàùåï 17 ôáøåàø 2019 09:22:11 | AI2: éåí øàùåï 17 ôáøåàø 2019 09:30:38 | AJ2: éåí øàùåï 17 ôáøåàø 2019 09:33:01 | AL2: Analysis date and time | AN2: éåí øàùåï 17 ôáøåàø 2019 09:44:24 | AO2: éåí øàùåï 17 ôáøåàø 2019 09:47:45 | AP2: éåí øàùåï 17 ôáøåàø 2019 09:55:41 | AR2: Analysis date and time | AT2: éåí øàùåï 17 ôáøåàø 2019 10:08:40 | AU2: éåí øàùåï 17 ôáøåàø 2019 10:14:23 | AV2: éåí øàùåï 17 ôáøåàø 2019 10:21:01 | AX2: Analysis date and time | AZ2: éåí øàùåï 17 ôáøåàø 2019 14:39:06 | BA2: éåí øàùåï 17 ôáøåàø 2019 14:41:25 | BB2: éåí øàùåï 17 ôáøåàø 2019 14:47:43 | BD2: Analysis date and time | BF2: éåí ùìéùé 19 ôáøåàø 2019 13:54:41 | BG2: éåí ùìéùé 19 ôáøåàø 2019 13:57:17 | BH2: éåí ùìéùé 19 ôáøåàø 2019 14:03:25 | BJ2: Analysis date and time | BL2: éåí ùìéùé 19 ôáøåàø 2019 14:15:16 | BM2: éåí ùìéùé 19 ôáøåàø 2019 14:21:33 | BN2: éåí ùìéùé 19 ôáøåàø 2019 14:24:29 | BP2: Analysis date and time | BR2: éåí ùìéùé 19 ôáøåàø 2019 14:44:33 | BS2: éåí ùìéùé 19 ôáøåàø 2019 14:47:52 | BT2: éåí ùìéùé 19 ôáøåàø 2019 14:53:31 | BV2: Analysis date and time | BX2: éåí øáéòé 20 ôáøåàø 2019 09:44:00 | BY2: éåí øáéòé 20 ôáøåàø 2019 09:46:18 | BZ2: éåí øáéòé 20 ôáøåàø 2019 09:51:55 | CB2: Analysis date and time | CD2: éåí øáéòé 20 ôáøåàø 2019 10:06:21 | CE2: éåí øáéòé 20 ôáøåàø 2019 10:12:40 | CF2: éåí øáéòé 20 ôáøåàø 2019 10:15:02 | CH2: Analysis date and time | CJ2: éåí øáéòé 20 ôáøåàø 2019 10:25:44 | CK2: éåí øáéòé 20 ôáøåàø 2019 10:34:26 | CL2: éåí øáéòé 20 ôáøåàø 2019 10:36:35 | CN2: Analysis date and time | CP2: éåí øáéòé 20 ôáøåàø 2019 10:48:52 | CQ2: éåí øáéòé 20 ôáøåàø 2019 10:51:59 | CR2: éåí øáéòé 20 ôáøåàø 2019 11:00:06 | CT2: Analysis date and time | CV2: éåí øáéòé 20 ôáøåàø 2019 11:17:12 | CW2: éåí øáéòé 20 ôáøåàø 2019 12:00:18 | CX2: éåí øáéòé 20 ôáøåàø 2019 12:02:44 | CZ2: Analysis date and time | DB2: éåí çîéùé 21 ôáøåàø 2019 09:09:02 | DC2: éåí çîéùé 21 ôáøåàø 2019 09:14:15 | DD2: éåí çîéùé 21 ôáøåàø 2019 09:28:39 | DF2: Analysis date and time | DH2: éåí çîéùé 21 ôáøåàø 2019 09:50:03 | DI2: éåí çîéùé 21 ôáøåàø 2019 10:02:45 | DJ2: éåí çîéùé 21 ôáøåàø 2019 10:06:17 | DL2: Analysis date and time | DN2: éåí çîéùé 21 ôáøåàø 2019 13:10:11 | DO2: éåí çîéùé 21 ôáøåàø 2019 13:12:25 | DP2: éåí çîéùé 21 ôáøåàø 2019 13:19:05 | DR2: Analysis date and time | DT2: éåí çîéùé 21 ôáøåàø 2019 13:46:28 | DU2: éåí çîéùé 21 ôáøåàø 2019 14:38:49 | DV2: éåí çîéùé 21 ôáøåàø 2019 14:41:28 | DX2: Analysis date and time | DZ2: éåí çîéùé 21 ôáøåàø 2019 15:02:56 | EA2: éåí çîéùé 21 ôáøåàø 2019 15:05:05 | EB2: éåí çîéùé 21 ôáøåàø 2019 15:15:18 | ED2: Analysis date and time | EF2: éåí çîéùé 21 ôáøåàø 2019 15:43:13 | EG2: éåí çîéùé 21 ôáøåàø 2019 15:58:42 | EH2: éåí çîéùé 21 ôáøåàø 2019 16:01:20 | EJ2: Analysis date and time | EL2: éåí çîéùé 21 ôáøåàø 2019 16:24:18 | EM2: éåí çîéùé 21 ôáøåàø 2019 16:26:39 | EN2: éåí çîéùé 21 ôáøåàø 2019 16:15:55 | EP2: Analysis date and time | ER2: éåí çîéùé 21 ôáøåàø 2019 16:43:29 | ES2: éåí çîéùé 21 ôáøåàø 2019 16:46:58 | ET2: éåí çîéùé 21 ôáøåàø 2019 16:53:24 | EV2: Analysis date and time | EX2: éåí çîéùé 21 ôáøåàø 2019 17:06:59 | EY2: éåí çîéùé 21 ôáøåàø 2019 17:10:10 | EZ2: éåí çîéùé 21 ôáøåàø 2019 17:18:29
A3: Operator name | C3: Yael | D3: Yael | E3: Yael | G3: Operator name | I3: Yael | J3: Yael | K3: Yael | M3: Operator name | O3: Yael | P3: Yael | Q3: Yael | T3: Operator name | V3: Yael | W3: Yael | X3: Yael | Z3: Operator name | AB3: Yael | AC3: Yael | AD3: Yael | AF3: Operator name | AH3: Yael | AI3: Yael | AJ3: Yael | AL3: Operator name | AN3: Yael | AO3: Yael | AP3: Yael | AR3: Operator name | AT3: Yael | AU3: Yael | AV3: Yael | AX3: Operator name | AZ3: Yael | BA3: Yael | BB3: Yael | BD3: Operator name | BF3: Yael | BG3: Yael | BH3: Yael | BJ3: Operator name | BL3: Yael | BM3: Yael | BN3: Yael | BP3: Operator name | BR3: Yael | BS3: Yael | BT3: Yael | BV3: Operator name | BX3: Yael | BY3: Yael | BZ3: Yael | CB3: Operator name | CD3: Yael | CE3: Yael | CF3: Yael | CH3: Operator name | CJ3: Yael | CK3: Yael | CL3: Yael | CN3: Operator name | CP3: Yael | CQ3: Yael | CR3: Yael | CT3: Operator name | CV3: Yael | CW3: Yael | CX3: Yael | CZ3: Operator name | DB3: Yael | DC3: Yael | DD3: Yael | DF3: Operator name | DH3: Yael | DI3: Yael | DJ3: Yael | DL3: Operator name | DN3: Yael | DO3: Yael | DP3: Yael | DR3: Operator name | DT3: Yael | DU3: Yael | DV3: Yael | DX3: Operator name | DZ3: Yael | EA3: Yael | EB3: Yael | ED3: Operator name | EF3: Yael | EG3: Yael | EH3: Yael | EJ3: Operator name | EL3: Yael | EM3: Yael | EN3: Yael | EP3: Operator name | ER3: Yael | ES3: Yael | ET3: Yael | EV3: Operator name | EX3: Yael | EY3: Yael | EZ3: Yael
A4: Obscuration | C4: 12.7 | D4: 11.4 | E4: 11.38 | G4: Obscuration | I4: 7.91 | J4: 9.67 | K4: 11.21 | M4: Obscuration | O4: 12.4 | P4: 11.72 | Q4: 9.41 | T4: Obscuration | V4: 7.08 | W4: 7.2 | X4: 7.11 | Z4: Obscuration | AB4: 12.94 | AC4: 12.47 | AD4: 7.23 | AF4: Obscuration | AH4: 7.5 | AI4: 7.85 | AJ4: 7.33 | AL4: Obscuration | AN4: 6.98 | AO4: 8.62 | AP4: 8.27 | AR4: Obscuration | AT4: 7.82 | AU4: 9.67 | AV4: 9.42 | AX4: Obscuration | AZ4: 8.41 | BA4: 8.18 | BB4: 7.89 | BD4: Obscuration | BF4: 10.13 | BG4: 9.76 | BH4: 7.91 | BJ4: Obscuration | BL4: 9.13 | BM4: 9.72 | BN4: 9.27 | BP4: Obscuration | BR4: 5.81 | BS4: 8.02 | BT4: 8.9 | BV4: Obscuration | BX4: 8.93 | BY4: 8.49 | BZ4: 9.57 | CB4: Obscuration | CD4: 7.72 | CE4: 9.17 | CF4: 9.01 | CH4: Obscuration | CJ4: 9.85 | CK4: 10.28 | CL4: 9.72 | CN4: Obscuration | CP4: 8.18 | CQ4: 7.75 | CR4: 7.47 | CT4: Obscuration | CV4: 11.59 | CW4: 9.16 | CX4: 8.67 | CZ4: Obscuration | DB4: 13.08 | DC4: 12.7 | DD4: 11.65 | DF4: Obscuration | DH4: 12.68 | DI4: 12.29 | DJ4: 11.46 | DL4: Obscuration | DN4: 9.18 | DO4: 9 | DP4: 10.21 | DR4: Obscuration | DT4: 9.65 | DU4: 9.16 | DV4: 8.6 | DX4: Obscuration | DZ4: 10.36 | EA4: 9.97 | EB4: 11.72 | ED4: Obscuration | EF4: 8.74 | EG4: 9.09 | EH4: 9.48 | EJ4: Obscuration | EL4: 7.91 | EM4: 7.73 | EN4: 12.58 | EP4: Obscuration | ER4: 7.32 | ES4: 8.42 | ET4: 7.6 | EV4: Obscuration | EX4: 6.94 | EY4: 7.03 | EZ4: 11.46
A5: Residual | C5: 0.353 | D5: 0.483 | E5: 0.54 | G5: Residual | I5: 0.322 | J5: 0.255 | K5: 0.272 | M5: Residual | O5: 0.223 | P5: 0.218 | Q5: 0.22 | T5: Residual | V5: 0.285 | W5: 0.266 | X5: 0.316 | Z5: Residual | AB5: 0.19 | AC5: 0.189 | AD5: 0.221 | AF5: Residual | AH5: 0.248 | AI5: 0.24 | AJ5: 0.227 | AL5: Residual | AN5: 0.136 | AO5: 0.16 | AP5: 0.165 | AR5: Residual | AT5: 0.189 | AU5: 0.169 | AV5: 0.174 | AX5: Residual | AZ5: 0.205 | BA5: 0.252 | BB5: 1.147 | BD5: Residual | BF5: 0.267 | BG5: 0.271 | BH5: 0.259 | BJ5: Residual | BL5: 0.292 | BM5: 0.231 | BN5: 0.203 | BP5: Residual | BR5: 0.889 | BS5: 0.684 | BT5: 1.05 | BV5: Residual | BX5: 0.341 | BY5: 0.344 | BZ5: 0.345 | CB5: Residual | CD5: 0.892 | CE5: 0.645 | CF5: 0.692 | CH5: Residual | CJ5: 0.198 | CK5: 0.218 | CL5: 0.223 | CN5: Residual | CP5: 0.441 | CQ5: 0.366 | CR5: 0.621 | CT5: Residual | CV5: 0.574 | CW5: 0.516 | CX5: 0.589 | CZ5: Residual | DB5: 0.237 | DC5: 0.264 | DD5: 0.3 | DF5: Residual | DH5: 0.238 | DI5: 0.23 | DJ5: 0.222 | DL5: Residual | DN5: 0.215 | DO5: 0.259 | DP5: 0.149 | DR5: Residual | DT5: 0.26 | DU5: 0.346 | DV5: 0.239 | DX5: Residual | DZ5: 0.308 | EA5: 0.244 | EB5: 0.234 | ED5: Residual | EF5: 0.222 | EG5: 0.263 | EH5: 0.222 | EJ5: Residual | EL5: 0.217 | EM5: 0.211 | EN5: 0.152 | EP5: Residual | ER5: 1.02 | ES5: 0.767 | ET5: 0.252 | EV5: Residual | EX5: 0.262 | EY5: 0.225 | EZ5: 0.246
A6: Mode | C6: 143.091 | D6: 151.2 | E6: 179.273 | G6: Mode | I6: 153.492 | J6: 132 | K6: 136.9 | M6: Mode | O6: 82.068 | P6: 82.171 | Q6: 84.497 | T6: Mode | V6: 230.329 | W6: 208.73 | X6: 214.14 | Z6: Mode | AB6: 58.091 | AC6: 57.922 | AD6: 57.475 | AF6: Mode | AH6: 122.81 | AI6: 124.741 | AJ6: 124.924 | AL6: Mode | AN6: 129.57 | AO6: 124.673 | AP6: 119.565 | AR6: Mode | AT6: 195.58 | AU6: 154.126 | AV6: 160.515 | AX6: Mode | AZ6: 252.881 | BA6: 277.628 | BB6: 284.484 | BD6: Mode | BF6: 50.858 | BG6: 51.4 | BH6: 50.393 | BJ6: Mode | BL6: 212.174 | BM6: 214.125 | BN6: 214.421 | BP6: Mode | BR6: 255.19 | BS6: 260.777 | BT6: 266.15 | BV6: Mode | BX6: 128.274 | BY6: 129.247 | BZ6: 125.754 | CB6: Mode | CD6: 368.848 | CE6: 358.613 | CF6: 370.305 | CH6: Mode | CJ6: 165.662 | CK6: 163.83 | CL6: 166.88 | CN6: Mode | CP6: 204.802 | CQ6: 206.994 | CR6: 202.688 | CT6: Mode | CV6: 130.215 | CW6: 129.365 | CX6: 129.328 | CZ6: Mode | DB6: 144.116 | DC6: 140.304 | DD6: 134.687 | DF6: Mode | DH6: 145.905 | DI6: 142.384 | DJ6: 137.562 | DL6: Mode | DN6: 205.097 | DO6: 198.882 | DP6: 197.582 | DR6: Mode | DT6: 180.666 | DU6: 183.413 | DV6: 185.183 | DX6: Mode | DZ6: 139.876 | EA6: 142.144 | EB6: 145.241 | ED6: Mode | EF6: 101.811 | EG6: 100.59 | EH6: 100.561 | EJ6: Mode | EL6: 134.27 | EM6: 135.438 | EN6: 146.531 | EP6: Mode | ER6: 162.08 | ES6: 161.056 | ET6: 162.755 | EV6: Mode | EX6: 101.347 | EY6: 101.672 | EZ6: 101.373
A7: Skewness | C7: 1.753 | D7: 1.725 | E7: 1.463 | G7: Skewness | I7: 3.82 | J7: 1.4 | K7: 1.853 | M7: Skewness | O7: 2.976 | P7: 3.394 | Q7: 1.602 | T7: Skewness | V7: 0.706 | W7: 1.004 | X7: 0.772 | Z7: Skewness | AB7: 4.174 | AC7: 7.06 | AD7: 7.81 | AE7: Mode | AF7: Skewness | AH7: 2.204 | AI7: 2.855 | AJ7: 3.462 | AL7: Skewness | AN7: 3.148 | AO7: 2.508 | AP7: 3.756 | AR7: Skewness | AT7: 1.517 | AU7: 1.281 | AV7: 1.646 | AX7: Skewness | AZ7: 1.054 | BA7: 1.013 | BB7: 0.766 | BD7: Skewness | BF7: 3.051 | BG7: 2.791 | BH7: 3.702 | BJ7: Skewness | BL7: 2.918 | BM7: 0.619 | BN7: 0.975 | BP7: Skewness | BR7: 0.536 | BS7: 0.301 | BT7: 0.714 | BV7: Skewness | BX7: 0.38 | BY7: 0.395 | BZ7: 0.394 | CB7: Skewness | CD7: 0.583 | CE7: 0.652 | CF7: 0.569 | CH7: Skewness | CJ7: 0.88 | CK7: 3.735 | CL7: 3.291 | CN7: Skewness | CP7: 1.653 | CQ7: 1.65 | CR7: 1.792 | CT7: Skewness | CV7: 1.633 | CW7: 1.282 | CX7: 1.656 | CZ7: Skewness | DB7: 2.18 | DC7: 2.045 | DD7: 2.179 | DF7: Skewness | DH7: 1.653 | DI7: 2.132 | DJ7: 1.877 | DL7: Skewness | DN7: 1.662 | DO7: 2.664 | DP7: 2.715 | DR7: Skewness | DT7: 1.363 | DU7: 1.565 | DV7: 1.448 | DX7: Skewness | DZ7: 2.234 | EA7: 2.307 | EB7: 2.573 | ED7: Skewness | EF7: 2.488 | EG7: 3.823 | EH7: 3.9 | EJ7: Skewness | EL7: 1.814 | EM7: 1.38 | EN7: 1.603 | EP7: Skewness | ER7: 2.228 | ES7: 2.065 | ET7: 2.117 | EV7: Skewness | EX7: 3.14 | EY7: 4.004 | EZ7: 2.64
A8: Kurtosis | C8: 2.732 | D8: 2.832 | E8: 1.74 | G8: Kurtosis | I8: 28.544 | J8: 2.909 | K8: 5.139 | M8: Kurtosis | O8: 14.65 | P8: 20.037 | Q8: 3.033 | T8: Kurtosis | V8: -0.082 | W8: 0.961 | X8: 0.023 | Z8: Kurtosis | AB8: 25.581 | AC8: 69.311 | AD8: 80.681 | AF8: Kurtosis | AH8: 6.128 | AI8: 11.439 | AJ8: 16.713 | AL8: Kurtosis | AN8: 16.189 | AO8: 8.614 | AP8: 17.843 | AR8: Kurtosis | AT8: 2.53 | AU8: 1.339 | AV8: 3.202 | AX8: Kurtosis | AZ8: 0.752 | BA8: 0.707 | BB8: -0.071 | BD8: Kurtosis | BF8: 13.942 | BG8: 12.013 | BH8: 19.996 | BJ8: Kurtosis | BL8: 12.332 | BM8: -0.074 | BN8: 1.405 | BP8: Kurtosis | BR8: 0.171 | BS8: 0.128 | BT8: 0.095 | BV8: Kurtosis | BX8: -0.136 | BY8: -0.086 | BZ8: -0.117 | CB8: Kurtosis | CD8: -0.072 | CE8: 0.136 | CF8: -0.055 | CH8: Kurtosis | CJ8: 0.724 | CK8: 27.467 | CL8: 21.285 | CN8: Kurtosis | CP8: 2.715 | CQ8: 2.83 | CR8: 3.603 | CT8: Kurtosis | CV8: 1.884 | CW8: 0.636 | CX8: 2.106 | CZ8: Kurtosis | DB8: 4.62 | DC8: 4.361 | DD8: 4.884 | DF8: Kurtosis | DH8: 2.049 | DI8: 4.398 | DJ8: 3.124 | DL8: Kurtosis | DN8: 6.043 | DO8: 10.479 | DP8: 10.398 | DR8: Kurtosis | DT8: 1.912 | DU8: 2.723 | DV8: 2.755 | DX8: Kurtosis | DZ8: 4.806 | EA8: 7.331 | EB8: 7.367 | ED8: Kurtosis | EF8: 9.353 | EG8: 17.343 | EH8: 29.834 | EJ8: Kurtosis | EL8: 5.131 | EM8: 2.306 | EN8: 3.646 | EP8: Kurtosis | ER8: 5.484 | ES8: 5.43 | ET8: 4.775 | EV8: Kurtosis | EX8: 10.772 | EY8: 22.67 | EZ8: 7.724
A9: d (0.1) | C9: 19.117 | D9: 22.752 | E9: 31.361 | G9: d (0.1) | I9: 4.612 | J9: 3.974 | K9: 4.288 | M9: d (0.1) | O9: 4.829 | P9: 4.865 | Q9: 4.718 | T9: d (0.1) | V9: 7.817 | W9: 7.179 | X9: 7.163 | Z9: d (0.1) | AB9: 8.316 | AC9: 8.406 | AD9: 8.395 | AF9: d (0.1) | AH9: 10.054 | AI9: 11.374 | AJ9: 10.718 | AL9: d (0.1) | AN9: 16.471 | AO9: 13.938 | AP9: 12.153 | AR9: d (0.1) | AT9: 11.834 | AU9: 8.463 | AV9: 9.639 | AX9: d (0.1) | AZ9: 12.781 | BA9: 14.74 | BB9: 13.237 | BD9: d (0.1) | BF9: 5.474 | BG9: 5.512 | BH9: 5.598 | BJ9: d (0.1) | BL9: 13.868 | BM9: 16.373 | BN9: 17.564 | BP9: d (0.1) | BR9: 146.924 | BS9: 139.922 | BT9: 160.302 | BV9: d (0.1) | BX9: 39.21 | BY9: 41.731 | BZ9: 28.504 | CB9: d (0.1) | CD9: 165.747 | CE9: 148.686 | CF9: 149.112 | CH9: d (0.1) | CJ9: 56.645 | CK9: 57.474 | CL9: 61.551 | CN9: d (0.1) | CP9: 106.5 | CQ9: 102.715 | CR9: 104.768 | CT9: d (0.1) | CV9: 62.563 | CW9: 64.271 | CX9: 61.556 | CZ9: d (0.1) | DB9: 46.179 | DC9: 47.503 | DD9: 35.804 | DF9: d (0.1) | DH9: 63.689 | DI9: 45.927 | DJ9: 47.976 | DL9: d (0.1) | DN9: 49.641 | DO9: 48.577 | DP9: 50.779 | DR9: d (0.1) | DT9: 67.809 | DU9: 70.482 | DV9: 63.261 | DX9: d (0.1) | DZ9: 44.448 | EA9: 39.465 | EB9: 46.932 | ED9: d (0.1) | EF9: 6.212 | EG9: 6.63 | EH9: 5.954 | EJ9: d (0.1) | EL9: 16.672 | EM9: 17.916 | EN9: 30.233 | EP9: d (0.1) | ER9: 53.355 | ES9: 42.794 | ET9: 43.779 | EV9: d (0.1) | EX9: 13.572 | EY9: 11.905 | EZ9: 13.959
A10: d (0.5) | C10: 166.305 | D10: 183.773 | E10: 226.446 | G10: d (0.5) | I10: 106.52 | J10: 91.67 | K10: 99.714 | M10: d (0.5) | O10: 52.738 | P10: 53.186 | Q10: 53.307 | T10: d (0.5) | V10: 157.689 | W10: 141.867 | X10: 143.526 | Z10: d (0.5) | AB10: 47.245 | AC10: 47.592 | AD10: 46.987 | AF10: d (0.5) | AH10: 120.25 | AI10: 123.309 | AJ10: 120.039 | AL10: d (0.5) | AN10: 114.468 | AO10: 111.399 | AP10: 103.271 | AR10: d (0.5) | AT10: 128.268 | AU10: 103.919 | AV10: 114.662 | AX10: d (0.5) | AZ10: 164.924 | BA10: 179.261 | BB10: 173.037 | BD10: d (0.5) | BF10: 37.028 | BG10: 37.276 | BH10: 37.514 | BJ10: d (0.5) | BL10: 174.29 | BM10: 170.859 | BN10: 174.576 | BP10: d (0.5) | BR10: 249.379 | BS10: 250.227 | BT10: 263.086 | BV10: d (0.5) | BX10: 117.702 | BY10: 118.856 | BZ10: 114.631 | CB10: d (0.5) | CD10: 339.661 | CE10: 326.346 | CF10: 332.849 | CH10: d (0.5) | CJ10: 153.886 | CK10: 154.131 | CL10: 159.454 | CN10: d (0.5) | CP10: 266.517 | CQ10: 238.695 | CR10: 248.639 | CT10: d (0.5) | CV10: 163.423 | CW10: 182.642 | CX10: 166.431 | CZ10: d (0.5) | DB10: 163.412 | DC10: 167.815 | DD10: 151.62 | DF10: d (0.5) | DH10: 192.747 | DI10: 164.586 | DJ10: 170.914 | DL10: d (0.5) | DN10: 179.028 | DO10: 182.021 | DP10: 179.153 | DR10: d (0.5) | DT10: 190.875 | DU10: 218.053 | DV10: 188.272 | DX10: d (0.5) | DZ10: 155.195 | EA10: 142.215 | EB10: 155.298 | ED10: d (0.5) | EF10: 77.311 | EG10: 80.48 | EH10: 73.626 | EJ10: d (0.5) | EL10: 123.754 | EM10: 126.495 | EN10: 140.47 | EP10: d (0.5) | ER10: 187.109 | ES10: 184.694 | ET10: 181.263 | EV10: d (0.5) | EX10: 99.292 | EY10: 91.042 | EZ10: 99.223
A11: d (0.9) | C11: 878.034 | D11: 851.874 | E11: 948.394 | G11: d (0.9) | I11: 301.253 | J11: 256.018 | K11: 295.339 | M11: d (0.9) | O11: 172.745 | P11: 174.138 | Q11: 170.011 | T11: d (0.9) | V11: 373.071 | W11: 359.952 | X11: 353.827 | Z11: d (0.9) | AB11: 134.108 | AC11: 137.22 | AD11: 132.433 | AF11: d (0.9) | AH11: 376.703 | AI11: 404.931 | AJ11: 361.302 | AL11: d (0.9) | AN11: 328.351 | AO11: 348.303 | AP11: 322.756 | AR11: d (0.9) | AT11: 434.374 | AU11: 335.211 | AV11: 402.24 | AX11: d (0.9) | AZ11: 454.87 | BA11: 474.574 | BB11: 436.362 | BD11: d (0.9) | BF11: 123.085 | BG11: 123.809 | BH11: 128.518 | BJ11: d (0.9) | BL11: 454.291 | BM11: 367.2 | BN11: 388.882 | BP11: d (0.9) | BR11: 407.513 | BS11: 412.033 | BT11: 424.512 | BV11: d (0.9) | BX11: 218.361 | BY11: 220.232 | BZ11: 213.971 | CB11: d (0.9) | CD11: 595.962 | CE11: 599.52 | CF11: 603.796 | CH11: d (0.9) | CJ11: 320.156 | CK11: 330.018 | CL11: 348.817 | CN11: d (0.9) | CP11: 855.281 | CQ11: 659.156 | CR11: 747.338 | CT11: d (0.9) | CV11: 995.937 | CW11: 1141.94 | CX11: 956.937 | CZ11: d (0.9) | DB11: 801.074 | DC11: 740.744 | DD11: 733.536 | DF11: d (0.9) | DH11: 1014.566 | DI11: 811.174 | DJ11: 897.599 | DL11: d (0.9) | DN11: 416.213 | DO11: 481.689 | DP11: 501.042 | DR11: d (0.9) | DT11: 500.517 | DU11: 656.492 | DV11: 480.551 | DX11: d (0.9) | DZ11: 791.672 | EA11: 388.046 | EB11: 610.939 | ED11: d (0.9) | EF11: 222.297 | EG11: 270.023 | EH11: 190.701 | EJ11: d (0.9) | EL11: 312.613 | EM11: 324.169 | EN11: 364.482 | EP11: d (0.9) | ER11: 706.187 | ES11: 631.145 | ET11: 729.851 | EV11: d (0.9) | EX11: 464.643 | EY11: 251.822 | EZ11: 421.623
A12: Specific surface area | C12: 0.229 | D12: 0.206 | E12: 0.172 | G12: Specific surface area | I12: 0.494 | J12: 0.56 | K12: 0.528 | M12: Specific surface area | O12: 0.543 | P12: 0.539 | Q12: 0.545 | T12: Specific surface area | V12: 0.339 | W12: 0.362 | X12: 0.362 | Z12: Specific surface area | AB12: 0.424 | AC12: 0.421 | AD12: 0.416 | AF12: Specific surface area | AH12: 0.326 | AI12: 0.308 | AJ12: 0.316 | AL12: Specific surface area | AN12: 0.259 | AO12: 0.28 | AP12: 0.303 | AR12: Specific surface area | AT12: 0.303 | AU12: 0.373 | AV12: 0.345 | AX12: Specific surface area | AZ12: 0.285 | BA12: 0.267 | BB12: 0.278 | BD12: Specific surface area | BF12: 0.546 | BG12: 0.543 | BH12: 0.529 | BJ12: Specific surface area | BL12: 0.251 | BM12: 0.239 | BN12: 0.232 | BP12: Specific surface area | BR12: 0.037 | BS12: 0.0567 | BT12: 0.0245 | BV12: Specific surface area | BX12: 0.194 | BY12: 0.191 | BZ12: 0.208 | CB12: Specific surface area | CD12: 0.0232 | CE12: 0.0333 | CF12: 0.0339 | CH12: Specific surface area | CJ12: 0.107 | CK12: 0.111 | CL12: 0.093 | CN12: Specific surface area | CP12: 0.039 | CQ12: 0.0427 | CR12: 0.0444 | CT12: Specific surface area | CV12: 0.111 | CW12: 0.0902 | CX12: 0.104 | CZ12: Specific surface area | DB12: 0.14 | DC12: 0.137 | DD12: 0.175 | DF12: Specific surface area | DH12: 0.109 | DI12: 0.168 | DJ12: 0.16 | DL12: Specific surface area | DN12: 0.141 | DO12: 0.143 | DP12: 0.13 | DR12: Specific surface area | DT12: 0.135 | DU12: 0.122 | DV12: 0.144 | DX12: Specific surface area | DZ12: 0.173 | EA12: 0.19 | EB12: 0.169 | ED12: Specific surface area | EF12: 0.438 | EG12: 0.424 | EH12: 0.46 | EJ12: Specific surface area | EL12: 0.244 | EM12: 0.237 | EN12: 0.202 | EP12: Specific surface area | ER12: 0.158 | ES12: 0.189 | ET12: 0.191 | EV12: Specific surface area | EX12: 0.267 | EY12: 0.289 | EZ12: 0.27
A13: Result Below 6.000 µm | C13: 4.826 | D13: 4.358 | E13: 3.607 | G13: Result Below 6.000 µm | I13: 12.366 | J13: 14.141 | K13: 13.142 | M13: Result Below 6.000 µm | O13: 11.942 | P13: 11.867 | Q13: 12.185 | T13: Result Below 6.000 µm | V13: 8.318 | W13: 8.799 | X13: 8.815 | Z13: Result Below 6.000 µm | AB13: 7.695 | AC13: 7.629 | AD13: 7.584 | AF13: Result Below 6.000 µm | AH13: 7.436 | AI13: 6.976 | AJ13: 7.184 | AL13: Result Below 6.000 µm | AN13: 5.202 | AO13: 5.802 | AP13: 6.232 | AR13: Result Below 6.000 µm | AT13: 6.332 | AU13: 7.888 | AV13: 7.246 | AX13: Result Below 6.000 µm | AZ13: 6.333 | BA13: 5.916 | BB13: 6.21 | BD13: Result Below 6.000 µm | BF13: 10.831 | BG13: 10.765 | BH13: 10.637 | BJ13: Result Below 6.000 µm | BL13: 6.022 | BM13: 5.646 | BN13: 5.471 | BP13: Result Below 6.000 µm | BR13: 0.487 | BS13: 1.269 | BT13: 0 | BV13: Result Below 6.000 µm | BX13: 3.702 | BY13: 3.607 | BZ13: 4.033 | CB13: Result Below 6.000 µm | CD13: 0.08 | CE13: 0.468 | CF13: 0.497 | CH13: Result Below 6.000 µm | CJ13: 1.931 | CK13: 1.995 | CL13: 1.651 | CN13: Result Below 6.000 µm | CP13: 0.461 | CQ13: 0.525 | CR13: 0.639 | CT13: Result Below 6.000 µm | CV13: 2.074 | CW13: 1.729 | CX13: 1.936 | CZ13: Result Below 6.000 µm | DB13: 2.685 | DC13: 2.606 | DD13: 3.467 | DF13: Result Below 6.000 µm | DH13: 2.208 | DI13: 3.324 | DJ13: 3.198 | DL13: Result Below 6.000 µm | DN13: 2.887 | DO13: 2.961 | DP13: 2.526 | DR13: Result Below 6.000 µm | DT13: 2.896 | DU13: 2.687 | DV13: 3.139 | DX13: Result Below 6.000 µm | DZ13: 3.652 | EA13: 3.973 | EB13: 3.46 | ED13: Result Below 6.000 µm | EF13: 9.7 | EG13: 9.194 | EH13: 10.066 | EJ13: Result Below 6.000 µm | EL13: 5.298 | EM13: 5.113 | EN13: 4.227 | EP13: Result Below 6.000 µm | ER13: 3.462 | ES13: 4.257 | ET13: 4.344 | EV13: Result Below 6.000 µm | EX13: 5.387 | EY13: 5.86 | EZ13: 5.322
A14: Result 6.00µm-63.00µm | C14: 17.577 | D14: 16.186 | E14: 13.162 | G14: Result 6.00µm-63.00µm | I14: 21.808 | J14: 24.237 | K14: 22.867 | M14: Result 6.00µm-63.00µm | O14: 44.199 | P14: 44.01 | Q14: 43.561 | T14: Result 6.00µm-63.00µm | V14: 17.254 | W14: 18.589 | X14: 18.516 | Z14: Result 6.00µm-63.00µm | AB14: 55.12 | AC14: 54.853 | AD14: 55.638 | AF14: Result 6.00µm-63.00µm | AH14: 16.152 | AI14: 15.836 | AJ14: 16.278 | AL14: Result 6.00µm-63.00µm | AN14: 21.626 | AO14: 22.551 | AP14: 24.779 | AR14: Result 6.00µm-63.00µm | AT14: 23.087 | AU14: 27.008 | AV14: 25.259 | AX14: Result 6.00µm-63.00µm | AZ14: 16.939 | BA14: 15.819 | BB14: 17.016 | BD14: Result 6.00µm-63.00µm | BF14: 58.909 | BG14: 58.655 | BH14: 58.369 | BJ14: Result 6.00µm-63.00µm | BL14: 13.593 | BM14: 12.572 | BN14: 12.122 | BP14: Result 6.00µm-63.00µm | BR14: 0.788 | BS14: 2.214 | BT14: 0 | BV14: Result 6.00µm-63.00µm | BX14: 12.602 | BY14: 12.226 | BZ14: 13.67 | CB14: Result 6.00µm-63.00µm | CD14: 0.484 | CE14: 1.011 | CF14: 1.084 | CH14: Result 6.00µm-63.00µm | CJ14: 9.63 | CK14: 9.402 | CL14: 8.717 | CN14: Result 6.00µm-63.00µm | CP14: 1.932 | CQ14: 2.065 | CR14: 1.949 | CT14: Result 6.00µm-63.00µm | CV14: 8.051 | CW14: 7.916 | CX14: 8.479 | CZ14: Result 6.00µm-63.00µm | DB14: 11.677 | DC14: 11.41 | DD14: 13.455 | DF14: Result 6.00µm-63.00µm | DH14: 7.612 | DI14: 10.922 | DJ14: 10.578 | DL14: Result 6.00µm-63.00µm | DN14: 9.883 | DO14: 10.047 | DP14: 10.716 | DR14: Result 6.00µm-63.00µm | DT14: 6.082 | DU14: 5.857 | DV14: 6.808 | DX14: Result 6.00µm-63.00µm | DZ14: 10.909 | EA14: 11.764 | EB14: 10.537 | ED14: Result 6.00µm-63.00µm | EF14: 32.626 | EG14: 31.495 | EH14: 33.828 | EJ14: Result 6.00µm-63.00µm | EL14: 16.609 | EM14: 16.219 | EN14: 13.578 | EP14: Result 6.00µm-63.00µm | ER14: 8.496 | ES14: 9.178 | ET14: 8.742 | EV14: Result 6.00µm-63.00µm | EX14: 25.083 | EY14: 27.373 | EZ14: 24.926
A15: Result 63.00µm-2000.00µm | C15: 77.596 | D15: 79.456 | E15: 83.231 | G15: Result 63.00µm-2000.00µm | I15: 65.826 | J15: 61.622 | K15: 63.991 | M15: Result 63.00µm-2000.00µm | O15: 43.859 | P15: 44.122 | Q15: 44.253 | T15: Result 63.00µm-2000.00µm | V15: 74.427 | W15: 72.612 | X15: 72.669 | Z15: Result 63.00µm-2000.00µm | AB15: 37.185 | AC15: 37.518 | AD15: 36.778 | AF15: Result 63.00µm-2000.00µm | AH15: 76.412 | AI15: 77.189 | AJ15: 76.539 | AL15: Result 63.00µm-2000.00µm | AN15: 73.172 | AO15: 71.647 | AP15: 68.989 | AR15: Result 63.00µm-2000.00µm | AT15: 70.581 | AU15: 65.105 | AV15: 67.495 | AX15: Result 63.00µm-2000.00µm | AZ15: 76.728 | BA15: 78.266 | BB15: 76.775 | BD15: Result 63.00µm-2000.00µm | BF15: 30.259 | BG15: 30.58 | BH15: 30.993 | BJ15: Result 63.00µm-2000.00µm | BL15: 80.385 | BM15: 81.782 | BN15: 82.407 | BP15: Result 63.00µm-2000.00µm | BR15: 98.725 | BS15: 96.517 | BT15: 100 | BV15: Result 63.00µm-2000.00µm | BX15: 83.696 | BY15: 84.166 | BZ15: 82.298 | CB15: Result 63.00µm-2000.00µm | CD15: 99.436 | CE15: 98.521 | CF15: 98.419 | CH15: Result 63.00µm-2000.00µm | CJ15: 88.439 | CK15: 88.603 | CL15: 89.632 | CN15: Result 63.00µm-2000.00µm | CP15: 97.607 | CQ15: 97.41 | CR15: 97.412 | CT15: Result 63.00µm-2000.00µm | CV15: 89.874 | CW15: 90.355 | CX15: 89.585 | CZ15: Result 63.00µm-2000.00µm | DB15: 85.638 | DC15: 85.984 | DD15: 83.079 | DF15: Result 63.00µm-2000.00µm | DH15: 90.181 | DI15: 85.755 | DJ15: 86.224 | DL15: Result 63.00µm-2000.00µm | DN15: 87.23 | DO15: 86.992 | DP15: 86.758 | DR15: Result 63.00µm-2000.00µm | DT15: 91.022 | DU15: 91.456 | DV15: 90.053 | DX15: Result 63.00µm-2000.00µm | DZ15: 85.439 | EA15: 84.263 | EB15: 86.003 | ED15: Result 63.00µm-2000.00µm | EF15: 57.674 | EG15: 59.311 | EH15: 56.106 | EJ15: Result 63.00µm-2000.00µm | EL15: 78.093 | EM15: 78.668 | EN15: 82.195 | EP15: Result 63.00µm-2000.00µm | ER15: 88.043 | ES15: 86.565 | ET15: 86.914 | EV15: Result 63.00µm-2000.00µm | EX15: 69.531 | EY15: 66.767 | EZ15: 69.752
A16: Result 63.00µm-125.00µm | C16: 18.366 | D16: 17.417 | E16: 15.138 | G16: Result 63.00µm-125.00µm | I16: 22.163 | J16: 24.397 | K16: 23.122 | M16: Result 63.00µm-125.00µm | O16: 25.039 | P16: 25.167 | Q16: 25.425 | T16: Result 63.00µm-125.00µm | V16: 15.526 | W16: 17.713 | X16: 17.326 | Z16: Result 63.00µm-125.00µm | AB16: 25.5 | AC16: 25.351 | AD16: 25.421 | AF16: Result 63.00µm-125.00µm | AH16: 28.345 | AI16: 27.864 | AJ16: 28.602 | AL16: Result 63.00µm-125.00µm | AN16: 27.329 | AO16: 26.886 | AP16: 27.67 | AR16: Result 63.00µm-125.00µm | AT16: 19.719 | AU16: 21.618 | AV16: 20.374 | AX16: Result 63.00µm-125.00µm | AZ16: 17.007 | BA16: 15.888 | BB16: 15.763 | BD16: Result 63.00µm-125.00µm | BF16: 20.583 | BG16: 20.785 | BH16: 20.43 | BJ16: Result 63.00µm-125.00µm | BL16: 16.13 | BM16: 16.83 | BN16: 16.655 | BP16: Result 63.00µm-125.00µm | BR16: 3.425 | BS16: 3.36 | BT16: 2.003 | BV16: Result 63.00µm-125.00µm | BX16: 38.146 | BY16: 37.907 | BZ16: 38.64 | CB16: Result 63.00µm-125.00µm | CD16: 3.991 | CE16: 4.989 | CF16: 5.016 | CH16: Result 63.00µm-125.00µm | CJ16: 25.683 | CK16: 25.817 | CL16: 24.927 | CN16: Result 63.00µm-125.00µm | CP16: 12.665 | CQ16: 14.098 | CR16: 13.297 | CT16: Result 63.00µm-125.00µm | CV16: 26.228 | CW16: 23.702 | CX16: 25.592 | CZ16: Result 63.00µm-125.00µm | DB16: 23.305 | DC16: 22.93 | DD16: 24.304 | DF16: Result 63.00µm-125.00µm | DH16: 21.316 | DI16: 23.208 | DJ16: 22.687 | DL16: Result 63.00µm-125.00µm | DN16: 19.482 | DO16: 19.257 | DP16: 20.688 | DR16: Result 63.00µm-125.00µm | DT16: 19.893 | DU16: 17.308 | DV16: 19.794 | DX16: Result 63.00µm-125.00µm | DZ16: 24.809 | EA16: 27.24 | EB16: 24.917 | ED16: Result 63.00µm-125.00µm | EF16: 28.841 | EG16: 28.61 | EH16: 30.644 | EJ16: Result 63.00µm-125.00µm | EL16: 28.621 | EM16: 28.052 | EN16: 26.278 | EP16: Result 63.00µm-125.00µm | ER16: 20.049 | ES16: 19.643 | ET16: 19.912 | EV16: Result 63.00µm-125.00µm | EX16: 30.279 | EY16: 32.96 | EZ16: 30.69
A17: Result 125.00µm-250.00µm | C17: 21.328 | D17: 21.144 | E17: 21.051 | G17: Result 125.00µm-250.00µm | I17: 27.961 | J17: 26.575 | K17: 26.509 | M17: Result 125.00µm-250.00µm | O17: 14.76 | P17: 14.634 | Q17: 15.556 | T17: Result 125.00µm-250.00µm | V17: 31.171 | W17: 30.552 | X17: 31.001 | Z17: Result 125.00µm-250.00µm | AB17: 9.106 | AC17: 9.068 | AD17: 8.648 | AF17: Result 125.00µm-250.00µm | AH17: 28.725 | AI17: 28.859 | AJ17: 29.579 | AL17: Result 125.00µm-250.00µm | AN17: 28.917 | AO17: 27.151 | AP17: 26.088 | AR17: Result 125.00µm-250.00µm | AT17: 23.97 | AU17: 24.791 | AV17: 23.417 | AX17: Result 125.00µm-250.00µm | AZ17: 26.745 | BA17: 26.262 | BB17: 26.605 | BD17: Result 125.00µm-250.00µm | BF17: 7.724 | BG17: 8.079 | BH17: 7.941 | BJ17: Result 125.00µm-250.00µm | BL17: 32.082 | BM17: 36.588 | BN17: 35.616 | BP17: Result 125.00µm-250.00µm | BR17: 45.541 | BS17: 43.072 | BT17: 42.887 | BV17: Result 125.00µm-250.00µm | BX17: 40.542 | BY17: 40.989 | BZ17: 39.188 | CB17: Result 125.00µm-250.00µm | CD17: 23.306 | CE17: 25.331 | CF17: 24.029 | CH17: Result 125.00µm-250.00µm | CJ17: 42.063 | CK17: 41.505 | CL17: 41.323 | CN17: Result 125.00µm-250.00µm | CP17: 31.931 | CQ17: 35.823 | CR17: 34.393 | CT17: Result 125.00µm-250.00µm | CV17: 28.954 | CW17: 25.689 | CX17: 28.008 | CZ17: Result 125.00µm-250.00µm | DB17: 29.517 | DC17: 28.247 | DD17: 27.911 | DF17: Result 125.00µm-250.00µm | DH17: 28.33 | DI17: 29.121 | DJ17: 27.273 | DL17: Result 125.00µm-250.00µm | DN17: 35.93 | DO17: 33.791 | DP17: 31.697 | DR17: Result 125.00µm-250.00µm | DT17: 34.668 | DU17: 30.055 | DV17: 34.571 | DX17: Result 125.00µm-250.00µm | DZ17: 30.527 | EA17: 34.455 | EB17: 32.548 | ED17: Result 125.00µm-250.00µm | EF17: 21.061 | EG17: 19.716 | EH17: 20.934 | EJ17: Result 125.00µm-250.00µm | EL17: 32.708 | EM17: 32.523 | EN17: 33.381 | EP17: Result 125.00µm-250.00µm | ER17: 30.156 | ES17: 29.281 | ET17: 30.79 | EV17: Result 125.00µm-250.00µm | EX17: 21.99 | EY17: 23.673 | EZ17: 22.168
A18: Result 250.00µm-500.00µm | C18: 15.826 | D18: 18.03 | E18: 19.264 | G18: Result 250.00µm-500.00µm | I18: 13.952 | J18: 10.127 | K18: 12.217 | M18: Result 250.00µm-500.00µm | O18: 3.424 | P18: 3.563 | Q18: 3.273 | T18: Result 250.00µm-500.00µm | V18: 25.414 | W18: 21.895 | X18: 22.649 | Z18: Result 250.00µm-500.00µm | AB18: 1.792 | AC18: 1.736 | AD18: 1.496 | AF18: Result 250.00µm-500.00µm | AH18: 13.644 | AI18: 13.469 | AJ18: 12.653 | AL18: Result 250.00µm-500.00µm | AN18: 12.914 | AO18: 12.73 | AP18: 9.838 | AR18: Result 250.00µm-500.00µm | AT18: 20.088 | AU18: 16.443 | AV18: 18.197 | AX18: Result 250.00µm-500.00µm | AZ18: 25.584 | BA18: 27.665 | BB18: 28.749 | BD18: Result 250.00µm-500.00µm | BF18: 1.78 | BG18: 1.624 | BH18: 2.111 | BJ18: Result 250.00µm-500.00µm | BL18: 24.148 | BM18: 26.515 | BN18: 26.682 | BP18: Result 250.00µm-500.00µm | BR18: 47.281 | BS18: 47.483 | BT18: 51.741 | BV18: Result 250.00µm-500.00µm | BX18: 5.008 | BY18: 5.271 | BZ18: 4.469 | CB18: Result 250.00µm-500.00µm | CD18: 52.017 | CE18: 48.615 | CF18: 49.002 | CH18: Result 250.00µm-500.00µm | CJ18: 19.952 | CK18: 19.1 | CL18: 20.34 | CN18: Result 250.00µm-500.00µm | CP18: 27.483 | CQ18: 29.809 | CR18: 28.481 | CT18: Result 250.00µm-500.00µm | CV18: 9.285 | CW18: 8.358 | CX18: 10.698 | CZ18: Result 250.00µm-500.00µm | DB18: 15.742 | DC18: 16.989 | DD18: 14.377 | DF18: Result 250.00µm-500.00µm | DH18: 15.471 | DI18: 15.817 | DJ18: 15.099 | DL18: Result 250.00µm-500.00µm | DN18: 26.441 | DO18: 24.754 | DP18: 24.327 | DR18: Result 250.00µm-500.00µm | DT18: 26.434 | DU18: 26.13 | DV18: 26.766 | DX18: Result 250.00µm-500.00µm | DZ18: 13.777 | EA18: 16.804 | EB18: 15.866 | ED18: Result 250.00µm-500.00µm | EF18: 6.339 | EG18: 5.126 | EH18: 3.768 | EJ18: Result 250.00µm-500.00µm | EL18: 14.492 | EM18: 16.005 | EN18: 18.819 | EP18: Result 250.00µm-500.00µm | ER18: 21.222 | ES18: 21.877 | ET18: 19.362 | EV18: Result 250.00µm-500.00µm | EX18: 7.9 | EY18: 6.755 | EZ18: 8.816
A19: Result 500.00µm-1000.00µm | C19: 14.632 | D19: 16.06 | E19: 19.05 | G19: Result 500.00µm-1000.00µm | I19: 1.246 | J19: 0.523 | K19: 2.114 | M19: Result 500.00µm-1000.00µm | O19: 0.637 | P19: 0.715 | Q19: 0 | T19: Result 500.00µm-1000.00µm | V19: 2.317 | W19: 2.452 | X19: 1.694 | Z19: Result 500.00µm-1000.00µm | AB19: 0.786 | AC19: 0.982 | AD19: 0.72 | AF19: Result 500.00µm-1000.00µm | AH19: 5.384 | AI19: 5.91 | AJ19: 4.359 | AL19: Result 500.00µm-1000.00µm | AN19: 3.475 | AO19: 4.444 | AP19: 3.566 | AR19: Result 500.00µm-1000.00µm | AT19: 6.665 | AU19: 2.252 | AV19: 5.402 | AX19: Result 500.00µm-1000.00µm | AZ19: 7.392 | BA19: 8.45 | BB19: 5.658 | BD19: Result 500.00µm-1000.00µm | BF19: 0.172 | BG19: 0.092 | BH19: 0.511 | BJ19: Result 500.00µm-1000.00µm | BL19: 5.969 | BM19: 1.849 | BN19: 3.436 | BP19: Result 500.00µm-1000.00µm | BR19: 2.478 | BS19: 2.602 | BT19: 3.369 | BV19: Result 500.00µm-1000.00µm | BX19: 0 | BY19: 0 | BZ19: 0 | CB19: Result 500.00µm-1000.00µm | CD19: 20.123 | CE19: 19.546 | CF19: 20.373 | CH19: Result 500.00µm-1000.00µm | CJ19: 0.741 | CK19: 1.671 | CL19: 2.544 | CN19: Result 500.00µm-1000.00µm | CP19: 18.985 | CQ19: 15.169 | CR19: 16.933 | CT19: Result 500.00µm-1000.00µm | CV19: 15.507 | CW19: 18.54 | CX19: 16.324 | CZ19: Result 500.00µm-1000.00µm | DB19: 10.403 | DC19: 12.825 | DD19: 11.338 | DF19: Result 500.00µm-1000.00µm | DH19: 14.735 | DI19: 10.861 | DJ19: 13.225 | DL19: Result 500.00µm-1000.00µm | DN19: 5.216 | DO19: 7.416 | DP19: 7.891 | DR19: Result 500.00µm-1000.00µm | DT19: 9.915 | DU19: 15.705 | DV19: 8.597 | DX19: Result 500.00µm-1000.00µm | DZ19: 9.748 | EA19: 5.272 | EB19: 8.496 | ED19: Result 500.00µm-1000.00µm | EF19: 1.424 | EG19: 3.974 | EH19: 0.639 | EJ19: Result 500.00µm-1000.00µm | EL19: 2.248 | EM19: 2.088 | EN19: 3.664 | EP19: Result 500.00µm-1000.00µm | ER19: 11.475 | ES19: 12.909 | ET19: 11.695 | EV19: Result 500.00µm-1000.00µm | EX19: 5.736 | EY19: 2.736 | EZ19: 6.843 | FE19: project runing numbers
A20: Result 1000.00µm-2000.00µm | C20: 7.444 | D20: 6.805 | E20: 8.728 | G20: Result 1000.00µm-2000.00µm | I20: 0.504 | J20: 0 | K20: 0.03 | M20: Result 1000.00µm-2000.00µm | O20: 0 | P20: 0.043 | Q20: 0 | T20: Result 1000.00µm-2000.00µm | V20: 0 | W20: 0 | X20: 0 | Z20: Result 1000.00µm-2000.00µm | AB20: 0 | AC20: 0.38 | AD20: 0.493 | AF20: Result 1000.00µm-2000.00µm | AH20: 0.314 | AI20: 1.087 | AJ20: 1.346 | AL20: Result 1000.00µm-2000.00µm | AN20: 0.536 | AO20: 0.436 | AP20: 1.827 | AR20: Result 1000.00µm-2000.00µm | AT20: 0.139 | AU20: 0 | AV20: 0.104 | AX20: Result 1000.00µm-2000.00µm | AZ20: 0 | BA20: 0 | BB20: 0 | BD20: Result 1000.00µm-2000.00µm | BF20: 0 | BG20: 0 | BH20: 0 | BJ20: Result 1000.00µm-2000.00µm | BL20: 2.056 | BM20: 0 | BN20: 0.019 | BP20: Result 1000.00µm-2000.00µm | BR20: 0 | BS20: 0 | BT20: 0 | BV20: Result 1000.00µm-2000.00µm | BX20: 0 | BY20: 0 | BZ20: 0 | CB20: Result 1000.00µm-2000.00µm | CD20: 0 | CE20: 0.04 | CF20: 0 | CH20: Result 1000.00µm-2000.00µm | CJ20: 0 | CK20: 0.51 | CL20: 0.498 | CN20: Result 1000.00µm-2000.00µm | CP20: 6.544 | CQ20: 2.511 | CR20: 4.307 | CT20: Result 1000.00µm-2000.00µm | CV20: 9.901 | CW20: 14.066 | CX20: 8.964 | CZ20: Result 1000.00µm-2000.00µm | DB20: 6.671 | DC20: 4.993 | DD20: 5.148 | DF20: Result 1000.00µm-2000.00µm | DH20: 10.329 | DI20: 6.747 | DJ20: 7.94 | DL20: Result 1000.00µm-2000.00µm | DN20: 0.162 | DO20: 1.774 | DP20: 2.154 | DR20: Result 1000.00µm-2000.00µm | DT20: 0.113 | DU20: 2.257 | DV20: 0.325 | DX20: Result 1000.00µm-2000.00µm | DZ20: 6.578 | EA20: 0.493 | EB20: 4.175 | ED20: Result 1000.00µm-2000.00µm | EF20: 0.009 | EG20: 1.887 | EH20: 0.12 | EJ20: Result 1000.00µm-2000.00µm | EL20: 0.024 | EM20: 0 | EN20: 0.053 | EP20: Result 1000.00µm-2000.00µm | ER20: 5.14 | ES20: 2.854 | ET20: 5.155 | EV20: Result 1000.00µm-2000.00µm | EX20: 3.626 | EY20: 0.642 | EZ20: 1.235
A21: Result Between User Sizes (Sizes in um) | B21: 0.01 | G21: Result Between User Sizes (Sizes in um) | H21: 0.01 | M21: Result Between User Sizes (Sizes in um) | N21: 0.01 | T21: Result Between User Sizes (Sizes in um) | U21: 0.01 | Z21: Result Between User Sizes (Sizes in um) | AA21: 0.01 | AF21: Result Between User Sizes (Sizes in um) | AG21: 0.01 | AL21: Result Between User Sizes (Sizes in um) | AM21: 0.01 | AR21: Result Between User Sizes (Sizes in um) | AS21: 0.01 | AX21: Result Between User Sizes (Sizes in um) | AY21: 0.01 | BD21: Result Between User Sizes (Sizes in um) | BE21: 0.01 | BJ21: Result Between User Sizes (Sizes in um) | BK21: 0.01 | BP21: Result Between User Sizes (Sizes in um) | BQ21: 0.01 | BV21: Result Between User Sizes (Sizes in um) | BW21: 0.01 | CB21: Result Between User Sizes (Sizes in um) | CC21: 0.01 | CH21: Result Between User Sizes (Sizes in um) | CI21: 0.01 | CN21: Result Between User Sizes (Sizes in um) | CO21: 0.01 | CT21: Result Between User Sizes (Sizes in um) | CU21: 0.01 | CZ21: Result Between User Sizes (Sizes in um) | DA21: 0.01 | DF21: Result Between User Sizes (Sizes in um) | DG21: 0.01 | DL21: Result Between User Sizes (Sizes in um) | DM21: 0.01 | DR21: Result Between User Sizes (Sizes in um) | DS21: 0.01 | DX21: Result Between User Sizes (Sizes in um) | DY21: 0.01 | ED21: Result Between User Sizes (Sizes in um) | EE21: 0.01 | EJ21: Result Between User Sizes (Sizes in um) | EK21: 0.01 | EP21: Result Between User Sizes (Sizes in um) | EQ21: 0.01 | EV21: Result Between User Sizes (Sizes in um) | EW21: 0.01 | FB21: Result Between User Sizes (Sizes in um) | FC21: 3768 | FD21: 3769 | FE21: 3770 | FF21: 3771 | FG21: 3772 | FH21: 3773 | FI21: 3774 | FJ21: 3775 | FK21: 3776 | FL21: 3777 | FM21: 3778 | FN21: 3779 | FO21: 3780 | FP21: 3781 | FQ21: 3782 | FR21: 3783 | FS21: 3784 | FT21: 3785 | FU21: 3786 | FV21: 3787 | FW21: 3788 | FX21: 3789 | FY21: 3790 | FZ21: 3791 | GA21: 3792 | GB21: 3793
B22: 0.011482 | C22: 0 | D22: 0 | E22: 0 | H22: 0.011482 | I22: 0 | J22: 0 | K22: 0 | N22: 0.011482 | O22: 0 | P22: 0 | Q22: 0 | U22: 0.011482 | V22: 0 | W22: 0 | X22: 0 | AA22: 0.011482 | AB22: 0 | AC22: 0 | AD22: 0 | AG22: 0.011482 | AH22: 0 | AI22: 0 | AJ22: 0 | AM22: 0.011482 | AN22: 0 | AO22: 0 | AP22: 0 | AS22: 0.011482 | AT22: 0 | AU22: 0 | AV22: 0 | AY22: 0.011482 | AZ22: 0 | BA22: 0 | BB22: 0 | BE22: 0.011482 | BF22: 0 | BG22: 0 | BH22: 0 | BK22: 0.011482 | BL22: 0 | BM22: 0 | BN22: 0 | BQ22: 0.011482 | BR22: 0 | BS22: 0 | BT22: 0 | BW22: 0.011482 | BX22: 0 | BY22: 0 | BZ22: 0 | CC22: 0.011482 | CD22: 0 | CE22: 0 | CF22: 0 | CI22: 0.011482 | CJ22: 0 | CK22: 0 | CL22: 0 | CO22: 0.011482 | CP22: 0 | CQ22: 0 | CR22: 0 | CU22: 0.011482 | CV22: 0 | CW22: 0 | CX22: 0 | DA22: 0.011482 | DB22: 0 | DC22: 0 | DD22: 0 | DG22: 0.011482 | DH22: 0 | DI22: 0 | DJ22: 0 | DM22: 0.011482 | DN22: 0 | DO22: 0 | DP22: 0 | DS22: 0.011482 | DT22: 0 | DU22: 0 | DV22: 0 | DY22: 0.011482 | DZ22: 0 | EA22: 0 | EB22: 0 | EE22: 0.011482 | EF22: 0 | EG22: 0 | EH22: 0 | EK22: 0.011482 | EL22: 0 | EM22: 0 | EN22: 0 | EQ22: 0.011482 | ER22: 0 | ES22: 0 | ET22: 0 | EW22: 0.011482 | EX22: 0 | EY22: 0 | EZ22: 0 | FB22: 0.011482 | FC22: =AVERAGE(C22:E22) -> 0 | FD22: =AVERAGE(I22:K22) -> 0 | FE22: =AVERAGE(O22:Q22) -> 0 | FF22: =AVERAGE(V22:X22) -> 0 | FG22: =AVERAGE(AB22:AD22) -> 0 | FH22: =AVERAGE(AH22:AJ22) -> 0 | FI22: =AVERAGE(AN22:AP22) -> 0 | FJ22: =AVERAGE(AT22:AV22) -> 0 | FK22: =AVERAGE(AZ22:BB22) -> 0 | FL22: =AVERAGE(BF22:BH22) -> 0 | FM22: =AVERAGE(BL22:BN22) -> 0 | FN22: =AVERAGE(BR22:BT22) -> 0 | FO22: =AVERAGE(BX22:BZ22) -> 0 | FP22: =AVERAGE(CD22:CF22) -> 0 | FQ22: =AVERAGE(CJ22:CL22) -> 0 | FR22: =AVERAGE(CP22:CR22) -> 0 | FS22: =AVERAGE(CV22:CX22) -> 0 | FT22: =AVERAGE(DB22:DD22) -> 0 | FU22: =AVERAGE(DH22:DJ22) -> 0 | FV22: =AVERAGE(DN22:DP22) -> 0 | FW22: =AVERAGE(DT22:DV22) -> 0 | FX22: =AVERAGE(DZ22:EB22) -> 0 | FY22: =AVERAGE(EF22:EH22) -> 0 | FZ22: =AVERAGE(EL22:EN22) -> 0 | GA22: =AVERAGE(ER22:ET22) -> 0 | GB22: =AVERAGE(EX22:EZ22) -> 0
B23: 0.013183 | C23: 0 | D23: 0 | E23: 0 | H23: 0.013183 | I23: 0 | J23: 0 | K23: 0 | N23: 0.013183 | O23: 0 | P23: 0 | Q23: 0 | U23: 0.013183 | V23: 0 | W23: 0 | X23: 0 | AA23: 0.013183 | AB23: 0 | AC23: 0 | AD23: 0 | AG23: 0.013183 | AH23: 0 | AI23: 0 | AJ23: 0 | AM23: 0.013183 | AN23: 0 | AO23: 0 | AP23: 0 | AS23: 0.013183 | AT23: 0 | AU23: 0 | AV23: 0 | AY23: 0.013183 | AZ23: 0 | BA23: 0 | BB23: 0 | BE23: 0.013183 | BF23: 0 | BG23: 0 | BH23: 0 | BK23: 0.013183 | BL23: 0 | BM23: 0 | BN23: 0 | BQ23: 0.013183 | BR23: 0 | BS23: 0 | BT23: 0 | BW23: 0.013183 | BX23: 0 | BY23: 0 | BZ23: 0 | CC23: 0.013183 | CD23: 0 | CE23: 0 | CF23: 0 | CI23: 0.013183 | CJ23: 0 | CK23: 0 | CL23: 0 | CO23: 0.013183 | CP23: 0 | CQ23: 0 | CR23: 0 | CU23: 0.013183 | CV23: 0 | CW23: 0 | CX23: 0 | DA23: 0.013183 | DB23: 0 | DC23: 0 | DD23: 0 | DG23: 0.013183 | DH23: 0 | DI23: 0 | DJ23: 0 | DM23: 0.013183 | DN23: 0 | DO23: 0 | DP23: 0 | DS23: 0.013183 | DT23: 0 | DU23: 0 | DV23: 0 | DY23: 0.013183 | DZ23: 0 | EA23: 0 | EB23: 0 | EE23: 0.013183 | EF23: 0 | EG23: 0 | EH23: 0 | EK23: 0.013183 | EL23: 0 | EM23: 0 | EN23: 0 | EQ23: 0.013183 | ER23: 0 | ES23: 0 | ET23: 0 | EW23: 0.013183 | EX23: 0 | EY23: 0 | EZ23: 0 | FB23: 0.013183 | FC23: =AVERAGE(C23:E23) -> 0 | FD23: =AVERAGE(I23:K23) -> 0 | FE23: =AVERAGE(O23:Q23) -> 0 | FF23: =AVERAGE(V23:X23) -> 0 | FG23: =AVERAGE(AB23:AD23) -> 0 | FH23: =AVERAGE(AH23:AJ23) -> 0 | FI23: =AVERAGE(AN23:AP23) -> 0 | FJ23: =AVERAGE(AT23:AV23) -> 0 | FK23: =AVERAGE(AZ23:BB23) -> 0 | FL23: =AVERAGE(BF23:BH23) -> 0 | FM23: =AVERAGE(BL23:BN23) -> 0 | FN23: =AVERAGE(BR23:BT23) -> 0 | FO23: =AVERAGE(BX23:BZ23) -> 0 | FP23: =AVERAGE(CD23:CF23) -> 0 | FQ23: =AVERAGE(CJ23:CL23) -> 0 | FR23: =AVERAGE(CP23:CR23) -> 0 | FS23: =AVERAGE(CV23:CX23) -> 0 | FT23: =AVERAGE(DB23:DD23) -> 0 | FU23: =AVERAGE(DH23:DJ23) -> 0 | FV23: =AVERAGE(DN23:DP23) -> 0 | FW23: =AVERAGE(DT23:DV23) -> 0 | FX23: =AVERAGE(DZ23:EB23) -> 0 | FY23: =AVERAGE(EF23:EH23) -> 0 | FZ23: =AVERAGE(EL23:EN23) -> 0 | GA23: =AVERAGE(ER23:ET23) -> 0 | GB23: =AVERAGE(EX23:EZ23) -> 0
B24: 0.015136 | C24: 0 | D24: 0 | E24: 0 | H24: 0.015136 | I24: 0 | J24: 0 | K24: 0 | N24: 0.015136 | O24: 0 | P24: 0 | Q24: 0 | U24: 0.015136 | V24: 0 | W24: 0 | X24: 0 | AA24: 0.015136 | AB24: 0 | AC24: 0 | AD24: 0 | AG24: 0.015136 | AH24: 0 | AI24: 0 | AJ24: 0 | AM24: 0.015136 | AN24: 0 | AO24: 0 | AP24: 0 | AS24: 0.015136 | AT24: 0 | AU24: 0 | AV24: 0 | AY24: 0.015136 | AZ24: 0 | BA24: 0 | BB24: 0 | BE24: 0.015136 | BF24: 0 | BG24: 0 | BH24: 0 | BK24: 0.015136 | BL24: 0 | BM24: 0 | BN24: 0 | BQ24: 0.015136 | BR24: 0 | BS24: 0 | BT24: 0 | BW24: 0.015136 | BX24: 0 | BY24: 0 | BZ24: 0 | CC24: 0.015136 | CD24: 0 | CE24: 0 | CF24: 0 | CI24: 0.015136 | CJ24: 0 | CK24: 0 | CL24: 0 | CO24: 0.015136 | CP24: 0 | CQ24: 0 | CR24: 0 | CU24: 0.015136 | CV24: 0 | CW24: 0 | CX24: 0 | DA24: 0.015136 | DB24: 0 | DC24: 0 | DD24: 0 | DG24: 0.015136 | DH24: 0 | DI24: 0 | DJ24: 0 | DM24: 0.015136 | DN24: 0 | DO24: 0 | DP24: 0 | DS24: 0.015136 | DT24: 0 | DU24: 0 | DV24: 0 | DY24: 0.015136 | DZ24: 0 | EA24: 0 | EB24: 0 | EE24: 0.015136 | EF24: 0 | EG24: 0 | EH24: 0 | EK24: 0.015136 | EL24: 0 | EM24: 0 | EN24: 0 | EQ24: 0.015136 | ER24: 0 | ES24: 0 | ET24: 0 | EW24: 0.015136 | EX24: 0 | EY24: 0 | EZ24: 0 | FB24: 0.015136 | FC24: 0 | FD24: 0 | FE24: 0 | FF24: 0 | FG24: 0 | FH24: 0 | FI24: 0 | FJ24: 0 | FK24: 0 | FL24: 0 | FM24: 0 | FN24: 0 | FO24: 0 | FP24: 0 | FQ24: 0 | FR24: 0 | FS24: 0 | FT24: 0 | FU24: 0 | FV24: =AVERAGE(DN24:DP24) -> 0 | FW24: 0 | FX24: 0 | FY24: 0 | FZ24: 0 | GA24: 0 | GB24: 0
B25: 0.017378 | C25: 0 | D25: 0 | E25: 0 | H25: 0.017378 | I25: 0 | J25: 0 | K25: 0 | N25: 0.017378 | O25: 0 | P25: 0 | Q25: 0 | U25: 0.017378 | V25: 0 | W25: 0 | X25: 0 | AA25: 0.017378 | AB25: 0 | AC25: 0 | AD25: 0 | AG25: 0.017378 | AH25: 0 | AI25: 0 | AJ25: 0 | AM25: 0.017378 | AN25: 0 | AO25: 0 | AP25: 0 | AS25: 0.017378 | AT25: 0 | AU25: 0 | AV25: 0 | AY25: 0.017378 | AZ25: 0 | BA25: 0 | BB25: 0 | BE25: 0.017378 | BF25: 0 | BG25: 0 | BH25: 0 | BK25: 0.017378 | BL25: 0 | BM25: 0 | BN25: 0 | BQ25: 0.017378 | BR25: 0 | BS25: 0 | BT25: 0 | BW25: 0.017378 | BX25: 0 | BY25: 0 | BZ25: 0 | CC25: 0.017378 | CD25: 0 | CE25: 0 | CF25: 0 | CI25: 0.017378 | CJ25: 0 | CK25: 0 | CL25: 0 | CO25: 0.017378 | CP25: 0 | CQ25: 0 | CR25: 0 | CU25: 0.017378 | CV25: 0 | CW25: 0 | CX25: 0 | DA25: 0.017378 | DB25: 0 | DC25: 0 | DD25: 0 | DG25: 0.017378 | DH25: 0 | DI25: 0 | DJ25: 0 | DM25: 0.017378 | DN25: 0 | DO25: 0 | DP25: 0 | DS25: 0.017378 | DT25: 0 | DU25: 0 | DV25: 0 | DY25: 0.017378 | DZ25: 0 | EA25: 0 | EB25: 0 | EE25: 0.017378 | EF25: 0 | EG25: 0 | EH25: 0 | EK25: 0.017378 | EL25: 0 | EM25: 0 | EN25: 0 | EQ25: 0.017378 | ER25: 0 | ES25: 0 | ET25: 0 | EW25: 0.017378 | EX25: 0 | EY25: 0 | EZ25: 0 | FB25: 0.017378 | FC25: 0 | FD25: 0 | FE25: 0 | FF25: 0 | FG25: 0 | FH25: 0 | FI25: 0 | FJ25: 0 | FK25: 0 | FL25: 0 | FM25: 0 | FN25: 0 | FO25: 0 | FP25: 0 | FQ25: 0 | FR25: 0 | FS25: 0 | FT25: 0 | FU25: 0 | FV25: 0 | FW25: 0 | FX25: 0 | FY25: 0 | FZ25: 0 | GA25: 0 | GB25: 0
B26: 0.019953 | C26: 0 | D26: 0 | E26: 0 | H26: 0.019953 | I26: 0 | J26: 0 | K26: 0 | N26: 0.019953 | O26: 0 | P26: 0 | Q26: 0 | U26: 0.019953 | V26: 0 | W26: 0 | X26: 0 | AA26: 0.019953 | AB26: 0 | AC26: 0 | AD26: 0 | AG26: 0.019953 | AH26: 0 | AI26: 0 | AJ26: 0 | AM26: 0.019953 | AN26: 0 | AO26: 0 | AP26: 0 | AS26: 0.019953 | AT26: 0 | AU26: 0 | AV26: 0 | AY26: 0.019953 | AZ26: 0 | BA26: 0 | BB26: 0 | BE26: 0.019953 | BF26: 0 | BG26: 0 | BH26: 0 | BK26: 0.019953 | BL26: 0 | BM26: 0 | BN26: 0 | BQ26: 0.019953 | BR26: 0 | BS26: 0 | BT26: 0 | BW26: 0.019953 | BX26: 0 | BY26: 0 | BZ26: 0 | CC26: 0.019953 | CD26: 0 | CE26: 0 | CF26: 0 | CI26: 0.019953 | CJ26: 0 | CK26: 0 | CL26: 0 | CO26: 0.019953 | CP26: 0 | CQ26: 0 | CR26: 0 | CU26: 0.019953 | CV26: 0 | CW26: 0 | CX26: 0 | DA26: 0.019953 | DB26: 0 | DC26: 0 | DD26: 0 | DG26: 0.019953 | DH26: 0 | DI26: 0 | DJ26: 0 | DM26: 0.019953 | DN26: 0 | DO26: 0 | DP26: 0 | DS26: 0.019953 | DT26: 0 | DU26: 0 | DV26: 0 | DY26: 0.019953 | DZ26: 0 | EA26: 0 | EB26: 0 | EE26: 0.019953 | EF26: 0 | EG26: 0 | EH26: 0 | EK26: 0.019953 | EL26: 0 | EM26: 0 | EN26: 0 | EQ26: 0.019953 | ER26: 0 | ES26: 0 | ET26: 0 | EW26: 0.019953 | EX26: 0 | EY26: 0 | EZ26: 0 | FB26: 0.019953 | FC26: 0 | FD26: 0 | FE26: 0 | FF26: 0 | FG26: 0 | FH26: 0 | FI26: 0 | FJ26: 0 | FK26: 0 | FL26: 0 | FM26: 0 | FN26: 0 | FO26: 0 | FP26: 0 | FQ26: 0 | FR26: 0 | FS26: 0 | FT26: 0 | FU26: 0 | FV26: 0 | FW26: 0 | FX26: 0 | FY26: 0 | FZ26: 0 | GA26: 0 | GB26: 0
B27: 0.022909 | C27: 0 | D27: 0 | E27: 0 | H27: 0.022909 | I27: 0 | J27: 0 | K27: 0 | N27: 0.022909 | O27: 0 | P27: 0 | Q27: 0 | U27: 0.022909 | V27: 0 | W27: 0 | X27: 0 | AA27: 0.022909 | AB27: 0 | AC27: 0 | AD27: 0 | AG27: 0.022909 | AH27: 0 | AI27: 0 | AJ27: 0 | AM27: 0.022909 | AN27: 0 | AO27: 0 | AP27: 0 | AS27: 0.022909 | AT27: 0 | AU27: 0 | AV27: 0 | AY27: 0.022909 | AZ27: 0 | BA27: 0 | BB27: 0 | BE27: 0.022909 | BF27: 0 | BG27: 0 | BH27: 0 | BK27: 0.022909 | BL27: 0 | BM27: 0 | BN27: 0 | BQ27: 0.022909 | BR27: 0 | BS27: 0 | BT27: 0 | BW27: 0.022909 | BX27: 0 | BY27: 0 | BZ27: 0 | CC27: 0.022909 | CD27: 0 | CE27: 0 | CF27: 0 | CI27: 0.022909 | CJ27: 0 | CK27: 0 | CL27: 0 | CO27: 0.022909 | CP27: 0 | CQ27: 0 | CR27: 0 | CU27: 0.022909 | CV27: 0 | CW27: 0 | CX27: 0 | DA27: 0.022909 | DB27: 0 | DC27: 0 | DD27: 0 | DG27: 0.022909 | DH27: 0 | DI27: 0 | DJ27: 0 | DM27: 0.022909 | DN27: 0 | DO27: 0 | DP27: 0 | DS27: 0.022909 | DT27: 0 | DU27: 0 | DV27: 0 | DY27: 0.022909 | DZ27: 0 | EA27: 0 | EB27: 0 | EE27: 0.022909 | EF27: 0 | EG27: 0 | EH27: 0 | EK27: 0.022909 | EL27: 0 | EM27: 0 | EN27: 0 | EQ27: 0.022909 | ER27: 0 | ES27: 0 | ET27: 0 | EW27: 0.022909 | EX27: 0 | EY27: 0 | EZ27: 0 | FB27: 0.022909 | FC27: 0 | FD27: 0 | FE27: 0 | FF27: 0 | FG27: 0 | FH27: 0 | FI27: 0 | FJ27: 0 | FK27: 0 | FL27: 0 | FM27: 0 | FN27: 0 | FO27: 0 | FP27: 0 | FQ27: 0 | FR27: 0 | FS27: 0 | FT27: 0 | FU27: 0 | FV27: 0 | FW27: 0 | FX27: 0 | FY27: 0 | FZ27: 0 | GA27: 0 | GB27: 0
B28: 0.026303 | C28: 0 | D28: 0 | E28: 0 | H28: 0.026303 | I28: 0 | J28: 0 | K28: 0 | N28: 0.026303 | O28: 0 | P28: 0 | Q28: 0 | U28: 0.026303 | V28: 0 | W28: 0 | X28: 0 | AA28: 0.026303 | AB28: 0 | AC28: 0 | AD28: 0 | AG28: 0.026303 | AH28: 0 | AI28: 0 | AJ28: 0 | AM28: 0.026303 | AN28: 0 | AO28: 0 | AP28: 0 | AS28: 0.026303 | AT28: 0 | AU28: 0 | AV28: 0 | AY28: 0.026303 | AZ28: 0 | BA28: 0 | BB28: 0 | BE28: 0.026303 | BF28: 0 | BG28: 0 | BH28: 0 | BK28: 0.026303 | BL28: 0 | BM28: 0 | BN28: 0 | BQ28: 0.026303 | BR28: 0 | BS28: 0 | BT28: 0 | BW28: 0.026303 | BX28: 0 | BY28: 0 | BZ28: 0 | CC28: 0.026303 | CD28: 0 | CE28: 0 | CF28: 0 | CI28: 0.026303 | CJ28: 0 | CK28: 0 | CL28: 0 | CO28: 0.026303 | CP28: 0 | CQ28: 0 | CR28: 0 | CU28: 0.026303 | CV28: 0 | CW28: 0 | CX28: 0 | DA28: 0.026303 | DB28: 0 | DC28: 0 | DD28: 0 | DG28: 0.026303 | DH28: 0 | DI28: 0 | DJ28: 0 | DM28: 0.026303 | DN28: 0 | DO28: 0 | DP28: 0 | DS28: 0.026303 | DT28: 0 | DU28: 0 | DV28: 0 | DY28: 0.026303 | DZ28: 0 | EA28: 0 | EB28: 0 | EE28: 0.026303 | EF28: 0 | EG28: 0 | EH28: 0 | EK28: 0.026303 | EL28: 0 | EM28: 0 | EN28: 0 | EQ28: 0.026303 | ER28: 0 | ES28: 0 | ET28: 0 | EW28: 0.026303 | EX28: 0 | EY28: 0 | EZ28: 0 | FB28: 0.026303 | FC28: 0 | FD28: 0 | FE28: 0 | FF28: 0 | FG28: 0 | FH28: 0 | FI28: 0 | FJ28: 0 | FK28: 0 | FL28: 0 | FM28: 0 | FN28: 0 | FO28: 0 | FP28: 0 | FQ28: 0 | FR28: 0 | FS28: 0 | FT28: 0 | FU28: 0 | FV28: 0 | FW28: 0 | FX28: 0 | FY28: 0 | FZ28: 0 | GA28: 0 | GB28: 0
B29: 0.0302 | C29: 0 | D29: 0 | E29: 0 | H29: 0.0302 | I29: 0 | J29: 0 | K29: 0 | N29: 0.0302 | O29: 0 | P29: 0 | Q29: 0 | U29: 0.0302 | V29: 0 | W29: 0 | X29: 0 | AA29: 0.0302 | AB29: 0 | AC29: 0 | AD29: 0 | AG29: 0.0302 | AH29: 0 | AI29: 0 | AJ29: 0 | AM29: 0.0302 | AN29: 0 | AO29: 0 | AP29: 0 | AS29: 0.0302 | AT29: 0 | AU29: 0 | AV29: 0 | AY29: 0.0302 | AZ29: 0 | BA29: 0 | BB29: 0 | BE29: 0.0302 | BF29: 0 | BG29: 0 | BH29: 0 | BK29: 0.0302 | BL29: 0 | BM29: 0 | BN29: 0 | BQ29: 0.0302 | BR29: 0 | BS29: 0 | BT29: 0 | BW29: 0.0302 | BX29: 0 | BY29: 0 | BZ29: 0 | CC29: 0.0302 | CD29: 0 | CE29: 0 | CF29: 0 | CI29: 0.0302 | CJ29: 0 | CK29: 0 | CL29: 0 | CO29: 0.0302 | CP29: 0 | CQ29: 0 | CR29: 0 | CU29: 0.0302 | CV29: 0 | CW29: 0 | CX29: 0 | DA29: 0.0302 | DB29: 0 | DC29: 0 | DD29: 0 | DG29: 0.0302 | DH29: 0 | DI29: 0 | DJ29: 0 | DM29: 0.0302 | DN29: 0 | DO29: 0 | DP29: 0 | DS29: 0.0302 | DT29: 0 | DU29: 0 | DV29: 0 | DY29: 0.0302 | DZ29: 0 | EA29: 0 | EB29: 0 | EE29: 0.0302 | EF29: 0 | EG29: 0 | EH29: 0 | EK29: 0.0302 | EL29: 0 | EM29: 0 | EN29: 0 | EQ29: 0.0302 | ER29: 0 | ES29: 0 | ET29: 0 | EW29: 0.0302 | EX29: 0 | EY29: 0 | EZ29: 0 | FB29: 0.0302 | FC29: 0 | FD29: 0 | FE29: 0 | FF29: 0 | FG29: 0 | FH29: 0 | FI29: 0 | FJ29: 0 | FK29: 0 | FL29: 0 | FM29: 0 | FN29: 0 | FO29: 0 | FP29: 0 | FQ29: 0 | FR29: 0 | FS29: 0 | FT29: 0 | FU29: 0 | FV29: 0 | FW29: 0 | FX29: 0 | FY29: 0 | FZ29: 0 | GA29: 0 | GB29: 0
B30: 0.034674 | C30: 0 | D30: 0 | E30: 0 | H30: 0.034674 | I30: 0 | J30: 0 | K30: 0 | N30: 0.034674 | O30: 0 | P30: 0 | Q30: 0 | U30: 0.034674 | V30: 0 | W30: 0 | X30: 0 | AA30: 0.034674 | AB30: 0 | AC30: 0 | AD30: 0 | AG30: 0.034674 | AH30: 0 | AI30: 0 | AJ30: 0 | AM30: 0.034674 | AN30: 0 | AO30: 0 | AP30: 0 | AS30: 0.034674 | AT30: 0 | AU30: 0 | AV30: 0 | AY30: 0.034674 | AZ30: 0 | BA30: 0 | BB30: 0 | BE30: 0.034674 | BF30: 0 | BG30: 0 | BH30: 0 | BK30: 0.034674 | BL30: 0 | BM30: 0 | BN30: 0 | BQ30: 0.034674 | BR30: 0 | BS30: 0 | BT30: 0 | BW30: 0.034674 | BX30: 0 | BY30: 0 | BZ30: 0 | CC30: 0.034674 | CD30: 0 | CE30: 0 | CF30: 0 | CI30: 0.034674 | CJ30: 0 | CK30: 0 | CL30: 0 | CO30: 0.034674 | CP30: 0 | CQ30: 0 | CR30: 0 | CU30: 0.034674 | CV30: 0 | CW30: 0 | CX30: 0 | DA30: 0.034674 | DB30: 0 | DC30: 0 | DD30: 0 | DG30: 0.034674 | DH30: 0 | DI30: 0 | DJ30: 0 | DM30: 0.034674 | DN30: 0 | DO30: 0 | DP30: 0 | DS30: 0.034674 | DT30: 0 | DU30: 0 | DV30: 0 | DY30: 0.034674 | DZ30: 0 | EA30: 0 | EB30: 0 | EE30: 0.034674 | EF30: 0 | EG30: 0 | EH30: 0 | EK30: 0.034674 | EL30: 0 | EM30: 0 | EN30: 0 | EQ30: 0.034674 | ER30: 0 | ES30: 0 | ET30: 0 | EW30: 0.034674 | EX30: 0 | EY30: 0 | EZ30: 0 | FB30: 0.034674 | FC30: 0 | FD30: 0 | FE30: 0 | FF30: 0 | FG30: 0 | FH30: 0 | FI30: 0 | FJ30: 0 | FK30: 0 | FL30: 0 | FM30: 0 | FN30: 0 | FO30: 0 | FP30: 0 | FQ30: 0 | FR30: 0 | FS30: 0 | FT30: 0 | FU30: 0 | FV30: 0 | FW30: 0 | FX30: 0 | FY30: 0 | FZ30: 0 | GA30: 0 | GB30: 0
B31: 0.039811 | C31: 0 | D31: 0 | E31: 0 | H31: 0.039811 | I31: 0 | J31: 0 | K31: 0 | N31: 0.039811 | O31: 0 | P31: 0 | Q31: 0 | U31: 0.039811 | V31: 0 | W31: 0 | X31: 0 | AA31: 0.039811 | AB31: 0 | AC31: 0 | AD31: 0 | AG31: 0.039811 | AH31: 0 | AI31: 0 | AJ31: 0 | AM31: 0.039811 | AN31: 0 | AO31: 0 | AP31: 0 | AS31: 0.039811 | AT31: 0 | AU31: 0 | AV31: 0 | AY31: 0.039811 | AZ31: 0 | BA31: 0 | BB31: 0 | BE31: 0.039811 | BF31: 0 | BG31: 0 | BH31: 0 | BK31: 0.039811 | BL31: 0 | BM31: 0 | BN31: 0 | BQ31: 0.039811 | BR31: 0 | BS31: 0 | BT31: 0 | BW31: 0.039811 | BX31: 0 | BY31: 0 | BZ31: 0 | CC31: 0.039811 | CD31: 0 | CE31: 0 | CF31: 0 | CI31: 0.039811 | CJ31: 0 | CK31: 0 | CL31: 0 | CO31: 0.039811 | CP31: 0 | CQ31: 0 | CR31: 0 | CU31: 0.039811 | CV31: 0 | CW31: 0 | CX31: 0 | DA31: 0.039811 | DB31: 0 | DC31: 0 | DD31: 0 | DG31: 0.039811 | DH31: 0 | DI31: 0 | DJ31: 0 | DM31: 0.039811 | DN31: 0 | DO31: 0 | DP31: 0 | DS31: 0.039811 | DT31: 0 | DU31: 0 | DV31: 0 | DY31: 0.039811 | DZ31: 0 | EA31: 0 | EB31: 0 | EE31: 0.039811 | EF31: 0 | EG31: 0 | EH31: 0 | EK31: 0.039811 | EL31: 0 | EM31: 0 | EN31: 0 | EQ31: 0.039811 | ER31: 0 | ES31: 0 | ET31: 0 | EW31: 0.039811 | EX31: 0 | EY31: 0 | EZ31: 0 | FB31: 0.039811 | FC31: 0 | FD31: 0 | FE31: 0 | FF31: 0 | FG31: 0 | FH31: 0 | FI31: 0 | FJ31: 0 | FK31: 0 | FL31: 0 | FM31: 0 | FN31: 0 | FO31: 0 | FP31: 0 | FQ31: 0 | FR31: 0 | FS31: 0 | FT31: 0 | FU31: 0 | FV31: 0 | FW31: 0 | FX31: 0 | FY31: 0 | FZ31: 0 | GA31: 0 | GB31: 0
B32: 0.045709 | C32: 0 | D32: 0 | E32: 0 | H32: 0.045709 | I32: 0 | J32: 0 | K32: 0 | N32: 0.045709 | O32: 0 | P32: 0 | Q32: 0 | U32: 0.045709 | V32: 0 | W32: 0 | X32: 0 | AA32: 0.045709 | AB32: 0 | AC32: 0 | AD32: 0 | AG32: 0.045709 | AH32: 0 | AI32: 0 | AJ32: 0 | AM32: 0.045709 | AN32: 0 | AO32: 0 | AP32: 0 | AS32: 0.045709 | AT32: 0 | AU32: 0 | AV32: 0 | AY32: 0.045709 | AZ32: 0 | BA32: 0 | BB32: 0 | BE32: 0.045709 | BF32: 0 | BG32: 0 | BH32: 0 | BK32: 0.045709 | BL32: 0 | BM32: 0 | BN32: 0 | BQ32: 0.045709 | BR32: 0 | BS32: 0 | BT32: 0 | BW32: 0.045709 | BX32: 0 | BY32: 0 | BZ32: 0 | CC32: 0.045709 | CD32: 0 | CE32: 0 | CF32: 0 | CI32: 0.045709 | CJ32: 0 | CK32: 0 | CL32: 0 | CO32: 0.045709 | CP32: 0 | CQ32: 0 | CR32: 0 | CU32: 0.045709 | CV32: 0 | CW32: 0 | CX32: 0 | DA32: 0.045709 | DB32: 0 | DC32: 0 | DD32: 0 | DG32: 0.045709 | DH32: 0 | DI32: 0 | DJ32: 0 | DM32: 0.045709 | DN32: 0 | DO32: 0 | DP32: 0 | DS32: 0.045709 | DT32: 0 | DU32: 0 | DV32: 0 | DY32: 0.045709 | DZ32: 0 | EA32: 0 | EB32: 0 | EE32: 0.045709 | EF32: 0 | EG32: 0 | EH32: 0 | EK32: 0.045709 | EL32: 0 | EM32: 0 | EN32: 0 | EQ32: 0.045709 | ER32: 0 | ES32: 0 | ET32: 0 | EW32: 0.045709 | EX32: 0 | EY32: 0 | EZ32: 0 | FB32: 0.045709 | FC32: 0 | FD32: 0 | FE32: 0 | FF32: 0 | FG32: 0 | FH32: 0 | FI32: 0 | FJ32: 0 | FK32: 0 | FL32: 0 | FM32: 0 | FN32: 0 | FO32: 0 | FP32: 0 | FQ32: 0 | FR32: 0 | FS32: 0 | FT32: 0 | FU32: 0 | FV32: 0 | FW32: 0 | FX32: 0 | FY32: 0 | FZ32: 0 | GA32: 0 | GB32: 0
B33: 0.052481 | C33: 0 | D33: 0 | E33: 0 | H33: 0.052481 | I33: 0 | J33: 0 | K33: 0 | N33: 0.052481 | O33: 0 | P33: 0 | Q33: 0 | U33: 0.052481 | V33: 0 | W33: 0 | X33: 0 | AA33: 0.052481 | AB33: 0 | AC33: 0 | AD33: 0 | AG33: 0.052481 | AH33: 0 | AI33: 0 | AJ33: 0 | AM33: 0.052481 | AN33: 0 | AO33: 0 | AP33: 0 | AS33: 0.052481 | AT33: 0 | AU33: 0 | AV33: 0 | AY33: 0.052481 | AZ33: 0 | BA33: 0 | BB33: 0 | BE33: 0.052481 | BF33: 0 | BG33: 0 | BH33: 0 | BK33: 0.052481 | BL33: 0 | BM33: 0 | BN33: 0 | BQ33: 0.052481 | BR33: 0 | BS33: 0 | BT33: 0 | BW33: 0.052481 | BX33: 0 | BY33: 0 | BZ33: 0 | CC33: 0.052481 | CD33: 0 | CE33: 0 | CF33: 0 | CI33: 0.052481 | CJ33: 0 | CK33: 0 | CL33: 0 | CO33: 0.052481 | CP33: 0 | CQ33: 0 | CR33: 0 | CU33: 0.052481 | CV33: 0 | CW33: 0 | CX33: 0 | DA33: 0.052481 | DB33: 0 | DC33: 0 | DD33: 0 | DG33: 0.052481 | DH33: 0 | DI33: 0 | DJ33: 0 | DM33: 0.052481 | DN33: 0 | DO33: 0 | DP33: 0 | DS33: 0.052481 | DT33: 0 | DU33: 0 | DV33: 0 | DY33: 0.052481 | DZ33: 0 | EA33: 0 | EB33: 0 | EE33: 0.052481 | EF33: 0 | EG33: 0 | EH33: 0 | EK33: 0.052481 | EL33: 0 | EM33: 0 | EN33: 0 | EQ33: 0.052481 | ER33: 0 | ES33: 0 | ET33: 0 | EW33: 0.052481 | EX33: 0 | EY33: 0 | EZ33: 0 | FB33: 0.052481 | FC33: 0 | FD33: 0 | FE33: 0 | FF33: 0 | FG33: 0 | FH33: 0 | FI33: 0 | FJ33: 0 | FK33: 0 | FL33: 0 | FM33: 0 | FN33: 0 | FO33: 0 | FP33: 0 | FQ33: 0 | FR33: 0 | FS33: 0 | FT33: 0 | FU33: 0 | FV33: 0 | FW33: 0 | FX33: 0 | FY33: 0 | FZ33: 0 | GA33: 0 | GB33: 0
B34: 0.060256 | C34: 0 | D34: 0 | E34: 0 | H34: 0.060256 | I34: 0 | J34: 0 | K34: 0 | N34: 0.060256 | O34: 0 | P34: 0 | Q34: 0 | U34: 0.060256 | V34: 0 | W34: 0 | X34: 0 | AA34: 0.060256 | AB34: 0 | AC34: 0 | AD34: 0 | AG34: 0.060256 | AH34: 0 | AI34: 0 | AJ34: 0 | AM34: 0.060256 | AN34: 0 | AO34: 0 | AP34: 0 | AS34: 0.060256 | AT34: 0 | AU34: 0 | AV34: 0 | AY34: 0.060256 | AZ34: 0 | BA34: 0 | BB34: 0 | BE34: 0.060256 | BF34: 0 | BG34: 0 | BH34: 0 | BK34: 0.060256 | BL34: 0 | BM34: 0 | BN34: 0 | BQ34: 0.060256 | BR34: 0 | BS34: 0 | BT34: 0 | BW34: 0.060256 | BX34: 0 | BY34: 0 | BZ34: 0 | CC34: 0.060256 | CD34: 0 | CE34: 0 | CF34: 0 | CI34: 0.060256 | CJ34: 0 | CK34: 0 | CL34: 0 | CO34: 0.060256 | CP34: 0 | CQ34: 0 | CR34: 0 | CU34: 0.060256 | CV34: 0 | CW34: 0 | CX34: 0 | DA34: 0.060256 | DB34: 0 | DC34: 0 | DD34: 0 | DG34: 0.060256 | DH34: 0 | DI34: 0 | DJ34: 0 | DM34: 0.060256 | DN34: 0 | DO34: 0 | DP34: 0 | DS34: 0.060256 | DT34: 0 | DU34: 0 | DV34: 0 | DY34: 0.060256 | DZ34: 0 | EA34: 0 | EB34: 0 | EE34: 0.060256 | EF34: 0 | EG34: 0 | EH34: 0 | EK34: 0.060256 | EL34: 0 | EM34: 0 | EN34: 0 | EQ34: 0.060256 | ER34: 0 | ES34: 0 | ET34: 0 | EW34: 0.060256 | EX34: 0 | EY34: 0 | EZ34: 0 | FB34: 0.060256 | FC34: 0 | FD34: 0 | FE34: 0 | FF34: 0 | FG34: 0 | FH34: 0 | FI34: 0 | FJ34: 0 | FK34: 0 | FL34: 0 | FM34: 0 | FN34: 0 | FO34: 0 | FP34: 0 | FQ34: 0 | FR34: 0 | FS34: 0 | FT34: 0 | FU34: 0 | FV34: 0 | FW34: 0 | FX34: 0 | FY34: 0 | FZ34: 0 | GA34: 0 | GB34: 0
B35: 0.069183 | C35: 0 | D35: 0 | E35: 0 | H35: 0.069183 | I35: 0 | J35: 0 | K35: 0 | N35: 0.069183 | O35: 0 | P35: 0 | Q35: 0 | U35: 0.069183 | V35: 0 | W35: 0 | X35: 0 | AA35: 0.069183 | AB35: 0 | AC35: 0 | AD35: 0 | AG35: 0.069183 | AH35: 0 | AI35: 0 | AJ35: 0 | AM35: 0.069183 | AN35: 0 | AO35: 0 | AP35: 0 | AS35: 0.069183 | AT35: 0 | AU35: 0 | AV35: 0 | AY35: 0.069183 | AZ35: 0 | BA35: 0 | BB35: 0 | BE35: 0.069183 | BF35: 0 | BG35: 0 | BH35: 0 | BK35: 0.069183 | BL35: 0 | BM35: 0 | BN35: 0 | BQ35: 0.069183 | BR35: 0 | BS35: 0 | BT35: 0 | BW35: 0.069183 | BX35: 0 | BY35: 0 | BZ35: 0 | CC35: 0.069183 | CD35: 0 | CE35: 0 | CF35: 0 | CI35: 0.069183 | CJ35: 0 | CK35: 0 | CL35: 0 | CO35: 0.069183 | CP35: 0 | CQ35: 0 | CR35: 0 | CU35: 0.069183 | CV35: 0 | CW35: 0 | CX35: 0 | DA35: 0.069183 | DB35: 0 | DC35: 0 | DD35: 0 | DG35: 0.069183 | DH35: 0 | DI35: 0 | DJ35: 0 | DM35: 0.069183 | DN35: 0 | DO35: 0 | DP35: 0 | DS35: 0.069183 | DT35: 0 | DU35: 0 | DV35: 0 | DY35: 0.069183 | DZ35: 0 | EA35: 0 | EB35: 0 | EE35: 0.069183 | EF35: 0 | EG35: 0 | EH35: 0 | EK35: 0.069183 | EL35: 0 | EM35: 0 | EN35: 0 | EQ35: 0.069183 | ER35: 0 | ES35: 0 | ET35: 0 | EW35: 0.069183 | EX35: 0 | EY35: 0 | EZ35: 0 | FB35: 0.069183 | FC35: 0 | FD35: 0 | FE35: 0 | FF35: 0 | FG35: 0 | FH35: 0 | FI35: 0 | FJ35: 0 | FK35: 0 | FL35: 0 | FM35: 0 | FN35: 0 | FO35: 0 | FP35: 0 | FQ35: 0 | FR35: 0 | FS35: 0 | FT35: 0 | FU35: 0 | FV35: 0 | FW35: 0 | FX35: 0 | FY35: 0 | FZ35: 0 | GA35: 0 | GB35: 0
B36: 0.079433 | C36: 0 | D36: 0 | E36: 0 | H36: 0.079433 | I36: 0 | J36: 0 | K36: 0 | N36: 0.079433 | O36: 0 | P36: 0 | Q36: 0 | U36: 0.079433 | V36: 0 | W36: 0 | X36: 0 | AA36: 0.079433 | AB36: 0 | AC36: 0 | AD36: 0 | AG36: 0.079433 | AH36: 0 | AI36: 0 | AJ36: 0 | AM36: 0.079433 | AN36: 0 | AO36: 0 | AP36: 0 | AS36: 0.079433 | AT36: 0 | AU36: 0 | AV36: 0 | AY36: 0.079433 | AZ36: 0 | BA36: 0 | BB36: 0 | BE36: 0.079433 | BF36: 0 | BG36: 0 | BH36: 0 | BK36: 0.079433 | BL36: 0 | BM36: 0 | BN36: 0 | BQ36: 0.079433 | BR36: 0 | BS36: 0 | BT36: 0 | BW36: 0.079433 | BX36: 0 | BY36: 0 | BZ36: 0 | CC36: 0.079433 | CD36: 0 | CE36: 0 | CF36: 0 | CI36: 0.079433 | CJ36: 0 | CK36: 0 | CL36: 0 | CO36: 0.079433 | CP36: 0 | CQ36: 0 | CR36: 0 | CU36: 0.079433 | CV36: 0 | CW36: 0 | CX36: 0 | DA36: 0.079433 | DB36: 0 | DC36: 0 | DD36: 0 | DG36: 0.079433 | DH36: 0 | DI36: 0 | DJ36: 0 | DM36: 0.079433 | DN36: 0 | DO36: 0 | DP36: 0 | DS36: 0.079433 | DT36: 0 | DU36: 0 | DV36: 0 | DY36: 0.079433 | DZ36: 0 | EA36: 0 | EB36: 0 | EE36: 0.079433 | EF36: 0 | EG36: 0 | EH36: 0 | EK36: 0.079433 | EL36: 0 | EM36: 0 | EN36: 0 | EQ36: 0.079433 | ER36: 0 | ES36: 0 | ET36: 0 | EW36: 0.079433 | EX36: 0 | EY36: 0 | EZ36: 0 | FB36: 0.079433 | FC36: 0 | FD36: 0 | FE36: 0 | FF36: 0 | FG36: 0 | FH36: 0 | FI36: 0 | FJ36: 0 | FK36: 0 | FL36: 0 | FM36: 0 | FN36: 0 | FO36: 0 | FP36: 0 | FQ36: 0 | FR36: 0 | FS36: 0 | FT36: 0 | FU36: 0 | FV36: 0 | FW36: 0 | FX36: 0 | FY36: 0 | FZ36: 0 | GA36: 0 | GB36: 0
B37: 0.091201 | C37: 0 | D37: 0 | E37: 0 | H37: 0.091201 | I37: 0 | J37: 0 | K37: 0 | N37: 0.091201 | O37: 0 | P37: 0 | Q37: 0 | U37: 0.091201 | V37: 0 | W37: 0 | X37: 0 | AA37: 0.091201 | AB37: 0 | AC37: 0 | AD37: 0 | AG37: 0.091201 | AH37: 0 | AI37: 0 | AJ37: 0 | AM37: 0.091201 | AN37: 0 | AO37: 0 | AP37: 0 | AS37: 0.091201 | AT37: 0 | AU37: 0 | AV37: 0 | AY37: 0.091201 | AZ37: 0 | BA37: 0 | BB37: 0 | BE37: 0.091201 | BF37: 0 | BG37: 0 | BH37: 0 | BK37: 0.091201 | BL37: 0 | BM37: 0 | BN37: 0 | BQ37: 0.091201 | BR37: 0 | BS37: 0 | BT37: 0 | BW37: 0.091201 | BX37: 0 | BY37: 0 | BZ37: 0 | CC37: 0.091201 | CD37: 0 | CE37: 0 | CF37: 0 | CI37: 0.091201 | CJ37: 0 | CK37: 0 | CL37: 0 | CO37: 0.091201 | CP37: 0 | CQ37: 0 | CR37: 0 | CU37: 0.091201 | CV37: 0 | CW37: 0 | CX37: 0 | DA37: 0.091201 | DB37: 0 | DC37: 0 | DD37: 0 | DG37: 0.091201 | DH37: 0 | DI37: 0 | DJ37: 0 | DM37: 0.091201 | DN37: 0 | DO37: 0 | DP37: 0 | DS37: 0.091201 | DT37: 0 | DU37: 0 | DV37: 0 | DY37: 0.091201 | DZ37: 0 | EA37: 0 | EB37: 0 | EE37: 0.091201 | EF37: 0 | EG37: 0 | EH37: 0 | EK37: 0.091201 | EL37: 0 | EM37: 0 | EN37: 0 | EQ37: 0.091201 | ER37: 0 | ES37: 0 | ET37: 0 | EW37: 0.091201 | EX37: 0 | EY37: 0 | EZ37: 0 | FB37: 0.091201 | FC37: 0 | FD37: 0 | FE37: 0 | FF37: 0 | FG37: 0 | FH37: 0 | FI37: 0 | FJ37: 0 | FK37: 0 | FL37: 0 | FM37: 0 | FN37: 0 | FO37: 0 | FP37: 0 | FQ37: 0 | FR37: 0 | FS37: 0 | FT37: 0 | FU37: 0 | FV37: 0 | FW37: 0 | FX37: 0 | FY37: 0 | FZ37: 0 | GA37: 0 | GB37: 0
B38: 0.104713 | C38: 0 | D38: 0 | E38: 0 | H38: 0.104713 | I38: 0 | J38: 0 | K38: 0 | N38: 0.104713 | O38: 0 | P38: 0 | Q38: 0 | U38: 0.104713 | V38: 0 | W38: 0 | X38: 0 | AA38: 0.104713 | AB38: 0 | AC38: 0 | AD38: 0 | AG38: 0.104713 | AH38: 0 | AI38: 0 | AJ38: 0 | AM38: 0.104713 | AN38: 0 | AO38: 0 | AP38: 0 | AS38: 0.104713 | AT38: 0 | AU38: 0 | AV38: 0 | AY38: 0.104713 | AZ38: 0 | BA38: 0 | BB38: 0 | BE38: 0.104713 | BF38: 0 | BG38: 0 | BH38: 0 | BK38: 0.104713 | BL38: 0 | BM38: 0 | BN38: 0 | BQ38: 0.104713 | BR38: 0 | BS38: 0 | BT38: 0 | BW38: 0.104713 | BX38: 0 | BY38: 0 | BZ38: 0 | CC38: 0.104713 | CD38: 0 | CE38: 0 | CF38: 0 | CI38: 0.104713 | CJ38: 0 | CK38: 0 | CL38: 0 | CO38: 0.104713 | CP38: 0 | CQ38: 0 | CR38: 0 | CU38: 0.104713 | CV38: 0 | CW38: 0 | CX38: 0 | DA38: 0.104713 | DB38: 0 | DC38: 0 | DD38: 0 | DG38: 0.104713 | DH38: 0 | DI38: 0 | DJ38: 0 | DM38: 0.104713 | DN38: 0 | DO38: 0 | DP38: 0 | DS38: 0.104713 | DT38: 0 | DU38: 0 | DV38: 0 | DY38: 0.104713 | DZ38: 0 | EA38: 0 | EB38: 0 | EE38: 0.104713 | EF38: 0 | EG38: 0 | EH38: 0 | EK38: 0.104713 | EL38: 0 | EM38: 0 | EN38: 0 | EQ38: 0.104713 | ER38: 0 | ES38: 0 | ET38: 0 | EW38: 0.104713 | EX38: 0 | EY38: 0 | EZ38: 0 | FB38: 0.104713 | FC38: 0 | FD38: 0 | FE38: 0 | FF38: 0 | FG38: 0 | FH38: 0 | FI38: 0 | FJ38: 0 | FK38: 0 | FL38: 0 | FM38: 0 | FN38: 0 | FO38: 0 | FP38: 0 | FQ38: 0 | FR38: 0 | FS38: 0 | FT38: 0 | FU38: 0 | FV38: 0 | FW38: 0 | FX38: 0 | FY38: 0 | FZ38: 0 | GA38: 0 | GB38: 0
B39: 0.120226 | C39: 0 | D39: 0 | E39: 0 | H39: 0.120226 | I39: 0 | J39: 0 | K39: 0 | N39: 0.120226 | O39: 0 | P39: 0 | Q39: 0 | U39: 0.120226 | V39: 0 | W39: 0 | X39: 0 | AA39: 0.120226 | AB39: 0 | AC39: 0 | AD39: 0 | AG39: 0.120226 | AH39: 0 | AI39: 0 | AJ39: 0 | AM39: 0.120226 | AN39: 0 | AO39: 0 | AP39: 0 | AS39: 0.120226 | AT39: 0 | AU39: 0 | AV39: 0 | AY39: 0.120226 | AZ39: 0 | BA39: 0 | BB39: 0 | BE39: 0.120226 | BF39: 0 | BG39: 0 | BH39: 0 | BK39: 0.120226 | BL39: 0 | BM39: 0 | BN39: 0 | BQ39: 0.120226 | BR39: 0 | BS39: 0 | BT39: 0 | BW39: 0.120226 | BX39: 0 | BY39: 0 | BZ39: 0 | CC39: 0.120226 | CD39: 0 | CE39: 0 | CF39: 0 | CI39: 0.120226 | CJ39: 0 | CK39: 0 | CL39: 0 | CO39: 0.120226 | CP39: 0 | CQ39: 0 | CR39: 0 | CU39: 0.120226 | CV39: 0 | CW39: 0 | CX39: 0 | DA39: 0.120226 | DB39: 0 | DC39: 0 | DD39: 0 | DG39: 0.120226 | DH39: 0 | DI39: 0 | DJ39: 0 | DM39: 0.120226 | DN39: 0 | DO39: 0 | DP39: 0 | DS39: 0.120226 | DT39: 0 | DU39: 0 | DV39: 0 | DY39: 0.120226 | DZ39: 0 | EA39: 0 | EB39: 0 | EE39: 0.120226 | EF39: 0 | EG39: 0 | EH39: 0 | EK39: 0.120226 | EL39: 0 | EM39: 0 | EN39: 0 | EQ39: 0.120226 | ER39: 0 | ES39: 0 | ET39: 0 | EW39: 0.120226 | EX39: 0 | EY39: 0 | EZ39: 0 | FB39: 0.120226 | FC39: 0 | FD39: 0 | FE39: 0 | FF39: 0 | FG39: 0 | FH39: 0 | FI39: 0 | FJ39: 0 | FK39: 0 | FL39: 0 | FM39: 0 | FN39: 0 | FO39: 0 | FP39: 0 | FQ39: 0 | FR39: 0 | FS39: 0 | FT39: 0 | FU39: 0 | FV39: 0 | FW39: 0 | FX39: 0 | FY39: 0 | FZ39: 0 | GA39: 0 | GB39: 0
B40: 0.138038 | C40: 0 | D40: 0 | E40: 0 | H40: 0.138038 | I40: 0 | J40: 0 | K40: 0 | N40: 0.138038 | O40: 0 | P40: 0 | Q40: 0 | U40: 0.138038 | V40: 0 | W40: 0 | X40: 0 | AA40: 0.138038 | AB40: 0 | AC40: 0 | AD40: 0 | AG40: 0.138038 | AH40: 0 | AI40: 0 | AJ40: 0 | AM40: 0.138038 | AN40: 0 | AO40: 0 | AP40: 0 | AS40: 0.138038 | AT40: 0 | AU40: 0 | AV40: 0 | AY40: 0.138038 | AZ40: 0 | BA40: 0 | BB40: 0 | BE40: 0.138038 | BF40: 0 | BG40: 0 | BH40: 0 | BK40: 0.138038 | BL40: 0 | BM40: 0 | BN40: 0 | BQ40: 0.138038 | BR40: 0 | BS40: 0 | BT40: 0 | BW40: 0.138038 | BX40: 0 | BY40: 0 | BZ40: 0 | CC40: 0.138038 | CD40: 0 | CE40: 0 | CF40: 0 | CI40: 0.138038 | CJ40: 0 | CK40: 0 | CL40: 0 | CO40: 0.138038 | CP40: 0 | CQ40: 0 | CR40: 0 | CU40: 0.138038 | CV40: 0 | CW40: 0 | CX40: 0 | DA40: 0.138038 | DB40: 0 | DC40: 0 | DD40: 0 | DG40: 0.138038 | DH40: 0 | DI40: 0 | DJ40: 0 | DM40: 0.138038 | DN40: 0 | DO40: 0 | DP40: 0 | DS40: 0.138038 | DT40: 0 | DU40: 0 | DV40: 0 | DY40: 0.138038 | DZ40: 0 | EA40: 0 | EB40: 0 | EE40: 0.138038 | EF40: 0 | EG40: 0 | EH40: 0 | EK40: 0.138038 | EL40: 0 | EM40: 0 | EN40: 0 | EQ40: 0.138038 | ER40: 0 | ES40: 0 | ET40: 0 | EW40: 0.138038 | EX40: 0 | EY40: 0 | EZ40: 0 | FB40: 0.138038 | FC40: 0 | FD40: 0 | FE40: 0 | FF40: 0 | FG40: 0 | FH40: 0 | FI40: 0 | FJ40: 0 | FK40: 0 | FL40: 0 | FM40: 0 | FN40: 0 | FO40: 0 | FP40: 0 | FQ40: 0 | FR40: 0 | FS40: 0 | FT40: 0 | FU40: 0 | FV40: 0 | FW40: 0 | FX40: 0 | FY40: 0 | FZ40: 0 | GA40: 0 | GB40: 0
B41: 0.158489 | C41: 0 | D41: 0 | E41: 0 | H41: 0.158489 | I41: 0 | J41: 0 | K41: 0 | N41: 0.158489 | O41: 0 | P41: 0 | Q41: 0 | U41: 0.158489 | V41: 0 | W41: 0 | X41: 0 | AA41: 0.158489 | AB41: 0 | AC41: 0 | AD41: 0 | AG41: 0.158489 | AH41: 0 | AI41: 0 | AJ41: 0 | AM41: 0.158489 | AN41: 0 | AO41: 0 | AP41: 0 | AS41: 0.158489 | AT41: 0 | AU41: 0 | AV41: 0 | AY41: 0.158489 | AZ41: 0 | BA41: 0 | BB41: 0 | BE41: 0.158489 | BF41: 0 | BG41: 0 | BH41: 0 | BK41: 0.158489 | BL41: 0 | BM41: 0 | BN41: 0 | BQ41: 0.158489 | BR41: 0 | BS41: 0 | BT41: 0 | BW41: 0.158489 | BX41: 0 | BY41: 0 | BZ41: 0 | CC41: 0.158489 | CD41: 0 | CE41: 0 | CF41: 0 | CI41: 0.158489 | CJ41: 0 | CK41: 0 | CL41: 0 | CO41: 0.158489 | CP41: 0 | CQ41: 0 | CR41: 0 | CU41: 0.158489 | CV41: 0 | CW41: 0 | CX41: 0 | DA41: 0.158489 | DB41: 0 | DC41: 0 | DD41: 0 | DG41: 0.158489 | DH41: 0 | DI41: 0 | DJ41: 0 | DM41: 0.158489 | DN41: 0 | DO41: 0 | DP41: 0 | DS41: 0.158489 | DT41: 0 | DU41: 0 | DV41: 0 | DY41: 0.158489 | DZ41: 0 | EA41: 0 | EB41: 0 | EE41: 0.158489 | EF41: 0 | EG41: 0 | EH41: 0 | EK41: 0.158489 | EL41: 0 | EM41: 0 | EN41: 0 | EQ41: 0.158489 | ER41: 0 | ES41: 0 | ET41: 0 | EW41: 0.158489 | EX41: 0 | EY41: 0 | EZ41: 0 | FB41: 0.158489 | FC41: 0 | FD41: 0 | FE41: 0 | FF41: 0 | FG41: 0 | FH41: 0 | FI41: 0 | FJ41: 0 | FK41: 0 | FL41: 0 | FM41: 0 | FN41: 0 | FO41: 0 | FP41: 0 | FQ41: 0 | FR41: 0 | FS41: 0 | FT41: 0 | FU41: 0 | FV41: 0 | FW41: 0 | FX41: 0 | FY41: 0 | FZ41: 0 | GA41: 0 | GB41: 0
B42: 0.18197 | C42: 0 | D42: 0 | E42: 0 | H42: 0.18197 | I42: 0 | J42: 0 | K42: 0 | N42: 0.18197 | O42: 0 | P42: 0 | Q42: 0 | U42: 0.18197 | V42: 0 | W42: 0 | X42: 0 | AA42: 0.18197 | AB42: 0 | AC42: 0 | AD42: 0 | AG42: 0.18197 | AH42: 0 | AI42: 0 | AJ42: 0 | AM42: 0.18197 | AN42: 0 | AO42: 0 | AP42: 0 | AS42: 0.18197 | AT42: 0 | AU42: 0 | AV42: 0 | AY42: 0.18197 | AZ42: 0 | BA42: 0 | BB42: 0 | BE42: 0.18197 | BF42: 0 | BG42: 0 | BH42: 0 | BK42: 0.18197 | BL42: 0 | BM42: 0 | BN42: 0 | BQ42: 0.18197 | BR42: 0 | BS42: 0 | BT42: 0 | BW42: 0.18197 | BX42: 0 | BY42: 0 | BZ42: 0 | CC42: 0.18197 | CD42: 0 | CE42: 0 | CF42: 0 | CI42: 0.18197 | CJ42: 0 | CK42: 0 | CL42: 0 | CO42: 0.18197 | CP42: 0 | CQ42: 0 | CR42: 0 | CU42: 0.18197 | CV42: 0 | CW42: 0 | CX42: 0 | DA42: 0.18197 | DB42: 0 | DC42: 0 | DD42: 0 | DG42: 0.18197 | DH42: 0 | DI42: 0 | DJ42: 0 | DM42: 0.18197 | DN42: 0 | DO42: 0 | DP42: 0 | DS42: 0.18197 | DT42: 0 | DU42: 0 | DV42: 0 | DY42: 0.18197 | DZ42: 0 | EA42: 0 | EB42: 0 | EE42: 0.18197 | EF42: 0 | EG42: 0 | EH42: 0 | EK42: 0.18197 | EL42: 0 | EM42: 0 | EN42: 0 | EQ42: 0.18197 | ER42: 0 | ES42: 0 | ET42: 0 | EW42: 0.18197 | EX42: 0 | EY42: 0 | EZ42: 0 | FB42: 0.18197 | FC42: 0 | FD42: 0 | FE42: 0 | FF42: 0 | FG42: 0 | FH42: 0 | FI42: 0 | FJ42: 0 | FK42: 0 | FL42: 0 | FM42: 0 | FN42: 0 | FO42: 0 | FP42: 0 | FQ42: 0 | FR42: 0 | FS42: 0 | FT42: 0 | FU42: 0 | FV42: 0 | FW42: 0 | FX42: 0 | FY42: 0 | FZ42: 0 | GA42: 0 | GB42: 0
B43: 0.20893 | C43: 0 | D43: 0 | E43: 0 | H43: 0.20893 | I43: 0 | J43: 0 | K43: 0 | N43: 0.20893 | O43: 0 | P43: 0 | Q43: 0 | U43: 0.20893 | V43: 0 | W43: 0 | X43: 0 | AA43: 0.20893 | AB43: 0 | AC43: 0 | AD43: 0 | AG43: 0.20893 | AH43: 0 | AI43: 0 | AJ43: 0 | AM43: 0.20893 | AN43: 0 | AO43: 0 | AP43: 0 | AS43: 0.20893 | AT43: 0 | AU43: 0 | AV43: 0 | AY43: 0.20893 | AZ43: 0 | BA43: 0 | BB43: 0 | BE43: 0.20893 | BF43: 0 | BG43: 0 | BH43: 0 | BK43: 0.20893 | BL43: 0 | BM43: 0 | BN43: 0 | BQ43: 0.20893 | BR43: 0 | BS43: 0 | BT43: 0 | BW43: 0.20893 | BX43: 0 | BY43: 0 | BZ43: 0 | CC43: 0.20893 | CD43: 0 | CE43: 0 | CF43: 0 | CI43: 0.20893 | CJ43: 0 | CK43: 0 | CL43: 0 | CO43: 0.20893 | CP43: 0 | CQ43: 0 | CR43: 0 | CU43: 0.20893 | CV43: 0 | CW43: 0 | CX43: 0 | DA43: 0.20893 | DB43: 0 | DC43: 0 | DD43: 0 | DG43: 0.20893 | DH43: 0 | DI43: 0 | DJ43: 0 | DM43: 0.20893 | DN43: 0 | DO43: 0 | DP43: 0 | DS43: 0.20893 | DT43: 0 | DU43: 0 | DV43: 0 | DY43: 0.20893 | DZ43: 0 | EA43: 0 | EB43: 0 | EE43: 0.20893 | EF43: 0 | EG43: 0 | EH43: 0 | EK43: 0.20893 | EL43: 0 | EM43: 0 | EN43: 0 | EQ43: 0.20893 | ER43: 0 | ES43: 0 | ET43: 0 | EW43: 0.20893 | EX43: 0 | EY43: 0 | EZ43: 0 | FB43: 0.20893 | FC43: 0 | FD43: 0 | FE43: 0 | FF43: 0 | FG43: 0 | FH43: 0 | FI43: 0 | FJ43: 0 | FK43: 0 | FL43: 0 | FM43: 0 | FN43: 0 | FO43: 0 | FP43: 0 | FQ43: 0 | FR43: 0 | FS43: 0 | FT43: 0 | FU43: 0 | FV43: 0 | FW43: 0 | FX43: 0 | FY43: 0 | FZ43: 0 | GA43: 0 | GB43: 0
B44: 0.239883 | C44: 0 | D44: 0 | E44: 0 | H44: 0.239883 | I44: 0 | J44: 0 | K44: 0 | N44: 0.239883 | O44: 0 | P44: 0 | Q44: 0 | U44: 0.239883 | V44: 0 | W44: 0 | X44: 0 | AA44: 0.239883 | AB44: 0 | AC44: 0 | AD44: 0 | AG44: 0.239883 | AH44: 0 | AI44: 0 | AJ44: 0 | AM44: 0.239883 | AN44: 0 | AO44: 0 | AP44: 0 | AS44: 0.239883 | AT44: 0 | AU44: 0 | AV44: 0 | AY44: 0.239883 | AZ44: 0 | BA44: 0 | BB44: 0 | BE44: 0.239883 | BF44: 0 | BG44: 0 | BH44: 0 | BK44: 0.239883 | BL44: 0 | BM44: 0 | BN44: 0 | BQ44: 0.239883 | BR44: 0 | BS44: 0 | BT44: 0 | BW44: 0.239883 | BX44: 0 | BY44: 0 | BZ44: 0 | CC44: 0.239883 | CD44: 0 | CE44: 0 | CF44: 0 | CI44: 0.239883 | CJ44: 0 | CK44: 0 | CL44: 0 | CO44: 0.239883 | CP44: 0 | CQ44: 0 | CR44: 0 | CU44: 0.239883 | CV44: 0 | CW44: 0 | CX44: 0 | DA44: 0.239883 | DB44: 0 | DC44: 0 | DD44: 0 | DG44: 0.239883 | DH44: 0 | DI44: 0 | DJ44: 0 | DM44: 0.239883 | DN44: 0 | DO44: 0 | DP44: 0 | DS44: 0.239883 | DT44: 0 | DU44: 0 | DV44: 0 | DY44: 0.239883 | DZ44: 0 | EA44: 0 | EB44: 0 | EE44: 0.239883 | EF44: 0 | EG44: 0 | EH44: 0 | EK44: 0.239883 | EL44: 0 | EM44: 0 | EN44: 0 | EQ44: 0.239883 | ER44: 0 | ES44: 0 | ET44: 0 | EW44: 0.239883 | EX44: 0 | EY44: 0 | EZ44: 0 | FB44: 0.239883 | FC44: 0 | FD44: 0 | FE44: 0 | FF44: 0 | FG44: 0 | FH44: 0 | FI44: 0 | FJ44: 0 | FK44: 0 | FL44: 0 | FM44: 0 | FN44: 0 | FO44: 0 | FP44: 0 | FQ44: 0 | FR44: 0 | FS44: 0 | FT44: 0 | FU44: 0 | FV44: 0 | FW44: 0 | FX44: 0 | FY44: 0 | FZ44: 0 | GA44: 0 | GB44: 0
B45: 0.275423 | C45: 0 | D45: 0 | E45: 0 | H45: 0.275423 | I45: 0 | J45: 0 | K45: 0 | N45: 0.275423 | O45: 0 | P45: 0 | Q45: 0 | U45: 0.275423 | V45: 0 | W45: 0 | X45: 0 | AA45: 0.275423 | AB45: 0 | AC45: 0 | AD45: 0 | AG45: 0.275423 | AH45: 0 | AI45: 0 | AJ45: 0 | AM45: 0.275423 | AN45: 0 | AO45: 0 | AP45: 0 | AS45: 0.275423 | AT45: 0 | AU45: 0 | AV45: 0 | AY45: 0.275423 | AZ45: 0 | BA45: 0 | BB45: 0 | BE45: 0.275423 | BF45: 0 | BG45: 0 | BH45: 0 | BK45: 0.275423 | BL45: 0 | BM45: 0 | BN45: 0 | BQ45: 0.275423 | BR45: 0 | BS45: 0 | BT45: 0 | BW45: 0.275423 | BX45: 0 | BY45: 0 | BZ45: 0 | CC45: 0.275423 | CD45: 0 | CE45: 0 | CF45: 0 | CI45: 0.275423 | CJ45: 0 | CK45: 0 | CL45: 0 | CO45: 0.275423 | CP45: 0 | CQ45: 0 | CR45: 0 | CU45: 0.275423 | CV45: 0 | CW45: 0 | CX45: 0 | DA45: 0.275423 | DB45: 0 | DC45: 0 | DD45: 0 | DG45: 0.275423 | DH45: 0 | DI45: 0 | DJ45: 0 | DM45: 0.275423 | DN45: 0 | DO45: 0 | DP45: 0 | DS45: 0.275423 | DT45: 0 | DU45: 0 | DV45: 0 | DY45: 0.275423 | DZ45: 0 | EA45: 0 | EB45: 0 | EE45: 0.275423 | EF45: 0 | EG45: 0 | EH45: 0 | EK45: 0.275423 | EL45: 0 | EM45: 0 | EN45: 0 | EQ45: 0.275423 | ER45: 0 | ES45: 0 | ET45: 0 | EW45: 0.275423 | EX45: 0 | EY45: 0 | EZ45: 0 | FB45: 0.275423 | FC45: 0 | FD45: 0 | FE45: 0 | FF45: 0 | FG45: 0 | FH45: 0 | FI45: 0 | FJ45: 0 | FK45: 0 | FL45: 0 | FM45: 0 | FN45: 0 | FO45: 0 | FP45: 0 | FQ45: 0 | FR45: 0 | FS45: 0 | FT45: 0 | FU45: 0 | FV45: 0 | FW45: 0 | FX45: 0 | FY45: 0 | FZ45: 0 | GA45: 0 | GB45: 0
B46: 0.316228 | C46: 0 | D46: 0 | E46: 0 | H46: 0.316228 | I46: 0 | J46: 0 | K46: 0 | N46: 0.316228 | O46: 0 | P46: 0 | Q46: 0 | U46: 0.316228 | V46: 0 | W46: 0 | X46: 0 | AA46: 0.316228 | AB46: 0 | AC46: 0 | AD46: 0 | AG46: 0.316228 | AH46: 0 | AI46: 0 | AJ46: 0 | AM46: 0.316228 | AN46: 0 | AO46: 0 | AP46: 0 | AS46: 0.316228 | AT46: 0 | AU46: 0 | AV46: 0 | AY46: 0.316228 | AZ46: 0 | BA46: 0 | BB46: 0 | BE46: 0.316228 | BF46: 0 | BG46: 0 | BH46: 0 | BK46: 0.316228 | BL46: 0 | BM46: 0 | BN46: 0 | BQ46: 0.316228 | BR46: 0 | BS46: 0 | BT46: 0 | BW46: 0.316228 | BX46: 0 | BY46: 0 | BZ46: 0 | CC46: 0.316228 | CD46: 0 | CE46: 0 | CF46: 0 | CI46: 0.316228 | CJ46: 0 | CK46: 0 | CL46: 0 | CO46: 0.316228 | CP46: 0 | CQ46: 0 | CR46: 0 | CU46: 0.316228 | CV46: 0 | CW46: 0 | CX46: 0 | DA46: 0.316228 | DB46: 0 | DC46: 0 | DD46: 0 | DG46: 0.316228 | DH46: 0 | DI46: 0 | DJ46: 0 | DM46: 0.316228 | DN46: 0 | DO46: 0 | DP46: 0 | DS46: 0.316228 | DT46: 0 | DU46: 0 | DV46: 0 | DY46: 0.316228 | DZ46: 0 | EA46: 0 | EB46: 0 | EE46: 0.316228 | EF46: 0 | EG46: 0 | EH46: 0 | EK46: 0.316228 | EL46: 0 | EM46: 0 | EN46: 0 | EQ46: 0.316228 | ER46: 0 | ES46: 0 | ET46: 0 | EW46: 0.316228 | EX46: 0 | EY46: 0 | EZ46: 0 | FB46: 0.316228 | FC46: 0 | FD46: 0 | FE46: 0 | FF46: 0 | FG46: 0 | FH46: 0 | FI46: 0 | FJ46: 0 | FK46: 0 | FL46: 0 | FM46: 0 | FN46: 0 | FO46: 0 | FP46: 0 | FQ46: 0 | FR46: 0 | FS46: 0 | FT46: 0 | FU46: 0 | FV46: 0 | FW46: 0 | FX46: 0 | FY46: 0 | FZ46: 0 | GA46: 0 | GB46: 0
B47: 0.363078 | C47: 0 | D47: 0 | E47: 0 | H47: 0.363078 | I47: 0 | J47: 0 | K47: 0 | N47: 0.363078 | O47: 0 | P47: 0 | Q47: 0 | U47: 0.363078 | V47: 0 | W47: 0 | X47: 0 | AA47: 0.363078 | AB47: 0 | AC47: 0 | AD47: 0 | AG47: 0.363078 | AH47: 0 | AI47: 0 | AJ47: 0 | AM47: 0.363078 | AN47: 0 | AO47: 0 | AP47: 0 | AS47: 0.363078 | AT47: 0 | AU47: 0 | AV47: 0 | AY47: 0.363078 | AZ47: 0 | BA47: 0 | BB47: 0 | BE47: 0.363078 | BF47: 0 | BG47: 0 | BH47: 0 | BK47: 0.363078 | BL47: 0 | BM47: 0 | BN47: 0 | BQ47: 0.363078 | BR47: 0 | BS47: 0 | BT47: 0 | BW47: 0.363078 | BX47: 0 | BY47: 0 | BZ47: 0 | CC47: 0.363078 | CD47: 0 | CE47: 0 | CF47: 0 | CI47: 0.363078 | CJ47: 0 | CK47: 0 | CL47: 0 | CO47: 0.363078 | CP47: 0 | CQ47: 0 | CR47: 0 | CU47: 0.363078 | CV47: 0 | CW47: 0 | CX47: 0 | DA47: 0.363078 | DB47: 0 | DC47: 0 | DD47: 0 | DG47: 0.363078 | DH47: 0 | DI47: 0 | DJ47: 0 | DM47: 0.363078 | DN47: 0 | DO47: 0 | DP47: 0 | DS47: 0.363078 | DT47: 0 | DU47: 0 | DV47: 0 | DY47: 0.363078 | DZ47: 0 | EA47: 0 | EB47: 0 | EE47: 0.363078 | EF47: 0 | EG47: 0 | EH47: 0 | EK47: 0.363078 | EL47: 0 | EM47: 0 | EN47: 0 | EQ47: 0.363078 | ER47: 0 | ES47: 0 | ET47: 0 | EW47: 0.363078 | EX47: 0 | EY47: 0 | EZ47: 0 | FB47: 0.363078 | FC47: 0 | FD47: 0 | FE47: 0 | FF47: 0 | FG47: 0 | FH47: 0 | FI47: 0 | FJ47: 0 | FK47: 0 | FL47: 0 | FM47: 0 | FN47: 0 | FO47: 0 | FP47: 0 | FQ47: 0 | FR47: 0 | FS47: 0 | FT47: 0 | FU47: 0 | FV47: 0 | FW47: 0 | FX47: 0 | FY47: 0 | FZ47: 0 | GA47: 0 | GB47: 0
B48: 0.416869 | C48: 0 | D48: 0 | E48: 0 | H48: 0.416869 | I48: 0 | J48: 0 | K48: 0 | N48: 0.416869 | O48: 0 | P48: 0 | Q48: 0 | U48: 0.416869 | V48: 0 | W48: 0 | X48: 0 | AA48: 0.416869 | AB48: 0 | AC48: 0 | AD48: 0 | AG48: 0.416869 | AH48: 0 | AI48: 0 | AJ48: 0 | AM48: 0.416869 | AN48: 0 | AO48: 0 | AP48: 0 | AS48: 0.416869 | AT48: 0 | AU48: 0 | AV48: 0 | AY48: 0.416869 | AZ48: 0 | BA48: 0 | BB48: 0 | BE48: 0.416869 | BF48: 0 | BG48: 0 | BH48: 0 | BK48: 0.416869 | BL48: 0 | BM48: 0 | BN48: 0 | BQ48: 0.416869 | BR48: 0 | BS48: 0 | BT48: 0 | BW48: 0.416869 | BX48: 0 | BY48: 0 | BZ48: 0 | CC48: 0.416869 | CD48: 0 | CE48: 0 | CF48: 0 | CI48: 0.416869 | CJ48: 0 | CK48: 0 | CL48: 0 | CO48: 0.416869 | CP48: 0 | CQ48: 0 | CR48: 0 | CU48: 0.416869 | CV48: 0 | CW48: 0 | CX48: 0 | DA48: 0.416869 | DB48: 0 | DC48: 0 | DD48: 0 | DG48: 0.416869 | DH48: 0 | DI48: 0 | DJ48: 0 | DM48: 0.416869 | DN48: 0 | DO48: 0 | DP48: 0 | DS48: 0.416869 | DT48: 0 | DU48: 0 | DV48: 0 | DY48: 0.416869 | DZ48: 0 | EA48: 0 | EB48: 0 | EE48: 0.416869 | EF48: 0 | EG48: 0 | EH48: 0 | EK48: 0.416869 | EL48: 0 | EM48: 0 | EN48: 0 | EQ48: 0.416869 | ER48: 0 | ES48: 0 | ET48: 0 | EW48: 0.416869 | EX48: 0 | EY48: 0 | EZ48: 0 | FB48: 0.416869 | FC48: 0 | FD48: 0 | FE48: 0 | FF48: 0 | FG48: 0 | FH48: 0 | FI48: 0 | FJ48: 0 | FK48: 0 | FL48: 0 | FM48: 0 | FN48: 0 | FO48: 0 | FP48: 0 | FQ48: 0 | FR48: 0 | FS48: 0 | FT48: 0 | FU48: 0 | FV48: 0 | FW48: 0 | FX48: 0 | FY48: 0 | FZ48: 0 | GA48: 0 | GB48: 0
B49: 0.47863 | C49: 0.020459 | D49: 0 | E49: 0 | H49: 0.47863 | I49: 0.101018 | J49: 0.114209 | K49: 0.116307 | N49: 0.47863 | O49: 0.110854 | P49: 0.108697 | Q49: 0.102672 | U49: 0.47863 | V49: 0.061274 | W49: 0.071734 | X49: 0.071988 | AA49: 0.47863 | AB49: 0.087822 | AC49: 0.086653 | AD49: 0.077496 | AG49: 0.47863 | AH49: 0.078647 | AI49: 0.070054 | AJ49: 0.072222 | AM49: 0.47863 | AN49: 0.054342 | AO49: 0.059026 | AP49: 0.068962 | AS49: 0.47863 | AT49: 0.074042 | AU49: 0.099863 | AV49: 0.090658 | AY49: 0.47863 | AZ49: 0.070357 | BA49: 0.06462 | BB49: 0.061426 | BE49: 0.47863 | BF49: 0.105826 | BG49: 0.106569 | BH49: 0.08776 | BK49: 0.47863 | BL49: 0 | BM49: 0 | BN49: 0 | BQ49: 0.47863 | BR49: 0 | BS49: 0 | BT49: 0 | BW49: 0.47863 | BX49: 0 | BY49: 0 | BZ49: 0 | CC49: 0.47863 | CD49: 0 | CE49: 0 | CF49: 0 | CI49: 0.47863 | CJ49: 0 | CK49: 0 | CL49: 0 | CO49: 0.47863 | CP49: 0 | CQ49: 0 | CR49: 0 | CU49: 0.47863 | CV49: 0 | CW49: 0 | CX49: 0 | DA49: 0.47863 | DB49: 0 | DC49: 0 | DD49: 0 | DG49: 0.47863 | DH49: 0 | DI49: 0 | DJ49: 0 | DM49: 0.47863 | DN49: 0 | DO49: 0 | DP49: 0 | DS49: 0.47863 | DT49: 0 | DU49: 0 | DV49: 0 | DY49: 0.47863 | DZ49: 0 | EA49: 0 | EB49: 0 | EE49: 0.47863 | EF49: 0.083435 | EG49: 0.090733 | EH49: 0.098238 | EK49: 0.47863 | EL49: 0 | EM49: 0 | EN49: 0 | EQ49: 0.47863 | ER49: 0 | ES49: 0 | ET49: 0 | EW49: 0.47863 | EX49: 0.016307 | EY49: 0.015905 | EZ49: 0.038016 | FB49: 0.47863 | FC49: 0.006819666667 | FD49: 0.1105113333 | FE49: 0.1074076667 | FF49: 0.068332 | FG49: 0.08399033333 | FH49: 0.073641 | FI49: 0.06077666667 | FJ49: 0.08818766667 | FK49: 0.06546766667 | FL49: 0.1000516667 | FM49: 0 | FN49: 0 | FO49: 0 | FP49: 0 | FQ49: 0 | FR49: 0 | FS49: 0 | FT49: 0 | FU49: 0 | FV49: 0 | FW49: 0 | FX49: 0 | FY49: 0.090802 | FZ49: 0 | GA49: 0 | GB49: 0.02340933333
B50: 0.549541 | C50: 0.083879 | D50: 0.071248 | E50: 0.054895 | H50: 0.549541 | I50: 0.171152 | J50: 0.194507 | K50: 0.191534 | N50: 0.549541 | O50: 0.190374 | P50: 0.187548 | Q50: 0.182451 | U50: 0.549541 | V50: 0.111276 | W50: 0.121055 | X50: 0.121396 | AA50: 0.549541 | AB50: 0.149715 | AC50: 0.148055 | AD50: 0.138507 | AG50: 0.549541 | AH50: 0.120997 | AI50: 0.111459 | AJ50: 0.114704 | AM50: 0.549541 | AN50: 0.09215 | AO50: 0.099818 | AP50: 0.110064 | AS50: 0.549541 | AT50: 0.115731 | AU50: 0.151984 | AV50: 0.138377 | AY50: 0.549541 | AZ50: 0.107606 | BA50: 0.102033 | BB50: 0.102507 | BE50: 0.549541 | BF50: 0.185145 | BG50: 0.185142 | BH50: 0.16528 | BK50: 0.549541 | BL50: 0.078241 | BM50: 0.076751 | BN50: 0.073969 | BQ50: 0.549541 | BR50: 0 | BS50: 0 | BT50: 0 | BW50: 0.549541 | BX50: 0.066942 | BY50: 0.065831 | BZ50: 0.073428 | CC50: 0.549541 | CD50: 0 | CE50: 0 | CF50: 0 | CI50: 0.549541 | CJ50: 0 | CK50: 0 | CL50: 0 | CO50: 0.549541 | CP50: 0 | CQ50: 0 | CR50: 0 | CU50: 0.549541 | CV50: 0 | CW50: 0 | CX50: 0 | DA50: 0.549541 | DB50: 0 | DC50: 0 | DD50: 0.054215 | DG50: 0.549541 | DH50: 0 | DI50: 0.057576 | DJ50: 0.039515 | DM50: 0.549541 | DN50: 0 | DO50: 0 | DP50: 0 | DS50: 0.549541 | DT50: 0 | DU50: 0 | DV50: 0 | DY50: 0.549541 | DZ50: 0.038862 | EA50: 0.060016 | EB50: 0.053671 | EE50: 0.549541 | EF50: 0.146103 | EG50: 0.151483 | EH50: 0.164643 | EK50: 0.549541 | EL50: 0.078925 | EM50: 0.076118 | EN50: 0.063938 | EQ50: 0.549541 | ER50: 0.037752 | ES50: 0.061366 | ET50: 0.061044 | EW50: 0.549541 | EX50: 0.087586 | EY50: 0.093248 | EZ50: 0.094847 | FB50: 0.549541 | FC50: 0.07000733333 | FD50: 0.185731 | FE50: 0.186791 | FF50: 0.117909 | FG50: 0.1454256667 | FH50: 0.11572 | FI50: 0.1006773333 | FJ50: 0.135364 | FK50: 0.1040486667 | FL50: 0.1785223333 | FM50: 0.07632033333 | FN50: 0 | FO50: 0.06873366667 | FP50: 0 | FQ50: 0 | FR50: 0 | FS50: 0 | FT50: 0.01807166667 | FU50: 0.03236366667 | FV50: 0 | FW50: 0 | FX50: 0.05084966667 | FY50: 0.1540763333 | FZ50: 0.07299366667 | GA50: 0.05338733333 | GB50: 0.09189366667
B51: 0.630957 | C51: 0.111707 | D51: 0.100387 | E51: 0.08085 | H51: 0.630957 | I51: 0.239685 | J51: 0.273276 | K51: 0.264524 | N51: 0.630957 | O51: 0.266531 | P51: 0.263165 | Q51: 0.259614 | U51: 0.630957 | V51: 0.149848 | W51: 0.168457 | X51: 0.168857 | AA51: 0.630957 | AB51: 0.206942 | AC51: 0.204844 | AD51: 0.195521 | AG51: 0.630957 | AH51: 0.161071 | AI51: 0.150574 | AJ51: 0.15485 | AM51: 0.630957 | AN51: 0.120419 | AO51: 0.130409 | AP51: 0.147831 | AS51: 0.630957 | AT51: 0.153908 | AU51: 0.199474 | AV51: 0.181948 | AY51: 0.630957 | AZ51: 0.142488 | BA51: 0.131102 | BB51: 0.134178 | BE51: 0.630957 | BF51: 0.259871 | BG51: 0.259108 | BH51: 0.239231 | BK51: 0.630957 | BL51: 0.112295 | BM51: 0.109169 | BN51: 0.105225 | BQ51: 0.630957 | BR51: 0 | BS51: 0 | BT51: 0 | BW51: 0.630957 | BX51: 0.094246 | BY51: 0.092459 | BZ51: 0.101054 | CC51: 0.630957 | CD51: 0 | CE51: 0 | CF51: 0 | CI51: 0.630957 | CJ51: 0 | CK51: 0 | CL51: 0 | CO51: 0.630957 | CP51: 0 | CQ51: 0 | CR51: 0 | CU51: 0.630957 | CV51: 0.010833 | CW51: 0 | CX51: 0.013567 | DA51: 0.630957 | DB51: 0.049598 | DC51: 0.048802 | DD51: 0.07962 | DG51: 0.630957 | DH51: 0.015986 | DI51: 0.083107 | DJ51: 0.077902 | DM51: 0.630957 | DN51: 0.04847 | DO51: 0.050655 | DP51: 0.032455 | DS51: 0.630957 | DT51: 0.049359 | DU51: 0.033317 | DV51: 0.052372 | DY51: 0.630957 | DZ51: 0.077939 | EA51: 0.088214 | EB51: 0.078504 | EE51: 0.630957 | EF51: 0.205463 | EG51: 0.208462 | EH51: 0.227197 | EK51: 0.630957 | EL51: 0.112457 | EM51: 0.108527 | EN51: 0.093477 | EQ51: 0.630957 | ER51: 0.054847 | ES51: 0.090383 | ET51: 0.090311 | EW51: 0.630957 | EX51: 0.120259 | EY51: 0.128654 | EZ51: 0.126339 | FB51: 0.630957 | FC51: 0.097648 | FD51: 0.2591616667 | FE51: 0.2631033333 | FF51: 0.1623873333 | FG51: 0.2024356667 | FH51: 0.1554983333 | FI51: 0.1328863333 | FJ51: 0.1784433333 | FK51: 0.1359226667 | FL51: 0.2527366667 | FM51: 0.1088963333 | FN51: 0 | FO51: 0.09591966667 | FP51: 0 | FQ51: 0 | FR51: 0 | FS51: 0.008133333333 | FT51: 0.05934 | FU51: 0.05899833333 | FV51: 0.04386 | FW51: 0.045016 | FX51: 0.08155233333 | FY51: 0.2137073333 | FZ51: 0.1048203333 | GA51: 0.07851366667 | GB51: 0.125084
B52: 0.724436 | C52: 0.131729 | D52: 0.118552 | E52: 0.095046 | H52: 0.724436 | I52: 0.28756 | J52: 0.328546 | K52: 0.315285 | N52: 0.724436 | O52: 0.316691 | P52: 0.313045 | Q52: 0.310972 | U52: 0.724436 | V52: 0.183328 | W52: 0.200498 | X52: 0.200911 | AA52: 0.724436 | AB52: 0.241339 | AC52: 0.238965 | AD52: 0.23001 | AG52: 0.724436 | AH52: 0.188677 | AI52: 0.176834 | AJ52: 0.181857 | AM52: 0.724436 | AN52: 0.142426 | AO52: 0.154386 | AP52: 0.171342 | AS52: 0.724436 | AT52: 0.177797 | AU52: 0.229356 | AV52: 0.209454 | AY52: 0.724436 | AZ52: 0.165914 | BA52: 0.154456 | BB52: 0.160232 | BE52: 0.724436 | BF52: 0.306682 | BG52: 0.305495 | BH52: 0.28563 | BK52: 0.724436 | BL52: 0.135354 | BM52: 0.130448 | BN52: 0.12574 | BQ52: 0.724436 | BR52: 0 | BS52: 0 | BT52: 0 | BW52: 0.724436 | BX52: 0.107491 | BY52: 0.105318 | BZ52: 0.115774 | CC52: 0.724436 | CD52: 0 | CE52: 0 | CF52: 0 | CI52: 0.724436 | CJ52: 0.010697 | CK52: 0.022381 | CL52: 0 | CO52: 0.724436 | CP52: 0 | CQ52: 0 | CR52: 0 | CU52: 0.724436 | CV52: 0.051362 | CW52: 0.012444 | CX52: 0.036744 | DA52: 0.724436 | DB52: 0.074166 | DC52: 0.072782 | DD52: 0.093413 | DG52: 0.724436 | DH52: 0.042133 | DI52: 0.096785 | DJ52: 0.094107 | DM52: 0.724436 | DN52: 0.073073 | DO52: 0.076189 | DP52: 0.065361 | DS52: 0.724436 | DT52: 0.074416 | DU52: 0.049549 | DV52: 0.079077 | DY52: 0.724436 | DZ52: 0.094892 | EA52: 0.103604 | EB52: 0.091948 | EE52: 0.724436 | EF52: 0.243294 | EG52: 0.244641 | EH52: 0.267239 | EK52: 0.724436 | EL52: 0.134168 | EM52: 0.129503 | EN52: 0.109416 | EQ52: 0.724436 | ER52: 0.078573 | ES52: 0.106841 | ET52: 0.106956 | EW52: 0.724436 | EX52: 0.144696 | EY52: 0.155249 | EZ52: 0.149899 | FB52: 0.724436 | FC52: 0.115109 | FD52: 0.3104636667 | FE52: 0.3135693333 | FF52: 0.1949123333 | FG52: 0.2367713333 | FH52: 0.182456 | FI52: 0.1560513333 | FJ52: 0.2055356667 | FK52: 0.1602006667 | FL52: 0.299269 | FM52: 0.130514 | FN52: 0 | FO52: 0.1095276667 | FP52: 0 | FQ52: 0.011026 | FR52: 0 | FS52: 0.03351666667 | FT52: 0.08012033333 | FU52: 0.077675 | FV52: 0.071541 | FW52: 0.06768066667 | FX52: 0.09681466667 | FY52: 0.2517246667 | FZ52: 0.1243623333 | GA52: 0.09745666667 | GB52: 0.149948
B53: 0.831764 | C53: 0.143982 | D53: 0.129685 | E53: 0.103631 | H53: 0.831764 | I53: 0.327846 | J53: 0.375214 | K53: 0.357365 | N53: 0.831764 | O53: 0.355307 | P53: 0.351597 | Q53: 0.351481 | U53: 0.831764 | V53: 0.206501 | W53: 0.226467 | X53: 0.226873 | AA53: 0.831764 | AB53: 0.26377 | AC53: 0.261215 | AD53: 0.253045 | AG53: 0.831764 | AH53: 0.211135 | AI53: 0.197693 | AJ53: 0.203362 | AM53: 0.831764 | AN53: 0.155352 | AO53: 0.168814 | AP53: 0.187804 | AS53: 0.831764 | AT53: 0.19452 | AU53: 0.250119 | AV53: 0.228707 | AY53: 0.831764 | AZ53: 0.184032 | BA53: 0.170476 | BB53: 0.177631 | BE53: 0.831764 | BF53: 0.340097 | BG53: 0.338596 | BH53: 0.31924 | BK53: 0.831764 | BL53: 0.150687 | BM53: 0.144454 | BN53: 0.139254 | BQ53: 0.831764 | BR53: 0 | BS53: 0 | BT53: 0 | BW53: 0.831764 | BX53: 0.112295 | BY53: 0.109866 | BZ53: 0.123196 | CC53: 0.831764 | CD53: 0 | CE53: 0 | CF53: 0 | CI53: 0.831764 | CJ53: 0.032985 | CK53: 0.053324 | CL53: 0.010318 | CO53: 0.831764 | CP53: 0 | CQ53: 0 | CR53: 0 | CU53: 0.831764 | CV53: 0.064152 | CW53: 0.020584 | CX53: 0.043841 | DA53: 0.831764 | DB53: 0.081305 | DC53: 0.079636 | DD53: 0.101613 | DG53: 0.831764 | DH53: 0.051956 | DI53: 0.104591 | DJ53: 0.101532 | DM53: 0.831764 | DN53: 0.080742 | DO53: 0.084074 | DP53: 0.076973 | DS53: 0.831764 | DT53: 0.082521 | DU53: 0.065272 | DV53: 0.08778 | DY53: 0.831764 | DZ53: 0.103245 | EA53: 0.1129 | EB53: 0.099854 | EE53: 0.831764 | EF53: 0.271307 | EG53: 0.27085 | EH53: 0.296591 | EK53: 0.831764 | EL53: 0.147581 | EM53: 0.142394 | EN53: 0.118699 | EQ53: 0.831764 | ER53: 0.096997 | ES53: 0.118143 | ET53: 0.118459 | EW53: 0.831764 | EX53: 0.158761 | EY53: 0.17052 | EZ53: 0.163183 | FB53: 0.831764 | FC53: 0.125766 | FD53: 0.353475 | FE53: 0.352795 | FF53: 0.219947 | FG53: 0.2593433333 | FH53: 0.2040633333 | FI53: 0.1706566667 | FJ53: 0.2244486667 | FK53: 0.1773796667 | FL53: 0.3326443333 | FM53: 0.1447983333 | FN53: 0 | FO53: 0.115119 | FP53: 0 | FQ53: 0.032209 | FR53: 0 | FS53: 0.042859 | FT53: 0.087518 | FU53: 0.08602633333 | FV53: 0.08059633333 | FW53: 0.07852433333 | FX53: 0.105333 | FY53: 0.2795826667 | FZ53: 0.1362246667 | GA53: 0.1111996667 | GB53: 0.1641546667
B54: 0.954993 | C54: 0.151769 | D54: 0.136902 | E54: 0.110096 | H54: 0.954993 | I54: 0.358724 | J54: 0.411016 | K54: 0.388941 | N54: 0.954993 | O54: 0.379998 | P54: 0.376442 | Q54: 0.378547 | U54: 0.954993 | V54: 0.22543 | W54: 0.245401 | X54: 0.2458 | AA54: 0.954993 | AB54: 0.272436 | AC54: 0.269795 | AD54: 0.262518 | AG54: 0.954993 | AH54: 0.228081 | AI54: 0.212714 | AJ54: 0.218922 | AM54: 0.954993 | AN54: 0.163074 | AO54: 0.17791 | AP54: 0.196735 | AS54: 0.954993 | AT54: 0.203669 | AU54: 0.261303 | AV54: 0.239265 | AY54: 0.954993 | AZ54: 0.196339 | BA54: 0.182138 | BB54: 0.190329 | BE54: 0.954993 | BF54: 0.357737 | BG54: 0.356074 | BH54: 0.337248 | BK54: 0.954993 | BL54: 0.162816 | BM54: 0.155193 | BN54: 0.14966 | BQ54: 0.954993 | BR54: 0 | BS54: 0 | BT54: 0 | BW54: 0.954993 | BX54: 0.115296 | BY54: 0.112702 | BZ54: 0.126082 | CC54: 0.954993 | CD54: 0 | CE54: 0 | CF54: 0 | CI54: 0.954993 | CJ54: 0.040399 | CK54: 0.056088 | CL54: 0.020141 | CO54: 0.954993 | CP54: 0 | CQ54: 0 | CR54: 0 | CU54: 0.954993 | CV54: 0.064848 | CW54: 0.020204 | CX54: 0.041331 | DA54: 0.954993 | DB54: 0.082957 | DC54: 0.081056 | DD54: 0.107923 | DG54: 0.954993 | DH54: 0.051273 | DI54: 0.110686 | DJ54: 0.107493 | DM54: 0.954993 | DN54: 0.08345 | DO54: 0.086804 | DP54: 0.078028 | DS54: 0.954993 | DT54: 0.086205 | DU54: 0.081357 | DV54: 0.091815 | DY54: 0.954993 | DZ54: 0.109826 | EA54: 0.120071 | EB54: 0.105911 | EE54: 0.954993 | EF54: 0.287848 | EG54: 0.285652 | EH54: 0.313561 | EK54: 0.954993 | EL54: 0.156808 | EM54: 0.151244 | EN54: 0.125816 | EQ54: 0.954993 | ER54: 0.100377 | ES54: 0.127708 | ET54: 0.128154 | EW54: 0.954993 | EX54: 0.167383 | EY54: 0.17999 | EZ54: 0.170581 | FB54: 0.954993 | FC54: 0.1329223333 | FD54: 0.386227 | FE54: 0.378329 | FF54: 0.238877 | FG54: 0.2682496667 | FH54: 0.2199056667 | FI54: 0.1792396667 | FJ54: 0.2347456667 | FK54: 0.189602 | FL54: 0.350353 | FM54: 0.1558896667 | FN54: 0 | FO54: 0.1180266667 | FP54: 0 | FQ54: 0.038876 | FR54: 0 | FS54: 0.04212766667 | FT54: 0.09064533333 | FU54: 0.08981733333 | FV54: 0.08276066667 | FW54: 0.086459 | FX54: 0.111936 | FY54: 0.295687 | FZ54: 0.1446226667 | GA54: 0.1187463333 | GB54: 0.1726513333
B55: 1.096478 | C55: 0.157573 | D55: 0.142314 | E55: 0.114674 | H55: 1.096478 | I55: 0.388832 | J55: 0.445703 | K55: 0.419182 | N55: 1.096478 | O55: 0.400176 | P55: 0.396929 | Q55: 0.401676 | U55: 1.096478 | V55: 0.243572 | W55: 0.263758 | X55: 0.264186 | AA55: 1.096478 | AB55: 0.274568 | AC55: 0.271883 | AD55: 0.265466 | AG55: 1.096478 | AH55: 0.245006 | AI55: 0.227399 | AJ55: 0.234178 | AM55: 1.096478 | AN55: 0.168543 | AO55: 0.18493 | AP55: 0.203498 | AS55: 1.096478 | AT55: 0.210647 | AU55: 0.269479 | AV55: 0.247139 | AY55: 1.096478 | AZ55: 0.207383 | BA55: 0.192467 | BB55: 0.201306 | BE55: 1.096478 | BF55: 0.369021 | BG55: 0.367226 | BH55: 0.34889 | BK55: 1.096478 | BL55: 0.174407 | BM55: 0.165275 | BN55: 0.159507 | BQ55: 1.096478 | BR55: 0 | BS55: 0 | BT55: 0 | BW55: 1.096478 | BX55: 0.115648 | BY55: 0.112922 | BZ55: 0.127162 | CC55: 1.096478 | CD55: 0 | CE55: 0 | CF55: 0 | CI55: 1.096478 | CJ55: 0.037101 | CK55: 0.058839 | CL55: 0.019079 | CO55: 1.096478 | CP55: 0 | CQ55: 0 | CR55: 0 | CU55: 1.096478 | CV55: 0.060434 | CW55: 0.015952 | CX55: 0.044003 | DA55: 1.096478 | DB55: 0.087458 | DC55: 0.085311 | DD55: 0.112625 | DG55: 1.096478 | DH55: 0.0633 | DI55: 0.114768 | DJ55: 0.111576 | DM55: 1.096478 | DN55: 0.088785 | DO55: 0.092323 | DP55: 0.082012 | DS55: 1.096478 | DT55: 0.092787 | DU55: 0.08236 | DV55: 0.098928 | DY55: 1.096478 | DZ55: 0.114905 | EA55: 0.125444 | EB55: 0.11028 | EE55: 1.096478 | EF55: 0.300752 | EG55: 0.296504 | EH55: 0.326191 | EK55: 1.096478 | EL55: 0.164332 | EM55: 0.158481 | EN55: 0.130974 | EQ55: 1.096478 | ER55: 0.107435 | ES55: 0.135874 | ET55: 0.136544 | EW55: 1.096478 | EX55: 0.173037 | EY55: 0.186333 | EZ55: 0.174937 | FB55: 1.096478 | FC55: 0.138187 | FD55: 0.4179056667 | FE55: 0.3995936667 | FF55: 0.257172 | FG55: 0.270639 | FH55: 0.2355276667 | FI55: 0.185657 | FJ55: 0.2424216667 | FK55: 0.2003853333 | FL55: 0.3617123333 | FM55: 0.1663963333 | FN55: 0 | FO55: 0.1185773333 | FP55: 0 | FQ55: 0.03833966667 | FR55: 0 | FS55: 0.04012966667 | FT55: 0.09513133333 | FU55: 0.096548 | FV55: 0.08770666667 | FW55: 0.09135833333 | FX55: 0.1168763333 | FY55: 0.3078156667 | FZ55: 0.1512623333 | GA55: 0.1266176667 | GB55: 0.1781023333
B56: 1.258925 | C56: 0.165231 | D56: 0.149411 | E56: 0.120969 | H56: 1.258925 | I56: 0.424176 | J56: 0.486055 | K56: 0.454668 | N56: 1.258925 | O56: 0.423019 | P56: 0.420145 | Q56: 0.427901 | U56: 1.258925 | V56: 0.266318 | W56: 0.286416 | X56: 0.286946 | AA56: 1.258925 | AB56: 0.27647 | AC56: 0.273738 | AD56: 0.267917 | AG56: 1.258925 | AH56: 0.266008 | AI56: 0.245962 | AJ56: 0.253441 | AM56: 1.258925 | AN56: 0.1762 | AO56: 0.194643 | AP56: 0.212645 | AS56: 1.258925 | AT56: 0.220043 | AU56: 0.280292 | AV56: 0.257462 | AY56: 1.258925 | AZ56: 0.22075 | BA56: 0.205248 | BB56: 0.214818 | BE56: 1.258925 | BF56: 0.381529 | BG56: 0.379537 | BH56: 0.361601 | BK56: 1.258925 | BL56: 0.18978 | BM56: 0.178801 | BN56: 0.172773 | BQ56: 1.258925 | BR56: 0 | BS56: 0 | BT56: 0 | BW56: 1.258925 | BX56: 0.11861 | BY56: 0.115697 | BZ56: 0.130516 | CC56: 1.258925 | CD56: 0 | CE56: 0 | CF56: 0 | CI56: 1.258925 | CJ56: 0.044929 | CK56: 0.056441 | CL56: 0.015974 | CO56: 1.258925 | CP56: 0 | CQ56: 0 | CR56: 0 | CU56: 1.258925 | CV56: 0.063115 | CW56: 0.031984 | CX56: 0.039951 | DA56: 1.258925 | DB56: 0.09201 | DC56: 0.089584 | DD56: 0.119415 | DG56: 1.258925 | DH56: 0.081168 | DI56: 0.120554 | DJ56: 0.117229 | DM56: 1.258925 | DN56: 0.09416 | DO56: 0.097834 | DP56: 0.085852 | DS56: 1.258925 | DT56: 0.099584 | DU56: 0.090421 | DV56: 0.106319 | DY56: 1.258925 | DZ56: 0.122139 | EA56: 0.133121 | EB56: 0.116638 | EE56: 1.258925 | EF56: 0.316325 | EG56: 0.309545 | EH56: 0.341051 | EK56: 1.258925 | EL56: 0.174435 | EM56: 0.168291 | EN56: 0.138606 | EQ56: 1.258925 | ER56: 0.115224 | ES56: 0.146332 | ET56: 0.147363 | EW56: 1.258925 | EX56: 0.180455 | EY56: 0.194725 | EZ56: 0.181023 | FB56: 1.258925 | FC56: 0.1452036667 | FD56: 0.4549663333 | FE56: 0.4236883333 | FF56: 0.2798933333 | FG56: 0.2727083333 | FH56: 0.255137 | FI56: 0.194496 | FJ56: 0.252599 | FK56: 0.2136053333 | FL56: 0.3742223333 | FM56: 0.1804513333 | FN56: 0 | FO56: 0.1216076667 | FP56: 0 | FQ56: 0.03911466667 | FR56: 0 | FS56: 0.04501666667 | FT56: 0.1003363333 | FU56: 0.106317 | FV56: 0.09261533333 | FW56: 0.09877466667 | FX56: 0.123966 | FY56: 0.322307 | FZ56: 0.160444 | GA56: 0.1363063333 | GB56: 0.185401
B57: 1.44544 | C57: 0.178341 | D57: 0.161438 | E57: 0.1315 | H57: 1.44544 | I57: 0.472151 | J57: 0.540568 | K57: 0.503463 | N57: 1.44544 | O57: 0.457004 | P57: 0.454473 | Q57: 0.465693 | U57: 1.44544 | V57: 0.298868 | W57: 0.319237 | X57: 0.319966 | AA57: 1.44544 | AB57: 0.285202 | AC57: 0.28238 | AD57: 0.2768 | AG57: 1.44544 | AH57: 0.295744 | AI57: 0.273163 | AJ57: 0.281594 | AM57: 1.44544 | AN57: 0.19021 | AO57: 0.211514 | AP57: 0.229177 | AS57: 1.44544 | AT57: 0.236856 | AU57: 0.299897 | AV57: 0.275834 | AY57: 1.44544 | AZ57: 0.240581 | BA57: 0.224218 | BB57: 0.234965 | BE57: 1.44544 | BF57: 0.403843 | BG57: 0.401486 | BH57: 0.384151 | BK57: 1.44544 | BL57: 0.212975 | BM57: 0.199648 | BN57: 0.193209 | BQ57: 1.44544 | BR57: 0 | BS57: 0 | BT57: 0 | BW57: 1.44544 | BX57: 0.127381 | BY57: 0.124146 | BZ57: 0.140018 | CC57: 1.44544 | CD57: 0 | CE57: 0 | CF57: 0 | CI57: 1.44544 | CJ57: 0.065803 | CK57: 0.06282 | CL57: 0.029803 | CO57: 1.44544 | CP57: 0 | CQ57: 0 | CR57: 0 | CU57: 1.44544 | CV57: 0.066747 | CW57: 0.063637 | CX57: 0.050373 | DA57: 1.44544 | DB57: 0.101035 | DC57: 0.098238 | DD57: 0.130819 | DG57: 1.44544 | DH57: 0.086523 | DI57: 0.130405 | DJ57: 0.126752 | DM57: 1.44544 | DN57: 0.103832 | DO57: 0.107731 | DP57: 0.093553 | DS57: 1.44544 | DT57: 0.110733 | DU57: 0.100428 | DV57: 0.118385 | DY57: 1.44544 | DZ57: 0.134288 | EA57: 0.146058 | EB57: 0.127573 | EE57: 1.44544 | EF57: 0.34192 | EG57: 0.331838 | EH57: 0.36579 | EK57: 1.44544 | EL57: 0.191165 | EM57: 0.184604 | EN57: 0.151818 | EQ57: 1.44544 | ER57: 0.128059 | ES57: 0.161806 | ET57: 0.163429 | EW57: 1.44544 | EX57: 0.193941 | EY57: 0.209845 | EZ57: 0.19322 | FB57: 1.44544 | FC57: 0.157093 | FD57: 0.505394 | FE57: 0.4590566667 | FF57: 0.3126903333 | FG57: 0.2814606667 | FH57: 0.2835003333 | FI57: 0.2103003333 | FJ57: 0.2708623333 | FK57: 0.2332546667 | FL57: 0.3964933333 | FM57: 0.201944 | FN57: 0 | FO57: 0.130515 | FP57: 0 | FQ57: 0.05280866667 | FR57: 0 | FS57: 0.06025233333 | FT57: 0.1100306667 | FU57: 0.11456 | FV57: 0.1017053333 | FW57: 0.1098486667 | FX57: 0.135973 | FY57: 0.346516 | FZ57: 0.1758623333 | GA57: 0.151098 | GB57: 0.199002
B58: 1.659587 | C58: 0.198932 | D58: 0.180252 | E58: 0.147872 | H58: 1.659587 | I58: 0.535622 | J58: 0.612719 | K58: 0.56895 | N58: 1.659587 | O58: 0.506387 | P58: 0.504066 | Q58: 0.519162 | U58: 1.659587 | V58: 0.343716 | W58: 0.364916 | X58: 0.365933 | AA58: 1.659587 | AB58: 0.305327 | AC58: 0.302358 | AD58: 0.296734 | AG58: 1.659587 | AH58: 0.335768 | AI58: 0.310778 | AJ58: 0.320449 | AM58: 1.659587 | AN58: 0.212928 | AO58: 0.23795 | AP58: 0.255693 | AS58: 1.659587 | AT58: 0.263607 | AU58: 0.331473 | AV58: 0.305116 | AY58: 1.659587 | AZ58: 0.268831 | BA58: 0.251182 | BB58: 0.263807 | BE58: 1.659587 | BF58: 0.440693 | BG58: 0.437765 | BH58: 0.421788 | BK58: 1.659587 | BL58: 0.245957 | BM58: 0.229784 | BN58: 0.222694 | BQ58: 1.659587 | BR58: 0 | BS58: 0 | BT58: 0 | BW58: 1.659587 | BX58: 0.144354 | BY58: 0.140614 | BZ58: 0.158125 | CC58: 1.659587 | CD58: 0 | CE58: 0 | CF58: 0 | CI58: 1.659587 | CJ58: 0.072835 | CK58: 0.072372 | CL58: 0.0682 | CO58: 1.659587 | CP58: 0 | CQ58: 0 | CR58: 0 | CU58: 1.659587 | CV58: 0.076551 | CW58: 0.068912 | CX58: 0.075234 | DA58: 1.659587 | DB58: 0.115136 | DC58: 0.11188 | DD58: 0.1483 | DG58: 1.659587 | DH58: 0.099995 | DI58: 0.145836 | DJ58: 0.141601 | DM58: 1.659587 | DN58: 0.118596 | DO58: 0.12278 | DP58: 0.105854 | DS58: 1.659587 | DT58: 0.126906 | DU58: 0.115868 | DV58: 0.13585 | DY58: 1.659587 | DZ58: 0.153074 | EA58: 0.166157 | EB58: 0.144776 | EE58: 1.659587 | EF58: 0.381602 | EG58: 0.367348 | EH58: 0.404745 | EK58: 1.659587 | EL58: 0.216894 | EM58: 0.209682 | EN58: 0.172628 | EQ58: 1.659587 | ER58: 0.146877 | ES58: 0.183944 | ET58: 0.186426 | EW58: 1.659587 | EX58: 0.216122 | EY58: 0.234509 | EZ58: 0.214155 | FB58: 1.659587 | FC58: 0.1756853333 | FD58: 0.5724303333 | FE58: 0.5098716667 | FF58: 0.3581883333 | FG58: 0.301473 | FH58: 0.3223316667 | FI58: 0.2355236667 | FJ58: 0.3000653333 | FK58: 0.2612733333 | FL58: 0.4334153333 | FM58: 0.2328116667 | FN58: 0 | FO58: 0.1476976667 | FP58: 0 | FQ58: 0.07113566667 | FR58: 0 | FS58: 0.07356566667 | FT58: 0.1251053333 | FU58: 0.129144 | FV58: 0.1157433333 | FW58: 0.126208 | FX58: 0.154669 | FY58: 0.384565 | FZ58: 0.1997346667 | GA58: 0.1724156667 | GB58: 0.2215953333
B59: 1.905461 | C59: 0.227368 | D59: 0.206218 | E59: 0.170368 | H59: 1.905461 | I59: 0.614661 | J59: 0.702879 | K59: 0.651475 | N59: 1.905461 | O59: 0.571964 | P59: 0.569643 | Q59: 0.589028 | U59: 1.905461 | V59: 0.401252 | W59: 0.423966 | X59: 0.425316 | AA59: 1.905461 | AB59: 0.338423 | AC59: 0.335254 | AD59: 0.329578 | AG59: 1.905461 | AH59: 0.385425 | AI59: 0.358314 | AJ59: 0.369484 | AM59: 1.905461 | AN59: 0.244689 | AO59: 0.274207 | AP59: 0.292527 | AS59: 1.905461 | AT59: 0.300474 | AU59: 0.37534 | AV59: 0.34557 | AY59: 1.905461 | AZ59: 0.305801 | BA59: 0.286315 | BB59: 0.301576 | BE59: 1.905461 | BF59: 0.493102 | BG59: 0.489421 | BH59: 0.47627 | BK59: 1.905461 | BL59: 0.288928 | BM59: 0.269499 | BN59: 0.261474 | BQ59: 1.905461 | BR59: 0 | BS59: 0.03185 | BT59: 0 | BW59: 1.905461 | BX59: 0.169977 | BY59: 0.165543 | BZ59: 0.185421 | CC59: 1.905461 | CD59: 0 | CE59: 0 | CF59: 0 | CI59: 1.905461 | CJ59: 0.089257 | CK59: 0.088109 | CL59: 0.080295 | CO59: 1.905461 | CP59: 0 | CQ59: 0 | CR59: 0 | CU59: 1.905461 | CV59: 0.092209 | CW59: 0.084329 | CX59: 0.089234 | DA59: 1.905461 | DB59: 0.134405 | DC59: 0.130621 | DD59: 0.171822 | DG59: 1.905461 | DH59: 0.117104 | DI59: 0.166924 | DJ59: 0.161883 | DM59: 1.905461 | DN59: 0.138937 | DO59: 0.143438 | DP59: 0.123136 | DS59: 1.905461 | DT59: 0.14849 | DU59: 0.136493 | DV59: 0.159144 | DY59: 1.905461 | DZ59: 0.178808 | EA59: 0.193772 | EB59: 0.168561 | EE59: 1.905461 | EF59: 0.436558 | EG59: 0.417169 | EH59: 0.459208 | EK59: 1.905461 | EL59: 0.252207 | EM59: 0.244014 | EN59: 0.201411 | EQ59: 1.905461 | ER59: 0.172081 | ES59: 0.213074 | ET59: 0.216698 | EW59: 1.905461 | EX59: 0.247597 | EY59: 0.269315 | EZ59: 0.244316 | FB59: 1.905461 | FC59: 0.201318 | FD59: 0.6563383333 | FE59: 0.5768783333 | FF59: 0.4168446667 | FG59: 0.3344183333 | FH59: 0.3710743333 | FI59: 0.2704743333 | FJ59: 0.3404613333 | FK59: 0.2978973333 | FL59: 0.4862643333 | FM59: 0.2733003333 | FN59: 0.01061666667 | FO59: 0.173647 | FP59: 0 | FQ59: 0.085887 | FR59: 0 | FS59: 0.08859066667 | FT59: 0.145616 | FU59: 0.148637 | FV59: 0.1351703333 | FW59: 0.1480423333 | FX59: 0.1803803333 | FY59: 0.437645 | FZ59: 0.232544 | GA59: 0.2006176667 | GB59: 0.2537426667
B60: 2.187762 | C60: 0.261659 | D60: 0.237556 | E60: 0.197446 | H60: 2.187762 | I60: 0.704268 | J60: 0.805562 | K60: 0.745886 | N60: 2.187762 | O60: 0.649393 | P60: 0.646818 | Q60: 0.670723 | U60: 2.187762 | V60: 0.468083 | W60: 0.492891 | X60: 0.494529 | AA60: 2.187762 | AB60: 0.382475 | AC60: 0.379068 | AD60: 0.37372 | AG60: 2.187762 | AH60: 0.440446 | AI60: 0.411624 | AJ60: 0.424405 | AM60: 2.187762 | AN60: 0.282996 | AO60: 0.317503 | AP60: 0.336827 | AS60: 2.187762 | AT60: 0.344409 | AU60: 0.42789 | AV60: 0.393883 | AY60: 2.187762 | AZ60: 0.349143 | BA60: 0.327297 | BB60: 0.345697 | BE60: 2.187762 | BF60: 0.557439 | BG60: 0.552949 | BH60: 0.544448 | BK60: 2.187762 | BL60: 0.339122 | BM60: 0.31627 | BN60: 0.307064 | BQ60: 2.187762 | BR60: 0 | BS60: 0.087778 | BT60: 0 | BW60: 2.187762 | BX60: 0.202146 | BY60: 0.19687 | BZ60: 0.219751 | CC60: 2.187762 | CD60: 0 | CE60: 0 | CF60: 0 | CI60: 2.187762 | CJ60: 0.109506 | CK60: 0.108425 | CL60: 0.099596 | CO60: 2.187762 | CP60: 0 | CQ60: 0 | CR60: 0.020897 | CU60: 2.187762 | CV60: 0.112885 | CW60: 0.103422 | CX60: 0.11012 | DA60: 2.187762 | DB60: 0.156982 | DC60: 0.152635 | DD60: 0.199299 | DG60: 2.187762 | DH60: 0.137437 | DI60: 0.19182 | DJ60: 0.185841 | DM60: 2.187762 | DN60: 0.163513 | DO60: 0.168292 | DP60: 0.144067 | DS60: 2.187762 | DT60: 0.173928 | DU60: 0.161112 | DV60: 0.186648 | DY60: 2.187762 | DZ60: 0.20961 | EA60: 0.226892 | EB60: 0.197183 | EE60: 2.187762 | EF60: 0.503635 | EG60: 0.478233 | EH60: 0.525953 | EK60: 2.187762 | EL60: 0.2948 | EM60: 0.285263 | EN60: 0.236117 | EQ60: 2.187762 | ER60: 0.20191 | ES60: 0.247305 | ET60: 0.252307 | EW60: 2.187762 | EX60: 0.286161 | EY60: 0.311796 | EZ60: 0.281357 | FB60: 2.187762 | FC60: 0.2322203333 | FD60: 0.7519053333 | FE60: 0.6556446667 | FF60: 0.4851676667 | FG60: 0.378421 | FH60: 0.4254916667 | FI60: 0.312442 | FJ60: 0.3887273333 | FK60: 0.3407123333 | FL60: 0.551612 | FM60: 0.3208186667 | FN60: 0.02925933333 | FO60: 0.2062556667 | FP60: 0 | FQ60: 0.1058423333 | FR60: 0.006965666667 | FS60: 0.108809 | FT60: 0.1696386667 | FU60: 0.1716993333 | FV60: 0.158624 | FW60: 0.173896 | FX60: 0.2112283333 | FY60: 0.502607 | FZ60: 0.27206 | GA60: 0.2338406667 | GB60: 0.2931046667
B61: 2.511886 | C61: 0.299414 | D61: 0.272093 | E61: 0.2272 | H61: 2.511886 | I61: 0.79933 | J61: 0.914899 | K61: 0.84662 | N61: 2.511886 | O61: 0.73394 | P61: 0.730848 | Q61: 0.759226 | U61: 2.511886 | V61: 0.540315 | W61: 0.567619 | X61: 0.569407 | AA61: 2.511886 | AB61: 0.434794 | AC61: 0.43111 | AD61: 0.426809 | AG61: 2.511886 | AH61: 0.496218 | AI61: 0.466042 | AJ61: 0.48037 | AM61: 2.511886 | AN61: 0.324725 | AO61: 0.364502 | AP61: 0.385222 | AS61: 2.511886 | AT61: 0.391888 | AU61: 0.484885 | AV61: 0.446201 | AY61: 2.511886 | AZ61: 0.39628 | BA61: 0.37161 | BB61: 0.393256 | BE61: 2.511886 | BF61: 0.629945 | BG61: 0.624744 | BH61: 0.622384 | BK61: 2.511886 | BL61: 0.393332 | BM61: 0.367077 | BN61: 0.356512 | BQ61: 2.511886 | BR61: 0.023617 | BS61: 0.10498 | BT61: 0 | BW61: 2.511886 | BX61: 0.237686 | BY61: 0.231485 | BZ61: 0.257828 | CC61: 2.511886 | CD61: 0 | CE61: 0 | CF61: 0.016036 | CI61: 2.511886 | CJ61: 0.132815 | CK61: 0.131781 | CL61: 0.121517 | CO61: 2.511886 | CP61: 0 | CQ61: 0 | CR61: 0.023115 | CU61: 2.511886 | CV61: 0.136613 | CW61: 0.125337 | CX61: 0.133582 | DA61: 2.511886 | DB61: 0.180622 | DC61: 0.175673 | DD61: 0.228135 | DG61: 2.511886 | DH61: 0.158778 | DI61: 0.218087 | DJ61: 0.211136 | DM61: 2.511886 | DN61: 0.190513 | DO61: 0.19548 | DP61: 0.166878 | DS61: 2.511886 | DT61: 0.201024 | DU61: 0.187684 | DV61: 0.216108 | DY61: 2.511886 | DZ61: 0.242844 | EA61: 0.262664 | EB61: 0.228166 | EE61: 2.511886 | EF61: 0.579165 | EG61: 0.546891 | EH61: 0.601051 | EK61: 2.511886 | EL61: 0.341502 | EM61: 0.330271 | EN61: 0.273928 | EQ61: 2.511886 | ER61: 0.233977 | ES61: 0.284031 | ET61: 0.290584 | EW61: 2.511886 | EX61: 0.328993 | EY61: 0.358852 | EZ61: 0.322334 | FB61: 2.511886 | FC61: 0.2662356667 | FD61: 0.8536163333 | FE61: 0.741338 | FF61: 0.5591136667 | FG61: 0.4309043333 | FH61: 0.4808766667 | FI61: 0.3581496667 | FJ61: 0.4409913333 | FK61: 0.3870486667 | FL61: 0.625691 | FM61: 0.372307 | FN61: 0.04286566667 | FO61: 0.242333 | FP61: 0.005345333333 | FQ61: 0.1287043333 | FR61: 0.007705 | FS61: 0.131844 | FT61: 0.19481 | FU61: 0.1960003333 | FV61: 0.1842903333 | FW61: 0.2016053333 | FX61: 0.244558 | FY61: 0.5757023333 | FZ61: 0.3152336667 | GA61: 0.2695306667 | GB61: 0.3367263333
B62: 2.884031 | C62: 0.338279 | D62: 0.307657 | E62: 0.257685 | H62: 2.884031 | I62: 0.894999 | J62: 1.02504 | K62: 0.9481 | N62: 2.884031 | O62: 0.821469 | P62: 0.817639 | Q62: 0.850006 | U62: 2.884031 | V62: 0.613687 | W62: 0.643682 | X62: 0.64542 | AA62: 2.884031 | AB62: 0.492965 | AC62: 0.48896 | AD62: 0.486582 | AG62: 2.884031 | AH62: 0.548396 | AI62: 0.517037 | AJ62: 0.532698 | AM62: 2.884031 | AN62: 0.366758 | AO62: 0.411894 | AP62: 0.434494 | AS62: 2.884031 | AT62: 0.439695 | AU62: 0.542408 | AV62: 0.498973 | AY62: 2.884031 | AZ62: 0.444649 | BA62: 0.416812 | BB62: 0.441365 | BE62: 2.884031 | BF62: 0.708098 | BG62: 0.702414 | BH62: 0.706623 | BK62: 2.884031 | BL62: 0.44815 | BM62: 0.418637 | BN62: 0.406612 | BQ62: 2.884031 | BR62: 0.049696 | BS62: 0.123486 | BT62: 0 | BW62: 2.884031 | BX62: 0.272869 | BY62: 0.265738 | BZ62: 0.295737 | CC62: 2.884031 | CD62: 0 | CE62: 0.050246 | CF62: 0.057881 | CI62: 2.884031 | CJ62: 0.157062 | CK62: 0.156084 | CL62: 0.144231 | CO62: 2.884031 | CP62: 0.047858 | CQ62: 0.055939 | CR62: 0.06845 | CU62: 2.884031 | CV62: 0.160839 | CW62: 0.147717 | CX62: 0.157422 | DA62: 2.884031 | DB62: 0.203108 | DC62: 0.197473 | DD62: 0.255724 | DG62: 2.884031 | DH62: 0.178888 | DI62: 0.243144 | DJ62: 0.235258 | DM62: 2.884031 | DN62: 0.217799 | DO62: 0.222849 | DP62: 0.189615 | DS62: 2.884031 | DT62: 0.227049 | DU62: 0.213617 | DV62: 0.244729 | DY62: 2.884031 | DZ62: 0.275419 | EA62: 0.297719 | EB62: 0.258579 | EE62: 2.884031 | EF62: 0.659814 | EG62: 0.619835 | EH62: 0.680801 | EK62: 2.884031 | EL62: 0.388618 | EM62: 0.37545 | EN62: 0.311631 | EQ62: 2.884031 | ER62: 0.265401 | ES62: 0.320083 | ET62: 0.328256 | EW62: 2.884031 | EX62: 0.373354 | EY62: 0.407506 | EZ62: 0.364491 | FB62: 2.884031 | FC62: 0.301207 | FD62: 0.9560463333 | FE62: 0.8297046667 | FF62: 0.634263 | FG62: 0.4895023333 | FH62: 0.5327103333 | FI62: 0.404382 | FJ62: 0.493692 | FK62: 0.4342753333 | FL62: 0.7057116667 | FM62: 0.4244663333 | FN62: 0.05772733333 | FO62: 0.2781146667 | FP62: 0.03604233333 | FQ62: 0.152459 | FR62: 0.05741566667 | FS62: 0.155326 | FT62: 0.2187683333 | FU62: 0.2190966667 | FV62: 0.2100876667 | FW62: 0.228465 | FX62: 0.277239 | FY62: 0.6534833333 | FZ62: 0.3585663333 | GA62: 0.30458 | GB62: 0.3817836667
B63: 3.311311 | C63: 0.376295 | D63: 0.342432 | E63: 0.287267 | H63: 3.311311 | I63: 0.987155 | J63: 1.130867 | K63: 1.045334 | N63: 3.311311 | O63: 0.908994 | P63: 0.904302 | Q63: 0.939721 | U63: 3.311311 | V63: 0.684093 | W63: 0.716755 | X63: 0.718249 | AA63: 3.311311 | AB63: 0.554959 | AC63: 0.550602 | AD63: 0.551035 | AG63: 3.311311 | AH63: 0.593616 | AI63: 0.561032 | AJ63: 0.577745 | AM63: 3.311311 | AN63: 0.406587 | AO63: 0.456912 | AP63: 0.482058 | AS63: 3.311311 | AT63: 0.485448 | AU63: 0.597496 | AV63: 0.5495 | AY63: 3.311311 | AZ63: 0.491868 | BA63: 0.460719 | BB63: 0.487513 | BE63: 3.311311 | BF63: 0.790896 | BG63: 0.784992 | BH63: 0.795052 | BK63: 3.311311 | BL63: 0.500477 | BM63: 0.467901 | BN63: 0.454372 | BQ63: 3.311311 | BR63: 0.060389 | BS63: 0.142629 | BT63: 0 | BW63: 3.311311 | BX63: 0.304245 | BY63: 0.296267 | BZ63: 0.329828 | CC63: 3.311311 | CD63: 0 | CE63: 0.069004 | CF63: 0.069467 | CI63: 3.311311 | CJ63: 0.180209 | CK63: 0.179243 | CL63: 0.165788 | CO63: 3.311311 | CP63: 0.0683 | CQ63: 0.079142 | CR63: 0.08641 | CU63: 3.311311 | CV63: 0.182981 | CW63: 0.168285 | CX63: 0.179289 | DA63: 3.311311 | DB63: 0.222784 | DC63: 0.21634 | DD63: 0.28005 | DG63: 3.311311 | DH63: 0.195807 | DI63: 0.264835 | DJ63: 0.256093 | DM63: 3.311311 | DN63: 0.243328 | DO63: 0.248387 | DP63: 0.210601 | DS63: 3.311311 | DT63: 0.249337 | DU63: 0.236322 | DV63: 0.269769 | DY63: 3.311311 | DZ63: 0.304453 | EA63: 0.328902 | EB63: 0.28564 | EE63: 3.311311 | EF63: 0.74331 | EG63: 0.694828 | EH63: 0.762545 | EK63: 3.311311 | EL63: 0.432695 | EM63: 0.417537 | EN63: 0.346312 | EQ63: 3.311311 | ER63: 0.293404 | ES63: 0.352325 | ET63: 0.362037 | EW63: 3.311311 | EX63: 0.417271 | EY63: 0.455647 | EZ63: 0.405925 | FB63: 3.311311 | FC63: 0.3353313333 | FD63: 1.054452 | FE63: 0.9176723333 | FF63: 0.7063656667 | FG63: 0.5521986667 | FH63: 0.5774643333 | FI63: 0.448519 | FJ63: 0.544148 | FK63: 0.4800333333 | FL63: 0.7903133333 | FM63: 0.47425 | FN63: 0.06767266667 | FO63: 0.3101133333 | FP63: 0.046157 | FQ63: 0.17508 | FR63: 0.07795066667 | FS63: 0.1768516667 | FT63: 0.2397246667 | FU63: 0.2389116667 | FV63: 0.2341053333 | FW63: 0.2518093333 | FX63: 0.3063316667 | FY63: 0.733561 | FZ63: 0.398848 | GA63: 0.335922 | GB63: 0.426281
B64: 3.801894 | C64: 0.411943 | D64: 0.375004 | E64: 0.314682 | H64: 3.801894 | I64: 1.072135 | J64: 1.227836 | K64: 1.133851 | N64: 3.801894 | O64: 0.994571 | P64: 0.989008 | Q64: 1.026213 | U64: 3.801894 | V64: 0.747691 | W64: 0.782803 | X64: 0.783928 | AA64: 3.801894 | AB64: 0.619032 | AC64: 0.61432 | AD64: 0.618369 | AG64: 3.801894 | AH64: 0.629578 | AI64: 0.595619 | AJ64: 0.613112 | AM64: 3.801894 | AN64: 0.442479 | AO64: 0.497475 | AP64: 0.526031 | AS64: 3.801894 | AT64: 0.527615 | AU64: 0.648205 | AV64: 0.596 | AY64: 3.801894 | AZ64: 0.535706 | BA64: 0.501329 | BB64: 0.529574 | BE64: 3.801894 | BF64: 0.878603 | BG64: 0.872642 | BH64: 0.887081 | BK64: 3.801894 | BL64: 0.547659 | BM64: 0.512202 | BN64: 0.497166 | BQ64: 3.801894 | BR64: 0.071158 | BS64: 0.160595 | BT64: 0 | BW64: 3.801894 | BX64: 0.329296 | BY64: 0.320612 | BZ64: 0.35742 | CC64: 3.801894 | CD64: 0.011195 | CE64: 0.07601 | CF64: 0.077475 | CI64: 3.801894 | CJ64: 0.20058 | CK64: 0.19949 | CL64: 0.184471 | CO64: 3.801894 | CP64: 0.076714 | CQ64: 0.088255 | CR64: 0.095905 | CU64: 3.801894 | CV64: 0.200972 | CW64: 0.18529 | CX64: 0.197231 | DA64: 3.801894 | DB64: 0.238759 | DC64: 0.231402 | DD64: 0.299954 | DG64: 3.801894 | DH64: 0.208186 | DI64: 0.281739 | DJ64: 0.272244 | DM64: 3.801894 | DN64: 0.265429 | DO64: 0.270472 | DP64: 0.228673 | DS64: 3.801894 | DT64: 0.265739 | DU64: 0.253679 | DV64: 0.288991 | DY64: 3.801894 | DZ64: 0.327723 | EA64: 0.35377 | EB64: 0.307152 | EE64: 3.801894 | EF64: 0.828641 | EG64: 0.770907 | EH64: 0.844919 | EK64: 3.801894 | EL64: 0.471055 | EM64: 0.454083 | EN64: 0.375824 | EQ64: 3.801894 | ER64: 0.315722 | ES64: 0.378111 | ET64: 0.389075 | EW64: 3.801894 | EX64: 0.459821 | EY64: 0.502317 | EZ64: 0.445831 | FB64: 3.801894 | FC64: 0.3672096667 | FD64: 1.144607333 | FE64: 1.003264 | FF64: 0.771474 | FG64: 0.6172403333 | FH64: 0.6127696667 | FI64: 0.4886616667 | FJ64: 0.5906066667 | FK64: 0.522203 | FL64: 0.879442 | FM64: 0.519009 | FN64: 0.077251 | FO64: 0.335776 | FP64: 0.05489333333 | FQ64: 0.194847 | FR64: 0.086958 | FS64: 0.1944976667 | FT64: 0.256705 | FU64: 0.2540563333 | FV64: 0.254858 | FW64: 0.2694696667 | FX64: 0.3295483333 | FY64: 0.8148223333 | FZ64: 0.433654 | GA64: 0.3609693333 | GB64: 0.469323
B65: 4.365158 | C65: 0.443928 | D65: 0.404148 | E65: 0.338846 | H65: 4.365158 | I65: 1.145897 | J65: 1.311037 | K65: 1.209047 | N65: 4.365158 | O65: 1.076594 | P65: 1.070266 | Q65: 1.107799 | U65: 4.365158 | V65: 0.800554 | W65: 0.837802 | X65: 0.838533 | AA65: 4.365158 | AB65: 0.683449 | AC65: 0.678372 | AD65: 0.686602 | AG65: 4.365158 | AH65: 0.655029 | AI65: 0.619626 | AJ65: 0.637658 | AM65: 4.365158 | AN65: 0.473322 | AO65: 0.532079 | AP65: 0.565036 | AS65: 4.365158 | AT65: 0.565262 | AU65: 0.693334 | AV65: 0.637395 | AY65: 4.365158 | AZ65: 0.573925 | BA65: 0.536646 | BB65: 0.565605 | BE65: 4.365158 | BF65: 0.971958 | BG65: 0.965905 | BH65: 0.982778 | BK65: 4.365158 | BL65: 0.587194 | BM65: 0.548992 | BN65: 0.53252 | BQ65: 4.365158 | BR65: 0.078518 | BS65: 0.176198 | BT65: 0 | BW65: 4.365158 | BX65: 0.346844 | BY65: 0.337601 | BZ65: 0.377232 | CC65: 4.365158 | CD65: 0.021227 | CE65: 0.079097 | CF65: 0.080124 | CI65: 4.365158 | CJ65: 0.216854 | CK65: 0.215473 | CL65: 0.19905 | CO65: 4.365158 | CP65: 0.080414 | CQ65: 0.091522 | CR65: 0.103299 | CU65: 4.365158 | CV65: 0.213577 | CW65: 0.197686 | CX65: 0.210222 | DA65: 4.365158 | DB65: 0.250956 | DC65: 0.242677 | DD65: 0.315179 | DG65: 4.365158 | DH65: 0.215497 | DI65: 0.293355 | DJ65: 0.283213 | DM65: 4.365158 | DN65: 0.282861 | DO65: 0.287918 | DP65: 0.24319 | DS65: 4.365158 | DT65: 0.27492 | DU65: 0.264299 | DV65: 0.300942 | DY65: 4.365158 | DZ65: 0.343894 | EA65: 0.370858 | EB65: 0.32177 | EE65: 4.365158 | EF65: 0.915205 | EG65: 0.847686 | EH65: 0.92712 | EK65: 4.365158 | EL65: 0.501949 | EM65: 0.483557 | EN65: 0.398914 | EQ65: 4.365158 | ER65: 0.330805 | ES65: 0.395561 | ET65: 0.407246 | EW65: 4.365158 | EX65: 0.500869 | EY65: 0.547416 | EZ65: 0.484266 | FB65: 4.365158 | FC65: 0.3956406667 | FD65: 1.221993667 | FE65: 1.084886333 | FF65: 0.8256296667 | FG65: 0.6828076667 | FH65: 0.6374376667 | FI65: 0.523479 | FJ65: 0.631997 | FK65: 0.5587253333 | FL65: 0.973547 | FM65: 0.5562353333 | FN65: 0.08490533333 | FO65: 0.3538923333 | FP65: 0.06014933333 | FQ65: 0.210459 | FR65: 0.091745 | FS65: 0.2071616667 | FT65: 0.269604 | FU65: 0.2640216667 | FV65: 0.271323 | FW65: 0.2800536667 | FX65: 0.3455073333 | FY65: 0.8966703333 | FZ65: 0.4614733333 | GA65: 0.3778706667 | GB65: 0.5108503333
B66: 5.011872 | C66: 0.472231 | D66: 0.429828 | E66: 0.359697 | H66: 5.011872 | I66: 1.206316 | J66: 1.377963 | K66: 1.268766 | N66: 5.011872 | O66: 1.156271 | P66: 1.149364 | Q66: 1.185732 | U66: 5.011872 | V66: 0.840752 | W66: 0.879946 | X66: 0.880333 | AA66: 5.011872 | AB66: 0.748798 | AC66: 0.743299 | AD66: 0.755983 | AG66: 5.011872 | AH66: 0.670805 | AI66: 0.634085 | AJ66: 0.652464 | AM66: 5.011872 | AN66: 0.499694 | AO66: 0.561081 | AP66: 0.599526 | AS66: 5.011872 | AT66: 0.599231 | AU66: 0.733826 | AV66: 0.674632 | AY66: 5.011872 | AZ66: 0.605749 | BA66: 0.566041 | BB66: 0.595184 | BE66: 5.011872 | BF66: 1.07485 | BG66: 1.068464 | BH66: 1.085721 | BK66: 5.011872 | BL66: 0.618173 | BM66: 0.577207 | BN66: 0.55946 | BQ66: 5.011872 | BR66: 0.086115 | BS66: 0.187956 | BT66: 0 | BW66: 5.011872 | BX66: 0.35812 | BY66: 0.348395 | BZ66: 0.390523 | CC66: 5.011872 | CD66: 0.019982 | CE66: 0.083338 | CF66: 0.084276 | CI66: 5.011872 | CJ66: 0.228937 | CK66: 0.227088 | CL66: 0.209456 | CO66: 5.011872 | CP66: 0.082929 | CQ66: 0.093561 | CR66: 0.105873 | CU66: 5.011872 | CV66: 0.221253 | CW66: 0.205988 | CX66: 0.218875 | DA66: 5.011872 | DB66: 0.260567 | DC66: 0.2515 | DD66: 0.326959 | DG66: 5.011872 | DH66: 0.218483 | DI66: 0.300658 | DJ66: 0.289967 | DM66: 5.011872 | DN66: 0.295603 | DO66: 0.300749 | DP66: 0.254586 | DS66: 5.011872 | DT66: 0.277111 | DU66: 0.268291 | DV66: 0.305795 | DY66: 5.011872 | DZ66: 0.353405 | EA66: 0.380641 | EB66: 0.329866 | EE66: 5.011872 | EF66: 1.005107 | EG66: 0.92737 | EH66: 1.011137 | EK66: 5.011872 | EL66: 0.52593 | EM66: 0.506605 | EN66: 0.416232 | EQ66: 5.011872 | ER66: 0.338713 | ES66: 0.404609 | ET66: 0.416269 | EW66: 5.011872 | EX66: 0.542221 | EY66: 0.592979 | EZ66: 0.523216 | FB66: 5.011872 | FC66: 0.4205853333 | FD66: 1.284348333 | FE66: 1.163789 | FF66: 0.8670103333 | FG66: 0.74936 | FH66: 0.6524513333 | FI66: 0.5534336667 | FJ66: 0.6692296667 | FK66: 0.5889913333 | FL66: 1.076345 | FM66: 0.5849466667 | FN66: 0.091357 | FO66: 0.3656793333 | FP66: 0.062532 | FQ66: 0.221827 | FR66: 0.094121 | FS66: 0.215372 | FT66: 0.2796753333 | FU66: 0.2697026667 | FV66: 0.283646 | FW66: 0.2837323333 | FX66: 0.3546373333 | FY66: 0.9812046667 | FZ66: 0.4829223333 | GA66: 0.3865303333 | GB66: 0.5528053333
B67: 5.754399 | C67: 0.49681 | D67: 0.452036 | E67: 0.377256 | H67: 5.754399 | I67: 1.250264 | J67: 1.425406 | K67: 1.310488 | N67: 5.754399 | O67: 1.233989 | P67: 1.226728 | Q67: 1.260582 | U67: 5.754399 | V67: 0.866612 | W67: 0.907811 | X67: 0.907943 | AA67: 5.754399 | AB67: 0.815696 | AC67: 0.809662 | AD67: 0.826574 | AG67: 5.754399 | AH67: 0.6788 | AI67: 0.641144 | AJ67: 0.659723 | AM67: 5.754399 | AN67: 0.522541 | AO67: 0.585295 | AP67: 0.630137 | AS67: 5.754399 | AT67: 0.630463 | AU67: 0.770758 | AV67: 0.708834 | AY67: 5.754399 | AZ67: 0.630495 | BA67: 0.588981 | BB67: 0.618042 | BE67: 5.754399 | BF67: 1.189987 | BG67: 1.182942 | BH67: 1.198639 | BK67: 5.754399 | BL67: 0.639842 | BM67: 0.595989 | BN67: 0.577287 | BQ67: 5.754399 | BR67: 0.090131 | BS67: 0.194245 | BT67: 0 | BW67: 5.754399 | BX67: 0.366171 | BY67: 0.355957 | BZ67: 0.400366 | CC67: 5.754399 | CD67: 0.021116 | CE67: 0.084437 | CF67: 0.085381 | CI67: 5.754399 | CJ67: 0.237504 | CK67: 0.23504 | CL67: 0.216424 | CO67: 5.754399 | CP67: 0.080766 | CQ67: 0.090159 | CR67: 0.104218 | CU67: 5.754399 | CV67: 0.225839 | CW67: 0.21193 | CX67: 0.225148 | DA67: 5.754399 | DB67: 0.269411 | DC67: 0.259901 | DD67: 0.337255 | DG67: 5.754399 | DH67: 0.218865 | DI67: 0.305566 | DJ67: 0.294442 | DM67: 5.754399 | DN67: 0.304238 | DO67: 0.309571 | DP67: 0.263698 | DS67: 5.754399 | DT67: 0.273947 | DU67: 0.267046 | DV67: 0.305075 | DY67: 5.754399 | DZ67: 0.357919 | EA67: 0.384955 | EB67: 0.33305 | EE67: 5.754399 | EF67: 1.098739 | EG67: 1.010768 | EH67: 1.097604 | EK67: 5.754399 | EL67: 0.544606 | EM67: 0.524819 | EN67: 0.429343 | EQ67: 5.754399 | ER67: 0.340703 | ES67: 0.406514 | ET67: 0.417271 | EW67: 5.754399 | EX67: 0.585426 | EY67: 0.640748 | EZ67: 0.564476 | FB67: 5.754399 | FC67: 0.442034 | FD67: 1.328719333 | FE67: 1.240433 | FF67: 0.894122 | FG67: 0.8173106667 | FH67: 0.659889 | FI67: 0.5793243333 | FJ67: 0.7033516667 | FK67: 0.612506 | FL67: 1.190522667 | FM67: 0.6043726667 | FN67: 0.094792 | FO67: 0.3741646667 | FP67: 0.06364466667 | FQ67: 0.229656 | FR67: 0.09171433333 | FS67: 0.2209723333 | FT67: 0.2888556667 | FU67: 0.2729576667 | FV67: 0.2925023333 | FW67: 0.2820226667 | FX67: 0.3586413333 | FY67: 1.069037 | FZ67: 0.4995893333 | GA67: 0.3881626667 | GB67: 0.5968833333
B68: 6.606934 | C68: 0.519046 | D68: 0.47211 | E68: 0.392704 | H68: 6.606934 | I68: 1.27668 | J68: 1.452862 | K68: 1.334358 | N68: 6.606934 | O68: 1.313466 | P68: 1.306034 | Q68: 1.336241 | U68: 6.606934 | V68: 0.878802 | W68: 0.922488 | X68: 0.92243 | AA68: 6.606934 | AB68: 0.888971 | AC68: 0.882207 | AD68: 0.902721 | AG68: 6.606934 | AH68: 0.682322 | AI68: 0.644327 | AJ68: 0.663004 | AM68: 6.606934 | AN68: 0.544451 | AO68: 0.607391 | AP68: 0.659366 | AS68: 6.606934 | AT68: 0.66163 | AU68: 0.807313 | AV68: 0.7431 | AY68: 6.606934 | AZ68: 0.649143 | BA68: 0.606453 | BB68: 0.635492 | BE68: 6.606934 | BF68: 1.324642 | BG68: 1.316669 | BH68: 1.32911 | BK68: 6.606934 | BL68: 0.653188 | BM68: 0.606182 | BN68: 0.586975 | BQ68: 6.606934 | BR68: 0.090651 | BS68: 0.193826 | BT68: 0 | BW68: 6.606934 | BX68: 0.376183 | BY68: 0.365398 | BZ68: 0.412024 | CC68: 6.606934 | CD68: 0.021193 | CE68: 0.084558 | CF68: 0.085737 | CI68: 6.606934 | CJ68: 0.244711 | CK68: 0.241494 | CL68: 0.22206 | CO68: 6.606934 | CP68: 0.076344 | CQ68: 0.084307 | CR68: 0.099139 | CU68: 6.606934 | CV68: 0.230856 | CW68: 0.218811 | CX68: 0.232679 | DA68: 6.606934 | DB68: 0.280209 | DC68: 0.270799 | DD68: 0.34908 | DG68: 6.606934 | DH68: 0.219262 | DI68: 0.311021 | DJ68: 0.299618 | DM68: 6.606934 | DN68: 0.310495 | DO68: 0.316114 | DP68: 0.272128 | DS68: 6.606934 | DT68: 0.268415 | DU68: 0.263287 | DV68: 0.30174 | DY68: 6.606934 | DZ68: 0.360541 | EA68: 0.387217 | EB68: 0.334359 | EE68: 6.606934 | EF68: 1.19885 | EG68: 1.100845 | EH68: 1.189599 | EK68: 6.606934 | EL68: 0.561507 | EM68: 0.541566 | EN68: 0.44127 | EQ68: 6.606934 | ER68: 0.339457 | ES68: 0.404109 | ET68: 0.413063 | EW68: 6.606934 | EX68: 0.633407 | EY68: 0.694014 | EZ68: 0.611157 | FB68: 6.606934 | FC68: 0.4612866667 | FD68: 1.354633333 | FE68: 1.318580333 | FF68: 0.9079066667 | FG68: 0.8912996667 | FH68: 0.6632176667 | FI68: 0.603736 | FJ68: 0.7373476667 | FK68: 0.6303626667 | FL68: 1.323473667 | FM68: 0.6154483333 | FN68: 0.09482566667 | FO68: 0.384535 | FP68: 0.06382933333 | FQ68: 0.2360883333 | FR68: 0.08659666667 | FS68: 0.2274486667 | FT68: 0.3000293333 | FU68: 0.2766336667 | FV68: 0.299579 | FW68: 0.277814 | FX68: 0.3607056667 | FY68: 1.163098 | FZ68: 0.514781 | GA68: 0.385543 | GB68: 0.6461926667
B69: 7.585776 | C69: 0.539748 | D69: 0.490887 | E69: 0.406934 | H69: 7.585776 | I69: 1.283758 | J69: 1.459261 | K69: 1.340214 | N69: 7.585776 | O69: 1.395493 | P69: 1.387976 | Q69: 1.413791 | U69: 7.585776 | V69: 0.87842 | W69: 0.925376 | X69: 0.925135 | AA69: 7.585776 | AB69: 0.972848 | AC69: 0.965102 | AD69: 0.988156 | AG69: 7.585776 | AH69: 0.684392 | AI69: 0.646943 | AJ69: 0.665636 | AM69: 7.585776 | AN69: 0.567502 | AO69: 0.629587 | AP69: 0.688824 | AS69: 7.585776 | AT69: 0.694312 | AU69: 0.845473 | AV69: 0.779367 | AY69: 7.585776 | AZ69: 0.662223 | BA69: 0.618944 | BB69: 0.648427 | BE69: 7.585776 | BF69: 1.481343 | BG69: 1.472388 | BH69: 1.480389 | BK69: 7.585776 | BL69: 0.659305 | BM69: 0.608965 | BN69: 0.589818 | BQ69: 7.585776 | BR69: 0.086857 | BS69: 0.185986 | BT69: 0 | BW69: 7.585776 | BX69: 0.393605 | BY69: 0.382184 | BZ69: 0.43088 | CC69: 7.585776 | CD69: 0.021379 | CE69: 0.083742 | CF69: 0.08543 | CI69: 7.585776 | CJ69: 0.253286 | CK69: 0.249159 | CL69: 0.229016 | CO69: 7.585776 | CP69: 0.071208 | CQ69: 0.077826 | CR69: 0.092838 | CU69: 7.585776 | CV69: 0.240346 | CW69: 0.230294 | CX69: 0.245477 | DA69: 7.585776 | DB69: 0.295256 | DC69: 0.286643 | DD69: 0.364952 | DG69: 7.585776 | DH69: 0.222447 | DI69: 0.319817 | DJ69: 0.308353 | DM69: 7.585776 | DN69: 0.316199 | DO69: 0.322172 | DP69: 0.281055 | DS69: 7.585776 | DT69: 0.264356 | DU69: 0.260507 | DV69: 0.299513 | DY69: 7.585776 | DZ69: 0.364629 | EA69: 0.391168 | EB69: 0.337211 | EE69: 7.585776 | EF69: 1.302411 | EG69: 1.195338 | EH69: 1.285031 | EK69: 7.585776 | EL69: 0.579639 | EM69: 0.559628 | EN69: 0.454585 | EQ69: 7.585776 | ER69: 0.338262 | ES69: 0.400905 | ET69: 0.407347 | EW69: 7.585776 | EX69: 0.686186 | EY69: 0.752891 | EZ69: 0.663479 | FB69: 7.585776 | FC69: 0.4791896667 | FD69: 1.361077667 | FE69: 1.399086667 | FF69: 0.9096436667 | FG69: 0.9753686667 | FH69: 0.665657 | FI69: 0.6286376667 | FJ69: 0.7730506667 | FK69: 0.643198 | FL69: 1.47804 | FM69: 0.6193626667 | FN69: 0.09094766667 | FO69: 0.402223 | FP69: 0.063517 | FQ69: 0.2438203333 | FR69: 0.080624 | FS69: 0.2387056667 | FT69: 0.315617 | FU69: 0.283539 | FV69: 0.3064753333 | FW69: 0.274792 | FX69: 0.364336 | FY69: 1.260926667 | FZ69: 0.531284 | GA69: 0.3821713333 | GB69: 0.700852
B70: 8.709636 | C70: 0.560731 | D70: 0.510093 | E70: 0.421614 | H70: 8.709636 | I70: 1.270973 | J70: 1.44476 | K70: 1.329007 | N70: 8.709636 | O70: 1.483961 | P70: 1.476306 | Q70: 1.497164 | U70: 8.709636 | V70: 0.867575 | W70: 0.918867 | X70: 0.918344 | AA70: 8.709636 | AB70: 1.07738 | AC70: 1.0683 | AD70: 1.092705 | AG70: 8.709636 | AH70: 0.687042 | AI70: 0.651396 | AJ70: 0.670014 | AM70: 8.709636 | AN70: 0.594647 | AO70: 0.654988 | AP70: 0.721198 | AS70: 8.709636 | AT70: 0.731163 | AU70: 0.888572 | AV70: 0.820757 | AY70: 8.709636 | AZ70: 0.670919 | BA70: 0.627457 | BB70: 0.658362 | BE70: 8.709636 | BF70: 1.668694 | BG70: 1.658919 | BH70: 1.661723 | BK70: 8.709636 | BL70: 0.660175 | BM70: 0.606416 | BN70: 0.587918 | BQ70: 8.709636 | BR70: 0.078375 | BS70: 0.170788 | BT70: 0 | BW70: 8.709636 | BX70: 0.423703 | BY70: 0.411676 | BZ70: 0.462053 | CC70: 8.709636 | CD70: 0.021582 | CE70: 0.08267 | CF70: 0.085188 | CI70: 8.709636 | CJ70: 0.266741 | CK70: 0.261396 | CL70: 0.240567 | CO70: 8.709636 | CP70: 0.067959 | CQ70: 0.073685 | CR70: 0.088088 | CU70: 8.709636 | CV70: 0.258374 | CW70: 0.250135 | CX70: 0.267625 | DA70: 8.709636 | DB70: 0.316791 | DC70: 0.309735 | DD70: 0.387247 | DG70: 8.709636 | DH70: 0.230747 | DI70: 0.334348 | DJ70: 0.32309 | DM70: 8.709636 | DN70: 0.323325 | DO70: 0.329673 | DP70: 0.291451 | DS70: 8.709636 | DT70: 0.265247 | DU70: 0.261949 | DV70: 0.301841 | DY70: 8.709636 | DZ70: 0.373128 | EA70: 0.400099 | EB70: 0.344682 | EE70: 8.709636 | EF70: 1.407518 | EG70: 1.292896 | EH70: 1.382875 | EK70: 8.709636 | EL70: 0.601746 | EM70: 0.581533 | EN70: 0.471448 | EQ70: 8.709636 | ER70: 0.340145 | ES70: 0.400063 | ET70: 0.403537 | EW70: 8.709636 | EX70: 0.743829 | EY70: 0.817627 | EZ70: 0.721622 | FB70: 8.709636 | FC70: 0.4974793333 | FD70: 1.348246667 | FE70: 1.485810333 | FF70: 0.9015953333 | FG70: 1.079461667 | FH70: 0.669484 | FI70: 0.6569443333 | FJ70: 0.8134973333 | FK70: 0.652246 | FL70: 1.663112 | FM70: 0.6181696667 | FN70: 0.08305433333 | FO70: 0.4324773333 | FP70: 0.06314666667 | FQ70: 0.2562346667 | FR70: 0.07657733333 | FS70: 0.2587113333 | FT70: 0.3379243333 | FU70: 0.2960616667 | FV70: 0.3148163333 | FW70: 0.2763456667 | FX70: 0.3726363333 | FY70: 1.361096333 | FZ70: 0.5515756667 | GA70: 0.3812483333 | GB70: 0.761026
B71: 10 | C71: 0.582571 | D71: 0.530272 | E71: 0.437554 | H71: 10 | I71: 1.239096 | J71: 1.410496 | K71: 1.302265 | N71: 10 | O71: 1.577554 | P71: 1.569558 | Q71: 1.585172 | U71: 10 | V71: 0.84929 | W71: 0.905778 | X71: 0.904801 | AA71: 10 | AB71: 1.209414 | AC71: 1.19861 | AD71: 1.223204 | AG71: 10 | AH71: 0.690092 | AI71: 0.657793 | AJ71: 0.676212 | AM71: 10 | AN71: 0.6268 | AO71: 0.684746 | AP71: 0.756889 | AS71: 10 | AT71: 0.772298 | AU71: 0.937026 | AV71: 0.867477 | AY71: 10 | AZ71: 0.675732 | BA71: 0.63226 | BB71: 0.666016 | BE71: 10 | BF71: 1.88501 | BG71: 1.874776 | BH71: 1.872275 | BK71: 10 | BL71: 0.657796 | BM71: 0.60094 | BN71: 0.583561 | BQ71: 10 | BR71: 0.066979 | BS71: 0.150387 | BT71: 0 | BW71: 10 | BX71: 0.467413 | BY71: 0.455034 | BZ71: 0.506122 | CC71: 10 | CD71: 0.021756 | CE71: 0.081753 | CF71: 0.085341 | CI71: 10 | CJ71: 0.287476 | CK71: 0.28042 | CL71: 0.258902 | CO71: 10 | CP71: 0.06944 | CQ71: 0.075024 | CR71: 0.088243 | CU71: 10 | CV71: 0.286292 | CW71: 0.279403 | CX71: 0.300204 | DA71: 10 | DB71: 0.344665 | DC71: 0.339738 | DD71: 0.415708 | DG71: 10 | DH71: 0.244668 | DI71: 0.354703 | DJ71: 0.343894 | DM71: 10 | DN71: 0.332814 | DO71: 0.339472 | DP71: 0.302776 | DS71: 10 | DT71: 0.273177 | DU71: 0.269584 | DV71: 0.310726 | DY71: 10 | DZ71: 0.386867 | EA71: 0.415014 | EB71: 0.357946 | EE71: 10 | EF71: 1.50334 | EG71: 1.383793 | EH71: 1.473708 | EK71: 10 | EL71: 0.627249 | EM71: 0.6066 | EN71: 0.491209 | EQ71: 10 | ER71: 0.346775 | ES71: 0.40345 | ET71: 0.404008 | EW71: 10 | EX71: 0.80089 | EY71: 0.882364 | EZ71: 0.780142 | FB71: 10 | FC71: 0.516799 | FD71: 1.317285667 | FE71: 1.577428 | FF71: 0.886623 | FG71: 1.210409333 | FH71: 0.674699 | FI71: 0.6894783333 | FJ71: 0.8589336667 | FK71: 0.6580026667 | FL71: 1.877353667 | FM71: 0.614099 | FN71: 0.07245533333 | FO71: 0.4761896667 | FP71: 0.06295 | FQ71: 0.2755993333 | FR71: 0.077569 | FS71: 0.288633 | FT71: 0.3667036667 | FU71: 0.3144216667 | FV71: 0.3250206667 | FW71: 0.2844956667 | FX71: 0.386609 | FY71: 1.453613667 | FZ71: 0.5750193333 | GA71: 0.3847443333 | GB71: 0.821132
B72: 11.481536 | C72: 0.606929 | D72: 0.552911 | E72: 0.456281 | H72: 11.481536 | I72: 1.188911 | J72: 1.356983 | K72: 1.260765 | N72: 11.481536 | O72: 1.679711 | P72: 1.670995 | Q72: 1.680863 | U72: 11.481536 | V72: 0.826441 | W72: 0.888676 | X72: 0.887043 | AA72: 11.481536 | AB72: 1.384367 | AC72: 1.371354 | AD72: 1.395308 | AG72: 11.481536 | AH72: 0.690985 | AI72: 0.66392 | AJ72: 0.681951 | AM72: 11.481536 | AN72: 0.665642 | AO72: 0.720688 | AP72: 0.797532 | AS72: 11.481536 | AT72: 0.819396 | AU72: 0.993075 | AV72: 0.921357 | AY72: 11.481536 | AZ72: 0.677679 | BA72: 0.634086 | BB72: 0.672628 | BE72: 11.481536 | BF72: 2.138527 | BG72: 2.128253 | BH72: 2.120658 | BK72: 11.481536 | BL72: 0.65414 | BM72: 0.594852 | BN72: 0.578856 | BQ72: 11.481536 | BR72: 0.054608 | BS72: 0.127704 | BT72: 0 | BW72: 11.481536 | BX72: 0.522895 | BY72: 0.510655 | BZ72: 0.560842 | CC72: 11.481536 | CD72: 0.021786 | CE72: 0.081103 | CF72: 0.085852 | CI72: 11.481536 | CJ72: 0.317504 | CK72: 0.307916 | CL72: 0.285691 | CO72: 11.481536 | CP72: 0.078091 | CQ72: 0.084371 | CR72: 0.096155 | CU72: 11.481536 | CV72: 0.323464 | CW72: 0.317512 | CX72: 0.342473 | DA72: 11.481536 | DB72: 0.378225 | DC72: 0.375694 | DD72: 0.449448 | DG72: 11.481536 | DH72: 0.263235 | DI72: 0.379752 | DJ72: 0.369518 | DM72: 11.481536 | DN72: 0.345132 | DO72: 0.351948 | DP72: 0.314064 | DS72: 11.481536 | DT72: 0.288157 | DU72: 0.283558 | DV72: 0.326198 | DY72: 11.481536 | DZ72: 0.404845 | EA72: 0.434892 | EB72: 0.376462 | EE72: 11.481536 | EF72: 1.58172 | EG72: 1.460703 | EH72: 1.550478 | EK72: 11.481536 | EL72: 0.654111 | EM72: 0.632819 | EN72: 0.511798 | EQ72: 11.481536 | ER72: 0.358054 | ES72: 0.410975 | ET72: 0.409041 | EW72: 11.481536 | EX72: 0.852819 | EY72: 0.942265 | EZ72: 0.834396 | FB72: 11.481536 | FC72: 0.538707 | FD72: 1.268886333 | FE72: 1.677189667 | FF72: 0.8673866667 | FG72: 1.383676333 | FH72: 0.678952 | FI72: 0.727954 | FJ72: 0.911276 | FK72: 0.6614643333 | FL72: 2.129146 | FM72: 0.6092826667 | FN72: 0.06077066667 | FO72: 0.531464 | FP72: 0.06291366667 | FQ72: 0.3037036667 | FR72: 0.08620566667 | FS72: 0.3278163333 | FT72: 0.4011223333 | FU72: 0.3375016667 | FV72: 0.337048 | FW72: 0.2993043333 | FX72: 0.4053996667 | FY72: 1.530967 | FZ72: 0.599576 | GA72: 0.39269 | GB72: 0.8764933333
B73: 13.182567 | C73: 0.63406 | D73: 0.578154 | E73: 0.478095 | H73: 13.182567 | I73: 1.12551 | J73: 1.288761 | K73: 1.208143 | N73: 13.182567 | O73: 1.788202 | P73: 1.778263 | Q73: 1.781799 | U73: 13.182567 | V73: 0.803987 | W73: 0.871502 | X73: 0.869132 | AA73: 13.182567 | AB73: 1.608323 | AC73: 1.592697 | AD73: 1.615806 | AG73: 13.182567 | AH73: 0.684897 | AI73: 0.664866 | AJ73: 0.682295 | AM73: 13.182567 | AN73: 0.709744 | AO73: 0.761763 | AP73: 0.841975 | AS73: 13.182567 | AT73: 0.871092 | AU73: 1.055217 | AV73: 0.980542 | AY73: 13.182567 | AZ73: 0.678244 | BA73: 0.634124 | BB73: 0.679535 | BE73: 13.182567 | BF73: 2.420537 | BG73: 2.410559 | BH73: 2.398789 | BK73: 13.182567 | BL73: 0.651237 | BM73: 0.590726 | BN73: 0.575949 | BQ73: 13.182567 | BR73: 0.028758 | BS73: 0.108534 | BT73: 0 | BW73: 13.182567 | BX73: 0.579124 | BY73: 0.567705 | BZ73: 0.614924 | CC73: 13.182567 | CD73: 0.021794 | CE73: 0.080433 | CF73: 0.08608 | CI73: 13.182567 | CJ73: 0.354827 | CK73: 0.341735 | CL73: 0.318856 | CO73: 13.182567 | CP73: 0.094567 | CQ73: 0.102159 | CR73: 0.112791 | CU73: 13.182567 | CV73: 0.362947 | CW73: 0.357862 | CX73: 0.387042 | DA73: 13.182567 | DB73: 0.412869 | DC73: 0.412343 | DD73: 0.483611 | DG73: 13.182567 | DH73: 0.282119 | DI73: 0.404716 | DJ73: 0.394915 | DM73: 13.182567 | DN73: 0.3591 | DO73: 0.365825 | DP73: 0.323141 | DS73: 13.182567 | DT73: 0.306473 | DU73: 0.300648 | DV73: 0.344601 | DY73: 13.182567 | DZ73: 0.422531 | EA73: 0.454783 | EB73: 0.396186 | EE73: 13.182567 | EF73: 1.629239 | EG73: 1.511049 | EH73: 1.600883 | EK73: 13.182567 | EL73: 0.676337 | EM73: 0.654388 | EN73: 0.527891 | EQ73: 13.182567 | ER73: 0.370987 | ES73: 0.419924 | ET73: 0.416329 | EW73: 13.182567 | EX73: 0.891359 | EY73: 0.988068 | EZ73: 0.875711 | FB73: 13.182567 | FC73: 0.5634363333 | FD73: 1.207471333 | FE73: 1.782754667 | FF73: 0.848207 | FG73: 1.605608667 | FH73: 0.6773526667 | FI73: 0.7711606667 | FJ73: 0.9689503333 | FK73: 0.6639676667 | FL73: 2.409961667 | FM73: 0.6059706667 | FN73: 0.045764 | FO73: 0.587251 | FP73: 0.062769 | FQ73: 0.3384726667 | FR73: 0.1031723333 | FS73: 0.3692836667 | FT73: 0.4362743333 | FU73: 0.3605833333 | FV73: 0.3493553333 | FW73: 0.3172406667 | FX73: 0.4245 | FY73: 1.580390333 | FZ73: 0.6195386667 | GA73: 0.4024133333 | GB73: 0.9183793333
B74: 15.135612 | C74: 0.666229 | D74: 0.607986 | E74: 0.504571 | H74: 15.135612 | I74: 1.052649 | J74: 1.208464 | K74: 1.146338 | N74: 15.135612 | O74: 1.908763 | P74: 1.896985 | Q74: 1.892991 | U74: 15.135612 | V74: 0.78646 | W74: 0.857783 | X74: 0.854814 | AA74: 15.135612 | AB74: 1.89869 | AC74: 1.880081 | AD74: 1.902948 | AG74: 15.135612 | AH74: 0.665939 | AI74: 0.654834 | AJ74: 0.671448 | AM74: 15.135612 | AN74: 0.759892 | AO74: 0.809062 | AP74: 0.892038 | AS74: 15.135612 | AT74: 0.929425 | AU74: 1.125735 | AV74: 1.046816 | AY74: 15.135612 | AZ74: 0.680296 | BA74: 0.634939 | BB74: 0.689661 | BE74: 15.135612 | BF74: 2.736179 | BG74: 2.726576 | BH74: 2.712044 | BK74: 15.135612 | BL74: 0.650765 | BM74: 0.590581 | BN74: 0.576377 | BQ74: 15.135612 | BR74: 0.024278 | BS74: 0.09821 | BT74: 0 | BW74: 15.135612 | BX74: 0.622561 | BY74: 0.612693 | BZ74: 0.654855 | CC74: 15.135612 | CD74: 0.022556 | CE74: 0.079428 | CF74: 0.085282 | CI74: 15.135612 | CJ74: 0.39649 | CK74: 0.378756 | CL74: 0.3553 | CO74: 15.135612 | CP74: 0.11789 | CQ74: 0.126946 | CR74: 0.137124 | CU74: 15.135612 | CV74: 0.39583 | CW74: 0.392331 | CX74: 0.424873 | DA74: 15.135612 | DB74: 0.444509 | DC74: 0.444935 | DD74: 0.514073 | DG74: 15.135612 | DH74: 0.296208 | DI74: 0.424767 | DJ74: 0.414916 | DM74: 15.135612 | DN74: 0.373706 | DO74: 0.380026 | DP74: 0.328869 | DS74: 15.135612 | DT74: 0.322381 | DU74: 0.315851 | DV74: 0.360379 | DY74: 15.135612 | DZ74: 0.434619 | EA74: 0.468802 | EB74: 0.412226 | EE74: 15.135612 | EF74: 1.639913 | EG74: 1.529325 | EH74: 1.619784 | EK74: 15.135612 | EL74: 0.688395 | EM74: 0.666001 | EN74: 0.534455 | EQ74: 15.135612 | ER74: 0.38123 | ES74: 0.426133 | ET74: 0.421705 | EW74: 15.135612 | EX74: 0.913383 | EY74: 1.016018 | EZ74: 0.900497 | FB74: 15.135612 | FC74: 0.5929286667 | FD74: 1.135817 | FE74: 1.899579667 | FF74: 0.833019 | FG74: 1.893906333 | FH74: 0.6640736667 | FI74: 0.8203306667 | FJ74: 1.033992 | FK74: 0.6682986667 | FL74: 2.724933 | FM74: 0.6059076667 | FN74: 0.04082933333 | FO74: 0.6300363333 | FP74: 0.062422 | FQ74: 0.3768486667 | FR74: 0.12732 | FS74: 0.4043446667 | FT74: 0.467839 | FU74: 0.3786303333 | FV74: 0.360867 | FW74: 0.3328703333 | FX74: 0.438549 | FY74: 1.596340667 | FZ74: 0.629617 | GA74: 0.4096893333 | GB74: 0.9432993333
B75: 17.378008 | C75: 0.704746 | D75: 0.643509 | E75: 0.53609 | H75: 17.378008 | I75: 0.979863 | J75: 1.124769 | K75: 1.081786 | N75: 17.378008 | O75: 2.042543 | P75: 2.028395 | Q75: 2.015429 | U75: 17.378008 | V75: 0.779794 | W75: 0.852141 | X75: 0.849052 | AA75: 17.378008 | AB75: 2.255094 | AC75: 2.233444 | AD75: 2.257592 | AG75: 17.378008 | AH75: 0.630672 | AI75: 0.629731 | AJ75: 0.645444 | AM75: 17.378008 | AN75: 0.814897 | AO75: 0.861945 | AP75: 0.948222 | AS75: 17.378008 | AT75: 0.994332 | AU75: 1.203905 | AV75: 1.119307 | AY75: 17.378008 | AZ75: 0.688094 | BA75: 0.640585 | BB75: 0.706747 | BE75: 17.378008 | BF75: 3.071075 | BG75: 3.06147 | BH75: 3.046187 | BK75: 17.378008 | BL75: 0.654119 | BM75: 0.595879 | BN75: 0.581022 | BQ75: 17.378008 | BR75: 0.02865 | BS75: 0.101946 | BT75: 0 | BW75: 17.378008 | BX75: 0.634275 | BY75: 0.626402 | BZ75: 0.662461 | CC75: 17.378008 | CD75: 0.0043 | CE75: 0.075338 | CF75: 0.080332 | CI75: 17.378008 | CJ75: 0.43473 | CK75: 0.411564 | CL75: 0.387611 | CO75: 17.378008 | CP75: 0.143099 | CQ75: 0.153011 | CR75: 0.163567 | CU75: 17.378008 | CV75: 0.408909 | CW75: 0.408665 | CX75: 0.442402 | DA75: 17.378008 | DB75: 0.467188 | DC75: 0.466811 | DD75: 0.53532 | DG75: 17.378008 | DH75: 0.299134 | DI75: 0.434009 | DJ75: 0.42325 | DM75: 17.378008 | DN75: 0.38715 | DO75: 0.392772 | DP75: 0.331366 | DS75: 17.378008 | DT75: 0.327301 | DU75: 0.321541 | DV75: 0.365249 | DY75: 17.378008 | DZ75: 0.434954 | EA75: 0.469977 | EB75: 0.418296 | EE75: 17.378008 | EF75: 1.61336 | EG75: 1.514766 | EH75: 1.60689 | EK75: 17.378008 | EL75: 0.685157 | EM75: 0.662786 | EN75: 0.527202 | EQ75: 17.378008 | ER75: 0.382936 | ES75: 0.424259 | ET75: 0.41947 | EW75: 17.378008 | EX75: 0.91967 | EY75: 1.026075 | EZ75: 0.908838 | FB75: 17.378008 | FC75: 0.628115 | FD75: 1.062139333 | FE75: 2.028789 | FF75: 0.8269956667 | FG75: 2.24871 | FH75: 0.6352823333 | FI75: 0.8750213333 | FJ75: 1.105848 | FK75: 0.6784753333 | FL75: 3.059577333 | FM75: 0.61034 | FN75: 0.043532 | FO75: 0.641046 | FP75: 0.05332333333 | FQ75: 0.4113016667 | FR75: 0.1532256667 | FS75: 0.419992 | FT75: 0.489773 | FU75: 0.3854643333 | FV75: 0.3704293333 | FW75: 0.3380303333 | FX75: 0.4410756667 | FY75: 1.578338667 | FZ75: 0.6250483333 | GA75: 0.4088883333 | GB75: 0.9515276667
B76: 19.952623 | C76: 0.753871 | D76: 0.688612 | E76: 0.574974 | H76: 19.952623 | I76: 0.915383 | J76: 1.044991 | K76: 1.019845 | N76: 19.952623 | O76: 2.199179 | P76: 2.182256 | Q76: 2.158416 | U76: 19.952623 | V76: 0.789003 | W76: 0.858737 | X76: 0.856308 | AA76: 19.952623 | AB76: 2.687185 | AC76: 2.662763 | AD76: 2.690588 | AG76: 19.952623 | AH76: 0.579756 | AI76: 0.589483 | AJ76: 0.604392 | AM76: 19.952623 | AN76: 0.87836 | AO76: 0.924451 | AP76: 1.016396 | AS76: 19.952623 | AT76: 1.070516 | AU76: 1.294134 | AV76: 1.202302 | AY76: 19.952623 | AZ76: 0.70789 | BA76: 0.657123 | BB76: 0.736619 | BE76: 19.952623 | BF76: 3.424223 | BG76: 3.413704 | BH76: 3.399749 | BK76: 19.952623 | BL76: 0.662379 | BM76: 0.607329 | BN76: 0.590084 | BQ76: 19.952623 | BR76: 0.036534 | BS76: 0.121753 | BT76: 0 | BW76: 19.952623 | BX76: 0.599566 | BY76: 0.593592 | BZ76: 0.624329 | CC76: 19.952623 | CD76: 0 | CE76: 0.073999 | CF76: 0.076424 | CI76: 19.952623 | CJ76: 0.462569 | CK76: 0.433666 | CL76: 0.40912 | CO76: 19.952623 | CP76: 0.163351 | CQ76: 0.172835 | CR76: 0.18422 | CU76: 19.952623 | CV76: 0.391363 | CW76: 0.397026 | CX76: 0.428756 | DA76: 19.952623 | DB76: 0.478602 | DC76: 0.475204 | DD76: 0.546014 | DG76: 19.952623 | DH76: 0.28699 | DI76: 0.429999 | DJ76: 0.417152 | DM76: 19.952623 | DN76: 0.399351 | DO76: 0.404107 | DP76: 0.334168 | DS76: 19.952623 | DT76: 0.313368 | DU76: 0.310699 | DV76: 0.351742 | DY76: 19.952623 | DZ76: 0.420392 | EA76: 0.454558 | EB76: 0.410767 | EE76: 19.952623 | EF76: 1.56005 | EG76: 1.477236 | EH76: 1.572775 | EK76: 19.952623 | EL76: 0.666344 | EM76: 0.644652 | EN76: 0.506186 | EQ76: 19.952623 | ER76: 0.371676 | ES76: 0.410207 | ET76: 0.404623 | EW76: 19.952623 | EX76: 0.920959 | EY76: 1.02895 | EZ76: 0.910991 | FB76: 19.952623 | FC76: 0.6724856667 | FD76: 0.9934063333 | FE76: 2.179950333 | FF76: 0.8346826667 | FG76: 2.680178667 | FH76: 0.5912103333 | FI76: 0.9397356667 | FJ76: 1.188984 | FK76: 0.700544 | FL76: 3.412558667 | FM76: 0.6199306667 | FN76: 0.05276233333 | FO76: 0.605829 | FP76: 0.050141 | FQ76: 0.4351183333 | FR76: 0.1734686667 | FS76: 0.405715 | FT76: 0.49994 | FU76: 0.378047 | FV76: 0.3792086667 | FW76: 0.3252696667 | FX76: 0.4285723333 | FY76: 1.536687 | FZ76: 0.6057273333 | GA76: 0.395502 | GB76: 0.9536333333
B77: 22.908677 | C77: 0.817554 | D77: 0.747016 | E77: 0.622976 | H77: 22.908677 | I77: 0.872707 | J77: 0.983369 | K77: 0.97153 | N77: 22.908677 | O77: 2.383585 | P77: 2.363897 | Q77: 2.327673 | U77: 22.908677 | V77: 0.818078 | W77: 0.881628 | X77: 0.880729 | AA77: 22.908677 | AB77: 3.179603 | AC77: 3.153302 | AD77: 3.187682 | AG77: 22.908677 | AH77: 0.524987 | AI77: 0.543927 | AJ77: 0.558469 | AM77: 22.908677 | AN77: 0.955127 | AO77: 1.001835 | AP77: 1.103646 | AS77: 22.908677 | AT77: 1.161675 | AU77: 1.399102 | AV77: 1.298954 | AY77: 22.908677 | AZ77: 0.7469 | BA77: 0.691806 | BB77: 0.78512 | BE77: 22.908677 | BF77: 3.77739 | BG77: 3.764662 | BH77: 3.753387 | BK77: 22.908677 | BL77: 0.676333 | BM77: 0.624681 | BN77: 0.603126 | BQ77: 22.908677 | BR77: 0.048819 | BS77: 0.15416 | BT77: 0 | BW77: 22.908677 | BX77: 0.515227 | BY77: 0.51013 | BZ77: 0.539301 | CC77: 22.908677 | CD77: 0 | CE77: 0.044383 | CF77: 0.044141 | CI77: 22.908677 | CJ77: 0.473635 | CK77: 0.439797 | CL77: 0.414196 | CO77: 22.908677 | CP77: 0.170001 | CQ77: 0.177237 | CR77: 0.188513 | CU77: 22.908677 | CV77: 0.339282 | CW77: 0.353659 | CX77: 0.379823 | DA77: 22.908677 | DB77: 0.480938 | DC77: 0.472331 | DD77: 0.549925 | DG77: 22.908677 | DH77: 0.261295 | DI77: 0.416011 | DJ77: 0.39984 | DM77: 22.908677 | DN77: 0.412089 | DO77: 0.416119 | DP77: 0.345091 | DS77: 22.908677 | DT77: 0.276713 | DU77: 0.279672 | DV77: 0.316393 | DY77: 22.908677 | DZ77: 0.394269 | EA77: 0.425819 | EB77: 0.391563 | EE77: 22.908677 | EF77: 1.504708 | EG77: 1.439667 | EH77: 1.541203 | EK77: 22.908677 | EL77: 0.640231 | EM77: 0.619896 | EN77: 0.479499 | EQ77: 22.908677 | ER77: 0.347333 | ES77: 0.384211 | ET77: 0.376107 | EW77: 22.908677 | EX77: 0.938749 | EY77: 1.046918 | EZ77: 0.928236 | FB77: 22.908677 | FC77: 0.729182 | FD77: 0.9425353333 | FE77: 2.358385 | FF77: 0.860145 | FG77: 3.173529 | FH77: 0.542461 | FI77: 1.020202667 | FJ77: 1.286577 | FK77: 0.7412753333 | FL77: 3.765146333 | FM77: 0.6347133333 | FN77: 0.06765966667 | FO77: 0.5215526667 | FP77: 0.029508 | FQ77: 0.4425426667 | FR77: 0.1785836667 | FS77: 0.357588 | FT77: 0.5010646667 | FU77: 0.3590486667 | FV77: 0.3910996667 | FW77: 0.290926 | FX77: 0.4038836667 | FY77: 1.495192667 | FZ77: 0.5798753333 | GA77: 0.369217 | GB77: 0.971301
B78: 26.30268 | C78: 0.903814 | D78: 0.826369 | E78: 0.684997 | H78: 26.30268 | I78: 0.865949 | J78: 0.955941 | K78: 0.949979 | N78: 26.30268 | O78: 2.607526 | P78: 2.585611 | Q78: 2.536052 | U78: 26.30268 | V78: 0.870207 | W78: 0.925386 | X78: 0.926655 | AA78: 26.30268 | AB78: 3.724369 | AC78: 3.697722 | AD78: 3.74171 | AG78: 26.30268 | AH78: 0.488949 | AI78: 0.513244 | AJ78: 0.528319 | AM78: 26.30268 | AN78: 1.058086 | AO78: 1.107152 | AP78: 1.224887 | AS78: 26.30268 | AT78: 1.276755 | AU78: 1.527331 | AV78: 1.418237 | AY78: 26.30268 | AZ78: 0.81457 | BA78: 0.754064 | BB78: 0.860004 | BE78: 26.30268 | BF78: 4.123652 | BG78: 4.107361 | BH78: 4.098489 | BK78: 26.30268 | BL78: 0.697843 | BM78: 0.648386 | BN78: 0.620749 | BQ78: 26.30268 | BR78: 0.061501 | BS78: 0.190472 | BT78: 0 | BW78: 26.30268 | BX78: 0.396057 | BY78: 0.389753 | BZ78: 0.424501 | CC78: 26.30268 | CD78: 0 | CE78: 0.006435 | CF78: 0.005951 | CI78: 26.30268 | CJ78: 0.468673 | CK78: 0.431923 | CL78: 0.404126 | CO78: 26.30268 | CP78: 0.154316 | CQ78: 0.157954 | CR78: 0.167143 | CU78: 26.30268 | CV78: 0.260727 | CW78: 0.285784 | CX78: 0.303562 | DA78: 26.30268 | DB78: 0.485027 | DC78: 0.469443 | DD78: 0.559888 | DG78: 26.30268 | DH78: 0.231554 | DI78: 0.404045 | DJ78: 0.383477 | DM78: 26.30268 | DN78: 0.431603 | DO78: 0.435471 | DP78: 0.37755 | DS78: 26.30268 | DT78: 0.220594 | DU78: 0.231031 | DV78: 0.262783 | DY78: 26.30268 | DZ78: 0.368981 | EA78: 0.397012 | EB78: 0.371338 | EE78: 26.30268 | EF78: 1.482807 | EG78: 1.435917 | EH78: 1.547301 | EK78: 26.30268 | EL78: 0.625635 | EM78: 0.607127 | EN78: 0.464671 | EQ78: 26.30268 | ER78: 0.316562 | ES78: 0.352891 | ET78: 0.338999 | EW78: 26.30268 | EX78: 1.006255 | EY78: 1.115295 | EZ78: 0.994142 | FB78: 26.30268 | FC78: 0.80506 | FD78: 0.9239563333 | FE78: 2.576396333 | FF78: 0.907416 | FG78: 3.721267 | FH78: 0.5101706667 | FI78: 1.130041667 | FJ78: 1.407441 | FK78: 0.809546 | FL78: 4.109834 | FM78: 0.6556593333 | FN78: 0.083991 | FO78: 0.403437 | FP78: 0.004128666667 | FQ78: 0.4349073333 | FR78: 0.1598043333 | FS78: 0.2833576667 | FT78: 0.504786 | FU78: 0.339692 | FV78: 0.4148746667 | FW78: 0.238136 | FX78: 0.3791103333 | FY78: 1.488675 | FZ78: 0.565811 | GA78: 0.3361506667 | GB78: 1.038564
B79: 30.199517 | C79: 1.020265 | D79: 0.934163 | E79: 0.766193 | H79: 30.199517 | I79: 0.912357 | J79: 0.98463 | K79: 0.974096 | N79: 30.199517 | O79: 2.875007 | P79: 2.852162 | Q79: 2.789927 | U79: 30.199517 | V79: 0.945959 | W79: 0.993955 | X79: 0.997286 | AA79: 30.199517 | AB79: 4.288484 | AC79: 4.263592 | AD79: 4.319514 | AG79: 30.199517 | AH79: 0.508189 | AI79: 0.531167 | AJ79: 0.548268 | AM79: 30.199517 | AN79: 1.203179 | AO79: 1.256112 | AP79: 1.396442 | AS79: 30.199517 | AT79: 1.422961 | AU79: 1.685516 | AV79: 1.567632 | AY79: 30.199517 | AZ79: 0.91876 | BA79: 0.851845 | BB79: 0.96669 | BE79: 30.199517 | BF79: 4.444133 | BG79: 4.423493 | BH79: 4.414501 | BK79: 30.199517 | BL79: 0.730064 | BM79: 0.679966 | BN79: 0.645342 | BQ79: 30.199517 | BR79: 0.069545 | BS79: 0.215306 | BT79: 0 | BW79: 30.199517 | BX79: 0.286115 | BY79: 0.275487 | BZ79: 0.326114 | CC79: 30.199517 | CD79: 0 | CE79: 0 | CF79: 0 | CI79: 30.199517 | CJ79: 0.459224 | CK79: 0.423008 | CL79: 0.390977 | CO79: 30.199517 | CP79: 0.118994 | CQ79: 0.117365 | CR79: 0.118172 | CU79: 30.199517 | CV79: 0.183635 | CW79: 0.21843 | CX79: 0.227573 | DA79: 30.199517 | DB79: 0.511486 | DC79: 0.48826 | DD79: 0.59842 | DG79: 30.199517 | DH79: 0.218741 | DI79: 0.416918 | DJ79: 0.39149 | DM79: 30.199517 | DN79: 0.468674 | DO79: 0.47347 | DP79: 0.449058 | DS79: 30.199517 | DT79: 0.161239 | DU79: 0.178674 | DV79: 0.207111 | DY79: 30.199517 | DZ79: 0.369256 | EA79: 0.395093 | EB79: 0.372692 | EE79: 30.199517 | EF79: 1.538849 | EG79: 1.508279 | EH79: 1.634567 | EK79: 30.199517 | EL79: 0.653854 | EM79: 0.637082 | EN79: 0.490514 | EQ79: 30.199517 | ER79: 0.296552 | ES79: 0.333014 | ET79: 0.30894 | EW79: 30.199517 | EX79: 1.162629 | EY79: 1.276603 | EZ79: 1.148885 | FB79: 30.199517 | FC79: 0.9068736667 | FD79: 0.9570276667 | FE79: 2.839032 | FF79: 0.9790666667 | FG79: 4.29053 | FH79: 0.529208 | FI79: 1.285244333 | FJ79: 1.558703 | FK79: 0.9124316667 | FL79: 4.427375667 | FM79: 0.685124 | FN79: 0.09495033333 | FO79: 0.2959053333 | FP79: 0 | FQ79: 0.424403 | FR79: 0.118177 | FS79: 0.2098793333 | FT79: 0.532722 | FU79: 0.342383 | FV79: 0.463734 | FW79: 0.1823413333 | FX79: 0.3790136667 | FY79: 1.560565 | FZ79: 0.5938166667 | GA79: 0.3128353333 | GB79: 1.196039
B80: 34.673685 | C80: 1.178297 | D80: 1.081578 | E80: 0.875556 | H80: 34.673685 | I80: 1.031026 | J80: 1.094836 | K80: 1.067095 | N80: 34.673685 | O80: 3.191909 | P80: 3.17022 | Q80: 3.097814 | U80: 34.673685 | V80: 1.046554 | W80: 1.093558 | X80: 1.097671 | AA80: 34.673685 | AB80: 4.844467 | AC80: 4.823538 | AD80: 4.892465 | AG80: 34.673685 | AH80: 0.628535 | AI80: 0.641615 | AJ80: 0.662946 | AM80: 34.673685 | AN80: 1.414319 | AO80: 1.471955 | AP80: 1.641117 | AS80: 34.673685 | AT80: 1.610774 | AU80: 1.884508 | AV80: 1.758371 | AY80: 34.673685 | AZ80: 1.067944 | BA80: 0.993369 | BB80: 1.111263 | BE80: 34.673685 | BF80: 4.727463 | BG80: 4.702667 | BH80: 4.689141 | BK80: 34.673685 | BL80: 0.780067 | BM80: 0.7253 | BN80: 0.68406 | BQ80: 34.673685 | BR80: 0.06778 | BS80: 0.212476 | BT80: 0 | BW80: 34.673685 | BX80: 0.2554 | BY80: 0.236532 | BZ80: 0.315619 | CC80: 34.673685 | CD80: 0 | CE80: 0 | CF80: 0 | CI80: 34.673685 | CJ80: 0.471615 | CK80: 0.4405 | CL80: 0.401043 | CO80: 34.673685 | CP80: 0.052252 | CQ80: 0.049019 | CR80: 0.042864 | CU80: 34.673685 | CV80: 0.154454 | CW80: 0.193348 | CX80: 0.197734 | DA80: 34.673685 | DB80: 0.591223 | DC80: 0.560961 | DD80: 0.698007 | DG80: 34.673685 | DH80: 0.254476 | DI80: 0.487642 | DJ80: 0.457646 | DM80: 34.673685 | DN80: 0.540408 | DO80: 0.547729 | DP80: 0.581578 | DS80: 34.673685 | DT80: 0.127516 | DU80: 0.147608 | DV80: 0.1778 | DY80: 34.673685 | DZ80: 0.431117 | EA80: 0.459657 | EB80: 0.429953 | EE80: 34.673685 | EF80: 1.718438 | EG80: 1.700879 | EH80: 1.848613 | EK80: 34.673685 | EL80: 0.766538 | EM80: 0.750569 | EN80: 0.594976 | EQ80: 34.673685 | ER80: 0.314726 | ES80: 0.351077 | ET80: 0.312015 | EW80: 34.673685 | EX80: 1.45009 | EY80: 1.577518 | EZ80: 1.436255 | FB80: 34.673685 | FC80: 1.045143667 | FD80: 1.064319 | FE80: 3.153314333 | FF80: 1.079261 | FG80: 4.85349 | FH80: 0.6443653333 | FI80: 1.509130333 | FJ80: 1.751217667 | FK80: 1.057525333 | FL80: 4.706423667 | FM80: 0.729809 | FN80: 0.09341866667 | FO80: 0.2691836667 | FP80: 0 | FQ80: 0.4377193333 | FR80: 0.048045 | FS80: 0.1818453333 | FT80: 0.6167303333 | FU80: 0.3999213333 | FV80: 0.5565716667 | FW80: 0.1509746667 | FX80: 0.4402423333 | FY80: 1.755976667 | FZ80: 0.7040276667 | GA80: 0.3259393333 | GB80: 1.487954333
B81: 39.810717 | C81: 1.38686 | D81: 1.277632 | E81: 1.021992 | H81: 39.810717 | I81: 1.239019 | J81: 1.311278 | K81: 1.253166 | N81: 39.810717 | O81: 3.552178 | P81: 3.534418 | Q81: 3.456606 | U81: 39.810717 | V81: 1.172103 | W81: 1.230553 | X81: 1.232633 | AA81: 39.810717 | AB81: 5.349968 | AC81: 5.334496 | AD81: 5.415333 | AG81: 39.810717 | AH81: 0.896338 | AI81: 0.890868 | AJ81: 0.919323 | AM81: 39.810717 | AN81: 1.714061 | AO81: 1.775883 | AP81: 1.977325 | AS81: 39.810717 | AT81: 1.845875 | AU81: 2.130726 | AV81: 1.996944 | AY81: 39.810717 | AZ81: 1.265629 | BA81: 1.181683 | BB81: 1.295252 | BE81: 39.810717 | BF81: 4.956285 | BG81: 4.928846 | BH81: 4.905823 | BK81: 39.810717 | BL81: 0.858685 | BM81: 0.795209 | BN81: 0.749461 | BQ81: 39.810717 | BR81: 0.051037 | BS81: 0.166101 | BT81: 0 | BW81: 39.810717 | BX81: 0.396549 | BY81: 0.36547 | BZ81: 0.485235 | CC81: 39.810717 | CD81: 0 | CE81: 0 | CF81: 0 | CI81: 39.810717 | CJ81: 0.54762 | CK81: 0.526571 | CL81: 0.475465 | CO81: 39.810717 | CP81: 0 | CQ81: 0 | CR81: 0 | CU81: 39.810717 | CV81: 0.236778 | CW81: 0.267665 | CX81: 0.276689 | DA81: 39.810717 | DB81: 0.760538 | DC81: 0.725239 | DD81: 0.895114 | DG81: 39.810717 | DH81: 0.378097 | DI81: 0.654643 | DJ81: 0.621199 | DM81: 39.810717 | DN81: 0.667741 | DO81: 0.679429 | DP81: 0.795332 | DS81: 39.810717 | DT81: 0.161634 | DU81: 0.174618 | DV81: 0.215943 | DY81: 39.810717 | DZ81: 0.597526 | EA81: 0.638305 | EB81: 0.585471 | EE81: 39.810717 | EF81: 2.055453 | EG81: 2.04648 | EH81: 2.22306 | EK81: 39.810717 | EL81: 1.008133 | EM81: 0.990907 | EN81: 0.81829 | EQ81: 39.810717 | ER81: 0.407145 | ES81: 0.441781 | ET81: 0.384234 | EW81: 39.810717 | EX81: 1.897262 | EY81: 2.05113 | EZ81: 1.886701 | FB81: 39.810717 | FC81: 1.228828 | FD81: 1.267821 | FE81: 3.514400667 | FF81: 1.211763 | FG81: 5.366599 | FH81: 0.9021763333 | FI81: 1.822423 | FJ81: 1.991181667 | FK81: 1.247521333 | FL81: 4.930318 | FM81: 0.8011183333 | FN81: 0.07237933333 | FO81: 0.4157513333 | FP81: 0 | FQ81: 0.516552 | FR81: 0 | FS81: 0.2603773333 | FT81: 0.7936303333 | FU81: 0.551313 | FV81: 0.7141673333 | FW81: 0.184065 | FX81: 0.6071006667 | FY81: 2.108331 | FZ81: 0.93911 | GA81: 0.4110533333 | GB81: 1.945031
B82: 45.708819 | C82: 1.654529 | D82: 1.530993 | E82: 1.215986 | H82: 45.708819 | I82: 1.550702 | J82: 1.655131 | K82: 1.554996 | N82: 45.708819 | O82: 3.944105 | P82: 3.933413 | Q82: 3.856833 | U82: 45.708819 | V82: 1.325853 | W82: 1.414345 | X82: 1.410034 | AA82: 45.708819 | AB82: 5.767547 | AC82: 5.757488 | AD82: 5.846711 | AG82: 45.708819 | AH82: 1.350292 | AI82: 1.319497 | AJ82: 1.358665 | AM82: 45.708819 | AN82: 2.123975 | AO82: 2.187481 | AP82: 2.420248 | AS82: 45.708819 | AT82: 2.131915 | AU82: 2.429076 | AV82: 2.28757 | AY82: 45.708819 | AZ82: 1.513407 | BA82: 1.417445 | BB82: 1.518884 | BE82: 45.708819 | BF82: 5.116236 | BG82: 5.088924 | BH82: 5.052604 | BK82: 45.708819 | BL82: 0.982414 | BM82: 0.90804 | BN82: 0.861454 | BQ82: 45.708819 | BR82: 0.020744 | BS82: 0.075271 | BT82: 0 | BW82: 45.708819 | BX82: 0.807785 | BY82: 0.761361 | BZ82: 0.93066 | CC82: 45.708819 | CD82: 0.001956 | CE82: 0.000806 | CF82: 0.000935 | CI82: 45.708819 | CJ82: 0.741531 | CK82: 0.734917 | CL82: 0.667138 | CO82: 45.708819 | CP82: 0.0014 | CQ82: 0.00144 | CR82: 0 | CU82: 45.708819 | CV82: 0.500152 | CW82: 0.503864 | CX82: 0.53262 | DA82: 45.708819 | DB82: 1.056602 | DC82: 1.019113 | DD82: 1.22557 | DG82: 45.708819 | DH82: 0.630982 | DI82: 0.95638 | DJ82: 0.920977 | DM82: 45.708819 | DN82: 0.875183 | DO82: 0.892828 | DP82: 1.108019 | DS82: 45.708819 | DT82: 0.312925 | DU82: 0.302835 | DV82: 0.369232 | DY82: 45.708819 | DZ82: 0.912207 | EA82: 0.979776 | EB82: 0.884077 | EE82: 45.708819 | EF82: 2.564827 | EG82: 2.559896 | EH82: 2.773042 | EK82: 45.708819 | EL82: 1.419098 | EM82: 1.397297 | EN82: 1.197009 | EQ82: 45.708819 | ER82: 0.613596 | ES82: 0.643293 | ET82: 0.566836 | EW82: 45.708819 | EX82: 2.515102 | EY82: 2.711951 | EZ82: 2.512724 | FB82: 45.708819 | FC82: 1.467169333 | FD82: 1.586943 | FE82: 3.911450333 | FF82: 1.383410667 | FG82: 5.790582 | FH82: 1.342818 | FI82: 2.243901333 | FJ82: 2.282853667 | FK82: 1.483245333 | FL82: 5.085921333 | FM82: 0.9173026667 | FN82: 0.032005 | FO82: 0.8332686667 | FP82: 0.001232333333 | FQ82: 0.7145286667 | FR82: 0.0009466666667 | FS82: 0.512212 | FT82: 1.100428333 | FU82: 0.836113 | FV82: 0.9586766667 | FW82: 0.3283306667 | FX82: 0.9253533333 | FY82: 2.632588333 | FZ82: 1.337801333 | GA82: 0.6079083333 | GB82: 2.579925667
B83: 52.480746 | C83: 1.983577 | D83: 1.844308 | E83: 1.465208 | H83: 52.480746 | I83: 1.970772 | J83: 2.134467 | K83: 1.984946 | N83: 52.480746 | O83: 4.343113 | P83: 4.342322 | Q83: 4.274779 | U83: 52.480746 | V83: 1.513797 | W83: 1.65496 | X83: 1.63887 | AA83: 52.480746 | AB83: 6.05887 | AC83: 6.052121 | AD83: 6.143795 | AG83: 52.480746 | AH83: 2.005682 | AI83: 1.946441 | AJ83: 2.000391 | AM83: 52.480746 | AN83: 2.653401 | AO83: 2.713465 | AP83: 2.97067 | AS83: 52.480746 | AT83: 2.464713 | AU83: 2.776512 | AV83: 2.625879 | AY83: 52.480746 | AZ83: 1.807958 | BA83: 1.696158 | BB83: 1.778245 | BE83: 52.480746 | BF83: 5.191395 | BG83: 5.168026 | BH83: 5.117178 | BK83: 52.480746 | BL83: 1.171501 | BM83: 1.088442 | BN83: 1.045534 | BQ83: 52.480746 | BR83: 0 | BS83: 0 | BT83: 0 | BW83: 52.480746 | BX83: 1.567168 | BY83: 1.504424 | BZ83: 1.724645 | CC83: 52.480746 | CD83: 0.088473 | CE83: 0.048379 | CF83: 0.056342 | CI83: 52.480746 | CJ83: 1.110467 | CK83: 1.120789 | CL83: 1.031251 | CO83: 52.480746 | CP83: 0.089377 | CQ83: 0.096171 | CR83: 0 | CU83: 52.480746 | CV83: 1.002776 | CW83: 0.954189 | CX83: 1.022071 | DA83: 52.480746 | DB83: 1.506179 | DC83: 1.469262 | DD83: 1.712485 | DG83: 52.480746 | DH83: 1.045599 | DI83: 1.419599 | DJ83: 1.383261 | DM83: 52.480746 | DN83: 1.185576 | DO83: 1.209582 | DP83: 1.527582 | DS83: 52.480746 | DT83: 0.628186 | DU83: 0.573301 | DV83: 0.682515 | DY83: 52.480746 | DZ83: 1.406926 | EA83: 1.519933 | EB83: 1.360911 | EE83: 52.480746 | EF83: 3.228889 | EG83: 3.224071 | EH83: 3.480408 | EK83: 52.480746 | EL83: 2.021225 | EM83: 1.990349 | EN83: 1.751072 | EQ83: 52.480746 | ER83: 0.968125 | ES83: 0.988111 | ET83: 0.897405 | EW83: 52.480746 | EX83: 3.281403 | EY83: 3.538636 | EZ83: 3.292743 | FB83: 52.480746 | FC83: 1.764364333 | FD83: 2.030061667 | FE83: 4.320071333 | FF83: 1.602542333 | FG83: 6.084928667 | FH83: 1.984171333 | FI83: 2.779178667 | FJ83: 2.622368 | FK83: 1.760787 | FL83: 5.158866333 | FM83: 1.101825667 | FN83: 0 | FO83: 1.598745667 | FP83: 0.064398 | FQ83: 1.087502333 | FR83: 0.06184933333 | FS83: 0.993012 | FT83: 1.562642 | FU83: 1.282819667 | FV83: 1.30758 | FW83: 0.6280006667 | FX83: 1.429256667 | FY83: 3.311122667 | FZ83: 1.920882 | GA83: 0.9512136667 | GB83: 3.370927333
B84: 60.255959 | C84: 2.367504 | D84: 2.21178 | E84: 1.771912 | H84: 60.255959 | I84: 2.490221 | J84: 2.73738 | K84: 2.537795 | N84: 60.255959 | O84: 4.713563 | P84: 4.724307 | Q84: 4.673745 | U84: 60.255959 | V84: 1.745998 | W84: 1.961951 | X84: 1.928831 | AA84: 60.255959 | AB84: 6.190951 | AC84: 6.183607 | AD84: 6.270039 | AG84: 60.255959 | AH84: 2.842564 | AI84: 2.756386 | AJ84: 2.829235 | AM84: 60.255959 | AN84: 3.292707 | AO84: 3.341231 | AP84: 3.609803 | AS84: 60.255959 | AT84: 2.831595 | AU84: 3.160871 | AV84: 2.997897 | AY84: 60.255959 | AZ84: 2.142043 | BA84: 2.009476 | BB84: 2.066429 | BE84: 60.255959 | BF84: 5.166461 | BG84: 5.151514 | BH84: 5.087823 | BK84: 60.255959 | BL84: 1.447449 | BM84: 1.364969 | BN84: 1.329704 | BQ84: 60.255959 | BR84: 0 | BS84: 0 | BT84: 0 | BW84: 60.255959 | BX84: 2.701827 | BY84: 2.625199 | BZ84: 2.886662 | CC84: 60.255959 | CD84: 0.168379 | CE84: 0.141924 | CF84: 0.164606 | CI84: 60.255959 | CJ84: 1.699916 | CK84: 1.726691 | CL84: 1.611343 | CO84: 60.255959 | CP84: 0.310997 | CQ84: 0.345275 | CR84: 0.239689 | CU84: 60.255959 | CV84: 1.769786 | CW84: 1.641078 | CX84: 1.768556 | DA84: 60.255959 | DB84: 2.11521 | DC84: 2.080186 | DD84: 2.355849 | DG84: 60.255959 | DH84: 1.633869 | DI84: 2.048426 | DJ84: 2.010509 | DM84: 60.255959 | DN84: 1.615405 | DO84: 1.643739 | DP84: 2.048791 | DS84: 60.255959 | DT84: 1.138326 | DU84: 1.013161 | DV84: 1.18496 | DY84: 60.255959 | DZ84: 2.08899 | EA84: 2.267828 | EB84: 2.028791 | EE84: 60.255959 | EF84: 3.993077 | EG84: 3.985449 | EH84: 4.288854 | EK84: 60.255959 | EL84: 2.805965 | EM84: 2.760749 | EN84: 2.473854 | EQ84: 60.255959 | ER84: 1.488141 | ES84: 1.492616 | ET84: 1.398694 | EW84: 60.255959 | EX84: 4.136894 | EY84: 4.468872 | EZ84: 4.166735 | FB84: 60.255959 | FC84: 2.117065333 | FD84: 2.588465333 | FE84: 4.703871667 | FF84: 1.878926667 | FG84: 6.214865667 | FH84: 2.809395 | FI84: 3.414580333 | FJ84: 2.996787667 | FK84: 2.072649333 | FL84: 5.135266 | FM84: 1.380707333 | FN84: 0 | FO84: 2.737896 | FP84: 0.158303 | FQ84: 1.679316667 | FR84: 0.2986536667 | FS84: 1.726473333 | FT84: 2.183748333 | FU84: 1.897601333 | FV84: 1.769311667 | FW84: 1.112149 | FX84: 2.128536333 | FY84: 4.089126667 | FZ84: 2.680189333 | GA84: 1.459817 | GB84: 4.257500333
B85: 69.183097 | C85: 2.792785 | D85: 2.620828 | E85: 2.133198 | H85: 69.183097 | I85: 3.089253 | J85: 3.433886 | K85: 3.191073 | N85: 69.183097 | O85: 5.015241 | P85: 5.037205 | Q85: 5.010947 | U85: 69.183097 | V85: 2.038974 | W85: 2.345527 | X85: 2.291844 | AA85: 69.183097 | AB85: 6.140119 | AC85: 6.127571 | AD85: 6.200371 | AG85: 69.183097 | AH85: 3.807711 | AI85: 3.70063 | AJ85: 3.796065 | AM85: 69.183097 | AN85: 4.014483 | AO85: 4.040339 | AP85: 4.302339 | AS85: 69.183097 | AT85: 3.215422 | AU85: 3.564646 | AV85: 3.384029 | AY85: 69.183097 | AZ85: 2.508928 | BA85: 2.350023 | BB85: 2.377997 | BE85: 69.183097 | BF85: 5.027907 | BG85: 5.026077 | BH85: 4.953365 | BK85: 69.183097 | BL85: 1.831891 | BM85: 1.768482 | BN85: 1.742535 | BQ85: 69.183097 | BR85: 0 | BS85: 0 | BT85: 0 | BW85: 69.183097 | BX85: 4.174327 | BY85: 4.090271 | BZ85: 4.37066 | CC85: 69.183097 | CD85: 0.278268 | CE85: 0.278253 | CF85: 0.3145 | CI85: 69.183097 | CJ85: 2.533853 | CK85: 2.57314 | CL85: 2.430094 | CO85: 69.183097 | CP85: 0.719322 | CQ85: 0.801518 | CR85: 0.679249 | CU85: 69.183097 | CV85: 2.782412 | CW85: 2.547331 | CX85: 2.751993 | DA85: 69.183097 | DB85: 2.866799 | DC85: 2.832101 | DD85: 3.131256 | DG85: 69.183097 | DH85: 2.383573 | DI85: 2.822518 | DJ85: 2.779375 | DM85: 69.183097 | DN85: 2.174575 | DO85: 2.201432 | DP85: 2.656934 | DS85: 69.183097 | DT85: 1.851427 | DU85: 1.629337 | DV85: 1.883619 | DY85: 69.183097 | DZ85: 2.938316 | EA85: 3.202284 | EB85: 2.874378 | EE85: 69.183097 | EF85: 4.776979 | EG85: 4.764265 | EH85: 5.114667 | EK85: 69.183097 | EL85: 3.73512 | EM85: 3.670284 | EN85: 3.33361 | EQ85: 69.183097 | ER85: 2.170286 | ES85: 2.153218 | ET85: 2.073471 | EW85: 69.183097 | EX85: 4.996976 | EY85: 5.411321 | EZ85: 5.048039 | FB85: 69.183097 | FC85: 2.515603667 | FD85: 3.238070667 | FE85: 5.021131 | FF85: 2.225448333 | FG85: 6.156020333 | FH85: 3.768135333 | FI85: 4.119053667 | FJ85: 3.388032333 | FK85: 2.412316 | FL85: 5.002449667 | FM85: 1.780969333 | FN85: 0 | FO85: 4.211752667 | FP85: 0.2903403333 | FQ85: 2.512362333 | FR85: 0.733363 | FS85: 2.693912 | FT85: 2.943385333 | FU85: 2.661822 | FV85: 2.344313667 | FW85: 1.788127667 | FX85: 3.004992667 | FY85: 4.885303667 | FZ85: 3.579671333 | GA85: 2.132325 | GB85: 5.152112
B86: 79.432823 | C86: 3.230197 | D86: 3.043852 | E86: 2.532145 | H86: 79.432823 | I86: 3.725947 | J86: 4.162671 | K86: 3.891206 | N86: 79.432823 | O86: 5.202559 | P86: 5.232809 | Q86: 5.236616 | U86: 79.432823 | V86: 2.407928 | W86: 2.806248 | X86: 2.732377 | AA86: 79.432823 | AB86: 5.895246 | AC86: 5.87397 | AD86: 5.925536 | AG86: 79.432823 | AH86: 4.798342 | AI86: 4.68074 | AJ86: 4.80096 | AM86: 79.432823 | AN86: 4.758719 | AO86: 4.748723 | AP86: 4.984023 | AS86: 79.432823 | AT86: 3.589431 | AU86: 3.959137 | AV86: 3.754149 | AY86: 79.432823 | AZ86: 2.896377 | BA86: 2.70662 | BB86: 2.704971 | BE86: 79.432823 | BF86: 4.768763 | BG86: 4.784073 | BH86: 4.70727 | BK86: 79.432823 | BL86: 2.333872 | BM86: 2.317748 | BN86: 2.298612 | BQ86: 79.432823 | BR86: 0 | BS86: 0 | BT86: 0 | BW86: 79.432823 | BX86: 5.84364 | BY86: 5.762415 | BZ86: 6.027661 | CC86: 79.432823 | CD86: 0.427141 | CE86: 0.482286 | CF86: 0.524337 | CI86: 79.432823 | CJ86: 3.585061 | CK86: 3.629494 | CL86: 3.460736 | CO86: 79.432823 | CP86: 1.334472 | CQ86: 1.486311 | CR86: 1.341276 | CU86: 79.432823 | CV86: 3.949115 | CW86: 3.590215 | CX86: 3.881029 | DA86: 79.432823 | DB86: 3.70373 | DC86: 3.663753 | DD86: 3.972855 | DG86: 79.432823 | DH86: 3.239521 | DI86: 3.679683 | DJ86: 3.623777 | DM86: 79.432823 | DN86: 2.851995 | DO86: 2.866738 | DP86: 3.317339 | DS86: 79.432823 | DT86: 2.731304 | DU86: 2.389743 | DV86: 2.742803 | DY86: 79.432823 | DZ86: 3.887289 | EA86: 4.249663 | EB86: 3.836705 | EE86: 79.432823 | EF86: 5.471407 | EG86: 5.450962 | EH86: 5.842565 | EK86: 79.432823 | EL86: 4.7235 | EM86: 4.63526 | EN86: 4.257805 | EQ86: 79.432823 | ER86: 2.972104 | ES86: 2.92863 | ET86: 2.884924 | EW86: 79.432823 | EX86: 5.747339 | EY86: 6.240254 | EZ86: 5.818891 | FB86: 79.432823 | FC86: 2.935398 | FD86: 3.926608 | FE86: 5.223994667 | FF86: 2.648851 | FG86: 5.898250667 | FH86: 4.760014 | FI86: 4.830488333 | FJ86: 3.767572333 | FK86: 2.769322667 | FL86: 4.753368667 | FM86: 2.316744 | FN86: 0 | FO86: 5.877905333 | FP86: 0.4779213333 | FQ86: 3.558430333 | FR86: 1.387353 | FS86: 3.806786333 | FT86: 3.780112667 | FU86: 3.514327 | FV86: 3.012024 | FW86: 2.621283333 | FX86: 3.991219 | FY86: 5.588311333 | FZ86: 4.538855 | GA86: 2.928552667 | GB86: 5.935494667
B87: 91.201084 | C87: 3.651295 | D87: 3.454329 | E87: 2.950543 | H87: 91.201084 | I87: 4.360156 | J87: 4.860211 | K87: 4.579928 | N87: 91.201084 | O87: 5.240095 | P87: 5.273297 | Q87: 5.311761 | U87: 91.201084 | V87: 2.873862 | W87: 3.346062 | X87: 3.257523 | AA87: 91.201084 | AB87: 5.456972 | AC87: 5.426044 | AD87: 5.450507 | AG87: 91.201084 | AH87: 5.707201 | AI87: 5.592627 | AJ87: 5.737977 | AM87: 91.201084 | AN87: 5.462258 | AO87: 5.401858 | AP87: 5.590882 | AS87: 91.201084 | AT87: 3.934176 | AU87: 4.321916 | AV87: 4.085188 | AY87: 91.201084 | AZ87: 3.300672 | BA87: 3.078083 | BB87: 3.049935 | BE87: 91.201084 | BF87: 4.385484 | BG87: 4.420728 | BH87: 4.344666 | BK87: 91.201084 | BL87: 2.958983 | BM87: 3.027625 | BN87: 3.007666 | BQ87: 91.201084 | BR87: 0.083909 | BS87: 0.110489 | BT87: 0 | BW87: 91.201084 | BX87: 7.526359 | BY87: 7.460477 | BZ87: 7.669247 | CC87: 91.201084 | CD87: 0.630653 | CE87: 0.777573 | CF87: 0.810627 | CI87: 91.201084 | CJ87: 4.799212 | CK87: 4.839163 | CL87: 4.651086 | CO87: 91.201084 | CP87: 2.155008 | CQ87: 2.398402 | CR87: 2.238513 | CU87: 91.201084 | CV87: 5.145798 | CW87: 4.657459 | CX87: 5.032786 | DA87: 91.201084 | DB87: 4.558656 | DC87: 4.503276 | DD87: 4.805323 | DG87: 91.201084 | DH87: 4.132872 | DI87: 4.547821 | DJ87: 4.467322 | DM87: 91.201084 | DN87: 3.6343 | DO87: 3.620907 | DP87: 4.000612 | DS87: 91.201084 | DT87: 3.723273 | DU87: 3.245542 | DV87: 3.709686 | DY87: 91.201084 | DZ87: 4.854797 | EA87: 5.321518 | EB87: 4.839702 | EE87: 91.201084 | EF87: 5.981908 | EG87: 5.949066 | EH87: 6.370719 | EK87: 91.201084 | EL87: 5.680164 | EM87: 5.567358 | EN87: 5.171174 | EQ87: 91.201084 | ER87: 3.837714 | ES87: 3.764629 | ET87: 3.780536 | EW87: 91.201084 | EX87: 6.290602 | EY87: 6.846556 | EZ87: 6.378358 | FB87: 91.201084 | FC87: =AVERAGE(C87:E87) -> 3.352055667 | FD87: =AVERAGE(I87:K87) -> 4.600098333 | FE87: =AVERAGE(O87:Q87) -> 5.275051 | FF87: =AVERAGE(V87:X87) -> 3.159149 | FG87: =AVERAGE(AB87:AD87) -> 5.444507667 | FH87: =AVERAGE(AH87:AJ87) -> 5.679268333 | FI87: =AVERAGE(AN87:AP87) -> 5.484999333 | FJ87: =AVERAGE(AT87:AV87) -> 4.11376 | FK87: =AVERAGE(AZ87:BB87) -> 3.142896667 | FL87: =AVERAGE(BF87:BH87) -> 4.383626 | FM87: =AVERAGE(BL87:BN87) -> 2.998091333 | FN87: =AVERAGE(BR87:BT87) -> 0.06479933333 | FO87: =AVERAGE(BX87:BZ87) -> 7.552027667 | FP87: =AVERAGE(CD87:CF87) -> 0.7396176667 | FQ87: =AVERAGE(CJ87:CL87) -> 4.763153667 | FR87: =AVERAGE(CP87:CR87) -> 2.263974333 | FS87: =AVERAGE(CV87:CX87) -> 4.945347667 | FT87: =AVERAGE(DB87:DD87) -> 4.622418333 | FU87: =AVERAGE(DH87:DJ87) -> 4.382671667 | FV87: =AVERAGE(DN87:DP87) -> 3.751939667 | FW87: =AVERAGE(DT87:DV87) -> 3.559500333 | FX87: =AVERAGE(DZ87:EB87) -> 5.005339 | FY87: =AVERAGE(EF87:EH87) -> 6.100564333 | FZ87: =AVERAGE(EL87:EN87) -> 5.472898667 | GA87: =AVERAGE(ER87:ET87) -> 3.794293 | GB87: =AVERAGE(EX87:EZ87) -> 6.505172
B88: 104.712855 | C88: 4.013273 | D88: 3.812332 | E88: 3.35267 | H88: 104.712855 | I88: 4.930741 | J88: 5.439269 | K88: 5.172638 | N88: 104.712855 | O88: 5.104579 | P88: 5.133689 | Q88: 5.20946 | U88: 104.712855 | V88: 3.437995 | W88: 3.94244 | X88: 3.850948 | AA88: 104.712855 | AB88: 4.855277 | AC88: 4.817423 | AD88: 4.812248 | AG88: 104.712855 | AH88: 6.402609 | AI88: 6.305877 | AJ88: 6.473424 | AM88: 104.712855 | AN88: 6.036933 | AO88: 5.913617 | AP88: 6.041115 | AS88: 104.712855 | AT88: 4.225633 | AU88: 4.624062 | AV88: 4.350646 | AY88: 104.712855 | AZ88: 3.709052 | BA88: 3.457587 | BB88: 3.411335 | BE88: 104.712855 | BF88: 3.895983 | BG88: 3.951357 | BH88: 3.879917 | BK88: 104.712855 | BL88: 3.679041 | BM88: 3.872925 | BN88: 3.839749 | BQ88: 104.712855 | BR88: 0.652318 | BS88: 0.675022 | BT88: 0.181995 | BW88: 104.712855 | BX88: 8.95671 | BY88: 8.91803 | BZ88: 9.030684 | CC88: 104.712855 | CD88: 0.916605 | CE88: 1.181669 | CF88: 1.184952 | CI88: 104.712855 | CJ88: 6.048478 | CK88: 6.073786 | CL88: 5.877991 | CO88: 104.712855 | CP88: 3.119847 | CQ88: 3.470977 | CR88: 3.299191 | CU88: 104.712855 | CV88: 6.185507 | CW88: 5.580465 | CX88: 6.024871 | DA88: 104.712855 | DB88: 5.327737 | DC88: 5.243658 | DD88: 5.519502 | DG88: 104.712855 | DH88: 4.953365 | DI88: 5.319249 | DJ88: 5.199727 | DM88: 104.712855 | DN88: 4.472879 | DO88: 4.411605 | DP88: 4.657435 | DS88: 104.712855 | DT88: 4.721574 | DU88: 4.103574 | DV88: 4.682765 | DY88: 104.712855 | DZ88: 5.716964 | EA88: 6.282481 | EB88: 5.760305 | EE88: 104.712855 | EF88: 6.222596 | EG88: 6.169725 | EH88: 6.604607 | EK88: 104.712855 | EL88: 6.482374 | EM88: 6.348625 | EN88: 5.969336 | EQ88: 104.712855 | ER88: 4.669665 | ES88: 4.566736 | ET88: 4.66138 | EW88: 104.712855 | EX88: 6.539049 | EY88: 7.129974 | EZ88: 6.635028 | FB88: 104.712855 | FC88: 3.726091667 | FD88: 5.180882667 | FE88: 5.149242667 | FF88: 3.743794333 | FG88: 4.828316 | FH88: 6.39397 | FI88: 5.997221667 | FJ88: 4.400113667 | FK88: 3.525991333 | FL88: 3.909085667 | FM88: 3.797238333 | FN88: 0.5031116667 | FO88: 8.968474667 | FP88: 1.094408667 | FQ88: 6.000085 | FR88: 3.296671667 | FS88: 5.930281 | FT88: 5.363632333 | FU88: 5.157447 | FV88: 4.513973 | FW88: 4.502637667 | FX88: 5.919916667 | FY88: 6.332309333 | FZ88: 6.266778333 | GA88: 4.632593667 | GB88: 6.768017
B89: 120.226443 | C89: 4.28841 | D89: 4.093501 | E89: 3.713688 | H89: 120.226443 | I89: 5.398469 | J89: 5.840401 | K89: 5.609369 | N89: 120.226443 | O89: 4.790815 | P89: 4.808524 | Q89: 4.923329 | U89: 120.226443 | V89: 4.103913 | W89: 4.578865 | X89: 4.50135 | AA89: 120.226443 | AB89: 4.12369 | AC89: 4.084514 | AD89: 4.049915 | AG89: 120.226443 | AH89: 6.803256 | AI89: 6.737739 | AJ89: 6.921531 | AM89: 120.226443 | AN89: 6.422109 | AO89: 6.226348 | AP89: 6.281 | AS89: 120.226443 | AT89: 4.458555 | AU89: 4.854401 | AV89: 4.543806 | AY89: 120.226443 | AZ89: 4.12389 | BA89: 3.855107 | BB89: 3.803681 | BE89: 120.226443 | BF89: 3.319198 | BG89: 3.392326 | BH89: 3.327962 | BK89: 120.226443 | BL89: 4.467639 | BM89: 4.826843 | BN89: 4.765073 | BQ89: 120.226443 | BR89: 1.865096 | BS89: 1.794318 | BT89: 1.221521 | BW89: 120.226443 | BX89: 9.927595 | BY89: 9.925062 | BZ89: 9.910038 | CC89: 120.226443 | CD89: 1.337992 | CE89: 1.732545 | CF89: 1.68226 | CI89: 120.226443 | CJ89: 7.216685 | CK89: 7.218047 | CL89: 7.030226 | CO89: 120.226443 | CP89: 4.160336 | CQ89: 4.630267 | CR89: 4.447496 | CU89: 120.226443 | CV89: 6.917663 | CW89: 6.223117 | CX89: 6.712126 | DA89: 120.226443 | DB89: 5.934506 | DC89: 5.807124 | DD89: 6.036053 | DG89: 120.226443 | DH89: 5.61624 | DI89: 5.916378 | DJ89: 5.742165 | DM89: 120.226443 | DN89: 5.331982 | DO89: 5.200583 | DP89: 5.262837 | DS89: 120.226443 | DT89: 5.642898 | DU89: 4.890755 | DV89: 5.583587 | DY89: 120.226443 | DZ89: 6.380192 | EA89: 7.031583 | EB89: 6.503072 | EE89: 120.226443 | EF89: 6.158595 | EG89: 6.074135 | EH89: 6.501826 | EK89: 120.226443 | EL89: 7.048752 | EM89: 6.902966 | EN89: 6.586487 | EQ89: 120.226443 | ER89: 5.393031 | ES89: 5.26203 | ET89: 5.446972 | EW89: 120.226443 | EX89: 6.459606 | EY89: 7.050035 | EZ89: 6.553572 | FB89: 120.226443 | FC89: 4.031866333 | FD89: 5.616079667 | FE89: 4.840889333 | FF89: 4.394709333 | FG89: 4.086039667 | FH89: 6.820842 | FI89: 6.309819 | FJ89: 4.618920667 | FK89: 3.927559333 | FL89: 3.346495333 | FM89: 4.686518333 | FN89: 1.626978333 | FO89: 9.920898333 | FP89: 1.584265667 | FQ89: 7.154986 | FR89: 4.412699667 | FS89: 6.617635333 | FT89: 5.925894333 | FU89: 5.758261 | FV89: 5.265134 | FW89: 5.372413333 | FX89: 6.638282333 | FY89: 6.244852 | FZ89: 6.846068333 | GA89: 5.367344333 | GB89: 6.687737667
B90: 138.038426 | C90: 4.446516 | D90: 4.27127 | E90: 3.997682 | H90: 138.038426 | I90: 5.714323 | J90: 6.00806 | K90: 5.830042 | N90: 138.038426 | O90: 4.32746 | P90: 4.328531 | Q90: 4.480644 | U90: 138.038426 | V90: 4.828592 | W90: 5.201029 | X90: 5.156747 | AA90: 138.038426 | AB90: 3.340842 | AC90: 3.307115 | AD90: 3.246992 | AG90: 138.038426 | AH90: 6.857651 | AI90: 6.830606 | AJ90: 7.021097 | AM90: 138.038426 | AN90: 6.562447 | AO90: 6.293522 | AP90: 6.270387 | AS90: 138.038426 | AT90: 4.627789 | AU90: 5.000784 | AV90: 4.661648 | AY90: 138.038426 | AZ90: 4.531526 | BA90: 4.266888 | BB90: 4.226951 | BE90: 138.038426 | BF90: 2.710936 | BG90: 2.796055 | BH90: 2.73971 | BK90: 138.038426 | BL90: 5.249118 | BM90: 5.798322 | BN90: 5.694304 | BQ90: 138.038426 | BR90: 3.690601 | BS90: 3.476206 | BT90: 2.849433 | BW90: 138.038426 | BX90: 10.255168 | BY90: 10.291287 | BZ90: 10.137441 | CC90: 138.038426 | CD90: 1.946961 | CE90: 2.451248 | CF90: 2.328283 | CI90: 138.038426 | CJ90: 8.138792 | CK90: 8.109786 | CL90: 7.947632 | CO90: 138.038426 | CP90: 5.144743 | CQ90: 5.732995 | CR90: 5.534403 | CU90: 138.038426 | CV90: 7.202171 | CW90: 6.459706 | CX90: 6.963531 | DA90: 138.038426 | DB90: 6.297145 | DC90: 6.116324 | DD90: 6.278826 | DG90: 138.038426 | DH90: 6.027932 | DI90: 6.259611 | DJ90: 6.019429 | DM90: 138.038426 | DN90: 6.132327 | DO90: 5.912652 | DP90: 5.77321 | DS90: 138.038426 | DT90: 6.378724 | DU90: 5.514613 | DV90: 6.309696 | DY90: 138.038426 | DZ90: 6.746766 | EA90: 7.463481 | EB90: 6.961476 | EE90: 138.038426 | EF90: 5.802985 | EG90: 5.673779 | EH90: 6.072527 | EK90: 138.038426 | EL90: 7.306728 | EM90: 7.163968 | EN90: 6.957375 | EQ90: 138.038426 | ER90: 5.917573 | ES90: 5.76282 | ET90: 6.033819 | EW90: 138.038426 | EX90: 6.07086 | EY90: 6.62332 | EZ90: 6.152191 | FB90: 138.038426 | FC90: 4.238489333 | FD90: 5.850808333 | FE90: 4.378878333 | FF90: 5.062122667 | FG90: 3.298316333 | FH90: 6.903118 | FI90: 6.375452 | FJ90: 4.763407 | FK90: 4.341788333 | FL90: 2.748900333 | FM90: 5.580581333 | FN90: 3.338746667 | FO90: 10.22796533 | FP90: 2.242164 | FQ90: 8.065403333 | FR90: 5.470713667 | FS90: 6.875136 | FT90: 6.230765 | FU90: 6.102324 | FV90: 5.939396333 | FW90: 6.067677667 | FX90: 7.057241 | FY90: 5.849763667 | FZ90: 7.142690333 | GA90: 5.904737333 | GB90: 6.282123667
B91: 158.489319 | C91: 4.479918 | D91: 4.342353 | E91: 4.190991 | H91: 158.489319 | I91: 5.858623 | J91: 5.927213 | K91: 5.815527 | N91: 158.489319 | O91: 3.746203 | P91: 3.728893 | Q91: 3.912755 | U91: 158.489319 | V91: 5.574369 | W91: 5.769434 | X91: 5.777275 | AA91: 158.489319 | AB91: 2.560581 | AC91: 2.538068 | AD91: 2.458311 | AG91: 158.489319 | AH91: 6.581126 | AI91: 6.592305 | AJ91: 6.777437 | AM91: 158.489319 | AN91: 6.444012 | AO91: 6.109728 | AP91: 6.005262 | AS91: 158.489319 | AT91: 4.744544 | AU91: 5.066043 | AV91: 4.717376 | AY91: 158.489319 | AZ91: 4.93363 | BA91: 4.704214 | BB91: 4.694693 | BE91: 158.489319 | BF91: 2.109517 | BG91: 2.198527 | BH91: 2.151081 | BK91: 158.489319 | BL91: 5.967321 | BM91: 6.714285 | BN91: 6.559313 | BQ91: 158.489319 | BR91: 6.083648 | BS91: 5.693698 | BT91: 5.209491 | BW91: 158.489319 | BX91: 9.885668 | BY91: 9.956716 | BZ91: 9.671608 | CC91: 158.489319 | CD91: 2.824043 | CE91: 3.386237 | CF91: 3.180613 | CI91: 158.489319 | CJ91: 8.716183 | CK91: 8.652325 | CL91: 8.533697 | CO91: 158.489319 | CP91: 5.981403 | CQ91: 6.680271 | CR91: 6.455097 | CU91: 158.489319 | CV91: 6.990849 | CW91: 6.246965 | CX91: 6.739444 | DA91: 158.489319 | DB91: 6.386531 | DC91: 6.149753 | DD91: 6.225944 | DG91: 158.489319 | DH91: 6.151106 | DI91: 6.324297 | DJ91: 6.012712 | DM91: 158.489319 | DN91: 6.82461 | DO91: 6.503882 | DP91: 6.174924 | DS91: 158.489319 | DT91: 6.884378 | DU91: 5.94071 | DV91: 6.820934 | DY91: 158.489319 | DZ91: 6.779786 | EA91: 7.541601 | EB91: 7.090812 | EE91: 158.489319 | EF91: 5.203552 | EG91: 5.015896 | EH91: 5.364085 | EK91: 158.489319 | EL91: 7.243875 | EM91: 7.124408 | EN91: 7.07081 | EQ91: 158.489319 | ER91: 6.20813 | ES91: 6.034724 | ET91: 6.371932 | EW91: 158.489319 | EX91: 5.428161 | EY91: 5.907962 | EZ91: 5.488029 | FB91: 158.489319 | FC91: 4.337754 | FD91: 5.867121 | FE91: 3.795950333 | FF91: 5.707026 | FG91: 2.518986667 | FH91: 6.650289333 | FI91: 6.186334 | FJ91: 4.842654333 | FK91: 4.777512333 | FL91: 2.153041667 | FM91: 6.413639667 | FN91: 5.662279 | FO91: 9.837997333 | FP91: 3.130297667 | FQ91: 8.634068333 | FR91: 6.372257 | FS91: 6.659086 | FT91: 6.254076 | FU91: 6.162705 | FV91: 6.501138667 | FW91: 6.548674 | FX91: 7.137399667 | FY91: 5.194511 | FZ91: 7.146364333 | GA91: 6.204928667 | GB91: 5.608050667
B92: 181.970086 | C92: 4.392003 | D92: 4.312166 | E92: 4.280062 | H92: 181.970086 | I92: 5.813952 | J92: 5.613027 | K92: 5.573934 | N92: 181.970086 | O92: 3.118047 | P92: 3.086306 | Q92: 3.288806 | U92: 181.970086 | V92: 6.240715 | W92: 6.204903 | X92: 6.276422 | AA92: 181.970086 | AB92: 1.869892 | AC92: 1.860938 | AD92: 1.769854 | AG92: 181.970086 | AH92: 6.048962 | AI92: 6.088011 | AJ92: 6.254304 | AM92: 181.970086 | AN92: 6.087339 | AO92: 5.708961 | AP92: 5.523128 | AS92: 181.970086 | AT92: 4.813713 | AU92: 5.049694 | AV92: 4.721989 | AY92: 181.970086 | AZ92: 5.302235 | BA92: 5.144193 | BB92: 5.182712 | BE92: 181.970086 | BF92: 1.580271 | BG92: 1.663457 | BH92: 1.62695 | BK92: 181.970086 | BL92: 6.521571 | BM92: 7.440168 | BN92: 7.237572 | BQ92: 181.970086 | BR92: 8.682268 | BS92: 8.139003 | BT92: 7.930178 | BW92: 181.970086 | BX92: 8.886754 | BY92: 8.983186 | BZ92: 8.598971 | CC92: 181.970086 | CD92: 3.986493 | CE92: 4.52122 | CF92: 4.242691 | CI92: 181.970086 | CJ92: 8.859856 | CK92: 8.759673 | CL92: 8.697847 | CO92: 181.970086 | CP92: 6.554424 | CQ92: 7.342861 | CR92: 7.078264 | CU92: 181.970086 | CV92: 6.325801 | CW92: 5.624681 | CX92: 6.090779 | DA92: 181.970086 | DB92: 6.202452 | DC92: 5.922603 | DD92: 5.897698 | DG92: 181.970086 | DH92: 5.98004 | DI92: 6.11774 | DJ92: 5.742184 | DM92: 181.970086 | DN92: 7.321547 | DO92: 6.901824 | DP92: 6.434833 | DS92: 181.970086 | DT92: 7.123146 | DU92: 6.145845 | DV92: 7.082195 | DY92: 181.970086 | DZ92: 6.483119 | EA92: 7.271816 | EB92: 6.881696 | EE92: 181.970086 | EF92: 4.463243 | EG92: 4.209804 | EH92: 4.489991 | EK92: 181.970086 | EL92: 6.888115 | EM92: 6.813975 | EN92: 6.936333 | EQ92: 181.970086 | ER92: 6.247641 | ES92: 6.062648 | ET92: 6.426002 | EW92: 181.970086 | EX92: 4.645804 | EY92: 5.028141 | EZ92: 4.680953 | FB92: 181.970086 | FC92: 4.328077 | FD92: 5.666971 | FE92: 3.164386333 | FF92: 6.24068 | FG92: 1.833561333 | FH92: 6.130425667 | FI92: 5.773142667 | FJ92: 4.861798667 | FK92: 5.209713333 | FL92: 1.623559333 | FM92: 7.066437 | FN92: 8.250483 | FO92: 8.822970333 | FP92: 4.250134667 | FQ92: 8.772458667 | FR92: 6.991849667 | FS92: 6.013753667 | FT92: 6.007584333 | FU92: 5.946654667 | FV92: 6.886068 | FW92: 6.783728667 | FX92: 6.878877 | FY92: 4.387679333 | FZ92: 6.879474333 | GA92: 6.245430333 | GB92: 4.784966
B93: 208.929613 | C93: 4.198512 | D93: 4.199744 | E93: 4.27215 | H93: 208.929613 | I93: 5.574925 | J93: 5.093778 | K93: 5.132157 | N93: 208.929613 | O93: 2.480406 | P93: 2.442871 | Q93: 2.644288 | U93: 208.929613 | V93: 6.747576 | W93: 6.451908 | X93: 6.590213 | AA93: 208.929613 | AB93: 1.294005 | AC93: 1.297215 | AD93: 1.203871 | AG93: 208.929613 | AH93: 5.346811 | AI93: 5.396872 | AJ93: 5.529474 | AM93: 208.929613 | AN93: 5.526887 | AO93: 5.135721 | AP93: 4.865761 | AS93: 208.929613 | AT93: 4.839115 | AU93: 4.948339 | AV93: 4.68186 | AY93: 208.929613 | AZ93: 5.61819 | BA93: 5.569721 | BB93: 5.67192 | BE93: 208.929613 | BF93: 1.140874 | BG93: 1.208423 | BH93: 1.18772 | BK93: 208.929613 | BL93: 6.849086 | BM93: 7.886802 | BN93: 7.652408 | BQ93: 208.929613 | BR93: 11.111991 | BS93: 10.487706 | BT93: 10.658199 | BW93: 208.929613 | BX93: 7.397059 | BY93: 7.50461 | BZ93: 7.065012 | CC93: 208.929613 | CD93: 5.45913 | CE93: 5.859635 | CF93: 5.537543 | CI93: 208.929613 | CJ93: 8.55496 | CK93: 8.417416 | CL93: 8.421839 | CO93: 208.929613 | CP93: 6.827149 | CQ93: 7.675869 | CR93: 7.360935 | CU93: 208.929613 | CV93: 5.307062 | CW93: 4.684356 | CX93: 5.124051 | DA93: 208.929613 | DB93: 5.776796 | DC93: 5.483122 | DD93: 5.343838 | DG93: 208.929613 | DH93: 5.549542 | DI93: 5.678718 | DJ93: 5.257786 | DM93: 208.929613 | DN93: 7.574367 | DO93: 7.070167 | DP93: 6.538783 | DS93: 208.929613 | DT93: 7.115501 | DU93: 6.159712 | DV93: 7.112073 | DY93: 208.929613 | DZ93: 5.89879 | EA93: 6.702586 | EB93: 6.369253 | EE93: 208.929613 | EF93: 3.656696 | EG93: 3.337543 | EH93: 3.533645 | EK93: 208.929613 | EL93: 6.287774 | EM93: 6.281219 | EN93: 6.584769 | EQ93: 208.929613 | ER93: 6.0643 | ES93: 5.877657 | ET93: 6.21048 | EW93: 208.929613 | EX93: 3.807649 | EY93: 4.074206 | EZ93: 3.821957 | FB93: 208.929613 | FC93: 4.223468667 | FD93: 5.266953333 | FE93: 2.522521667 | FF93: 6.596565667 | FG93: 1.265030333 | FH93: 5.424385667 | FI93: 5.176123 | FJ93: 4.823104667 | FK93: 5.619943667 | FL93: 1.179005667 | FM93: 7.462765333 | FN93: 10.752632 | FO93: 7.322227 | FP93: 5.618769333 | FQ93: 8.464738333 | FR93: 7.287984333 | FS93: 5.038489667 | FT93: 5.534585333 | FU93: 5.495348667 | FV93: 7.061105667 | FW93: 6.795762 | FX93: 6.323543 | FY93: 3.509294667 | FZ93: 6.384587333 | GA93: 6.050812333 | GB93: 3.901270667
B94: 239.883292 | C94: 3.935589 | D94: 4.037192 | E94: 4.185462 | H94: 239.883292 | I94: 5.153929 | J94: 4.438049 | K94: 4.555245 | N94: 239.883292 | O94: 1.898249 | P94: 1.866535 | Q94: 2.043408 | U94: 239.883292 | V94: 6.980948 | W94: 6.445063 | X94: 6.638513 | AA94: 239.883292 | AB94: 0.868304 | AC94: 0.87834 | AD94: 0.791542 | AG94: 239.883292 | AH94: 4.602158 | AI94: 4.64324 | AJ94: 4.728082 | AM94: 239.883292 | AN94: 4.8428 | AO94: 4.478193 | AP94: 4.123357 | AS94: 239.883292 | AT94: 4.811234 | AU94: 4.756287 | AV94: 4.592673 | AY94: 239.883292 | AZ94: 5.830118 | BA94: 5.917022 | BB94: 6.08958 | BE94: 239.883292 | BF94: 0.81549 | BG94: 0.860105 | BH94: 0.861252 | BK94: 239.883292 | BL94: 6.880669 | BM94: 7.954907 | BN94: 7.71874 | BQ94: 239.883292 | BR94: 12.79841 | BS94: 12.207955 | BT94: 12.760582 | BW94: 239.883292 | BX94: 5.674229 | BY94: 5.78118 | BZ94: 5.338457 | CC94: 239.883292 | CD94: 7.10397 | CE94: 7.269768 | CF94: 6.954411 | CI94: 239.883292 | CJ94: 7.850174 | CK94: 7.676942 | CL94: 7.74899 | CO94: 239.883292 | CP94: 6.792518 | CQ94: 7.659414 | CR94: 7.295366 | CU94: 239.883292 | CV94: 4.142895 | CW94: 3.617636 | CX94: 4.046646 | DA94: 239.883292 | DB94: 5.186286 | DC94: 4.925342 | DD94: 4.668538 | DG94: 239.883292 | DH94: 4.946776 | DI94: 5.090469 | DJ94: 4.656386 | DM94: 239.883292 | DN94: 7.530828 | DO94: 6.974788 | DP94: 6.464727 | DS94: 239.883292 | DT94: 6.901472 | DU94: 6.029993 | DV94: 6.942235 | DY94: 239.883292 | DZ94: 5.131127 | EA94: 5.941783 | EB94: 5.648654 | EE94: 239.883292 | EF94: 2.893068 | EG94: 2.522824 | EH94: 2.624313 | EK94: 239.883292 | EL94: 5.536868 | EM94: 5.612976 | EN94: 6.072168 | EQ94: 239.883292 | ER94: 5.71815 | ES94: 5.546017 | ET94: 5.780164 | EW94: 239.883292 | EX94: 3.032305 | EY94: 3.176875 | EZ94: 3.039846 | FB94: 239.883292 | FC94: 4.052747667 | FD94: 4.715741 | FE94: 1.936064 | FF94: 6.688174667 | FG94: 0.846062 | FH94: 4.657826667 | FI94: 4.48145 | FJ94: 4.720064667 | FK94: 5.945573333 | FL94: 0.8456156667 | FM94: 7.518105333 | FN94: 12.58898233 | FO94: 5.597955333 | FP94: 7.109383 | FQ94: 7.758702 | FR94: 7.249099333 | FS94: 3.935725667 | FT94: 4.926722 | FU94: 4.897877 | FV94: 6.990114333 | FW94: 6.624566667 | FX94: 5.573854667 | FY94: 2.680068333 | FZ94: 5.740670667 | GA94: 5.681443667 | GB94: 3.083008667
B95: 275.42287 | C95: 3.636411 | D95: 3.854494 | E95: 4.049009 | H95: 275.42287 | I95: 4.556004 | J95: 3.687357 | K95: 3.887648 | N95: 275.42287 | O95: 1.386544 | P95: 1.371576 | Q95: 1.502273 | U95: 275.42287 | V95: 6.871854 | W95: 6.150968 | X95: 6.377084 | AA95: 275.42287 | AB95: 0.575517 | AC95: 0.585205 | AD95: 0.511496 | AG95: 275.42287 | AH95: 3.883571 | AI95: 3.89876 | AJ95: 3.920776 | AM95: 275.42287 | AN95: 4.087862 | AO95: 3.791315 | AP95: 3.349298 | AS95: 275.42287 | AT95: 4.71149 | AU95: 4.456433 | AV95: 4.435518 | AY95: 275.42287 | AZ95: 5.896451 | BA95: 6.129773 | BB95: 6.370086 | BE95: 275.42287 | BF95: 0.586267 | BG95: 0.60339 | BH95: 0.632864 | BK95: 275.42287 | BL95: 6.592327 | BM95: 7.605773 | BN95: 7.406685 | BQ95: 275.42287 | BR95: 13.375362 | BS95: 12.940117 | BT95: 13.794277 | BW95: 275.42287 | BX95: 3.903158 | BY95: 4.00082 | BZ95: 3.603912 | CC95: 275.42287 | CD95: 8.777539 | CE95: 8.632112 | CF95: 8.385141 | CI95: 275.42287 | CJ95: 6.815976 | CK95: 6.610969 | CL95: 6.74878 | CO95: 275.42287 | CP95: 6.506043 | CQ95: 7.338844 | CR95: 6.942675 | CU95: 275.42287 | CV95: 3.00401 | CW95: 2.583444 | CX95: 3.025345 | DA95: 275.42287 | DB95: 4.495158 | DC95: 4.326038 | DD95: 3.95425 | DG95: 275.42287 | DH95: 4.252498 | DI95: 4.420051 | DJ95: 4.014037 | DM95: 275.42287 | DN95: 7.175479 | DO95: 6.611849 | DP95: 6.200245 | DS95: 275.42287 | DT95: 6.527717 | DU95: 5.81182 | DV95: 6.609632 | DY95: 275.42287 | DZ95: 4.267882 | EA95: 5.075495 | EB95: 4.804283 | EE95: 275.42287 | EF95: 2.213084 | EG95: 1.818754 | EH95: 1.814849 | EK95: 275.42287 | EL95: 4.694317 | EM95: 4.861595 | EN95: 5.432087 | EQ95: 275.42287 | ER95: 5.269181 | ES95: 5.137413 | ET95: 5.197669 | EW95: 275.42287 | EX95: 2.365803 | EY95: 2.385776 | EZ95: 2.390078 | FB95: 275.42287 | FC95: 3.846638 | FD95: 4.043669667 | FE95: 1.420131 | FF95: 6.466635333 | FG95: 0.557406 | FH95: 3.901035667 | FI95: 3.742825 | FJ95: 4.534480333 | FK95: 6.132103333 | FL95: 0.607507 | FM95: 7.201595 | FN95: 13.36991867 | FO95: 3.835963333 | FP95: 8.598264 | FQ95: 6.725241667 | FR95: 6.929187333 | FS95: 2.870933 | FT95: 4.258482 | FU95: 4.228862 | FV95: 6.662524333 | FW95: 6.316389667 | FX95: 4.715886667 | FY95: 1.948895667 | FZ95: 4.995999667 | GA95: 5.201421 | GB95: 2.380552333
B96: 316.227766 | C96: 3.353958 | D96: 3.690566 | E96: 3.906465 | H96: 316.227766 | I96: 3.830608 | J96: 2.91989 | K96: 3.206166 | N96: 316.227766 | O96: 0.977284 | P96: 0.984934 | Q96: 1.056045 | U96: 316.227766 | V96: 6.39421 | W96: 5.580119 | X96: 5.807366 | AA96: 316.227766 | AB96: 0.404822 | AC96: 0.407339 | AD96: 0.348818 | AG96: 316.227766 | AH96: 3.266559 | AI96: 3.248794 | AJ96: 3.196176 | AM96: 316.227766 | AN96: 3.349392 | AO96: 3.154583 | AP96: 2.629746 | AS96: 316.227766 | AT96: 4.522087 | AU96: 4.048885 | AV96: 4.194287 | AY96: 316.227766 | AZ96: 5.774078 | BA96: 6.136817 | BB96: 6.424914 | BE96: 316.227766 | BF96: 0.440676 | BG96: 0.430303 | BH96: 0.492223 | BK96: 316.227766 | BL96: 6.010916 | BM96: 6.865815 | BN96: 6.742781 | BQ96: 316.227766 | BR96: 12.649502 | BS96: 12.449699 | BT96: 13.449809 | BW96: 316.227766 | BX96: 2.314725 | BY96: 2.359787 | BZ96: 2.006219 | CC96: 316.227766 | CD96: 10.173696 | CE96: 9.703958 | CF96: 9.581687 | CI96: 316.227766 | CJ96: 5.597619 | CK96: 5.372758 | CL96: 5.56925 | CO96: 316.227766 | CP96: 6.067531 | CQ96: 6.80634 | CR96: 6.414245 | CU96: 316.227766 | CV96: 2.103226 | CW96: 1.782533 | CX96: 2.256146 | DA96: 316.227766 | DB96: 3.804612 | DC96: 3.785448 | DD96: 3.315046 | DG96: 316.227766 | DH96: 3.587589 | DI96: 3.765545 | DJ96: 3.432666 | DM96: 316.227766 | DN96: 6.539971 | DO96: 6.020992 | DP96: 5.756712 | DS96: 316.227766 | DT96: 6.051578 | DU96: 5.56057 | DV96: 6.158348 | DY96: 316.227766 | DZ96: 3.441928 | EA96: 4.225861 | EB96: 3.965081 | EE96: 316.227766 | EF96: 1.669024 | EG96: 1.290688 | EH96: 1.175742 | EK96: 316.227766 | EL96: 3.852319 | EM96: 4.104935 | EN96: 4.724469 | EQ96: 316.227766 | ER96: 4.79448 | ES96: 4.737561 | ET96: 4.56194 | EW96: 316.227766 | EX96: 1.862705 | EY96: 1.764335 | EZ96: 1.932857 | FB96: 316.227766 | FC96: 3.650329667 | FD96: 3.318888 | FE96: 1.006087667 | FF96: 5.927231667 | FG96: 0.386993 | FH96: 3.237176333 | FI96: 3.044573667 | FJ96: 4.255086333 | FK96: 6.111936333 | FL96: 0.4544006667 | FM96: 6.539837333 | FN96: 12.84967 | FO96: 2.226910333 | FP96: 9.819780333 | FQ96: 5.513209 | FR96: 6.429372 | FS96: 2.047301667 | FT96: 3.635035333 | FU96: 3.595266667 | FV96: 6.105891667 | FW96: 5.923498667 | FX96: 3.877623333 | FY96: 1.378484667 | FZ96: 4.227241 | GA96: 4.697993667 | GB96: 1.853299
B97: 363.078055 | C97: 3.124302 | D97: 3.568765 | E97: 3.79636 | H97: 363.078055 | I97: 3.01766 | J97: 2.176707 | K97: 2.548608 | N97: 363.078055 | O97: 0.66706 | P97: 0.696903 | Q97: 0.703363 | U97: 363.078055 | V97: 5.571591 | W97: 4.76659 | X97: 4.959347 | AA97: 363.078055 | AB97: 0.322852 | AC97: 0.313928 | AD97: 0.268681 | AG97: 363.078055 | AH97: 2.758241 | AI97: 2.711924 | AJ97: 2.574914 | AM97: 363.078055 | AN97: 2.665441 | AO97: 2.594431 | AP97: 1.999331 | AS97: 363.078055 | AT97: 4.223323 | AU97: 3.528956 | AV97: 3.848584 | AY97: 363.078055 | AZ97: 5.437856 | BA97: 5.891795 | BB97: 6.188028 | BE97: 363.078055 | BF97: 0.351045 | BG97: 0.317185 | BH97: 0.411769 | BK97: 363.078055 | BL97: 5.190658 | BM97: 5.7979 | BN97: 5.784895 | BQ97: 363.078055 | BR97: 10.74147 | BS97: 10.792277 | BT97: 11.774899 | BW97: 363.078055 | BX97: 0.119537 | BY97: 0.27444 | BZ97: 0.099401 | CC97: 363.078055 | CD97: 11.037448 | CE97: 10.293602 | CF97: 10.333303 | CI97: 363.078055 | CJ97: 4.315727 | CK97: 4.075512 | CL97: 4.322736 | CO97: 363.078055 | CP97: 5.574035 | CQ97: 6.153641 | CR97: 5.815008 | CU97: 363.078055 | CV97: 1.550019 | CW97: 1.326065 | CX97: 1.83111 | DA97: 363.078055 | DB97: 3.175056 | DC97: 3.354122 | DD97: 2.810718 | DG97: 363.078055 | DH97: 3.031139 | DI97: 3.180395 | DJ97: 2.965304 | DM97: 363.078055 | DN97: 5.671668 | DO97: 5.251779 | DP97: 5.150187 | DS97: 363.078055 | DT97: 5.498154 | DU97: 5.300223 | DV97: 5.60298 | DY97: 363.078055 | DZ97: 2.731484 | EA97: 3.449069 | EB97: 3.206357 | EE97: 363.078055 | EF97: 1.255229 | EG97: 0.94045 | EH97: 0.707773 | EK97: 363.078055 | EL97: 3.052906 | EM97: 3.371639 | EN97: 3.972543 | EQ97: 363.078055 | ER97: 4.331363 | ES97: 4.391063 | ET97: 3.94017 | EW97: 363.078055 | EX97: 1.517803 | EY97: 1.308917 | EZ97: 1.662737 | FB97: 363.078055 | FC97: 3.496475667 | FD97: 2.580991667 | FE97: 0.6891086667 | FF97: 5.099176 | FG97: 0.3018203333 | FH97: 2.681693 | FI97: 2.419734333 | FJ97: 3.866954333 | FK97: 5.839226333 | FL97: 0.3599996667 | FM97: 5.591151 | FN97: 11.102882 | FO97: 0.1644593333 | FP97: 10.55478433 | FQ97: 4.237991667 | FR97: 5.847561333 | FS97: 1.569064667 | FT97: 3.113298667 | FU97: 3.058946 | FV97: 5.357878 | FW97: 5.467119 | FX97: 3.12897 | FY97: 0.9678173333 | FZ97: 3.465696 | GA97: 4.220865333 | GB97: 1.496485667
B98: 416.869383 | C98: 2.979958 | D98: 3.502946 | E98: 3.751048 | H98: 416.869383 | I98: 2.203224 | J98: 1.495743 | K98: 1.964067 | N98: 416.869383 | O98: 0.454679 | P98: 0.499887 | Q98: 0.420116 | U98: 416.869383 | V98: 4.512692 | W98: 3.805613 | X98: 3.942137 | AA98: 416.869383 | AB98: 0.297319 | AC98: 0.277196 | AD98: 0.239785 | AG98: 416.869383 | AH98: 2.358041 | AI98: 2.298821 | AJ98: 2.07569 | AM98: 416.869383 | AN98: 2.082649 | AO98: 2.136098 | AP98: 1.500365 | AS98: 416.869383 | AT98: 3.816733 | AU98: 2.925138 | AV98: 3.403733 | AY98: 416.869383 | AZ98: 4.898686 | BA98: 5.387132 | BB98: 5.627988 | BE98: 416.869383 | BF98: 0.290685 | BG98: 0.24002 | BH98: 0.365191 | BK98: 416.869383 | BL98: 4.245751 | BM98: 4.554078 | BN98: 4.660231 | BQ98: 416.869383 | BR98: 8.124099 | BS98: 8.354974 | BT98: 9.186756 | BW98: 416.869383 | BX98: 0 | BY98: 0 | BZ98: 0 | CC98: 416.869383 | CD98: 11.128649 | CE98: 10.230271 | CF98: 10.430055 | CI98: 416.869383 | CJ98: 3.082913 | CK98: 2.876179 | CL98: 3.160993 | CO98: 416.869383 | CP98: 5.12265 | CQ98: 5.485077 | CR98: 5.250537 | CU98: 416.869383 | CV98: 1.404848 | CW98: 1.28141 | CX98: 1.785442 | DA98: 416.869383 | DB98: 2.674013 | DC98: 3.067298 | DD98: 2.487733 | DG98: 416.869383 | DH98: 2.660053 | DI98: 2.721771 | DJ98: 2.657645 | DM98: 416.869383 | DN98: 4.67429 | DO98: 4.399646 | DP98: 4.437664 | DS98: 416.869383 | DT98: 4.897442 | DU98: 5.038025 | DV98: 4.967605 | DY98: 416.869383 | DZ98: 2.215511 | EA98: 2.804848 | EB98: 2.606123 | EE98: 416.869383 | EF98: 0.963658 | EG98: 0.767421 | EH98: 0.41859 | EK98: 416.869383 | EL98: 2.320817 | EM98: 2.678513 | EN98: 3.225877 | EQ98: 416.869383 | ER98: 3.909822 | ES98: 4.119215 | ET98: 3.40729 | EW98: 416.869383 | EX98: 1.318508 | EY98: 1.01175 | EZ98: 1.555295 | FB98: 416.869383 | FC98: 3.411317333 | FD98: 1.887678 | FE98: 0.4582273333 | FF98: 4.086814 | FG98: 0.2714333333 | FH98: 2.244184 | FI98: 1.906370667 | FJ98: 3.381868 | FK98: 5.304602 | FL98: 0.298632 | FM98: 4.486686667 | FN98: 8.555276333 | FO98: 0 | FP98: 10.596325 | FQ98: 3.040028333 | FR98: 5.286088 | FS98: 1.490566667 | FT98: 2.743014667 | FU98: 2.679823 | FV98: 4.503866667 | FW98: 4.967690667 | FX98: 2.542160667 | FY98: 0.7165563333 | FZ98: 2.741735667 | GA98: 3.812109 | GB98: 1.295184333
B99: 478.630092 | C99: 2.924565 | D99: 3.483281 | E99: 3.777943 | H99: 478.630092 | I99: 1.450338 | J99: 0.864294 | K99: 1.467503 | N99: 478.630092 | O99: 0.318703 | P99: 0.368649 | Q99: 0.091692 | U99: 478.630092 | V99: 3.331266 | W99: 2.795028 | X99: 2.828193 | AA99: 478.630092 | AB99: 0.29532 | AC99: 0.268118 | AD99: 0.231663 | AG99: 478.630092 | AH99: 2.027857 | AI99: 1.978402 | AJ99: 1.676171 | AM99: 478.630092 | AN99: 1.603481 | AO99: 1.763328 | AP99: 1.1342 | AS99: 478.630092 | AT99: 3.307661 | AU99: 2.271121 | AV99: 2.870846 | AY99: 478.630092 | AZ99: 4.183489 | BA99: 4.648122 | BB99: 4.745878 | BE99: 478.630092 | BF99: 0.243853 | BG99: 0.191377 | BH99: 0.324498 | BK99: 478.630092 | BL99: 3.274908 | BM99: 3.240962 | BN99: 3.482121 | BQ99: 478.630092 | BR99: 5.24365 | BS99: 5.55864 | BT99: 6.220552 | BW99: 478.630092 | BX99: 0 | BY99: 0 | BZ99: 0 | CC99: 478.630092 | CD99: 10.363222 | CE99: 9.467292 | CF99: 9.786104 | CI99: 478.630092 | CJ99: 1.902936 | CK99: 1.845804 | CL99: 2.156319 | CO99: 478.630092 | CP99: 4.754042 | CQ99: 4.850718 | CR99: 4.761939 | CU99: 478.630092 | CV99: 1.6267 | CW99: 1.623763 | CX99: 2.059035 | DA99: 478.630092 | DB99: 2.322561 | DC99: 2.907978 | DD99: 2.334582 | DG99: 478.630092 | DH99: 2.496096 | DI99: 2.403157 | DJ99: 2.509011 | DM99: 478.630092 | DN99: 3.632113 | DO99: 3.54187 | DP99: 3.668365 | DS99: 478.630092 | DT99: 4.249177 | DU99: 4.748088 | DV99: 4.253626 | DY99: 478.630092 | DZ99: 1.910899 | EA99: 2.25387 | EB99: 2.18008 | EE99: 478.630092 | EF99: 0.757454 | EG99: 0.699256 | EH99: 0.222592 | EK99: 478.630092 | EL99: 1.663583 | EM99: 2.020614 | EN99: 2.503756 | EQ99: 478.630092 | ER99: 3.509827 | ES99: 3.88964 | ET99: 2.991441 | EW99: 478.630092 | EX99: 1.224492 | EY99: 0.831912 | EZ99: 1.551312 | FB99: 478.630092 | FC99: 3.395263 | FD99: 1.260711667 | FE99: 0.2596813333 | FF99: 2.984829 | FG99: 0.2650336667 | FH99: 1.894143333 | FI99: 1.500336333 | FJ99: 2.816542667 | FK99: 4.525829667 | FL99: 0.2532426667 | FM99: 3.332663667 | FN99: 5.674280667 | FO99: 0 | FP99: 9.872206 | FQ99: 1.968353 | FR99: 4.788899667 | FS99: 1.769832667 | FT99: 2.521707 | FU99: 2.469421333 | FV99: 3.614116 | FW99: 4.416963667 | FX99: 2.114949667 | FY99: 0.5597673333 | FZ99: 2.062651 | GA99: 3.463636 | GB99: 1.202572
B100: 549.540874 | C100: 2.939406 | D100: 3.481444 | E100: 3.855712 | H100: 549.540874 | I100: 0.836969 | J100: 0.387989 | K100: 1.046082 | N100: 549.540874 | O100: 0.237556 | P100: 0.282472 | Q100: 0 | U100: 549.540874 | V100: 2.187134 | W100: 1.804459 | X100: 1.834711 | AA100: 549.540874 | AB100: 0.286573 | AC100: 0.262929 | AD100: 0.219789 | AG100: 549.540874 | AH100: 1.735485 | AI100: 1.719877 | AJ100: 1.359512 | AM100: 549.540874 | AN100: 1.228611 | AO100: 1.458861 | AP100: 0.896944 | AS100: 549.540874 | AT100: 2.7286 | AU100: 1.601521 | AV100: 2.292641 | AY100: 549.540874 | AZ100: 3.362774 | BA100: 3.752134 | BB100: 3.607851 | BE100: 549.540874 | BF100: 0.168613 | BG100: 0.10308 | BH100: 0.269401 | BK100: 549.540874 | BL100: 2.393512 | BM100: 2.081504 | BN100: 2.366791 | BQ100: 549.540874 | BR100: 2.957331 | BS100: 3.170241 | BT100: 3.556464 | BW100: 549.540874 | BX100: 0 | BY100: 0 | BZ100: 0 | CC100: 549.540874 | CD100: 8.849224 | CE100: 8.107414 | CF100: 8.469922 | CI100: 549.540874 | CJ100: 0.956407 | CK100: 1.093875 | CL100: 1.393853 | CO100: 549.540874 | CP100: 4.471363 | CQ100: 4.277006 | CR100: 4.353157 | CU100: 549.540874 | CV100: 2.101463 | CW100: 2.250446 | CX100: 2.524058 | DA100: 549.540874 | DB100: 2.125922 | DC100: 2.833755 | DD100: 2.309179 | DG100: 549.540874 | DH100: 2.52683 | DI100: 2.224848 | DJ100: 2.496199 | DM100: 549.540874 | DN100: 2.652209 | DO100: 2.747308 | DP100: 2.918949 | DS100: 549.540874 | DT100: 3.566809 | DU100: 4.39921 | DV100: 3.489816 | DY100: 549.540874 | DZ100: 1.805349 | EA100: 1.707961 | EB100: 1.922169 | EE100: 549.540874 | EF100: 0.605593 | EG100: 0.699107 | EH100: 0.146494 | EK100: 549.540874 | EL100: 1.055501 | EM100: 1.326546 | EN100: 1.850497 | EQ100: 549.540874 | ER100: 3.12439 | ES100: 3.638603 | ET100: 2.703919 | EW100: 549.540874 | EX100: 1.194613 | EY100: 0.730125 | EZ100: 1.58137 | FB100: 549.540874 | FC100: 3.425520667 | FD100: 0.7570133333 | FE100: 0.1733426667 | FF100: 1.942101333 | FG100: 0.2564303333 | FH100: 1.604958 | FI100: 1.194805333 | FJ100: 2.207587333 | FK100: 3.574253 | FL100: 0.1803646667 | FM100: 2.280602333 | FN100: 3.228012 | FO100: 0 | FP100: 8.47552 | FQ100: 1.148045 | FR100: 4.367175333 | FS100: 2.291989 | FT100: 2.422952 | FU100: 2.415959 | FV100: 2.772822 | FW100: 3.818611667 | FX100: 1.811826333 | FY100: 0.4837313333 | FZ100: 1.410848 | GA100: 3.155637333 | GB100: 1.168702667
B101: 630.957344 | C101: 2.983183 | D101: 3.454292 | E101: 3.935712 | H101: 630.957344 | I101: 0.397281 | J101: 0.150252 | K101: 0.664197 | N101: 630.957344 | O101: 0.187473 | P101: 0.21624 | Q101: 0 | U101: 630.957344 | V101: 0.899827 | W101: 0.839696 | X101: 0.525337 | AA101: 630.957344 | AB101: 0.26078 | AC101: 0.246057 | AD101: 0.191519 | AG101: 630.957344 | AH101: 1.447858 | AI101: 1.485559 | AJ101: 1.101476 | AM101: 630.957344 | AN101: 0.937374 | AO101: 1.193299 | AP101: 0.762131 | AS101: 630.957344 | AT101: 2.108558 | AU101: 0.976363 | AV101: 1.706181 | AY101: 630.957344 | AZ101: 2.501511 | BA101: 2.798031 | BB101: 2.300898 | BE101: 630.957344 | BF101: 0.06587 | BG101: 0.033238 | BH101: 0.18473 | BK101: 630.957344 | BL101: 1.668044 | BM101: 0.5457 | BN101: 1.218456 | BQ101: 630.957344 | BR101: 0.665607 | BS101: 0.66702 | BT101: 1.205842 | BW101: 630.957344 | BX101: 0 | BY101: 0 | BZ101: 0 | CC101: 630.957344 | CD101: 6.80567 | CE101: 6.344773 | CF101: 6.665645 | CI101: 630.957344 | CJ101: 0.176682 | CK101: 0.482785 | CL101: 0.797876 | CO101: 630.957344 | CP101: 4.228404 | CQ101: 3.74037 | CR101: 3.977989 | CU101: 630.957344 | CV101: 2.675024 | CW101: 3.012113 | CX101: 3.025149 | DA101: 630.957344 | DB101: 2.054803 | DC101: 2.780402 | DD101: 2.340739 | DG101: 630.957344 | DH101: 2.697425 | DI101: 2.158267 | DJ101: 2.569647 | DM101: 630.957344 | DN101: 1.789163 | DO101: 1.989368 | DP101: 2.229895 | DS101: 630.957344 | DT101: 2.862765 | DU101: 3.956603 | DV101: 2.700522 | DY101: 630.957344 | DZ101: 1.844941 | EA101: 1.341528 | EB101: 1.787183 | EE101: 630.957344 | EF101: 0.469411 | EG101: 0.764658 | EH101: 0.148326 | EK101: 630.957344 | EL101: 0.671161 | EM101: 0.801513 | EN101: 1.259149 | EQ101: 630.957344 | ER101: 2.656034 | ES101: 3.299762 | ET101: 2.516871 | EW101: 630.957344 | EX101: 1.188513 | EY101: 0.660276 | EZ101: 1.578811 | FB101: 630.957344 | FC101: 3.457729 | FD101: 0.40391 | FE101: 0.134571 | FF101: 0.7549533333 | FG101: 0.2327853333 | FH101: 1.344964333 | FI101: 0.964268 | FJ101: 1.597034 | FK101: 2.53348 | FL101: 0.09461266667 | FM101: 1.144066667 | FN101: 0.8461563333 | FO101: 0 | FP101: 6.605362667 | FQ101: 0.485781 | FR101: 3.982254333 | FS101: 2.904095333 | FT101: 2.391981333 | FU101: 2.475113 | FV101: 2.002808667 | FW101: 3.173296667 | FX101: 1.657884 | FY101: 0.4607983333 | FZ101: 0.9106076667 | GA101: 2.824222333 | GB101: 1.142533333
B102: 724.43596 | C102: 3.003982 | D102: 3.358246 | E102: 3.951812 | H102: 724.43596 | I102: 0.157849 | J102: 0.085804 | K102: 0.378018 | N102: 724.43596 | O102: 0.145331 | P102: 0.163558 | Q102: 0 | U102: 724.43596 | V102: 0.045062 | W102: 0.300392 | X102: 0.016331 | AA102: 724.43596 | AB102: 0.187157 | AC102: 0.207587 | AD102: 0.132363 | AG102: 724.43596 | AH102: 1.157549 | AI102: 1.254617 | AJ102: 0.890385 | AM102: 724.43596 | AN102: 0.71177 | AO102: 0.952373 | AP102: 0.697723 | AS102: 724.43596 | AT102: 1.436378 | AU102: 0.2548 | AV102: 1.111971 | AY102: 724.43596 | AZ102: 1.688703 | BA102: 1.803694 | BB102: 0.948894 | BE102: 724.43596 | BF102: 0 | BG102: 0 | BH102: 0.099921 | BK102: 724.43596 | BL102: 1.139545 | BM102: 0 | BN102: 0.406175 | BQ102: 724.43596 | BR102: 0 | BS102: 0 | BT102: 0 | BW102: 724.43596 | BX102: 0 | BY102: 0 | BZ102: 0 | CC102: 724.43596 | CD102: 4.640498 | CE102: 4.471186 | CF102: 4.681048 | CI102: 724.43596 | CJ102: 0 | CK102: 0.144027 | CL102: 0.37804 | CO102: 724.43596 | CP102: 3.964675 | CQ102: 3.211951 | CR102: 3.580816 | CU102: 724.43596 | CV102: 3.180128 | CW102: 3.728877 | CX102: 3.407613 | DA102: 724.43596 | DB102: 2.06182 | DC102: 2.686828 | DD102: 2.353881 | DG102: 724.43596 | DH102: 2.925013 | DI102: 2.160278 | DJ102: 2.666674 | DM102: 724.43596 | DN102: 1.003969 | DO102: 1.398247 | DP102: 1.576871 | DS102: 724.43596 | DT102: 2.169561 | DU102: 3.40544 | DV102: 1.933623 | DY102: 724.43596 | DZ102: 1.95108 | EA102: 1.152219 | EB102: 1.71777 | EE102: 724.43596 | EF102: 0.320623 | EG102: 0.836691 | EH102: 0.144856 | EK102: 724.43596 | EL102: 0.4861 | EM102: 0.362808 | EN102: 0.687972 | EQ102: 724.43596 | ER102: 2.272863 | ES102: 2.779281 | ET102: 2.384858 | EW102: 724.43596 | EX102: 1.176511 | EY102: 0.590015 | EZ102: 1.497158 | FB102: 724.43596 | FC102: 3.438013333 | FD102: 0.2072236667 | FE102: 0.102963 | FF102: 0.120595 | FG102: 0.1757023333 | FH102: 1.100850333 | FI102: 0.7872886667 | FJ102: 0.934383 | FK102: 1.480430333 | FL102: 0.033307 | FM102: 0.51524 | FN102: 0 | FO102: 0 | FP102: 4.597577333 | FQ102: 0.1740223333 | FR102: 3.585814 | FS102: 3.438872667 | FT102: 2.367509667 | FU102: 2.583988333 | FV102: 1.326362333 | FW102: 2.502874667 | FX102: 1.607023 | FY102: 0.4340566667 | FZ102: 0.5122933333 | GA102: 2.479000667 | GB102: 1.087894667
B103: 831.763771 | C103: 2.95289 | D103: 3.156228 | E103: 3.842604 | H103: 831.763771 | I103: 0.080138 | J103: 0.044983 | K103: 0.239319 | N103: 831.763771 | O103: 0.105504 | P103: 0.095351 | Q103: 0 | U103: 831.763771 | V103: 0 | W103: 0.163632 | X103: 0 | AA103: 831.763771 | AB103: 0.114393 | AC103: 0.165631 | AD103: 0.089735 | AG103: 831.763771 | AH103: 0.864092 | AI103: 1.019205 | AJ103: 0.718031 | AM103: 831.763771 | AN103: 0.532388 | AO103: 0.720154 | AP103: 0.667662 | AS103: 831.763771 | AT103: 0.795539 | AU103: 0 | AV103: 0.633249 | AY103: 831.763771 | AZ103: 0.861437 | BA103: 0.990201 | BB103: 0.077301 | BE103: 831.763771 | BF103: 0 | BG103: 0 | BH103: 0.049829 | BK103: 831.763771 | BL103: 0.803054 | BM103: 0 | BN103: 0.190069 | BQ103: 831.763771 | BR103: 0 | BS103: 0 | BT103: 0 | BW103: 831.763771 | BX103: 0 | BY103: 0 | BZ103: 0 | CC103: 831.763771 | CD103: 2.404513 | CE103: 2.554353 | CF103: 2.675787 | CI103: 831.763771 | CJ103: 0 | CK103: 0.167316 | CL103: 0.223279 | CO103: 831.763771 | CP103: 3.624746 | CQ103: 2.664337 | CR103: 3.123346 | CU103: 831.763771 | CV103: 3.487736 | CW103: 4.246123 | CX103: 3.5655 | DA103: 831.763771 | DB103: 2.088526 | DC103: 2.511359 | DD103: 2.289676 | DG103: 831.763771 | DH103: 3.118881 | DI103: 2.17728 | DJ103: 2.723375 | DM103: 831.763771 | DN103: 0.440365 | DO103: 1.087854 | DP103: 1.081116 | DS103: 831.763771 | DT103: 1.50664 | DU103: 2.773111 | DV103: 1.120694 | DY103: 831.763771 | DZ103: 2.025285 | EA103: 0.898531 | EB103: 1.655206 | EE103: 831.763771 | EF103: 0.155006 | EG103: 0.84749 | EH103: 0.128146 | EK103: 831.763771 | EL103: 0.282813 | EM103: 0.096404 | EN103: 0.295673 | EQ103: 831.763771 | ER103: 2.102273 | ES103: 2.18127 | ET103: 2.252643 | EW103: 831.763771 | EX103: 1.143142 | EY103: 0.500272 | EZ103: 1.320788 | FB103: 831.763771 | FC103: 3.317240667 | FD103: 0.12148 | FE103: 0.06695166667 | FF103: 0.054544 | FG103: 0.123253 | FH103: 0.8671093333 | FI103: 0.640068 | FJ103: 0.4762626667 | FK103: 0.6429796667 | FL103: 0.01660966667 | FM103: 0.331041 | FN103: 0 | FO103: 0 | FP103: 2.544884333 | FQ103: 0.1301983333 | FR103: 3.137476333 | FS103: 3.766453 | FT103: 2.296520333 | FU103: 2.673178667 | FV103: 0.8697783333 | FW103: 1.800148333 | FX103: 1.526340667 | FY103: 0.3768806667 | FZ103: 0.2249633333 | GA103: 2.178728667 | GB103: 0.9880673333
B104: 954.992586 | C104: 2.798528 | D104: 2.8462 | E104: 3.57156 | H104: 954.992586 | I104: 0.070319 | J104: 0.018734 | K104: 0.138973 | N104: 954.992586 | O104: 0.04283 | P104: 0.043331 | Q104: 0 | U104: 954.992586 | V104: 0 | W104: 0.023126 | X104: 0 | AA104: 954.992586 | AB104: 0.029629 | AC104: 0.142574 | AD104: 0.116495 | AG104: 954.992586 | AH104: 0.603611 | AI104: 0.78732 | AJ104: 0.581865 | AM104: 954.992586 | AN104: 0.388086 | AO104: 0.492037 | AP104: 0.641047 | AS104: 954.992586 | AT104: 0.420985 | AU104: 0 | AV104: 0.380762 | AY104: 954.992586 | AZ104: 0.135067 | BA104: 0.397334 | BB104: 0 | BE104: 954.992586 | BF104: 0 | BG104: 0 | BH104: 0 | BK104: 954.992586 | BL104: 0.624568 | BM104: 0 | BN104: 0.103226 | BQ104: 954.992586 | BR104: 0 | BS104: 0 | BT104: 0 | BW104: 954.992586 | BX104: 0 | BY104: 0 | BZ104: 0 | CC104: 954.992586 | CD104: 0.419609 | CE104: 0.760523 | CF104: 0.732814 | CI104: 954.992586 | CJ104: 0 | CK104: 0.148452 | CL104: 0.202668 | CO104: 954.992586 | CP104: 3.186997 | CQ104: 2.106563 | CR104: 2.588383 | CU104: 954.992586 | CV104: 3.528421 | CW104: 4.459383 | CX104: 3.457966 | DA104: 954.992586 | DB104: 2.079836 | DC104: 2.241548 | DD104: 2.121196 | DG104: 954.992586 | DH104: 3.198372 | DI104: 2.156217 | DJ104: 2.687257 | DM104: 954.992586 | DN104: 0.240656 | DO104: 0.890541 | DP104: 0.856179 | DS104: 954.992586 | DT104: 0.866563 | DU104: 2.08041 | DV104: 0.434486 | DY104: 954.992586 | DZ104: 2.02519 | EA104: 0.629329 | EB104: 1.555719 | EE104: 954.992586 | EF104: 0.068831 | EG104: 0.798267 | EH104: 0.091923 | EK104: 954.992586 | EL104: 0.133641 | EM104: 0 | EN104: 0.186849 | EQ104: 954.992586 | ER104: 1.82458 | ES104: 1.723145 | ET104: 2.076101 | EW104: 954.992586 | EX104: 1.075399 | EY104: 0.389418 | EZ104: 1.068768 | FB104: 954.992586 | FC104: 3.072096 | FD104: 0.07600866667 | FE104: 0.02872033333 | FF104: 0.007708666667 | FG104: 0.09623266667 | FH104: 0.6575986667 | FI104: 0.5070566667 | FJ104: 0.267249 | FK104: 0.177467 | FL104: 0 | FM104: 0.242598 | FN104: 0 | FO104: 0 | FP104: 0.6376486667 | FQ104: 0.11704 | FR104: 2.627314333 | FS104: 3.815256667 | FT104: 2.147526667 | FU104: 2.680615333 | FV104: 0.6624586667 | FW104: 1.127153 | FX104: 1.403412667 | FY104: 0.3196736667 | FZ104: 0.10683 | GA104: 1.874608667 | GB104: 0.8445283333
B105: 1096.478196 | C105: 2.530796 | D105: 2.428364 | E105: 3.145245 | H105: 1096.478196 | I105: 0.09352 | J105: 0 | K105: 0.052192 | N105: 1096.478196 | O105: 0 | P105: 0.032018 | Q105: 0 | U105: 1096.478196 | V105: 0 | W105: 0 | X105: 0 | AA105: 1096.478196 | AB105: 0 | AC105: 0.117042 | AD105: 0.12597 | AG105: 1096.478196 | AH105: 0.356158 | AI105: 0.565178 | AJ105: 0.473703 | AM105: 1096.478196 | AN105: 0.269425 | AO105: 0.312041 | AP105: 0.596337 | AS105: 1096.478196 | AT105: 0.222811 | AU105: 0 | AV105: 0.135979 | AY105: 1096.478196 | AZ105: 0 | BA105: 0 | BB105: 0 | BE105: 1096.478196 | BF105: 0 | BG105: 0 | BH105: 0 | BK105: 1096.478196 | BL105: 0.550455 | BM105: 0 | BN105: 0.038111 | BQ105: 1096.478196 | BR105: 0 | BS105: 0 | BT105: 0 | BW105: 1096.478196 | BX105: 0 | BY105: 0 | BZ105: 0 | CC105: 1096.478196 | CD105: 0 | CE105: 0.086999 | CF105: 0 | CI105: 1096.478196 | CJ105: 0 | CK105: 0.147874 | CL105: 0.172531 | CO105: 1096.478196 | CP105: 2.669454 | CQ105: 1.565078 | CR105: 1.986639 | CU105: 1096.478196 | CV105: 3.301437 | CW105: 4.335263 | CX105: 3.112564 | DA105: 1096.478196 | DB105: 1.996257 | DC105: 1.897603 | DD105: 1.8586 | DG105: 1096.478196 | DH105: 3.110932 | DI105: 2.05613 | DJ105: 2.527123 | DM105: 1096.478196 | DN105: 0.066659 | DO105: 0.702241 | DP105: 0.649955 | DS105: 1096.478196 | DT105: 0.259829 | DU105: 1.351749 | DV105: 0.276029 | DY105: 1096.478196 | DZ105: 1.9826 | EA105: 0.36589 | EB105: 1.400266 | EE105: 1096.478196 | EF105: 0.019386 | EG105: 0.698365 | EH105: 0.072511 | EK105: 1096.478196 | EL105: 0.04228 | EM105: 0 | EN105: 0.090246 | EQ105: 1096.478196 | ER105: 1.505169 | ES105: 1.245557 | ET105: 1.835873 | EW105: 1096.478196 | EX105: 0.994312 | EY105: 0.284772 | EZ105: 0.78287 | FB105: 1096.478196 | FC105: 2.701468333 | FD105: 0.04857066667 | FE105: 0.01067266667 | FF105: 0 | FG105: 0.081004 | FH105: 0.465013 | FI105: 0.392601 | FJ105: 0.1195966667 | FK105: 0 | FL105: 0 | FM105: 0.1961886667 | FN105: 0 | FO105: 0 | FP105: 0.02899966667 | FQ105: 0.1068016667 | FR105: 2.073723667 | FS105: 3.583088 | FT105: 1.917486667 | FU105: 2.564728333 | FV105: 0.4729516667 | FW105: 0.6292023333 | FX105: 1.249585333 | FY105: 0.2634206667 | FZ105: 0.04417533333 | GA105: 1.528866333 | GB105: 0.687318
B106: 1258.925412 | C106: 2.156873 | D106: 1.890212 | E106: 2.600191 | H106: 1258.925412 | I106: 0.115603 | J106: 0 | K106: 0 | N106: 1258.925412 | O106: 0 | P106: 0.02258 | Q106: 0 | U106: 1258.925412 | V106: 0 | W106: 0 | X106: 0 | AA106: 1258.925412 | AB106: 0 | AC106: 0.105874 | AD106: 0.127866 | AG106: 1258.925412 | AH106: 0.114074 | AI106: 0.341113 | AJ106: 0.369094 | AM106: 1258.925412 | AN106: 0.160768 | AO106: 0.180447 | AP106: 0.517675 | AS106: 1258.925412 | AT106: 0.020491 | AU106: 0 | AV106: 0.035431 | AY106: 1258.925412 | AZ106: 0 | BA106: 0 | BB106: 0 | BE106: 1258.925412 | BF106: 0 | BG106: 0 | BH106: 0 | BK106: 1258.925412 | BL106: 0.519711 | BM106: 0 | BN106: 0 | BQ106: 1258.925412 | BR106: 0 | BS106: 0 | BT106: 0 | BW106: 1258.925412 | BX106: 0 | BY106: 0 | BZ106: 0 | CC106: 1258.925412 | CD106: 0 | CE106: 0 | CF106: 0 | CI106: 1258.925412 | CJ106: 0 | CK106: 0.137977 | CL106: 0.143446 | CO106: 1258.925412 | CP106: 2.089033 | CQ106: 1.020115 | CR106: 1.428046 | CU106: 1258.925412 | CV106: 2.856666 | CW106: 3.901374 | CX106: 2.598829 | DA106: 1258.925412 | DB106: 1.815892 | DC106: 1.517652 | DD106: 1.531996 | DG106: 1258.925412 | DH106: 2.835512 | DI106: 1.853979 | DJ106: 2.227743 | DM106: 1258.925412 | DN106: 0.05103 | DO106: 0.499071 | DP106: 0.590775 | DS106: 1258.925412 | DT106: 0 | DU106: 0.822121 | DV106: 0.150679 | DY106: 1258.925412 | DZ106: 1.826192 | EA106: 0.208082 | EB106: 1.190372 | EE106: 1258.925412 | EF106: 0 | EG106: 0.567453 | EH106: 0.047006 | EK106: 1258.925412 | EL106: 0 | EM106: 0 | EN106: 0 | EQ106: 1258.925412 | ER106: 1.38932 | ES106: 0.818156 | ET106: 1.530903 | EW106: 1258.925412 | EX106: 0.961812 | EY106: 0.201928 | EZ106: 0.499967 | FB106: 1258.925412 | FC106: 2.215758667 | FD106: 0.03853433333 | FE106: 0.007526666667 | FF106: 0 | FG106: 0.07791333333 | FH106: 0.2747603333 | FI106: 0.2862966667 | FJ106: 0.01864066667 | FK106: 0 | FL106: 0 | FM106: 0.173237 | FN106: 0 | FO106: 0 | FP106: 0 | FQ106: 0.09380766667 | FR106: 1.512398 | FS106: 3.118956333 | FT106: 1.621846667 | FU106: 2.305744667 | FV106: 0.380292 | FW106: 0.3242666667 | FX106: 1.074882 | FY106: 0.2048196667 | FZ106: 0 | GA106: 1.246126333 | GB106: 0.554569
B107: 1445.439771 | C107: 1.722864 | D107: 1.513063 | E107: 1.95753 | H107: 1445.439771 | I107: 0.12396 | J107: 0 | K107: 0 | N107: 1445.439771 | O107: 0 | P107: 0 | Q107: 0 | U107: 1445.439771 | V107: 0 | W107: 0 | X107: 0 | AA107: 1445.439771 | AB107: 0 | AC107: 0.087722 | AD107: 0.117638 | AG107: 1445.439771 | AH107: 0 | AI107: 0.188095 | AJ107: 0.290783 | AM107: 1445.439771 | AN107: 0.094263 | AO107: 0.063941 | AP107: 0.406943 | AS107: 1445.439771 | AT107: 0 | AU107: 0 | AV107: 0 | AY107: 1445.439771 | AZ107: 0 | BA107: 0 | BB107: 0 | BE107: 1445.439771 | BF107: 0 | BG107: 0 | BH107: 0 | BK107: 1445.439771 | BL107: 0.478531 | BM107: 0 | BN107: 0 | BQ107: 1445.439771 | BR107: 0 | BS107: 0 | BT107: 0 | BW107: 1445.439771 | BX107: 0 | BY107: 0 | BZ107: 0 | CC107: 1445.439771 | CD107: 0 | CE107: 0 | CF107: 0 | CI107: 1445.439771 | CJ107: 0 | CK107: 0.1192 | CL107: 0.112264 | CO107: 1445.439771 | CP107: 1.463257 | CQ107: 0.491393 | CR107: 0.952408 | CU107: 1445.439771 | CV107: 2.274408 | CW107: 3.225501 | CX107: 2.004816 | DA107: 1445.439771 | DB107: 1.534408 | DC107: 1.122085 | DD107: 1.164225 | DG107: 1445.439771 | DH107: 2.382176 | DI107: 1.549202 | DJ107: 1.805502 | DM107: 1445.439771 | DN107: 0.036127 | DO107: 0.362087 | DP107: 0.497222 | DS107: 1445.439771 | DT107: 0 | DU107: 0.470436 | DV107: 0.005912 | DY107: 1445.439771 | DZ107: 1.539249 | EA107: 0.062826 | EB107: 0.942623 | EE107: 1445.439771 | EF107: 0 | EG107: 0.404266 | EH107: 0.027594 | EK107: 1445.439771 | EL107: 0 | EM107: 0 | EN107: 0 | EQ107: 1445.439771 | ER107: 1.196322 | ES107: 0.610514 | ET107: 1.180877 | EW107: 1445.439771 | EX107: 0.850472 | EY107: 0.146673 | EZ107: 0.237542 | FB107: 1445.439771 | FC107: 1.731152333 | FD107: 0.04132 | FE107: 0 | FF107: 0 | FG107: 0.06845333333 | FH107: 0.159626 | FI107: 0.1883823333 | FJ107: 0 | FK107: 0 | FL107: 0 | FM107: 0.1595103333 | FN107: 0 | FO107: 0 | FP107: 0 | FQ107: 0.07715466667 | FR107: 0.9690193333 | FS107: 2.501575 | FT107: 1.273572667 | FU107: 1.912293333 | FV107: 0.2984786667 | FW107: 0.1587826667 | FX107: 0.8482326667 | FY107: 0.1439533333 | FZ107: 0 | GA107: 0.9959043333 | GB107: 0.4115623333
B108: 1659.586907 | C108: 1.178551 | D108: 1.098113 | E108: 1.272948 | H108: 1659.586907 | I108: 0.110576 | J108: 0 | K108: 0 | N108: 1659.586907 | O108: 0 | P108: 0 | Q108: 0 | U108: 1659.586907 | V108: 0 | W108: 0 | X108: 0 | AA108: 1659.586907 | AB108: 0 | AC108: 0.065045 | AD108: 0.093188 | AG108: 1659.586907 | AH108: 0 | AI108: 0.121965 | AJ108: 0.224407 | AM108: 1659.586907 | AN108: 0.066338 | AO108: 0 | AP108: 0.305057 | AS108: 1659.586907 | AT108: 0 | AU108: 0 | AV108: 0 | AY108: 1659.586907 | AZ108: 0 | BA108: 0 | BB108: 0 | BE108: 1659.586907 | BF108: 0 | BG108: 0 | BH108: 0 | BK108: 1659.586907 | BL108: 0.39577 | BM108: 0 | BN108: 0 | BQ108: 1659.586907 | BR108: 0 | BS108: 0 | BT108: 0 | BW108: 1659.586907 | BX108: 0 | BY108: 0 | BZ108: 0 | CC108: 1659.586907 | CD108: 0 | CE108: 0 | CF108: 0 | CI108: 1659.586907 | CJ108: 0 | CK108: 0.089118 | CL108: 0.077301 | CO108: 1659.586907 | CP108: 0.839317 | CQ108: 0.016478 | CR108: 0.469519 | CU108: 1659.586907 | CV108: 1.61338 | CW108: 2.396798 | CX108: 1.404978 | DA108: 1659.586907 | DB108: 1.168092 | DC108: 0.725129 | DD108: 0.764133 | DG108: 1659.586907 | DH108: 1.796071 | DI108: 1.164808 | DJ108: 1.319721 | DM108: 1659.586907 | DN108: 0.024019 | DO108: 0.275155 | DP108: 0.382236 | DS108: 1659.586907 | DT108: 0 | DU108: 0.121729 | DV108: 0 | DY108: 1659.586907 | DZ108: 1.14394 | EA108: 0 | EB108: 0.67601 | EE108: 1659.586907 | EF108: 0 | EG108: 0.273335 | EH108: 0 | EK108: 1659.586907 | EL108: 0 | EM108: 0 | EN108: 0 | EQ108: 1659.586907 | ER108: 0.917065 | ES108: 0.423775 | ET108: 0.797602 | EW108: 1659.586907 | EX108: 0.668319 | EY108: 0.085147 | EZ108: 0.007918 | FB108: 1659.586907 | FC108: 1.183204 | FD108: 0.03685866667 | FE108: 0 | FF108: 0 | FG108: 0.05274433333 | FH108: 0.1154573333 | FI108: 0.1237983333 | FJ108: 0 | FK108: 0 | FL108: 0 | FM108: 0.1319233333 | FN108: 0 | FO108: 0 | FP108: 0 | FQ108: 0.055473 | FR108: 0.4417713333 | FS108: 1.805052 | FT108: 0.8857846667 | FU108: 1.426866667 | FV108: 0.2271366667 | FW108: 0.04057633333 | FX108: 0.60665 | FY108: 0.09111166667 | FZ108: 0 | GA108: 0.712814 | GB108: 0.2537946667
B109: 1905.460718 | C109: 0.601315 | D109: 0.601124 | E109: 0.686375 | H109: 1905.460718 | I109: 0.070766 | J109: 0 | K109: 0 | N109: 1905.460718 | O109: 0 | P109: 0 | Q109: 0 | U109: 1905.460718 | V109: 0 | W109: 0 | X109: 0 | AA109: 1905.460718 | AB109: 0 | AC109: 0.03723 | AD109: 0.056905 | AG109: 1905.460718 | AH109: 0 | AI109: 0.06918 | AJ109: 0.123315 | AM109: 1905.460718 | AN109: 0.039453 | AO109: 0 | AP109: 0.161822 | AS109: 1905.460718 | AT109: 0 | AU109: 0 | AV109: 0 | AY109: 1905.460718 | AZ109: 0 | BA109: 0 | BB109: 0 | BE109: 1905.460718 | BF109: 0 | BG109: 0 | BH109: 0 | BK109: 1905.460718 | BL109: 0.240888 | BM109: 0 | BN109: 0 | BQ109: 1905.460718 | BR109: 0 | BS109: 0 | BT109: 0 | BW109: 1905.460718 | BX109: 0 | BY109: 0 | BZ109: 0 | CC109: 1905.460718 | CD109: 0 | CE109: 0 | CF109: 0 | CI109: 1905.460718 | CJ109: 0 | CK109: 0.052983 | CL109: 0.044398 | CO109: 1905.460718 | CP109: 0.36198 | CQ109: 0 | CR109: 0.160146 | CU109: 1905.460718 | CV109: 0.820648 | CW109: 1.358742 | CX109: 0.755623 | DA109: 1905.460718 | DB109: 0.674069 | DC109: 0.337663 | DD109: 0.392187 | DG109: 1905.460718 | DH109: 1.019283 | DI109: 0.665698 | DJ109: 0.74761 | DM109: 1905.460718 | DN109: 0.015595 | DO109: 0.150049 | DP109: 0.208048 | DS109: 1905.460718 | DT109: 0 | DU109: 0.015004 | DV109: 0 | DY109: 1905.460718 | DZ109: 0.618342 | EA109: 0 | EB109: 0.368254 | EE109: 1905.460718 | EF109: 0 | EG109: 0.147545 | EH109: 0 | EK109: 1905.460718 | EL109: 0 | EM109: 0 | EN109: 0 | EQ109: 1905.460718 | ER109: 0.530913 | ES109: 0.179519 | ET109: 0.37815 | EW109: 1905.460718 | EX109: 0.393128 | EY109: 0.029292 | EZ109: 0 | FB109: 1905.460718 | FC109: 0.6296046667 | FD109: 0.02358866667 | FE109: 0 | FF109: 0 | FG109: 0.03137833333 | FH109: 0.064165 | FI109: 0.06709166667 | FJ109: 0 | FK109: 0 | FL109: 0 | FM109: 0.080296 | FN109: 0 | FO109: 0 | FP109: 0 | FQ109: 0.03246033333 | FR109: 0.174042 | FS109: 0.9783376667 | FT109: 0.467973 | FU109: 0.8108636667 | FV109: 0.124564 | FW109: 0.005001333333 | FX109: 0.3288653333 | FY109: 0.04918166667 | FZ109: 0 | GA109: 0.3628606667 | GB109: 0.1408066667
B110: 2187.761624 | C110: 0.132061 | D110: 0.13956 | E110: 0.167275 | H110: 2187.761624 | I110: 0.017501 | J110: 0 | K110: 0 | N110: 2187.761624 | O110: 0 | P110: 0 | Q110: 0 | U110: 2187.761624 | V110: 0 | W110: 0 | X110: 0 | AA110: 2187.761624 | AB110: 0 | AC110: 0.008367 | AD110: 0.013397 | AG110: 2187.761624 | AH110: 0 | AI110: 0.014952 | AJ110: 0.034104 | AM110: 2187.761624 | AN110: 0.008484 | AO110: 0 | AP110: 0.044274 | AS110: 2187.761624 | AT110: 0 | AU110: 0 | AV110: 0 | AY110: 2187.761624 | AZ110: 0 | BA110: 0 | BB110: 0 | BE110: 2187.761624 | BF110: 0 | BG110: 0 | BH110: 0 | BK110: 2187.761624 | BL110: 0.059323 | BM110: 0 | BN110: 0 | BQ110: 2187.761624 | BR110: 0 | BS110: 0 | BT110: 0 | BW110: 2187.761624 | BX110: 0 | BY110: 0 | BZ110: 0 | CC110: 2187.761624 | CD110: 0 | CE110: 0 | CF110: 0 | CI110: 2187.761624 | CJ110: 0 | CK110: 0.0121 | CL110: 0.009123 | CO110: 2187.761624 | CP110: 0.070983 | CQ110: 0 | CR110: 0.038645 | CU110: 2187.761624 | CV110: 0.171432 | CW110: 0.322474 | CX110: 0.172246 | DA110: 2187.761624 | DB110: 0.16156 | DC110: 0.065828 | DD110: 0.088996 | DG110: 2187.761624 | DH110: 0.240366 | DI110: 0.158659 | DJ110: 0.178733 | DM110: 2187.761624 | DN110: 0 | DO110: 0.041346 | DP110: 0.057396 | DS110: 2187.761624 | DT110: 0 | DU110: 0 | DV110: 0 | DY110: 2187.761624 | DZ110: 0.137965 | EA110: 0 | EB110: 0.084399 | EE110: 2187.761624 | EF110: 0 | EG110: 0.040922 | EH110: 0 | EK110: 2187.761624 | EL110: 0 | EM110: 0 | EN110: 0 | EQ110: 2187.761624 | ER110: 0.127248 | ES110: 0.045388 | ET110: 0.073235 | EW110: 2187.761624 | EX110: 0.094971 | EY110: 0 | EZ110: 0 | FB110: 2187.761624 | FC110: 0.1462986667 | FD110: 0.005833666667 | FE110: 0 | FF110: 0 | FG110: 0.007254666667 | FH110: 0.016352 | FI110: 0.017586 | FJ110: 0 | FK110: 0 | FL110: 0 | FM110: 0.01977433333 | FN110: 0 | FO110: 0 | FP110: 0 | FQ110: 0.007074333333 | FR110: 0.03654266667 | FS110: 0.2220506667 | FT110: 0.1054613333 | FU110: 0.192586 | FV110: 0.032914 | FW110: 0 | FX110: 0.07412133333 | FY110: 0.01364066667 | FZ110: 0 | GA110: 0.081957 | GB110: 0.031657
B111: 2511.886432 | C111: 0 | D111: 0 | E111: 0 | H111: 2511.886432 | I111: 0 | J111: 0 | K111: 0 | N111: 2511.886432 | O111: 0 | P111: 0 | Q111: 0 | U111: 2511.886432 | V111: 0 | W111: 0 | X111: 0 | AA111: 2511.886432 | AB111: 0 | AC111: 0 | AD111: 0 | AG111: 2511.886432 | AH111: 0 | AI111: 0 | AJ111: 0 | AM111: 2511.886432 | AN111: 0 | AO111: 0 | AP111: 0 | AS111: 2511.886432 | AT111: 0 | AU111: 0 | AV111: 0 | AY111: 2511.886432 | AZ111: 0 | BA111: 0 | BB111: 0 | BE111: 2511.886432 | BF111: 0 | BG111: 0 | BH111: 0 | BK111: 2511.886432 | BL111: 0 | BM111: 0 | BN111: 0 | BQ111: 2511.886432 | BR111: 0 | BS111: 0 | BT111: 0 | BW111: 2511.886432 | BX111: 0 | BY111: 0 | BZ111: 0 | CC111: 2511.886432 | CD111: 0 | CE111: 0 | CF111: 0 | CI111: 2511.886432 | CJ111: 0 | CK111: 0 | CL111: 0 | CO111: 2511.886432 | CP111: 0 | CQ111: 0 | CR111: 0 | CU111: 2511.886432 | CV111: 0 | CW111: 0 | CX111: 0 | DA111: 2511.886432 | DB111: 0 | DC111: 0 | DD111: 0 | DG111: 2511.886432 | DH111: 0 | DI111: 0 | DJ111: 0 | DM111: 2511.886432 | DN111: 0 | DO111: 0 | DP111: 0 | DS111: 2511.886432 | DT111: 0 | DU111: 0 | DV111: 0 | DY111: 2511.886432 | DZ111: 0 | EA111: 0 | EB111: 0 | EE111: 2511.886432 | EF111: 0 | EG111: 0 | EH111: 0 | EK111: 2511.886432 | EL111: 0 | EM111: 0 | EN111: 0 | EQ111: 2511.886432 | ER111: 0 | ES111: 0 | ET111: 0 | EW111: 2511.886432 | EX111: 0 | EY111: 0 | EZ111: 0 | FB111: 2511.886432 | FC111: 0 | FD111: 0 | FE111: 0 | FF111: 0 | FG111: 0 | FH111: 0 | FI111: 0 | FJ111: 0 | FK111: 0 | FL111: 0 | FM111: 0 | FN111: 0 | FO111: 0 | FP111: 0 | FQ111: 0 | FR111: 0 | FS111: 0 | FT111: 0 | FU111: 0 | FV111: 0 | FW111: 0 | FX111: 0 | FY111: 0 | FZ111: 0 | GA111: 0 | GB111: 0
B112: 2884.031503 | C112: 0 | D112: 0 | E112: 0 | H112: 2884.031503 | I112: 0 | J112: 0 | K112: 0 | N112: 2884.031503 | O112: 0 | P112: 0 | Q112: 0 | U112: 2884.031503 | V112: 0 | W112: 0 | X112: 0 | AA112: 2884.031503 | AB112: 0 | AC112: 0 | AD112: 0 | AG112: 2884.031503 | AH112: 0 | AI112: 0 | AJ112: 0 | AM112: 2884.031503 | AN112: 0 | AO112: 0 | AP112: 0 | AS112: 2884.031503 | AT112: 0 | AU112: 0 | AV112: 0 | AY112: 2884.031503 | AZ112: 0 | BA112: 0 | BB112: 0 | BE112: 2884.031503 | BF112: 0 | BG112: 0 | BH112: 0 | BK112: 2884.031503 | BL112: 0 | BM112: 0 | BN112: 0 | BQ112: 2884.031503 | BR112: 0 | BS112: 0 | BT112: 0 | BW112: 2884.031503 | BX112: 0 | BY112: 0 | BZ112: 0 | CC112: 2884.031503 | CD112: 0 | CE112: 0 | CF112: 0 | CI112: 2884.031503 | CJ112: 0 | CK112: 0 | CL112: 0 | CO112: 2884.031503 | CP112: 0 | CQ112: 0 | CR112: 0 | CU112: 2884.031503 | CV112: 0 | CW112: 0 | CX112: 0 | DA112: 2884.031503 | DB112: 0 | DC112: 0 | DD112: 0 | DG112: 2884.031503 | DH112: 0 | DI112: 0 | DJ112: 0 | DM112: 2884.031503 | DN112: 0 | DO112: 0 | DP112: 0 | DS112: 2884.031503 | DT112: 0 | DU112: 0 | DV112: 0 | DY112: 2884.031503 | DZ112: 0 | EA112: 0 | EB112: 0 | EE112: 2884.031503 | EF112: 0 | EG112: 0 | EH112: 0 | EK112: 2884.031503 | EL112: 0 | EM112: 0 | EN112: 0 | EQ112: 2884.031503 | ER112: 0 | ES112: 0 | ET112: 0 | EW112: 2884.031503 | EX112: 0 | EY112: 0 | EZ112: 0 | FB112: 2884.031503 | FC112: 0 | FD112: 0 | FE112: 0 | FF112: 0 | FG112: 0 | FH112: 0 | FI112: 0 | FJ112: 0 | FK112: 0 | FL112: 0 | FM112: 0 | FN112: 0 | FO112: 0 | FP112: 0 | FQ112: 0 | FR112: 0 | FS112: 0 | FT112: 0 | FU112: 0 | FV112: 0 | FW112: 0 | FX112: 0 | FY112: 0 | FZ112: 0 | GA112: 0 | GB112: 0
B113: 3311.311215 | C113: 0 | D113: 0 | E113: 0 | H113: 3311.311215 | I113: 0 | J113: 0 | K113: 0 | N113: 3311.311215 | O113: 0 | P113: 0 | Q113: 0 | U113: 3311.311215 | V113: 0 | W113: 0 | X113: 0 | AA113: 3311.311215 | AB113: 0 | AC113: 0 | AD113: 0 | AG113: 3311.311215 | AH113: 0 | AI113: 0 | AJ113: 0 | AM113: 3311.311215 | AN113: 0 | AO113: 0 | AP113: 0 | AS113: 3311.311215 | AT113: 0 | AU113: 0 | AV113: 0 | AY113: 3311.311215 | AZ113: 0 | BA113: 0 | BB113: 0 | BE113: 3311.311215 | BF113: 0 | BG113: 0 | BH113: 0 | BK113: 3311.311215 | BL113: 0 | BM113: 0 | BN113: 0 | BQ113: 3311.311215 | BR113: 0 | BS113: 0 | BT113: 0 | BW113: 3311.311215 | BX113: 0 | BY113: 0 | BZ113: 0 | CC113: 3311.311215 | CD113: 0 | CE113: 0 | CF113: 0 | CI113: 3311.311215 | CJ113: 0 | CK113: 0 | CL113: 0 | CO113: 3311.311215 | CP113: 0 | CQ113: 0 | CR113: 0 | CU113: 3311.311215 | CV113: 0 | CW113: 0 | CX113: 0 | DA113: 3311.311215 | DB113: 0 | DC113: 0 | DD113: 0 | DG113: 3311.311215 | DH113: 0 | DI113: 0 | DJ113: 0 | DM113: 3311.311215 | DN113: 0 | DO113: 0 | DP113: 0 | DS113: 3311.311215 | DT113: 0 | DU113: 0 | DV113: 0 | DY113: 3311.311215 | DZ113: 0 | EA113: 0 | EB113: 0 | EE113: 3311.311215 | EF113: 0 | EG113: 0 | EH113: 0 | EK113: 3311.311215 | EL113: 0 | EM113: 0 | EN113: 0 | EQ113: 3311.311215 | ER113: 0 | ES113: 0 | ET113: 0 | EW113: 3311.311215 | EX113: 0 | EY113: 0 | EZ113: 0 | FB113: 3311.311215 | FC113: 0 | FD113: 0 | FE113: 0 | FF113: 0 | FG113: 0 | FH113: 0 | FI113: 0 | FJ113: 0 | FK113: 0 | FL113: 0 | FM113: 0 | FN113: 0 | FO113: 0 | FP113: 0 | FQ113: 0 | FR113: 0 | FS113: 0 | FT113: 0 | FU113: 0 | FV113: 0 | FW113: 0 | FX113: 0 | FY113: 0 | FZ113: 0 | GA113: 0 | GB113: 0
B114: 3801.893963 | C114: 0 | D114: 0 | E114: 0 | H114: 3801.893963 | I114: 0 | J114: 0 | K114: 0 | N114: 3801.893963 | O114: 0 | P114: 0 | Q114: 0 | U114: 3801.893963 | V114: 0 | W114: 0 | X114: 0 | AA114: 3801.893963 | AB114: 0 | AC114: 0 | AD114: 0 | AG114: 3801.893963 | AH114: 0 | AI114: 0 | AJ114: 0 | AM114: 3801.893963 | AN114: 0 | AO114: 0 | AP114: 0 | AS114: 3801.893963 | AT114: 0 | AU114: 0 | AV114: 0 | AY114: 3801.893963 | AZ114: 0 | BA114: 0 | BB114: 0 | BE114: 3801.893963 | BF114: 0 | BG114: 0 | BH114: 0 | BK114: 3801.893963 | BL114: 0 | BM114: 0 | BN114: 0 | BQ114: 3801.893963 | BR114: 0 | BS114: 0 | BT114: 0 | BW114: 3801.893963 | BX114: 0 | BY114: 0 | BZ114: 0 | CC114: 3801.893963 | CD114: 0 | CE114: 0 | CF114: 0 | CI114: 3801.893963 | CJ114: 0 | CK114: 0 | CL114: 0 | CO114: 3801.893963 | CP114: 0 | CQ114: 0 | CR114: 0 | CU114: 3801.893963 | CV114: 0 | CW114: 0 | CX114: 0 | DA114: 3801.893963 | DB114: 0 | DC114: 0 | DD114: 0 | DG114: 3801.893963 | DH114: 0 | DI114: 0 | DJ114: 0 | DM114: 3801.893963 | DN114: 0 | DO114: 0 | DP114: 0 | DS114: 3801.893963 | DT114: 0 | DU114: 0 | DV114: 0 | DY114: 3801.893963 | DZ114: 0 | EA114: 0 | EB114: 0 | EE114: 3801.893963 | EF114: 0 | EG114: 0 | EH114: 0 | EK114: 3801.893963 | EL114: 0 | EM114: 0 | EN114: 0 | EQ114: 3801.893963 | ER114: 0 | ES114: 0 | ET114: 0 | EW114: 3801.893963 | EX114: 0 | EY114: 0 | EZ114: 0 | FB114: 3801.893963 | FC114: 0 | FD114: 0 | FE114: 0 | FF114: 0 | FG114: 0 | FH114: 0 | FI114: 0 | FJ114: 0 | FK114: 0 | FL114: 0 | FM114: 0 | FN114: 0 | FO114: 0 | FP114: 0 | FQ114: 0 | FR114: 0 | FS114: 0 | FT114: 0 | FU114: 0 | FV114: 0 | FW114: 0 | FX114: 0 | FY114: 0 | FZ114: 0 | GA114: 0 | GB114: 0
B115: 4365.158322 | C115: 0 | D115: 0 | E115: 0 | H115: 4365.158322 | I115: 0 | J115: 0 | K115: 0 | N115: 4365.158322 | O115: 0 | P115: 0 | Q115: 0 | U115: 4365.158322 | V115: 0 | W115: 0 | X115: 0 | AA115: 4365.158322 | AB115: 0 | AC115: 0 | AD115: 0 | AG115: 4365.158322 | AH115: 0 | AI115: 0 | AJ115: 0 | AM115: 4365.158322 | AN115: 0 | AO115: 0 | AP115: 0 | AS115: 4365.158322 | AT115: 0 | AU115: 0 | AV115: 0 | AY115: 4365.158322 | AZ115: 0 | BA115: 0 | BB115: 0 | BE115: 4365.158322 | BF115: 0 | BG115: 0 | BH115: 0 | BK115: 4365.158322 | BL115: 0 | BM115: 0 | BN115: 0 | BQ115: 4365.158322 | BR115: 0 | BS115: 0 | BT115: 0 | BW115: 4365.158322 | BX115: 0 | BY115: 0 | BZ115: 0 | CC115: 4365.158322 | CD115: 0 | CE115: 0 | CF115: 0 | CI115: 4365.158322 | CJ115: 0 | CK115: 0 | CL115: 0 | CO115: 4365.158322 | CP115: 0 | CQ115: 0 | CR115: 0 | CU115: 4365.158322 | CV115: 0 | CW115: 0 | CX115: 0 | DA115: 4365.158322 | DB115: 0 | DC115: 0 | DD115: 0 | DG115: 4365.158322 | DH115: 0 | DI115: 0 | DJ115: 0 | DM115: 4365.158322 | DN115: 0 | DO115: 0 | DP115: 0 | DS115: 4365.158322 | DT115: 0 | DU115: 0 | DV115: 0 | DY115: 4365.158322 | DZ115: 0 | EA115: 0 | EB115: 0 | EE115: 4365.158322 | EF115: 0 | EG115: 0 | EH115: 0 | EK115: 4365.158322 | EL115: 0 | EM115: 0 | EN115: 0 | EQ115: 4365.158322 | ER115: 0 | ES115: 0 | ET115: 0 | EW115: 4365.158322 | EX115: 0 | EY115: 0 | EZ115: 0 | FB115: 4365.158322 | FC115: 0 | FD115: 0 | FE115: 0 | FF115: 0 | FG115: 0 | FH115: 0 | FI115: 0 | FJ115: 0 | FK115: 0 | FL115: 0 | FM115: 0 | FN115: 0 | FO115: 0 | FP115: 0 | FQ115: 0 | FR115: 0 | FS115: 0 | FT115: 0 | FU115: 0 | FV115: 0 | FW115: 0 | FX115: 0 | FY115: 0 | FZ115: 0 | GA115: 0 | GB115: 0
B116: 5011.872336 | C116: 0 | D116: 0 | E116: 0 | H116: 5011.872336 | I116: 0 | J116: 0 | K116: 0 | N116: 5011.872336 | O116: 0 | P116: 0 | Q116: 0 | U116: 5011.872336 | V116: 0 | W116: 0 | X116: 0 | AA116: 5011.872336 | AB116: 0 | AC116: 0 | AD116: 0 | AG116: 5011.872336 | AH116: 0 | AI116: 0 | AJ116: 0 | AM116: 5011.872336 | AN116: 0 | AO116: 0 | AP116: 0 | AS116: 5011.872336 | AT116: 0 | AU116: 0 | AV116: 0 | AY116: 5011.872336 | AZ116: 0 | BA116: 0 | BB116: 0 | BE116: 5011.872336 | BF116: 0 | BG116: 0 | BH116: 0 | BK116: 5011.872336 | BL116: 0 | BM116: 0 | BN116: 0 | BQ116: 5011.872336 | BR116: 0 | BS116: 0 | BT116: 0 | BW116: 5011.872336 | BX116: 0 | BY116: 0 | BZ116: 0 | CC116: 5011.872336 | CD116: 0 | CE116: 0 | CF116: 0 | CI116: 5011.872336 | CJ116: 0 | CK116: 0 | CL116: 0 | CO116: 5011.872336 | CP116: 0 | CQ116: 0 | CR116: 0 | CU116: 5011.872336 | CV116: 0 | CW116: 0 | CX116: 0 | DA116: 5011.872336 | DB116: 0 | DC116: 0 | DD116: 0 | DG116: 5011.872336 | DH116: 0 | DI116: 0 | DJ116: 0 | DM116: 5011.872336 | DN116: 0 | DO116: 0 | DP116: 0 | DS116: 5011.872336 | DT116: 0 | DU116: 0 | DV116: 0 | DY116: 5011.872336 | DZ116: 0 | EA116: 0 | EB116: 0 | EE116: 5011.872336 | EF116: 0 | EG116: 0 | EH116: 0 | EK116: 5011.872336 | EL116: 0 | EM116: 0 | EN116: 0 | EQ116: 5011.872336 | ER116: 0 | ES116: 0 | ET116: 0 | EW116: 5011.872336 | EX116: 0 | EY116: 0 | EZ116: 0 | FB116: 5011.872336 | FC116: 0 | FD116: 0 | FE116: 0 | FF116: 0 | FG116: 0 | FH116: 0 | FI116: 0 | FJ116: 0 | FK116: 0 | FL116: 0 | FM116: 0 | FN116: 0 | FO116: 0 | FP116: 0 | FQ116: 0 | FR116: 0 | FS116: 0 | FT116: 0 | FU116: 0 | FV116: 0 | FW116: 0 | FX116: 0 | FY116: 0 | FZ116: 0 | GA116: 0 | GB116: 0
B117: 5754.399373 | C117: 0 | D117: 0 | E117: 0 | H117: 5754.399373 | I117: 0 | J117: 0 | K117: 0 | N117: 5754.399373 | O117: 0 | P117: 0 | Q117: 0 | U117: 5754.399373 | V117: 0 | W117: 0 | X117: 0 | AA117: 5754.399373 | AB117: 0 | AC117: 0 | AD117: 0 | AG117: 5754.399373 | AH117: 0 | AI117: 0 | AJ117: 0 | AM117: 5754.399373 | AN117: 0 | AO117: 0 | AP117: 0 | AS117: 5754.399373 | AT117: 0 | AU117: 0 | AV117: 0 | AY117: 5754.399373 | AZ117: 0 | BA117: 0 | BB117: 0 | BE117: 5754.399373 | BF117: 0 | BG117: 0 | BH117: 0 | BK117: 5754.399373 | BL117: 0 | BM117: 0 | BN117: 0 | BQ117: 5754.399373 | BR117: 0 | BS117: 0 | BT117: 0 | BW117: 5754.399373 | BX117: 0 | BY117: 0 | BZ117: 0 | CC117: 5754.399373 | CD117: 0 | CE117: 0 | CF117: 0 | CI117: 5754.399373 | CJ117: 0 | CK117: 0 | CL117: 0 | CO117: 5754.399373 | CP117: 0 | CQ117: 0 | CR117: 0 | CU117: 5754.399373 | CV117: 0 | CW117: 0 | CX117: 0 | DA117: 5754.399373 | DB117: 0 | DC117: 0 | DD117: 0 | DG117: 5754.399373 | DH117: 0 | DI117: 0 | DJ117: 0 | DM117: 5754.399373 | DN117: 0 | DO117: 0 | DP117: 0 | DS117: 5754.399373 | DT117: 0 | DU117: 0 | DV117: 0 | DY117: 5754.399373 | DZ117: 0 | EA117: 0 | EB117: 0 | EE117: 5754.399373 | EF117: 0 | EG117: 0 | EH117: 0 | EK117: 5754.399373 | EL117: 0 | EM117: 0 | EN117: 0 | EQ117: 5754.399373 | ER117: 0 | ES117: 0 | ET117: 0 | EW117: 5754.399373 | EX117: 0 | EY117: 0 | EZ117: 0 | FB117: 5754.399373 | FC117: 0 | FD117: 0 | FE117: 0 | FF117: 0 | FG117: 0 | FH117: 0 | FI117: 0 | FJ117: 0 | FK117: 0 | FL117: 0 | FM117: 0 | FN117: 0 | FO117: 0 | FP117: 0 | FQ117: 0 | FR117: 0 | FS117: 0 | FT117: 0 | FU117: 0 | FV117: 0 | FW117: 0 | FX117: 0 | FY117: 0 | FZ117: 0 | GA117: 0 | GB117: 0
B118: 6606.93448 | C118: 0 | D118: 0 | E118: 0 | H118: 6606.93448 | I118: 0 | J118: 0 | K118: 0 | N118: 6606.93448 | O118: 0 | P118: 0 | Q118: 0 | U118: 6606.93448 | V118: 0 | W118: 0 | X118: 0 | AA118: 6606.93448 | AB118: 0 | AC118: 0 | AD118: 0 | AG118: 6606.93448 | AH118: 0 | AI118: 0 | AJ118: 0 | AM118: 6606.93448 | AN118: 0 | AO118: 0 | AP118: 0 | AS118: 6606.93448 | AT118: 0 | AU118: 0 | AV118: 0 | AY118: 6606.93448 | AZ118: 0 | BA118: 0 | BB118: 0 | BE118: 6606.93448 | BF118: 0 | BG118: 0 | BH118: 0 | BK118: 6606.93448 | BL118: 0 | BM118: 0 | BN118: 0 | BQ118: 6606.93448 | BR118: 0 | BS118: 0 | BT118: 0 | BW118: 6606.93448 | BX118: 0 | BY118: 0 | BZ118: 0 | CC118: 6606.93448 | CD118: 0 | CE118: 0 | CF118: 0 | CI118: 6606.93448 | CJ118: 0 | CK118: 0 | CL118: 0 | CO118: 6606.93448 | CP118: 0 | CQ118: 0 | CR118: 0 | CU118: 6606.93448 | CV118: 0 | CW118: 0 | CX118: 0 | DA118: 6606.93448 | DB118: 0 | DC118: 0 | DD118: 0 | DG118: 6606.93448 | DH118: 0 | DI118: 0 | DJ118: 0 | DM118: 6606.93448 | DN118: 0 | DO118: 0 | DP118: 0 | DS118: 6606.93448 | DT118: 0 | DU118: 0 | DV118: 0 | DY118: 6606.93448 | DZ118: 0 | EA118: 0 | EB118: 0 | EE118: 6606.93448 | EF118: 0 | EG118: 0 | EH118: 0 | EK118: 6606.93448 | EL118: 0 | EM118: 0 | EN118: 0 | EQ118: 6606.93448 | ER118: 0 | ES118: 0 | ET118: 0 | EW118: 6606.93448 | EX118: 0 | EY118: 0 | EZ118: 0 | FB118: 6606.93448 | FC118: 0 | FD118: 0 | FE118: 0 | FF118: 0 | FG118: 0 | FH118: 0 | FI118: 0 | FJ118: 0 | FK118: 0 | FL118: 0 | FM118: 0 | FN118: 0 | FO118: 0 | FP118: 0 | FQ118: 0 | FR118: 0 | FS118: 0 | FT118: 0 | FU118: 0 | FV118: 0 | FW118: 0 | FX118: 0 | FY118: 0 | FZ118: 0 | GA118: 0 | GB118: 0
B119: 7585.77575 | C119: 0 | D119: 0 | E119: 0 | H119: 7585.77575 | I119: 0 | J119: 0 | K119: 0 | N119: 7585.77575 | O119: 0 | P119: 0 | Q119: 0 | U119: 7585.77575 | V119: 0 | W119: 0 | X119: 0 | AA119: 7585.77575 | AB119: 0 | AC119: 0 | AD119: 0 | AG119: 7585.77575 | AH119: 0 | AI119: 0 | AJ119: 0 | AM119: 7585.77575 | AN119: 0 | AO119: 0 | AP119: 0 | AS119: 7585.77575 | AT119: 0 | AU119: 0 | AV119: 0 | AY119: 7585.77575 | AZ119: 0 | BA119: 0 | BB119: 0 | BE119: 7585.77575 | BF119: 0 | BG119: 0 | BH119: 0 | BK119: 7585.77575 | BL119: 0 | BM119: 0 | BN119: 0 | BQ119: 7585.77575 | BR119: 0 | BS119: 0 | BT119: 0 | BW119: 7585.77575 | BX119: 0 | BY119: 0 | BZ119: 0 | CC119: 7585.77575 | CD119: 0 | CE119: 0 | CF119: 0 | CI119: 7585.77575 | CJ119: 0 | CK119: 0 | CL119: 0 | CO119: 7585.77575 | CP119: 0 | CQ119: 0 | CR119: 0 | CU119: 7585.77575 | CV119: 0 | CW119: 0 | CX119: 0 | DA119: 7585.77575 | DB119: 0 | DC119: 0 | DD119: 0 | DG119: 7585.77575 | DH119: 0 | DI119: 0 | DJ119: 0 | DM119: 7585.77575 | DN119: 0 | DO119: 0 | DP119: 0 | DS119: 7585.77575 | DT119: 0 | DU119: 0 | DV119: 0 | DY119: 7585.77575 | DZ119: 0 | EA119: 0 | EB119: 0 | EE119: 7585.77575 | EF119: 0 | EG119: 0 | EH119: 0 | EK119: 7585.77575 | EL119: 0 | EM119: 0 | EN119: 0 | EQ119: 7585.77575 | ER119: 0 | ES119: 0 | ET119: 0 | EW119: 7585.77575 | EX119: 0 | EY119: 0 | EZ119: 0 | FB119: 7585.77575 | FC119: 0 | FD119: 0 | FE119: 0 | FF119: 0 | FG119: 0 | FH119: 0 | FI119: 0 | FJ119: 0 | FK119: 0 | FL119: 0 | FM119: 0 | FN119: 0 | FO119: 0 | FP119: 0 | FQ119: 0 | FR119: 0 | FS119: 0 | FT119: 0 | FU119: 0 | FV119: 0 | FW119: 0 | FX119: 0 | FY119: 0 | FZ119: 0 | GA119: 0 | GB119: 0
B120: 8709.6359 | C120: 0 | D120: 0 | E120: 0 | H120: 8709.6359 | I120: 0 | J120: 0 | K120: 0 | N120: 8709.6359 | O120: 0 | P120: 0 | Q120: 0 | U120: 8709.6359 | V120: 0 | W120: 0 | X120: 0 | AA120: 8709.6359 | AB120: 0 | AC120: 0 | AD120: 0 | AG120: 8709.6359 | AH120: 0 | AI120: 0 | AJ120: 0 | AM120: 8709.6359 | AN120: 0 | AO120: 0 | AP120: 0 | AS120: 8709.6359 | AT120: 0 | AU120: 0 | AV120: 0 | AY120: 8709.6359 | AZ120: 0 | BA120: 0 | BB120: 0 | BE120: 8709.6359 | BF120: 0 | BG120: 0 | BH120: 0 | BK120: 8709.6359 | BL120: 0 | BM120: 0 | BN120: 0 | BQ120: 8709.6359 | BR120: 0 | BS120: 0 | BT120: 0 | BW120: 8709.6359 | BX120: 0 | BY120: 0 | BZ120: 0 | CC120: 8709.6359 | CD120: 0 | CE120: 0 | CF120: 0 | CI120: 8709.6359 | CJ120: 0 | CK120: 0 | CL120: 0 | CO120: 8709.6359 | CP120: 0 | CQ120: 0 | CR120: 0 | CU120: 8709.6359 | CV120: 0 | CW120: 0 | CX120: 0 | DA120: 8709.6359 | DB120: 0 | DC120: 0 | DD120: 0 | DG120: 8709.6359 | DH120: 0 | DI120: 0 | DJ120: 0 | DM120: 8709.6359 | DN120: 0 | DO120: 0 | DP120: 0 | DS120: 8709.6359 | DT120: 0 | DU120: 0 | DV120: 0 | DY120: 8709.6359 | DZ120: 0 | EA120: 0 | EB120: 0 | EE120: 8709.6359 | EF120: 0 | EG120: 0 | EH120: 0 | EK120: 8709.6359 | EL120: 0 | EM120: 0 | EN120: 0 | EQ120: 8709.6359 | ER120: 0 | ES120: 0 | ET120: 0 | EW120: 8709.6359 | EX120: 0 | EY120: 0 | EZ120: 0 | FB120: 8709.6359 | FC120: 0 | FD120: 0 | FE120: 0 | FF120: 0 | FG120: 0 | FH120: 0 | FI120: 0 | FJ120: 0 | FK120: 0 | FL120: 0 | FM120: 0 | FN120: 0 | FO120: 0 | FP120: 0 | FQ120: 0 | FR120: 0 | FS120: 0 | FT120: 0 | FU120: 0 | FV120: 0 | FW120: 0 | FX120: 0 | FY120: 0 | FZ120: 0 | GA120: 0 | GB120: 0
B121: 10000 | C121: 0 | D121: 0 | E121: 0 | H121: 10000 | I121: 0 | J121: 0 | K121: 0 | N121: 10000 | O121: 0 | P121: 0 | Q121: 0 | U121: 10000 | V121: 0 | W121: 0 | X121: 0 | AA121: 10000 | AB121: 0 | AC121: 0 | AD121: 0 | AG121: 10000 | AH121: 0 | AI121: 0 | AJ121: 0 | AM121: 10000 | AN121: 0 | AO121: 0 | AP121: 0 | AS121: 10000 | AT121: 0 | AU121: 0 | AV121: 0 | AY121: 10000 | AZ121: 0 | BA121: 0 | BB121: 0 | BE121: 10000 | BF121: 0 | BG121: 0 | BH121: 0 | BK121: 10000 | BL121: 0 | BM121: 0 | BN121: 0 | BQ121: 10000 | BR121: 0 | BS121: 0 | BT121: 0 | BW121: 10000 | BX121: 0 | BY121: 0 | BZ121: 0 | CC121: 10000 | CD121: 0 | CE121: 0 | CF121: 0 | CI121: 10000 | CJ121: 0 | CK121: 0 | CL121: 0 | CO121: 10000 | CP121: 0 | CQ121: 0 | CR121: 0 | CU121: 10000 | CV121: 0 | CW121: 0 | CX121: 0 | DA121: 10000 | DB121: 0 | DC121: 0 | DD121: 0 | DG121: 10000 | DH121: 0 | DI121: 0 | DJ121: 0 | DM121: 10000 | DN121: 0 | DO121: 0 | DP121: 0 | DS121: 10000 | DT121: 0 | DU121: 0 | DV121: 0 | DY121: 10000 | DZ121: 0 | EA121: 0 | EB121: 0 | EE121: 10000 | EF121: 0 | EG121: 0 | EH121: 0 | EK121: 10000 | EL121: 0 | EM121: 0 | EN121: 0 | EQ121: 10000 | ER121: 0 | ES121: 0 | ET121: 0 | EW121: 10000 | EX121: 0 | EY121: 0 | EZ121: 0 | FB121: 10000 | FC121: 0 | FD121: 0 | FE121: 0 | FF121: 0 | FG121: 0 | FH121: 0 | FI121: 0 | FJ121: 0 | FK121: 0 | FL121: 0 | FM121: 0 | FN121: 0 | FO121: 0 | FP121: 0 | FQ121: 0 | FR121: 0 | FS121: 0 | FT121: 0 | FU121: 0 | FV121: 0 | FW121: 0 | FX121: 0 | FY121: 0 | FZ121: 0 | GA121: 0 | GB121: 0

Sheet Calculations (hidden)
A1: Basics | D1: Basics | G1: Basics | J1: Basics
A2: =IF('Texture Calculator'!$G$4+1.5*'Texture Calculator'!$E$4<0.15,1,0) -> 0 | B2: ((silt + 1.5*clay) < 15) | C2: SAND | D2: =IF('Texture Calculator'!$G$5+1.5*'Texture Calculator'!$E$5<0.15,1,0) -> 0 | E2: ((silt + 1.5*clay) < 15) | F2: SAND | G2: =IF('Texture Calculator'!$G$6+1.5*'Texture Calculator'!$E$6<0.15,1,0) -> 0 | H2: ((silt + 1.5*clay) < 15) | I2: SAND | J2: =IF('Texture Calculator'!$G$7+1.5*'Texture Calculator'!$E$7<0.15,1,0) -> 0 | K2: ((silt + 1.5*clay) < 15) | L2: SAND
A3: =IF(AND('Texture Calculator'!$G$4+1.5*'Texture Calculator'!$E$4>=0.15, 'Texture Calculator'!$G$4+2*'Texture Calculator'!$E$4<0.3), 2, 0) -> 2 | B3: ((silt + 1.5*clay >= 15) && (silt + 2*clay < 30)) | C3: LOAMY SAND | D3: =IF(AND('Texture Calculator'!$G$5+1.5*'Texture Calculator'!$E$5>=0.15, 'Texture Calculator'!$G$5+2*'Texture Calculator'!$E$5<0.3), 2, 0) -> 0 | E3: ((silt + 1.5*clay >= 15) && (silt + 2*clay < 30)) | F3: LOAMY SAND | G3: =IF(AND('Texture Calculator'!$G$6+1.5*'Texture Calculator'!$E$6>=0.15, 'Texture Calculator'!$G$6+2*'Texture Calculator'!$E$6<0.3), 2, 0) -> 0 | H3: ((silt + 1.5*clay >= 15) && (silt + 2*clay < 30)) | I3: LOAMY SAND | J3: =IF(AND('Texture Calculator'!$G$7+1.5*'Texture Calculator'!$E$7>=0.15, 'Texture Calculator'!$G$7+2*'Texture Calculator'!$E$7<0.3), 2, 0) -> 0 | K3: ((silt + 1.5*clay >= 15) && (silt + 2*clay < 30)) | L3: LOAMY SAND
A4: =IF(OR(AND('Texture Calculator'!$E$4>=0.07, 'Texture Calculator'!$E$4<0.2,'Texture Calculator'!$C$4>0.52,'Texture Calculator'!$G$4+2*'Texture Calculator'!$E$4>=0.3), AND('Texture Calculator'!$E$4<0.07, 'Texture Calculator'!$G$4<0.5, 'Texture Calculator'!$G$4+2*'Texture Calculator'!$E$4>=0.3)), 3,0) -> 0 | B4: ((clay >= 7 && clay < 20) && (sand > 52) && ((silt + 2*clay) >= 30) || (clay < 7 && silt < 50 && (silt+2*clay)>=30)) | C4: SANDY LOAM | D4: =IF(OR(AND('Texture Calculator'!$E$5>=0.07, 'Texture Calculator'!$E$5<0.2,'Texture Calculator'!$C$5>0.52,'Texture Calculator'!$G$5+2*'Texture Calculator'!$E$5>=0.3), AND('Texture Calculator'!$E$5<0.07, 'Texture Calculator'!$G$5<0.5, 'Texture Calculator'!$G$5+2*'Texture Calculator'!$E$5>=0.3)), 3,0) -> 3 | E4: ((clay >= 7 && clay < 20) && (sand > 52) && ((silt + 2*clay) >= 30) || (clay < 7 && silt < 50 && (silt+2*clay)>=30)) | F4: SANDY LOAM | G4: =IF(OR(AND('Texture Calculator'!$E$6>=0.07, 'Texture Calculator'!$E$6<0.2,'Texture Calculator'!$C$6>0.52,'Texture Calculator'!$G$6+2*'Texture Calculator'!$E$6>=0.3), AND('Texture Calculator'!$E$6<0.07, 'Texture Calculator'!$G$6<0.5, 'Texture Calculator'!$G$6+2*'Texture Calculator'!$E$6>=0.3)), 3,0) -> 0 | H4: ((clay >= 7 && clay < 20) && (sand > 52) && ((silt + 2*clay) >= 30) || (clay < 7 && silt < 50 && (silt+2*clay)>=30)) | I4: SANDY LOAM | J4: =IF(OR(AND('Texture Calculator'!$E$7>=0.07, 'Texture Calculator'!$E$7<0.2,'Texture Calculator'!$C$7>0.52,'Texture Calculator'!$G$7+2*'Texture Calculator'!$E$7>=0.3), AND('Texture Calculator'!$E$7<0.07, 'Texture Calculator'!$G$7<0.5, 'Texture Calculator'!$G$7+2*'Texture Calculator'!$E$7>=0.3)), 3,0) -> 3 | K4: ((clay >= 7 && clay < 20) && (sand > 52) && ((silt + 2*clay) >= 30) || (clay < 7 && silt < 50 && (silt+2*clay)>=30)) | L4: SANDY LOAM
